Workbook

Sheet Introduction
B1: Mothers' Milk Tool
B3: Introduction

Sheet Advocacy (hidden)
A1: Advocacy

Sheet IntroandAdvocacy (hidden)
B1: Mothers' Milk Tool
B3: Introduction

Sheet Definition of variables (hidden)
B1: Definition of variable used
B3: # | C3: Code | D3: Description | E3: Definition | F3: Type | G3: Formula | H3: Explanation of measurement | I3: Web link | J3: Note
D4: Population Data
B5: 1 | C5: AnLB | D5: Annual live births | E5: The annual number of live births is defined as the number of live births taking place in a certain country or area during a year. Unless otherwise specified, the reference period for the number of live births presented in World Fertility Data 2008 is the calendar year | F5: FIX | G5: NA | I5: https://population.un.org/wpp/DataQuery/ &
D6: Breastfeeding Practices
B7: 2 | C7: EBF | D7: Exclusive Breastfeeding (0 to <6 ) | E7: Breast milk from mother or wet nurse or expressed breast milk, NO other liquids or solids except vitamin drops or syrups, mineral supplements, or prescribed medicines | F7: FIX | G7: Value = Population (age group) x Daily yields | H7: Calculations are for any breastfeeding and do not distinguish exclusive or full breastfeeding, because some countries lack such data. This means it is a minimum estimate of the milk produced. Better country data on breastfeeding is needed for more accurate estimates, particularly for high income countries. The Tool uses official breastfeeding data and covers 0-36 months. For many countries this is available through the Demographic and Health Surveys (DHS) & Multiple Indicator Cluster Surveys (MICS). If your country has inadequate official breastfeeding data for each month of age 0-36 months, the Tool includes an automatic process that can fill the gaps for most countries. It can do this if you can add three or more data points for any breastfeeding rates, by clicking the data entry button at Step 3 in the country calculator. This process assumes that fewer than 1% of children are breastfeeding at 3 years, though this is an underestimate for some countries. The process uses a regression model to fill data gaps based on a cubic function which was found to be the best fit. | I7: https://data.unicef.org/resources/dataset/infant-young-child-feeding/ | J7: Alternative resources OECD Family Database: http://www.oecd.org/social/family/database.htm
B8: =B7+1 -> 3 | C8: PBF | D8: Full or predominant breastfeeding (0 to <6 mos.) | E8: • Breast milk from mother or wet nurse or expressed breast milk • Water and water-based drinks • NO food-based fluid with the exception of fruit juice and sugar water | F8: FIX | G8: Value = Population (age group) x Daily yields | I8: https://data.unicef.org/resources/dataset/infant-young-child-feeding/ | J8: Alternative resources OECD Family Database: http://www.oecd.org/social/family/database.htm
B9: 4 | C9: PaBF | D9: Partial (BF+Foods, Liquids, Milk etc ) (0 to <6 mos.) | E9: • Breast milk from mother or wet nurse or expressed breast milk • Any other liquids or non-liquids, including both milk and non-milk products Vitamin drops or syrups, mineral supplements, or prescribed medicines | F9: FIX | I9: https://data.unicef.org/resources/dataset/infant-young-child-feeding/ | J9: Alternative resources OECD Family Database: http://www.oecd.org/social/family/database.htm
B10: 5 | C10: NotBF | D10: Not breastfeeding (0-<6 mos. of age) | E10: Formula, animal’s milk and/or solid, semisolid or soft food NO breast milk | F10: FIX | I10: https://data.unicef.org/resources/dataset/infant-young-child-feeding/ | J10: alternative resources OECD Family Database: http://www.oecd.org/social/family/database.htm
B11: 6 | C11: NotBFW | D11: Not breastfeeding women (Never) | E11: women with infants, that have never breastfed | F11: FIX | G11: estimated at 5% (10%) | I11: https://www.unicef.org/reports | J11: Ever breastfeeding rates of a country (if available can be used to estimate the never breastfeeding rate of that particular country) ;
B12: 7 | C12: BFmo | D12: Breastfeeding at "each month" 0, 1, 2, 3, 4, 5, 6, 7, 8, 9, 10, 11, 12 etc | E12: Breastfeeding prevalence by month | F12: 1. Provided in National surveys 2. Calculated with the prediction model or 3. extracted from the row national surveys (e.g., DHS, MICS, others) | H12: If your country has inadequate official breastfeeding data for each month of age 0-36 months, the Tool includes an automatic process that can fill the gaps for most countries. It can do this if you can add three or more data points for any breastfeeding rates, by clicking the data entry button at Step 3 in the country calculator. This process assumes that fewer than 1% of children are breastfeeding at 3 years, though this is an underestimate for some countries. The process uses a regression model to fill data gaps based on a cubic function which was found to be the best fit. | I12: 1. https://dhsprogram.com/data/available-datasets.cfm 2. https://mics.unicef.org/surveys | J12: https://www.omnicalculator.com/statistics/cubic-regression#definition-of-cubic-regression
B13: 8 | C13: BF6months | D13: Breastfeeding at 6 months | E13: Proportion of infants that at 4 to 5.9 months are still breastfeeding | F13: Calculated | G13: Infants at 4 to 5.9 months (EBF+any BF)-Infants at 4 to 5.9 months Not BF anymore | I13: https://data.unicef.org/resources/dataset/infant-young-child-feeding/
B14: 9 | C14: BF6-12months | D14: Breastfeeding from 6 to 11.9 months | E14: Average proportion of children that are breastfeeding between 6 to 12 months | F14: Calculated | G14: Average (BF6months and BF1Y) | I14: https://data.unicef.org/resources/dataset/infant-young-child-feeding/
B15: 10 | C15: BF1Y | D15: Breastfeeding at 12 months (12 to 14.9 months) | E15: Proportion of children 12–14.99 months of age who are fed breast milk; | F15: FIXED | G15: NA | I15: https://data.unicef.org/resources/dataset/infant-young-child-feeding/ | J15: alternative resources OECD Family Database: http://www.oecd.org/social/family/database.htm
B16: 11 | C16: BF1to2Yrs | D16: Continued breastfeeding 12 to 23.9 months | E16: Proportion of children 12 to 23.9 months of agre who are fed also breast milk | F16: FIXED | G16: NA | I16: https://data.unicef.org/resources/dataset/infant-young-child-feeding/ | J16: alternative resources OECD Family Database: http://www.oecd.org/social/family/database.htm
B17: 12 | C17: BF2to3Yrs | D17: Continued breastfeeding 24 to 35.9 months | E17: Proportion of children 12 to 23.9 months of agre who are fed also breast milk | F17: FIXED | G17: NA | I17: https://data.unicef.org/resources/dataset/infant-young-child-feeding/ | J17: alternative resources OECD Family Database: http://www.oecd.org/social/family/database.htm
B18: 13 | C18: BF2Y | D18: Breastfeeding at 2 years of age (20 to 23.9 months) | E18: Proportion of children 20-24 months of age who are fed breast milk | F18: FIXED | G18: NA | I18: https://data.unicef.org/resources/dataset/infant-young-child-feeding/ | J18: alternative resources OECD Family Database: http://www.oecd.org/social/family/database.htm
B19: 14 | C19: BF3Y | D19: Breastfeeding at 3 years of age (24 to 35.9 months) | E19: Proportion of children 24-35.9 months of age who are fed breast milk | F19: FIXED | G19: NA | I19: https://data.unicef.org/resources/dataset/infant-young-child-feeding/
D20: Breastmilk yelds daily
B21: 15 | C21: DBMYi | D21: Daily breast milk yields by age in months (0,1,2,3,4,5,6,7,8,9,10,11,12,13,14,15,16,17,18,19,20,21,22,23) | E21: Human milk intake of children at the specific age | F21: FIXED | G21: NA | H21: The Tool assumes that a breastfeeding mother will produce about 431 litres of milk during 36 months of lactation (or 345 litres over 2 years). This is based on scientific studies, and is a conservative assumption. | I21: https://www.who.int/nutrition/publications/nut_adequacy_of_exc_bfeeding_eng.pdf | J21: For infants <12 months, see Butte, N., et al. (2002). Nutrient adequacy of exclusive breastfeeding for the term infant during the first 6 months of life. Geneva, World Health Organization. Butte et al did not estimate the yields for children above 12 months. For children 12 months to 3 years see Hatloy A, Oshaug A. Human milk: an invisible food resource. J Hum Lact 1997;13:299-305. .
D22: Breastmilk production for children (biologically feasible potential and actual)
B23: 16 | C23: BPFO6 | D23: Biologically Feasible Potential volume of breastmilk production (million of litres) for infants<6 months of age | E23: Estimated amount in litres of breast milk produced for infants <6 months that is biologically feasible in a certain country (daily/monthly/annual) | F23: Calculated | G23: Volume = Population (age group) x Prevalence of EBF/Partial x daily yields per child (<6 mos.) | H23: Biologically feasible potential volumes are the amounts of milk that would be produced if 98% of mothers breastfed. Historical and current studies show that 98% or more of women can breastfeed. | I23: NA | J23: Berg A. The nutrition factor; its role in national development: The Brookings Institution; 1973. Sellen DW. Comparison of Infant Feeding Patterns Reported for Nonindustrial Populations with Current Recommendations. J Nutr 2001;131:2707-15. Haggkvist AP, Brantsaeter AL, Grjibovski AM, Helsing E, Meltzer HM, Haugen M. Prevalence of breast-feeding in the Norwegian Mother and Child Cohort Study and health service-related correlates of cessation of full breast-feeding. Public Health Nutr 2010;13:2076-86. Smith JP. Human milk supply in Australia. Food Policy 1999;24:71-91.
B24: =B23+1 -> 17 | C24: BPFO1Y | D24: Biologically Feasible Potential Volume of breastmilk production (million of litres) for infants 6 to 11.9 months of age | E24: Estimated amount in litres of breast milk produced for infants 6 to 11.9 months that is biologically feasible in a certain country (daily/monthly/annual) | F24: Calculated | G24: Volume = Population (age group) x Prevalence of EBF/Partial x daily yields per child (6 to 11.9 mos.) | I24: NA | J24: Berg A. The nutrition factor; its role in national development: The Brookings Institution; 1973. Sellen DW. Comparison of Infant Feeding Patterns Reported for Nonindustrial Populations with Current Recommendations. J Nutr 2001;131:2707-15. Haggkvist AP, Brantsaeter AL, Grjibovski AM, Helsing E, Meltzer HM, Haugen M. Prevalence of breast-feeding in the Norwegian Mother and Child Cohort Study and health service-related correlates of cessation of full breast-feeding. Public Health Nutr 2010;13:2076-86. Smith JP. Human milk supply in Australia. Food Policy 1999;24:71-91.
B25: =B24+1 -> 18 | C25: BPFO2Y | D25: Biologically Feasible Potential volume of breastmilk production (million of litres) for infants 12 to 23.9 months of age | E25: Estimated amount in kilograms of breast milk produced for infants 12 to 23.9 months that is biologically feasible in a certain country (daily/monthly/annual) | F25: Calculated | G25: Volume = Population (age group) x Prevalence of EBF/Partial x daily yields per child (12 to 24 mos.) | I25: NA | J25: Berg A. The nutrition factor; its role in national development: The Brookings Institution; 1973. Sellen DW. Comparison of Infant Feeding Patterns Reported for Nonindustrial Populations with Current Recommendations. J Nutr 2001;131:2707-15. Haggkvist AP, Brantsaeter AL, Grjibovski AM, Helsing E, Meltzer HM, Haugen M. Prevalence of breast-feeding in the Norwegian Mother and Child Cohort Study and health service-related correlates of cessation of full breast-feeding. Public Health Nutr 2010;13:2076-86. Smith JP. Human milk supply in Australia. Food Policy 1999;24:71-91.
B26: 19 | C26: BPFO3Y | D26: Biologically Feasible Potential volume of breastmilk production (million of litres) for infants 24 to 35.9 months of age | E26: Estimated amount in kilograms of breast milk produced for infants 25 to 35.9 months that is biologically feasible in a certain country (daily/monthly/annual) | F26: Calculated | G26: Volume = Population (age group) x Prevalence of EBF/Partial x daily yields per child (25 to 35.9mos.) | I26: NA | J26: Berg A. The nutrition factor; its role in national development: The Brookings Institution; 1973. Sellen DW. Comparison of Infant Feeding Patterns Reported for Nonindustrial Populations with Current Recommendations. J Nutr 2001;131:2707-15. Haggkvist AP, Brantsaeter AL, Grjibovski AM, Helsing E, Meltzer HM, Haugen M. Prevalence of breast-feeding in the Norwegian Mother and Child Cohort Study and health service-related correlates of cessation of full breast-feeding. Public Health Nutr 2010;13:2076-86. Smith JP. Human milk supply in Australia. Food Policy 1999;24:71-91.
B27: 20 | C27: BPF24mos | D27: Biologically Feasible Potential volume of breastmilk production (million of litres) for infants 0 to 23.9 months of age | E27: Estimated amount in kilograms of breast milk produced for infants 0 to 23.9 months that is biologically feasible in a certain country (daily/monthly/annual) | F27: Calculated | G27: Volume = Population (age group) x Prevalence of EBF/Partial x daily yields per child (0 to 23.9 mos.) | I27: NA | J27: Berg A. The nutrition factor; its role in national development: The Brookings Institution; 1973. Sellen DW. Comparison of Infant Feeding Patterns Reported for Nonindustrial Populations with Current Recommendations. J Nutr 2001;131:2707-15. Haggkvist AP, Brantsaeter AL, Grjibovski AM, Helsing E, Meltzer HM, Haugen M. Prevalence of breast-feeding in the Norwegian Mother and Child Cohort Study and health service-related correlates of cessation of full breast-feeding. Public Health Nutr 2010;13:2076-86. Smith JP. Human milk supply in Australia. Food Policy 1999;24:71-91.
B28: 21 | C28: LostBM | D28: Lost Breastmilk | E28: Lost volume of human breastmilk production | F28: Calculated | G28: Volume Biologically Feasible breastmilk production - Volume Actual human milk production | H28: The lost milk is the difference between the milk actually produced at current breastfeeding rates, and the milk that would be produced if 98% of mothers breastfed for six months and to at least 36 months. Historical and current studies show that 98% or more of women can breastfeed. | I28: NA | J28: Berg A. The nutrition factor; its role in national development: The Brookings Institution; 1973. Sellen DW. Comparison of Infant Feeding Patterns Reported for Nonindustrial Populations with Current Recommendations. J Nutr 2001;131:2707-15. Haggkvist AP, Brantsaeter AL, Grjibovski AM, Helsing E, Meltzer HM, Haugen M. Prevalence of breast-feeding in the Norwegian Mother and Child Cohort Study and health service-related correlates of cessation of full breast-feeding. Public Health Nutr 2010;13:2076-86.
B29: 22 | C29: Volm | D29: Daily breastmilk intake of breastfeeding infants by age bracket (<6 months, 6, 7, 8, 9, 10, 11 to 11.9 months, 12 to 35.9 months) | E29: Average amount of breastmilk intake of a child according to age | F29: FIXED | H29: The Tool assumes that a breastfeeding mother will produce about 431 litres of milk during 36 months of lactation (or 345 litres over 2 years). This is based on scientific studies, and is a conservative assumption. | I29: NA | J29: For infants <12 months, see Butte, N., et al. (2002). Nutrient adequacy of exclusive breastfeeding for the term infant during the first 6 months of life. Geneva, World Health Organization. Butte et al did not estimate the yields for children above 12 months. For children 12 months to 3 years see Hatloy A, Oshaug A. Human milk: an invisible food resource. J Hum Lact 1997;13:299-305.
B30: 23 | C30: AHMP6 | D30: Actual Human Milk Production, Volume (million litres) for infants <6 months | E30: Actual breastmilk production based on breastfeeding prevalence for the age group | F30: Calculated | G30: Volume = Pop x BFPrev x BM Yields | I30: NA
B31: 24 | C31: AHMP12 | D31: Actual Human Milk Production, Volume (million litres) for infants <12 months | E31: Actual breastmilk production based on breastfeeding prevalence for the age group | F31: Calculated | G31: Volume = Pop x BFPrev BM Yields | I31: NA
B32: 25 | C32: AHMP1223 | D32: Actual Human Milk Production Volume (million litres) for children 12 to 23.9 months | E32: Actual breastmilk production based on breastfeeding prevalence for the age group | F32: Calculated | G32: Volume = Pop xBFPrev x BM Yields | I32: NA
B33: 26 | C33: AHMP023 | D33: Actual Human Milk Production Volume (million litres) for children 24 to 35.9 months | E33: Actual breastmilk production based on breastfeeding prevalence for the age group | F33: Calculated | G33: Volume = Pop xBFPrev x BM Yields | I33: NA
B34: 27 | C34: AHMP24mos | D34: Actual Human Milk Production Volume (million litres) for children 0 to 23.9 months | E34: Actual breastmilk production based on breastfeeding prevalence for the age group | F34: Calculated | G34: Volume = Pop xBFPrev x BM Yields | I34: NA
B35: 28 | C35: AHMP36mos | D35: Actual Human Milk Production Volume (million litres) for children 0 to 35.9 months | E35: Actual breastmilk production based on breastfeeding prevalence for the age group | F35: Calculated | G35: Volume = Pop xBFPrev x BM Yields | I35: NA
B36: 29 | C36: PCA | D36: Availability per child of Breastmilk | E36: The amount of breastmilk available for each child 0-23 months of age | F36: Calculated | G36: PCA=AHMP24mos/023M | J36: Not available in version 1.0 | K36: 2. cost of BF for a mother
B37: 30 | C37: KtoL | D37: Kilos to Litre conversion factor | E37: Conversion of 1 kilo of milk into litres | F37: Fix | G37: 1 litre is 1.032 kilograms , 1.032 kilograms per litre | J37: Not available in version 1.0
B38: 31 | C38: OtoL | D38: Ounce to Litre conversion factor | E38: Conversion of 1 ounce into litres | F38: Fix | G38: 1 ounce is 0.0295735 litre | J38: Not available in version 1.0
D39: Price of breastmilk
B40: 29 | C40: PriceLBM | D40: Price of one litre of breastmilk (national) | E40: average price of one litre of breastmilk from milk banks or elsewhere | F40: FIXED | H40: The Tool provides a monetary value of the milk produced by mothers to breastfeed their children. It uses a typical price charged by donor human milk banks for fresh milk of $100 per litre (the monetary value is available in US$ and in the local currency). It is approximately $3 per ounce. This is based on the official price charged for fresh donated milk within Norway’s human milk banking system. Other milk banks may charge much more for pasteurised donor milk. Various other ways of placing a monetary value on human milk include using the wage of a wetnurse as a proxy, or putting a monetary value on the mother’s time. Using the price of commercial milk formula is not appropriate because it is not an analogous product, and does not take account of the health costs or environmental impacts of its use. For the calculations of the amount and value of human milk produced and lost due at the breastfeeding rates in your country, you can use the monetary value in the tool, or substitute a different price. | I40: NA
B41: =B40+1 -> 30 | C41: WageWN | D41: Wage for wet nursing (daily/monthly) | E41: Average daily/monthly price of recruiting/hiring a wet nurse | F41: FIX | G41: 50 to 200 $USD/day | I41: Wages for wet nursing | J41: Not available in Version 1.0 Smith. (2012) Including Household Production in the System of National Accounts (SNA) - Exploring the Implications of Breastfeeding and Human Milk Provision. Paper Prepared for the 32nd General Conference of The International Association for Research in Income and Wealth. Boston, USA, August 5-11, 2012. Smith JP (2013) "Lost milk?": Counting the economic value of breast milk in gross domestic product. J Hum Lact 29, 537-546.
B42: 31 | C42: WageCC | D42: Wage (Country can place value for this) [Childcare worker to estimate the value of unpaid childcare work) | E42: Average hourly wage of a woman for expressing breastmilk | F42: Calculated | G42: US$11.16/hour | I42: NA | J42: Not available in Version 1.0 Including Household production in the system of national accounts (SNA) - exploring the implications of breastfeeding and human milk provision
B43: 32 | C43: #minutes | D43: Number of minutes to express (daily) | E43: Estimated number of minutes needed by a mother to express breastmilk | F43: FIX | G43: 150 ml (5.3 oz) per hour | I43: NA | J43: Not available in Version 1.0 Smith, J. P. and R. Forrester. 2013. “Who pays for the health benefits of exclusive breastfeeding? An analysis of maternal time costs.” J Hum Lact 29(4): 547-55.
B44: 33 | C44: #hours | D44: Number of hours to breastfeed (daily) | E44: Time spent on Infant Feeding Activities at Infant Age 6 Months by Feeding Group | F44: FIX | G44: 15.4 to 18.7 hours/weekly | I44: NA | J44: Not available in Version 1.0 Smith, J. P. and R. Forrester. 2013. “Who pays for the health benefits of exclusive breastfeeding? An analysis of maternal time costs.” J Hum Lact 29(4): 547-55.
B45: 34 | C45: TimeCost | D45: Average time cost for Lactating Mother [estimate separately for expression and breastfeeding] | E45: The estimated time cost incurred by breastfeeding women | F45: Calculated | G45: Total # of minutes X Wage (daily/weekly/monthly) or #hours X Wage (daily, weekly, monthly) | J45: Not available in Version 1.0
B46: 30 | C46: GloPRICEBM | D46: Global Indicative Price of breastmilk from Milk Bank | E46: Average cost of 1 litre of breastmilk (based on human milk bank costs or elsewhere) | F46: Calculated | G46: US$100 per litre | I46: Global Price of breastmilk | J46: Grovslien AH, Gronn M. Donor milk banking and breastfeeding in Norway. J Hum Lact 2009; 25(2): 206-10. Smith JP (2013) "Lost milk?": Counting the economic value of breast milk in gross domestic product. J Hum Lact 29, 537-546. Grøvslien, A. H. (2021). Personal communication, 28 June. in Norway. J Hum Last. 2009;25(2):206-210. Smith JP. Human milk supply in Australia. Food Policy 1999;24:71-91.
B47: 31 | C47: CostBFWRA | D47: Additional food cost for a breastfeeding mother (640 Kcal/day) | E47: Cost for additional diet to meet the needs of a breastfeedinh woman | F47: FIX | G47: (additional kcal per day/total kcal day) * total daily cost in $USD | I47: http://www.fao.org/3/M2998E/M2998E00.htm ; http://www.fao.org/3/y5686e/y5686e0b.htm | J47: Not available in version 1.0 FAO/WFP Tool for cost of the diet and type, Karlsoon and Rollins
B48: 32 | C48: CostWRA | D48: Cost per 2250 kilocalories (adult equiv.) of balanced diet ($) | E48: (Depending on the current adequacy of women's energy and nutrient's intake)Women's needs for energy and most nutrients increase during pregnancy and breastfeeding. When breastfeeding they need about 450 extra kcal/day and much more protein, zinc, vitamin A, vitamin C and folate (i.e. the equivalent of an extra small meal each day).You can suggest that women eat more at each meal or eat more frequently - perhaps having more snacks during the day. | F48: FIX | G48: 3.75 daily $USD global median across 170 countries (3.27 to 4.57 $USD/daily) - cost of a health diet | I48: http://www.fao.org/3/cb2431en/CB2431EN.pdf | J48: Not available in Version 1.0 1. Estimate by population group (lowest 2 or 4 deciles) 2. by countries (what is the proportion of these population groups) ???
B49: 31 | C49: Exch | D49: Exchange rate of national currency vs. $USD | E49: The exchange rate is the rate at which one national currency will be exchanged for $USD. | F49: Variable | G49: NA | H49: When the user chooses a country in the country or mother calculator, this is used to convert values to local currency. | I49: https://treasury.un.org/operationalrates/OperationalRates.php | J49: 1. official national bank exchange rates can also be used
B50: =B49+1 -> 32 | C50: Vbio$ | D50: Value of biologically feasible production of breastmilk in $USD | E50: The value in $USD of the biologically feasible volume that could be produced in the country | F50: Variable | I50: NA
B51: 33 | C51: Vact$ | D51: Value of actual production of breastmilk in $USD | E51: The actual value in $USD of the volume of breastmilk produced in the year in the country | F51: Variable | I51: NA

Sheet References (hidden)
A1: Relevant literature
A2: Studies providing information used in the tool
B9: Number of infants and young children
B11: 1. United Nations. (2019). World Population Prospects 2019 ST/ESA/SER.A/423 https://population.un.org/wpp/Download/Standard/Population/
B13: Country breastfeeding practices and biological feasible potential breastfeeding
B15: 1. UNICEF Global database 2021. Available from: https://data.unicef.org/topic/nutrition/breastfeeding/.
B16: 2. Rollins, N. C., et al. (2016). "Why invest, and what it will take to improve breastfeeding practices?" Lancet 387(10017): 491-504.
B17: 3. Haggkvist, A. P., et al. (2010). "Prevalence of breast-feeding in the Norwegian Mother and Child Cohort Study and health service-related
C18: correlates of cessation of full breast-feeding. " Public Health Nutrition 13(12): 2076-2086.
B19: 4. Sellen, D. W. (2001). "Comparison of infant feeding patterns reported for nonindustrial populations with current recommendations.
C20: Journal of Nutrition 131(10): 2707-2715.
B22: Daily milk intakes
B24: 1. Hatloy A & Oshaug A (1997) Human milk: an invisible food resource. J Hum Lact 13, 299-305.
B25: 2. Butte, N., et al. (2002). Nutrient adequacy of exclusive breastfeeding for the term infant during the first 6 months of life. Geneva,
C26: World Health Organization.
B28: Monetary value of human milk
B30: 1. Grovslien AH, Gronn M. Donor milk banking and breastfeeding in Norway. J Hum Lact 2009; 25(2): 206-10.
B31: 2. Smith JP (2013) "Lost milk?": Counting the economic value of breast milk in gross domestic product. J Hum Lact 29, 537-546.
B32: 3. Grøvslien, A. H. (2021). Personal communication, 28 June.
B34: Methodological aspects: Studies of the economic value of breastfeeding
B36: 1. Berg A (1973) The crisis in infant feeding practices. In The nutrition factor; its role in national development [A Berg, editor].
C37: Washington: The Brookings Institution.
B38: 2. Rohde JE (1981) Mother milk and the Indonesian economy: a major national resource. Indian journal of pediatrics 48, 125-132.
B39: 3. Almroth S & Greiner T (1979) The economic value of breastfeeding. vol. Number 6, Monograph Series. New York: Cornell University
C40: Program on International Nutrition.
B41: 4. Oshaug A & Botten G (1994) Human milk in food supply statistics. Food Policy 19, 479-482.
B42: 5. Hatloy A & Oshaug A (1997) Human milk: an invisible food resource. J Hum Lact 13, 299-305.
B43: 6. Gupta A & Khanna K (1999) Economic value of breastfeeding in India. Natl Med J India 12, 123-127.
B44: 7. Smith JP (1999) Human milk supply in Australia. Food Policy 24, 71-91.
B45: 8. Aguayo VM, Ross J, Saunero R et al. (2001) [Monetary value of breast milk in Bolivia]. Rev Panam Salud Publica 10, 249-256.
B46: 9. Ross J, Chunming C, ZAZhenying F et al. (2001) Calculating the effects of malnutrition on econmic productivity health and survival
C47: in China using PROFILES. New York.
B48: 10. Aguayo VM & Ross J (2002) The monetary value of human milk in Francophone west Africa: a PROFILES analysis for nutrition policy
C49: communication. Food Nutr Bull 23, 153-161.
B50: 11. Smith. (2012) Including Household Production in the System of National Accounts (SNA) - Exploring the Implications of Breastfeeding and
C51: Human Milk Provision. Paper Prepared for the 32nd General Conference of The International Association for Research in Income and
C52: Wealth. Boston, USA, August 5-11, 2012.
B53: 12. Smith JP (2013) "Lost milk?": Counting the economic value of breast milk in gross domestic product. J Hum Lact 29, 537-546.

Sheet Acknowledgement (hidden)
A1: Acknowledgement
B8: This Tool was commissioned by the Innovation Incubator at FHI Solutions.
B9: FHI Solutions is a subsidiary of FHI 360 and an international nonprofit supported
B10: by three Centers of Excellence including Alive & Thrive, Intake and 1,000 Days.
B11: We would also like to acknowledge research funding support from the Australian Research
B12: Council (FT140101260).

Sheet Main Menu
B1: Mothers' Milk Tool
B2: Main menu

Sheet Acknowledge & References (hidden)

Sheet Country (hidden)
B1: Mothers' Milk Tool
B2: Country calculator
H8: Iraq

Sheet Mother (hidden)
A1: Mothers' Milk Tool
A2: Individual calculator
F8: El Salvador | I8: Armenia

Sheet Mother Calculator (hidden)
A1: Mothers' Milk Tool
A2: Individual production and value
E7: =CONCATENATE(" ",Mother!F8) -> El Salvador
E9: Any breastfeeding (BF) | M9: Mother's milk volume and value for the child
E11: Month | F11: BF (Y) | G11: Month | H11: BF (Y) | I11: Month | J11: BF (Y) | M11: Total for the breastfeeding period | N11: Volume | O11: Value | P11: Value
E12: 0 < 1 | G12: 12 < 13 | I12: 24 < 25 | M12: =CONCATENATE("(Estimate for ", $J$24," data entries)") -> (Estimate for 0 data entries) | N12: in Liters | O12: in USD | P12: in local currency
E13: 1 < 2 | G13: 13 <14 | I13: 25 < 26 | M13: 1. Actual production of breastmilk | N13: =MCalibration!R45 -> 0 | O13: =MCalibration!X45 -> 0 | P13: =MCalibration!AA45 -> 0
E14: 2 < 3 | G14: 14 < 15 | I14: 26 < 27
E15: 3 < 4 | G15: 15 < 16 | I15: 27 < 28
E16: 4 < 5 | G16: 16 < 17 | I16: 28 < 29
E17: 5 < 6 | G17: 17 < 18 | I17: 29 < 30 | M17: =_xlfn.CONCAT("Default price/liter of breastmilk: ",VLOOKUP(Mother!F8,Database!B2:F233,5,TRUE)*100," ", VLOOKUP(Mother!F8,Database!B2:F233,2,TRUE)) -> Default price/liter of breastmilk: 100 US Dollar
E18: 6 < 7 | G18: 18 < 19 | I18: 30 < 31 | M18: =_xlfn.CONCAT("Rate to US$1: ", VLOOKUP(Mother!F8,Database!B2:F233,5,TRUE), " ",VLOOKUP(Mother!F8,Database!B2:F233,2,TRUE)) -> Rate to US$1: 1 US Dollar
E19: 7 < 8 | G19: 19 < 20 | I19: 31 < 32
E20: 8 < 9 | G20: 20 < 21 | I20: 32 < 33
E21: 9 < 10 | G21: 21 < 22 | I21: 33 < 34 | M21: Enter price/liter of breastmilk in local currency:
E22: 10 < 11 | G22: 22 < 23 | I22: 34 < 35
E23: 11 < 12 | G23: 23 < 24 | I23: 35 < 36
E24: Number of Data Points (Y) Entered: | J24: =COUNTIF(F12:J23,"Y") -> 0

Sheet MCalibration (hidden)
B2: Country Name: | F2: National Currency: | J2: Year:
G3: Rate to US$ | H3: =VLOOKUP(Mother!F8,Database!B2:F233,5,TRUE) -> 1 | J3: Liverbirths: | K3: 1
B4: INPUT VALUES | P4: CALCULATED VALUES (Year, census) | AG4: OPTIONAL
B5: Age | C5: Percent of | D5: Percent of | E5: Percent of | F5: Potential | G5: Average no. of | H5: No. of infants | I5: No. of infants | J5: No. of infants | K5: No. of infants | L5: Liters of | M5: Liters of | N5: Estimated liters | O5: Estimated liters | P5: Annual production of | Q5: Annual production of | R5: Total Actual Annual production of | S5: Average annual production | T5: Biologically feasible potential production of | U5: Lost BM [actual-biologically feasible] | V5: Lost production value | W5: Price per liter of breastmilk | X5: Value actual production of breastmilk | Y5: Value Biologically feasible breastmilk | Z5: Loss value of breastmilk | AA5: Value actual production of breastmilk | AB5: Value Biologically feasible breastmilk | AC5: Loss value of breastmilk | AD5: TOTAL 0-11 MONTHS | AG5: Cost of additional diet for actual breastfeeding mother | AH5: Total actual annual cost | AI5: Cost of additional diet for actual breastfeeding mother | AJ5: Total actual annual cost
B6: <months> | C6: infants | D6: infants | E6: infants | F6: infants | G6: infants living | H6: breastfed fully/exclusively | I6: =_xlfn.CONCAT("breastfed (partially/any breastfeeding) ") -> breastfed (partially/any breastfeeding) | J6: not breastfeeding | K6: breastfed | L6: breastmilk | M6: breastmilk | N6: fully pr. month pr. | O6: partially pr. month pr. | P6: breastmilk (fully) | Q6: breastmilk (partial) | R6: breastmilk | S6: of breastmilk per child | T6: breastmilk | U6: breastmilk | V6: % of potential breastmilk production | W6: ($US) | X6: in $US | Y6: in $US | Z6: in $US | AA6: =Currency -> Iraqi Dinar | AB6: =Currency -> Iraqi Dinar | AC6: =Currency -> Iraqi Dinar | AG6: in $USD | AH6: in million $USD | AI6: =_xlfn.CONCAT("in million) ",'Country Data'!Currency,"") -> in million) Iraqi Dinar | AJ6: =_xlfn.CONCAT("in million) ",'Country Data'!Currency,"") -> in million) Iraqi Dinar
C7: breastfed (fully/exclusive)-YEAR | D7: =_xlfn.CONCAT("breastfed (partially/any breastfeeding) ",Source," ", 'Country Data'!BFYear) -> breastfed (partially/any breastfeeding) Full data, Source: MICS 2018 | E7: =_xlfn.CONCAT("Not breastfeeding ",Source," ", 'Country Data'!BFYear) -> Not breastfeeding Full data, Source: MICS 2018 | F7: breastfeeding (optimal) | G7: each month a) | H7: each month a) | I7: each month a) | J7: each month a) | K7: potentially each month | L7: fully per infant pr. day b) | M7: partially per infant pr. day b) | N7: infant c) [actual] | O7: infant c) [actual] | P7: Volume ( liters) | Q7: Volume ( liters) | R7: Volume ( liters) | S7: litres/child 0-35 months | T7: Volume ( liters) | U7: Volume ( liters)
B8: 0 | D8: =IF('Mother Calculator'!F12="Y",1,0) -> 0 | E8: =1-D8 -> 1 | F8: 1 | G8: =K$3 -> 1 | H8: =G8*C8 -> 0 | I8: =G8*D8 -> 0 | J8: =I8*E8 -> 0 | K8: =G8*F8 -> 1 | L8: 0.6773255814 | M8: 0.5920542636 | N8: =L8*30 -> 20.31976744 | O8: 17.76162791 | P8: =N8*H8/1000000 -> 0 | Q8: =O8*I8 -> 0 | R8: =SUM(P8:Q8) -> 0 | S8: =R8/(G8*3) -> 0 | T8: =IF('Mother Calculator'!F12="Y",K8*O8,0) -> 0 | U8: =MAX(0,T8-R8) -> 0 | V8: =U8/T8 ->  | W8: =IF('Mother Calculator'!$O$21="",$H$3*100,'Mother Calculator'!$O$21) -> 100 | X8: =W8*R8/$H$3 -> 0 | Y8: =W8*T8/$H$3 -> 0 | Z8: =Y8-X8 -> 0 | AA8: =X8*$H$3 -> 0 | AB8: =Y8*$H$3 -> 0 | AC8: =AB8-AA8 -> 0 | AG8: =(450/2250)*4.57*30 -> 27.42 | AH8: =((H8+I8)*AG8)/1000000 -> 0 | AI8: =AH8*CRate -> 0 | AJ8: =AI8*(H8+I8)/1000000 -> 0
B9: =B8+1 -> 1 | D9: =IF('Mother Calculator'!F13="Y",1,0) -> 0 | E9: =1-D9 -> 1 | F9: 1 | G9: =K$3 -> 1 | H9: =G9*C9 -> 0 | I9: =G9*D9 -> 0 | J9: 0 | K9: 1 | L9: 0.7083333333 | M9: 0.6753875969 | N9: 21.25 | O9: 20.26162791 | P9: =N9*H9/1000000 -> 0 | Q9: =O9*I9 -> 0 | R9: =SUM(P9:Q9) -> 0 | S9: =R9/(G9*3) -> 0 | T9: =IF('Mother Calculator'!F13="Y",K9*O9,0) -> 0 | U9: =MAX(0,T9-R9) -> 0 | V9: =U9/T9 ->  | W9: =IF('Mother Calculator'!$O$21="",$H$3*100,'Mother Calculator'!$O$21) -> 100 | X9: =W9*R9/$H$3 -> 0 | Y9: =W9*T9/$H$3 -> 0 | Z9: =Y9-X9 -> 0 | AA9: =X9*$H$3 -> 0 | AB9: =Y9*$H$3 -> 0 | AC9: =AB9-AA9 -> 0 | AG9: 27.42 | AH9: =((H9+I9)*AG9)/1000000 -> 0 | AI9: =AH9*CRate -> 0 | AJ9: =AI9*(H9+I9)/1000000 -> 0
B10: =B9+1 -> 2 | D10: =IF('Mother Calculator'!F14="Y",1,0) -> 0 | E10: 1 | F10: 1 | G10: 1 | H10: 0 | I10: 0 | J10: 0 | K10: 1 | L10: 0.7277131783 | M10: 0.7073643411 | N10: 21.83139535 | O10: 21.22093023 | P10: 0 | Q10: 0 | R10: 0 | S10: 0 | T10: =IF('Mother Calculator'!F14="Y",K10*O10,0) -> 0 | U10: 0 | W10: =IF('Mother Calculator'!$O$21="",$H$3*100,'Mother Calculator'!$O$21) -> 100 | X10: 0 | Y10: 0 | Z10: 0 | AA10: 0 | AB10: 0 | AC10: 0 | AG10: 27.42 | AH10: =(H10+I10)*AG10/1000000 -> 0 | AI10: 0 | AJ10: =AI10*(H10+I10)/1000000 -> 0
B11: 3 | D11: =IF('Mother Calculator'!F15="Y",1,0) -> 0 | E11: 1 | F11: 1 | G11: 1 | H11: 0 | I11: 0 | J11: 0 | K11: 1 | L11: 0.7558139535 | M11: 0.6821705426 | N11: 22.6744186 | O11: 20.46511628 | P11: 0 | Q11: 0 | R11: 0 | S11: 0 | T11: =IF('Mother Calculator'!F15="Y",K11*O11,0) -> 0 | U11: 0 | W11: =IF('Mother Calculator'!$O$21="",$H$3*100,'Mother Calculator'!$O$21) -> 100 | X11: 0 | Y11: 0 | Z11: 0 | AA11: 0 | AB11: 0 | AC11: 0 | AG11: 27.42 | AH11: 0 | AI11: 0 | AJ11: =AI11*(H11+I11)/1000000 -> 0
B12: 4 | D12: =IF('Mother Calculator'!F16="Y",1,0) -> 0 | E12: 1 | F12: 1 | G12: 1 | H12: 0 | I12: 0 | J12: 0 | K12: 1 | L12: 0.7713178295 | M12: 0.6879844961 | N12: 23.13953488 | O12: 20.63953488 | P12: 0 | Q12: 0 | R12: 0 | S12: 0 | T12: =IF('Mother Calculator'!F16="Y",K12*O12,0) -> 0 | U12: 0 | W12: =IF('Mother Calculator'!$O$21="",$H$3*100,'Mother Calculator'!$O$21) -> 100 | X12: =W12*R12/$H$3 -> 0 | Y12: 0 | Z12: 0 | AA12: 0 | AB12: 0 | AC12: 0 | AG12: 27.42 | AH12: 0 | AI12: 0 | AJ12: 0
B13: 5 | D13: =IF('Mother Calculator'!F17="Y",1,0) -> 0 | E13: 1 | F13: 1 | G13: 1 | H13: 0 | I13: 0 | J13: 0 | K13: 1 | L13: 0.8275193798 | M13: 0.5930232558 | N13: 24.8255814 | O13: 17.79069767 | P13: 0 | Q13: 0 | R13: 0 | S13: 0 | T13: =IF('Mother Calculator'!F17="Y",K13*O13,0) -> 0 | U13: 0 | W13: =IF('Mother Calculator'!$O$21="",$H$3*100,'Mother Calculator'!$O$21) -> 100 | X13: 0 | Y13: 0 | Z13: 0 | AA13: 0 | AB13: 0 | AC13: 0 | AG13: 27.42 | AH13: 0 | AI13: 0 | AJ13: 0
B14: 6 | D14: =IF('Mother Calculator'!F18="Y",1,0) -> 0 | E14: 1 | F14: 1 | G14: 1 | H14: 0 | I14: 0 | J14: 0 | K14: 1 | L14: 0.8401162791 | M14: 0.5513565891 | N14: 25.20348837 | O14: 16.54069767 | P14: 0 | Q14: 0 | R14: 0 | S14: 0 | T14: =IF('Mother Calculator'!F18="Y",K14*O14,0) -> 0 | U14: 0 | W14: =IF('Mother Calculator'!$O$21="",$H$3*100,'Mother Calculator'!$O$21) -> 100 | X14: 0 | Y14: 0 | Z14: 0 | AA14: 0 | AB14: 0 | AC14: 0 | AG14: 27.42 | AH14: 0 | AI14: 0 | AJ14: 0
B15: 7 | D15: =IF('Mother Calculator'!F19="Y",1,0) -> 0 | E15: 1 | F15: 1 | G15: 1 | H15: 0 | I15: 0 | J15: 0 | K15: 1 | L15: 0.7897286822 | M15: 0.4040697674 | N15: 23.69186047 | O15: 12.12209302 | P15: 0 | Q15: 0 | R15: 0 | S15: 0 | T15: =IF('Mother Calculator'!F19="Y",K15*O15,0) -> 0 | U15: 0 | W15: =IF('Mother Calculator'!$O$21="",$H$3*100,'Mother Calculator'!$O$21) -> 100 | X15: 0 | Y15: 0 | Z15: 0 | AA15: 0 | AB15: 0 | AC15: 0 | AG15: 27.42 | AH15: 0 | AI15: 0 | AJ15: 0
B16: 8 | D16: =IF('Mother Calculator'!F20="Y",1,0) -> 0 | E16: 1 | F16: 1 | G16: 1 | H16: 0 | I16: 0 | J16: 0 | K16: 1 | L16: 0.8624031008 | M16: 0.4815891473 | N16: 25.87209302 | O16: 14.44767442 | P16: 0 | Q16: 0 | R16: 0 | S16: 0 | T16: =IF('Mother Calculator'!F20="Y",K16*O16,0) -> 0 | U16: 0 | W16: =IF('Mother Calculator'!$O$21="",$H$3*100,'Mother Calculator'!$O$21) -> 100 | X16: 0 | Y16: 0 | Z16: 0 | AA16: 0 | AB16: 0 | AC16: 0 | AG16: 27.42 | AH16: 0 | AI16: 0 | AJ16: 0
B17: 9 | D17: =IF('Mother Calculator'!F21="Y",1,0) -> 0 | E17: 1 | F17: 1 | G17: 1 | H17: 0 | I17: 0 | J17: 0 | K17: 1 | M17: 0.6695736434 | N17: 0 | O17: 20.0872093 | P17: 0 | Q17: 0 | R17: 0 | S17: 0 | T17: =IF('Mother Calculator'!F21="Y",K17*O17,0) -> 0 | U17: 0 | W17: =IF('Mother Calculator'!$O$21="",$H$3*100,'Mother Calculator'!$O$21) -> 100 | X17: 0 | Y17: 0 | Z17: 0 | AA17: 0 | AB17: 0 | AC17: 0 | AG17: 27.42 | AH17: 0 | AI17: 0 | AJ17: 0
B18: 10 | D18: =IF('Mother Calculator'!F22="Y",1,0) -> 0 | E18: 1 | F18: 1 | G18: 1 | H18: 0 | I18: 0 | J18: 0 | K18: 1 | L18: 0.8817829457 | M18: 0.5 | N18: 26.45348837 | O18: 15 | P18: 0 | Q18: 0 | R18: 0 | S18: 0 | T18: =IF('Mother Calculator'!F22="Y",K18*O18,0) -> 0 | U18: 0 | W18: =IF('Mother Calculator'!$O$21="",$H$3*100,'Mother Calculator'!$O$21) -> 100 | X18: 0 | Y18: 0 | Z18: 0 | AA18: 0 | AB18: 0 | AC18: 0 | AG18: 27.42 | AH18: 0 | AI18: 0 | AJ18: 0
B19: 11 | D19: =IF('Mother Calculator'!F23="Y",1,0) -> 0 | E19: 1 | F19: 1 | G19: 1 | H19: 0 | I19: 0 | J19: 0 | K19: 1 | M19: 0.4815891473 | N19: 0 | O19: 14.44767442 | P19: 0 | Q19: 0 | R19: 0 | S19: 0 | T19: =IF('Mother Calculator'!F23="Y",K19*O19,0) -> 0 | U19: 0 | W19: =IF('Mother Calculator'!$O$21="",$H$3*100,'Mother Calculator'!$O$21) -> 100 | X19: 0 | Y19: 0 | Z19: 0 | AA19: 0 | AB19: 0 | AC19: 0 | AG19: 27.42 | AH19: 0 | AI19: 0 | AJ19: 0
B20: 12 | D20: =IF('Mother Calculator'!H12="Y",1,0) -> 0 | E20: 1 | F20: 1 | G20: 1 | H20: 0 | I20: 0 | J20: 0 | K20: 1 | M20: 0.372 | N20: 0 | O20: 11.16 | P20: 0 | Q20: 0 | R20: 0 | S20: 0 | T20: =IF('Mother Calculator'!H12="Y",K20*O20,0) -> 0 | U20: 0 | W20: =IF('Mother Calculator'!$O$21="",$H$3*100,'Mother Calculator'!$O$21) -> 100 | X20: 0 | Y20: 0 | Z20: 0 | AA20: 0 | AB20: 0 | AC20: 0 | AG20: 27.42 | AH20: 0 | AI20: 0 | AJ20: 0
B21: 13 | D21: =IF('Mother Calculator'!H13="Y",1,0) -> 0 | E21: 1 | F21: 1 | G21: 1 | H21: 0 | I21: 0 | J21: 0 | K21: 1 | M21: 0.372 | N21: 0 | O21: 11.16 | P21: 0 | Q21: 0 | R21: 0 | S21: 0 | T21: =IF('Mother Calculator'!H13="Y",K21*O21,0) -> 0 | U21: 0 | W21: =IF('Mother Calculator'!$O$21="",$H$3*100,'Mother Calculator'!$O$21) -> 100 | X21: 0 | Y21: 0 | Z21: 0 | AA21: 0 | AB21: 0 | AC21: 0 | AG21: 27.42 | AH21: 0 | AI21: 0 | AJ21: 0
B22: 14 | D22: =IF('Mother Calculator'!H14="Y",1,0) -> 0 | E22: 1 | F22: 1 | G22: 1 | H22: 0 | I22: 0 | J22: 0 | K22: 1 | M22: 0.372 | N22: 0 | O22: 11.16 | P22: 0 | Q22: 0 | R22: 0 | S22: 0 | T22: =IF('Mother Calculator'!H14="Y",K22*O22,0) -> 0 | U22: 0 | W22: =IF('Mother Calculator'!$O$21="",$H$3*100,'Mother Calculator'!$O$21) -> 100 | X22: 0 | Y22: 0 | Z22: 0 | AA22: 0 | AB22: 0 | AC22: 0 | AG22: 27.42 | AH22: 0 | AI22: 0 | AJ22: 0
B23: 15 | D23: =IF('Mother Calculator'!H15="Y",1,0) -> 0 | E23: 1 | F23: 1 | G23: 1 | H23: 0 | I23: 0 | J23: 0 | K23: 1 | M23: 0.372 | N23: 0 | O23: 11.16 | P23: 0 | Q23: 0 | R23: 0 | S23: 0 | T23: =IF('Mother Calculator'!H15="Y",K23*O23,0) -> 0 | U23: 0 | W23: =IF('Mother Calculator'!$O$21="",$H$3*100,'Mother Calculator'!$O$21) -> 100 | X23: 0 | Y23: 0 | Z23: 0 | AA23: 0 | AB23: 0 | AC23: 0 | AG23: 27.42 | AH23: 0 | AI23: 0 | AJ23: 0
B24: 16 | D24: =IF('Mother Calculator'!H16="Y",1,0) -> 0 | E24: 1 | F24: 1 | G24: 1 | H24: 0 | I24: 0 | J24: 0 | K24: 1 | M24: 0.372 | N24: 0 | O24: 11.16 | P24: 0 | Q24: 0 | R24: 0 | S24: 0 | T24: =IF('Mother Calculator'!H16="Y",K24*O24,0) -> 0 | U24: 0 | W24: =IF('Mother Calculator'!$O$21="",$H$3*100,'Mother Calculator'!$O$21) -> 100 | X24: 0 | Y24: 0 | Z24: 0 | AA24: 0 | AB24: 0 | AC24: 0 | AG24: 27.42 | AH24: 0 | AI24: 0 | AJ24: 0
B25: 17 | D25: =IF('Mother Calculator'!H17="Y",1,0) -> 0 | E25: 1 | F25: 1 | G25: 1 | H25: 0 | I25: 0 | J25: 0 | K25: 1 | M25: 0.372 | N25: 0 | O25: 11.16 | P25: 0 | Q25: 0 | R25: 0 | S25: 0 | T25: =IF('Mother Calculator'!H17="Y",K25*O25,0) -> 0 | U25: 0 | W25: =IF('Mother Calculator'!$O$21="",$H$3*100,'Mother Calculator'!$O$21) -> 100 | X25: 0 | Y25: 0 | Z25: 0 | AA25: 0 | AB25: 0 | AC25: 0 | AG25: 27.42 | AH25: 0 | AI25: 0 | AJ25: 0
B26: 18 | D26: =IF('Mother Calculator'!H18="Y",1,0) -> 0 | E26: 1 | F26: 1 | G26: 1 | H26: 0 | I26: 0 | J26: 0 | K26: 1 | M26: 0.372 | N26: 0 | O26: 11.16 | P26: 0 | Q26: 0 | R26: 0 | S26: 0 | T26: =IF('Mother Calculator'!H18="Y",K26*O26,0) -> 0 | U26: 0 | W26: =IF('Mother Calculator'!$O$21="",$H$3*100,'Mother Calculator'!$O$21) -> 100 | X26: 0 | Y26: 0 | Z26: 0 | AA26: 0 | AB26: 0 | AC26: 0 | AG26: 27.42 | AH26: 0 | AI26: 0 | AJ26: 0
B27: 19 | D27: =IF('Mother Calculator'!H19="Y",1,0) -> 0 | E27: 1 | F27: 1 | G27: 1 | H27: 0 | I27: 0 | J27: 0 | K27: 1 | M27: 0.372 | N27: 0 | O27: 11.16 | P27: 0 | Q27: 0 | R27: 0 | S27: 0 | T27: =IF('Mother Calculator'!H19="Y",K27*O27,0) -> 0 | U27: 0 | W27: =IF('Mother Calculator'!$O$21="",$H$3*100,'Mother Calculator'!$O$21) -> 100 | X27: 0 | Y27: 0 | Z27: 0 | AA27: 0 | AB27: 0 | AC27: 0 | AG27: 27.42 | AH27: 0 | AI27: 0 | AJ27: 0
B28: 20 | D28: =IF('Mother Calculator'!H20="Y",1,0) -> 0 | E28: 1 | F28: 1 | G28: 1 | H28: 0 | I28: 0 | J28: 0 | K28: 1 | M28: 0.372 | N28: 0 | O28: 11.16 | P28: 0 | Q28: 0 | R28: 0 | S28: 0 | T28: =IF('Mother Calculator'!H20="Y",K28*O28,0) -> 0 | U28: 0 | W28: =IF('Mother Calculator'!$O$21="",$H$3*100,'Mother Calculator'!$O$21) -> 100 | X28: 0 | Y28: 0 | Z28: 0 | AA28: 0 | AB28: 0 | AC28: 0 | AG28: 27.42 | AH28: 0 | AI28: 0 | AJ28: 0
B29: 21 | D29: =IF('Mother Calculator'!H21="Y",1,0) -> 0 | E29: 1 | F29: 1 | G29: 1 | H29: 0 | I29: 0 | J29: 0 | K29: 1 | M29: 0.372 | N29: 0 | O29: 11.16 | P29: 0 | Q29: 0 | R29: 0 | S29: 0 | T29: =IF('Mother Calculator'!H21="Y",K29*O29,0) -> 0 | U29: 0 | W29: =IF('Mother Calculator'!$O$21="",$H$3*100,'Mother Calculator'!$O$21) -> 100 | X29: 0 | Y29: 0 | Z29: 0 | AA29: 0 | AB29: 0 | AC29: 0 | AG29: 27.42 | AH29: 0 | AI29: 0 | AJ29: 0
B30: 22 | D30: =IF('Mother Calculator'!H22="Y",1,0) -> 0 | E30: 1 | F30: 1 | G30: 1 | H30: 0 | I30: 0 | J30: 0 | K30: 1 | M30: 0.372 | N30: 0 | O30: 11.16 | P30: 0 | Q30: 0 | R30: 0 | S30: 0 | T30: =IF('Mother Calculator'!H22="Y",K30*O30,0) -> 0 | U30: 0 | W30: =IF('Mother Calculator'!$O$21="",$H$3*100,'Mother Calculator'!$O$21) -> 100 | X30: 0 | Y30: 0 | Z30: 0 | AA30: 0 | AB30: 0 | AC30: 0 | AG30: 27.42 | AH30: 0 | AI30: 0 | AJ30: 0
B31: 23 | D31: =IF('Mother Calculator'!H23="Y",1,0) -> 0 | E31: 1 | F31: 1 | G31: 1 | H31: 0 | I31: =G31*D31 -> 0 | J31: 0 | K31: 1 | M31: 0.372 | N31: 0 | O31: 11.16 | P31: 0 | Q31: 0 | R31: 0 | S31: 0 | T31: =IF('Mother Calculator'!H23="Y",K31*O31,0) -> 0 | U31: 0 | W31: =IF('Mother Calculator'!$O$21="",$H$3*100,'Mother Calculator'!$O$21) -> 100 | X31: 0 | Y31: 0 | Z31: 0 | AA31: 0 | AB31: 0 | AC31: 0 | AG31: 27.42 | AH31: 0 | AI31: 0 | AJ31: 0
B32: 24 | D32: =IF('Mother Calculator'!J12="Y",1,0) -> 0 | E32: 1 | F32: 1 | G32: 1 | H32: 0 | I32: 0 | J32: 0 | K32: 1 | M32: 0.24 | N32: 0 | O32: 7.2 | P32: 0 | Q32: 0 | R32: 0 | S32: 0 | T32: =IF('Mother Calculator'!J12="Y",K32*O32,0) -> 0 | U32: 0 | W32: =IF('Mother Calculator'!$O$21="",$H$3*100,'Mother Calculator'!$O$21) -> 100 | X32: 0 | Y32: 0 | Z32: 0 | AA32: 0 | AB32: 0 | AC32: 0 | AG32: 27.42 | AH32: 0 | AI32: 0 | AJ32: 0
B33: 25 | D33: =IF('Mother Calculator'!J13="Y",1,0) -> 0 | E33: 1 | F33: 1 | G33: 1 | H33: =G33*C33 -> 0 | I33: 0 | J33: 0 | K33: 1 | M33: 0.24 | N33: 0 | O33: 7.2 | P33: 0 | Q33: 0 | R33: 0 | S33: 0 | T33: =IF('Mother Calculator'!J13="Y",K33*O33,0) -> 0 | U33: 0 | W33: =IF('Mother Calculator'!$O$21="",$H$3*100,'Mother Calculator'!$O$21) -> 100 | X33: 0 | Y33: 0 | Z33: 0 | AA33: 0 | AB33: 0 | AC33: 0 | AG33: 27.42 | AH33: 0 | AI33: 0 | AJ33: 0
B34: 26 | D34: =IF('Mother Calculator'!J14="Y",1,0) -> 0 | E34: 1 | F34: 1 | G34: 1 | H34: 0 | I34: 0 | J34: 0 | K34: 1 | M34: 0.24 | N34: 0 | O34: 7.2 | P34: 0 | Q34: 0 | R34: 0 | S34: 0 | T34: =IF('Mother Calculator'!J14="Y",K34*O34,0) -> 0 | U34: 0 | W34: =IF('Mother Calculator'!$O$21="",$H$3*100,'Mother Calculator'!$O$21) -> 100 | X34: 0 | Y34: 0 | Z34: 0 | AA34: 0 | AB34: 0 | AC34: 0 | AG34: 27.42 | AH34: 0 | AI34: 0 | AJ34: 0
B35: 27 | D35: =IF('Mother Calculator'!J15="Y",1,0) -> 0 | E35: 1 | F35: 1 | G35: 1 | H35: 0 | I35: 0 | J35: 0 | K35: 1 | M35: 0.24 | N35: 0 | O35: 7.2 | P35: 0 | Q35: 0 | R35: 0 | S35: 0 | T35: =IF('Mother Calculator'!J15="Y",K35*O35,0) -> 0 | U35: 0 | W35: =IF('Mother Calculator'!$O$21="",$H$3*100,'Mother Calculator'!$O$21) -> 100 | X35: 0 | Y35: 0 | Z35: 0 | AA35: 0 | AB35: 0 | AC35: 0 | AG35: 27.42 | AH35: 0 | AI35: 0 | AJ35: 0
B36: 28 | D36: =IF('Mother Calculator'!J16="Y",1,0) -> 0 | E36: 1 | F36: 1 | G36: 1 | H36: 0 | I36: 0 | J36: 0 | K36: 1 | M36: 0.24 | N36: 0 | O36: 7.2 | P36: 0 | Q36: 0 | R36: 0 | S36: 0 | T36: =IF('Mother Calculator'!J16="Y",K36*O36,0) -> 0 | U36: 0 | W36: =IF('Mother Calculator'!$O$21="",$H$3*100,'Mother Calculator'!$O$21) -> 100 | X36: 0 | Y36: 0 | Z36: 0 | AA36: 0 | AB36: 0 | AC36: 0 | AG36: 27.42 | AH36: 0 | AI36: 0 | AJ36: 0
B37: 29 | D37: =IF('Mother Calculator'!J17="Y",1,0) -> 0 | E37: 1 | F37: 1 | G37: 1 | H37: 0 | I37: 0 | J37: 0 | K37: 1 | M37: 0.24 | N37: 0 | O37: 7.2 | P37: 0 | Q37: 0 | R37: 0 | S37: 0 | T37: =IF('Mother Calculator'!J17="Y",K37*O37,0) -> 0 | U37: 0 | W37: =IF('Mother Calculator'!$O$21="",$H$3*100,'Mother Calculator'!$O$21) -> 100 | X37: 0 | Y37: 0 | Z37: 0 | AA37: 0 | AB37: 0 | AC37: 0 | AG37: 27.42 | AH37: 0 | AI37: 0 | AJ37: 0
B38: 30 | D38: =IF('Mother Calculator'!J18="Y",1,0) -> 0 | E38: 1 | F38: 1 | G38: 1 | H38: 0 | I38: 0 | J38: 0 | K38: 1 | M38: 0.24 | N38: 0 | O38: 7.2 | P38: 0 | Q38: 0 | R38: 0 | S38: 0 | T38: =IF('Mother Calculator'!J18="Y",K38*O38,0) -> 0 | U38: 0 | W38: =IF('Mother Calculator'!$O$21="",$H$3*100,'Mother Calculator'!$O$21) -> 100 | X38: 0 | Y38: 0 | Z38: 0 | AA38: 0 | AB38: 0 | AC38: 0 | AG38: 27.42 | AH38: 0 | AI38: 0 | AJ38: 0
B39: 31 | D39: =IF('Mother Calculator'!J19="Y",1,0) -> 0 | E39: 1 | F39: 1 | G39: 1 | H39: 0 | I39: 0 | J39: 0 | K39: 1 | M39: 0.24 | N39: 0 | O39: 7.2 | P39: 0 | Q39: 0 | R39: 0 | S39: 0 | T39: =IF('Mother Calculator'!J19="Y",K39*O39,0) -> 0 | U39: 0 | W39: =IF('Mother Calculator'!$O$21="",$H$3*100,'Mother Calculator'!$O$21) -> 100 | X39: 0 | Y39: 0 | Z39: 0 | AA39: 0 | AB39: 0 | AC39: 0 | AG39: 27.42 | AH39: 0 | AI39: 0 | AJ39: 0
B40: 32 | D40: =IF('Mother Calculator'!J20="Y",1,0) -> 0 | E40: 1 | F40: 1 | G40: 1 | H40: 0 | I40: 0 | J40: =I40*E40 -> 0 | K40: 1 | M40: 0.24 | N40: 0 | O40: 7.2 | P40: 0 | Q40: 0 | R40: 0 | S40: 0 | T40: =IF('Mother Calculator'!J20="Y",K40*O40,0) -> 0 | U40: 0 | W40: =IF('Mother Calculator'!$O$21="",$H$3*100,'Mother Calculator'!$O$21) -> 100 | X40: 0 | Y40: 0 | Z40: 0 | AA40: 0 | AB40: 0 | AC40: 0 | AG40: 27.42 | AH40: 0 | AI40: 0 | AJ40: 0
B41: 33 | D41: =IF('Mother Calculator'!J21="Y",1,0) -> 0 | E41: 1 | F41: 1 | G41: 1 | H41: 0 | I41: 0 | J41: 0 | K41: 1 | M41: 0.24 | N41: 0 | O41: 7.2 | P41: 0 | Q41: 0 | R41: 0 | S41: 0 | T41: =IF('Mother Calculator'!J21="Y",K41*O41,0) -> 0 | U41: 0 | W41: =IF('Mother Calculator'!$O$21="",$H$3*100,'Mother Calculator'!$O$21) -> 100 | X41: 0 | Y41: 0 | Z41: 0 | AA41: 0 | AB41: 0 | AC41: 0 | AG41: 27.42 | AH41: 0 | AI41: 0 | AJ41: 0
B42: 34 | D42: =IF('Mother Calculator'!J22="Y",1,0) -> 0 | E42: 1 | F42: 1 | G42: 1 | H42: 0 | I42: 0 | J42: 0 | K42: 1 | M42: 0.24 | N42: 0 | O42: 7.2 | P42: 0 | Q42: 0 | R42: 0 | S42: 0 | T42: =IF('Mother Calculator'!J22="Y",K42*O42,0) -> 0 | U42: 0 | W42: =IF('Mother Calculator'!$O$21="",$H$3*100,'Mother Calculator'!$O$21) -> 100 | X42: 0 | Y42: 0 | Z42: 0 | AA42: 0 | AB42: 0 | AC42: 0 | AG42: 27.42 | AH42: 0 | AI42: 0 | AJ42: 0
B43: 35 | D43: =IF('Mother Calculator'!J23="Y",1,0) -> 0 | E43: 1 | F43: 1 | G43: 1 | H43: 0 | I43: 0 | J43: 0 | K43: 1 | M43: 0.24 | N43: 0 | O43: 7.2 | P43: 0 | Q43: 0 | R43: 0 | S43: 0 | T43: =IF('Mother Calculator'!J23="Y",K43*O43,0) -> 0 | U43: 0 | W43: =IF('Mother Calculator'!$O$21="",$H$3*100,'Mother Calculator'!$O$21) -> 100 | X43: 0 | Y43: 0 | Z43: 0 | AA43: 0 | AB43: 0 | AC43: 0 | AG43: 27.42 | AH43: 0 | AI43: 0 | AJ43: 0
R45: =SUM(R8:R43) -> 0 | S45: =SUM(S8:S43) -> 0 | T45: =SUM(T8:T43) -> 0 | U45: =SUM(U8:U43) -> 0 | V45: =U45/T45 ->  | X45: =SUM(X8:X43) -> 0 | Y45: 0 | Z45: 0 | AA45: 0 | AB45: 0 | AC45: 0 | AH45: =SUM(AH9:AH43) -> 0 | AI45: =SUM(AI9:AI43) -> 0 | AJ45: =SUM(AJ9:AJ43) -> 0
X47: 0-11 | Y47: 0-12 | Z47: 0-13 | AA47: 0-14 | AB47: 0-15 | AC47: 0-16
X48: 12-23 | Y48: 12-24 | Z48: 12-25 | AA48: 12-26 | AB48: 12-27 | AC48: 12-28
X49: 24-35 | Y49: 24-36 | Z49: 24-37 | AA49: 24-38 | AB49: 24-39 | AC49: 24-40
Q51: 0-11 | R51: =SUM(R8:R19) -> 0 | S51: =SUM(S8:S19) -> 0 | T51: =SUM(T8:T19) -> 0 | U51: =SUM(U8:U19) -> 0 | V51: =U51/T51 ->  | X51: =SUM(X8:X19) -> 0 | Y51: 0 | Z51: 0 | AA51: 0 | AB51: 0 | AC51: 0
Q52: 12-23 | R52: =SUM(R20:R31) -> 0 | S52: =SUM(S20:S31) -> 0 | T52: =SUM(T20:T31) -> 0 | U52: =SUM(U20:U31) -> 0 | V52: =U52/T52 ->  | X52: =SUM(X20:X31) -> 0 | Y52: 0 | Z52: 0 | AA52: 0 | AB52: 0 | AC52: 0
Q53: 24-35 | R53: =SUM(R32:R43) -> 0 | S53: =SUM(S32:S43) -> 0 | T53: =SUM(T32:T43) -> 0 | U53: =SUM(U32:U43) -> 0 | X53: =SUM(X32:X43) -> 0 | Y53: 0 | Z53: 0 | AA53: 0 | AB53: 0 | AC53: 0
R54: =SUM(R51:R53) -> 0 | S54: =SUM(S51:S53) -> 0 | T54: 0 | U54: 0 | X54: =SUM(X51:X53) -> 0 | Y54: =SUM(Y51:Y53) -> 0 | Z54: 0 | AA54: 0 | AB54: 0 | AC54: =SUM(AC51:AC53) -> 0
Q56: 0-5 | R56: =SUM(R8:R13) -> 0 | S56: =SUM(S8:S13) -> 0 | T56: =SUM(T8:T13) -> 0 | U56: =SUM(U8:U13) -> 0 | V56: =U56/T56 ->  | X56: =SUM(X8:X13) -> 0 | Y56: 0 | Z56: 0 | AA56: 0 | AB56: 0 | AC56: 0
Q57: 6-23 | R57: =SUM(R14:R31) -> 0 | S57: =SUM(S14:S31) -> 0 | T57: =SUM(T14:T31) -> 0 | U57: =SUM(U14:U31) -> 0 | X57: =SUM(X14:X31) -> 0 | Y57: 0 | Z57: 0 | AA57: 0 | AB57: 0 | AC57: 0
R58: =SUM(R56:R57) -> 0 | S58: =SUM(S56:S57) -> 0 | T58: 0 | U58: 0 | X58: =SUM(X56:X57) -> 0 | Y58: =SUM(Y56:Y57) -> 0 | Z58: 0 | AA58: 0 | AB58: 0 | AC58: 0
Q59: *RTU, XYZ, AA, AAB , AAC

Sheet Country Data (hidden)
B1: Mothers' Milk Tool
B2: Country breastfeeding rate
F7: =INDEX(Database!B2:B232,Database!G2) -> Iraq
F8: ISO code: | G8: =INDEX(Database!H2:H232,Database!G2) -> IRQ
F9: Region: | G9: =INDEX(Database!K2:K233,Database!G2) -> Middle East and North Africa | L9: Month | M9: Rate | N9: Month | O9: Rate | P9: Month | Q9: Rate
F10: Income class: | G10: =INDEX(Database!N2:N233,Database!G2) -> Upper-Middle-Income
L11: 0 < 1 | M11: ='BF computation'!B5 -> 0.962962963 | N11: 12 < 13 | O11: ='BF computation'!B17 -> 0.5927419355 | P11: 24 < 25 | Q11: ='BF computation'!B29 -> 0.1324786325
L12: 1 < 2 | M12: ='BF computation'!B6 -> 0.9047619048 | N12: 13 <14 | O12: ='BF computation'!B18 -> 0.5081300813 | P12: 25 < 26 | Q12: ='BF computation'!B30 -> 0.1082089552
F13: Data collection year: | G13: =IF(G35=0,INDEX(Database!Q2:Q233,Database!G2),"") -> 2018 | L13: 2 < 3 | M13: ='BF computation'!B7 -> 0.8823529412 | N13: 14 < 15 | O13: ='BF computation'!B19 -> 0.4837545126 | P13: 26 < 27 | Q13: ='BF computation'!B31 -> 0.1287878788
F14: Data source: | G14: =IF(G35=0,INDEX(Database!O2:O233,Database!G2), "Generated") -> Full data, Source: MICS | L14: 3 < 4 | M14: ='BF computation'!B8 -> 0.8295454545 | N14: 15 < 16 | O14: ='BF computation'!B20 -> 0.4705882353 | P14: 27 < 28 | Q14: ='BF computation'!B32 -> 0.1075697211
L15: 4 < 5 | M15: ='BF computation'!B9 -> 0.7039711191 | N15: 16 < 17 | O15: ='BF computation'!B21 -> 0.4765625 | P15: 28 < 29 | Q15: ='BF computation'!B33 -> 0.09012875536
F16: No. of livebirths: | G16: 1037000 | L16: 5 < 6 | M16: ='BF computation'!B10 -> 0.7011070111 | N16: 17 < 18 | O16: ='BF computation'!B22 -> 0.4253731343 | P16: 29 < 30 | Q16: ='BF computation'!B34 -> 0.0787037037
F17: Year: | G17: 2020 | L17: 6 < 7 | M17: ='BF computation'!B11 -> 0.7018867925 | N17: 18 < 19 | O17: ='BF computation'!B23 -> 0.3295454545 | P17: 30 < 31 | Q17: ='BF computation'!B35 -> 0.09756097561
L18: 7 < 8 | M18: ='BF computation'!B12 -> 0.656 | N18: 19 < 20 | O18: ='BF computation'!B24 -> 0.358974359 | P18: 31 < 32 | Q18: ='BF computation'!B36 -> 0.09638554217
F19: Currency: | G19: =IF(G36=1, "#N/A", INDEX(Database!C2:C233,Database!G2)) -> Iraqi Dinar | L19: 8 < 9 | M19: ='BF computation'!B13 -> 0.6518218623 | N19: 20 < 21 | O19: ='BF computation'!B25 -> 0.3402489627 | P19: 32 < 33 | Q19: ='BF computation'!B37 -> 0.06569343066
F20: Exchange rate US$ 1: | G20: 1450 | L20: 9 < 10 | M20: ='BF computation'!B14 -> 0.5860805861 | N20: 21 < 22 | O20: ='BF computation'!B26 -> 0.3277310924 | P20: 33 < 34 | Q20: ='BF computation'!B38 -> 0.07983193277 | AD20: =Country!H8 -> Iraq
F21: Currency code: | G21: =IF(G36=1, "#N/A", INDEX(Database!D2:D233,Database!G2)) -> IQD | L21: 10 < 11 | M21: ='BF computation'!B15 -> 0.631840796 | N21: 22 < 23 | O21: ='BF computation'!B27 -> 0.2882882883 | P21: 34 < 35 | Q21: ='BF computation'!B39 -> 0.07589285714
F22: Currency rate date: | G22: 2021-01-10 | L22: 11 < 12 | M22: ='BF computation'!B16 -> 0.6866359447 | N22: 23 < 24 | O22: ='BF computation'!B28 -> 0.2435233161 | P22: 35 < 36 | Q22: ='BF computation'!B40 -> 
L24: If you decide not to impute the missing data, the calculation of production and value will be limited to available data.
G30: =IF(F7="", "", INDEX(Database!AP2:AP233,Database!G2)*1000) -> 1037000 | M30: IF(G7="", "", INDEX(Database!AP2:AP233,Database!G2)*1000)
G31: =IF(F7="", "", 2020) -> 2020 | M31: IF(G7="", "", INDEX(Database!F2:F233,Database!G2))
G32: =IF(F7="", "", INDEX(Database!F2:F233,Database!G2)) -> 1450 | M32: IF(G36=1, "#N/A", INDEX(Database!C2:C233,Database!G2))
G33: =IF(F7="", "", TEXT(INDEX(Database!E2:E232,Database!G2),"d/m/yyyy")) -> 1/10/2021 | M33: IF(G36=1, "#N/A", INDEX(Database!D2:D233,Database!G2))
M34: IF(G7="", "", TEXT(INDEX(Database!E2:E232,Database!G2),"d/m/yyyy"))
G35: 0 | H35: Flag for BF entries
B36: =AD20 -> Iraq | G36: 0 | H36: Flag for New Country
G37: 0 | H37: FlagEntry
G39: =IF(G30="", "", INDEX(Database!AP25:AP256,Database!G25)*1000) -> 402000
G40: =IF(G30="", "", 2020) -> 2020
G43: =IF(G60=1, "#N/A", INDEX(Database!C26:C257,Database!G26)) -> Jersey Pound
G44: =IF(G31="", "", INDEX(Database!F26:F257,Database!G26)) -> 803
G45: =IF(G60=1, "#N/A", INDEX(Database!D26:D257,Database!G26)) -> CNY
G46: =IF(G31="", "", TEXT(INDEX(Database!E26:E256,Database!G26),"d/m/yyyy")) -> 1/10/2021

Sheet Data Entry (hidden)
B1: Mothers' Milk Tool
B2: Data entry
N5: Enter own breastfeeding rate
G7: =N7 -> Iraq | N7: =Country2 -> Iraq
C8: =N7 -> Iraq | K8: Enter your own data | N8: Month | O8: Rate | P8: Month | Q8: Rate | R8: Month | S8: Rate
C9: ='Country Data'!F16 -> No. of livebirths: | G9: 1037000 | N9: 0 < 1 | P9: 12 < 13 | R9: 24 < 25
C10: Year recorded: | G10: 2020 | N10: 1 < 2 | P10: 13 <14 | R10: 25 < 26
N11: 2 < 3 | P11: 14 < 15 | R11: 26 < 27
C12: ='Country Data'!F19 -> Currency: | G12: ='Country Data'!Currency -> Iraqi Dinar | N12: 3 < 4 | P12: 15 < 16 | R12: 27 < 28
C13: ='Country Data'!F20 -> Exchange rate US$ 1: | G13: 1450 | N13: 4 < 5 | P13: 16 < 17 | R13: 28 < 29
C14: ='Country Data'!F22 -> Currency rate date: | G14: 2021-01-10 | K14: dd/mm/yyyy | N14: 5 < 6 | P14: 17 < 18 | R14: 29 < 30
N15: 6 < 7 | P15: 18 < 19 | R15: 30 < 31
N16: 7 < 8 | P16: 19 < 20 | R16: 31 < 32
C17: Price per liter of breastmilk in local currency | N17: 8 < 9 | P17: 20 < 21 | R17: 32 < 33
C18: =_xlfn.CONCAT("Default price per liter of breastmilk in ", TRIM(G12)) -> Default price per liter of breastmilk in Iraqi Dinar | K18: =G13*100 -> 145000 | N18: 9 < 10 | P18: 21 < 22 | R18: 33 < 34
N19: 10 < 11 | P19: 22 < 23 | R19: 34 < 35
N20: 11 < 12 | P20: 23 < 24 | R20: 35 < 36 | BB20: =IF(K17<>"",K17/G13,100) -> 100
G36: 0
G37: 0

Sheet BF Rate Chart (hidden)
B1: Mothers' Milk Tool
B2: Breastfeeding chart
B7: ='Country Data'!F7 -> Iraq
B9: Month | C9: Rate | D9: Month | E9: Rate | F9: Month | G9: Rate
B10: 0 < 1 | C10: ='BF computation'!B5 -> 0.962962963 | D10: 12 < 13 | E10: ='BF computation'!B17 -> 0.5927419355 | F10: 24 < 25 | G10: ='BF computation'!B29 -> 0.1324786325
B11: 1 < 2 | C11: ='BF computation'!B6 -> 0.9047619048 | D11: 13 <14 | E11: ='BF computation'!B18 -> 0.5081300813 | F11: 25 < 26 | G11: ='BF computation'!B30 -> 0.1082089552
B12: 2 < 3 | C12: ='BF computation'!B7 -> 0.8823529412 | D12: 14 < 15 | E12: ='BF computation'!B19 -> 0.4837545126 | F12: 26 < 27 | G12: ='BF computation'!B31 -> 0.1287878788
B13: 3 < 4 | C13: ='BF computation'!B8 -> 0.8295454545 | D13: 15 < 16 | E13: ='BF computation'!B20 -> 0.4705882353 | F13: 27 < 28 | G13: ='BF computation'!B32 -> 0.1075697211
B14: 4 < 5 | C14: ='BF computation'!B9 -> 0.7039711191 | D14: 16 < 17 | E14: ='BF computation'!B21 -> 0.4765625 | F14: 28 < 29 | G14: ='BF computation'!B33 -> 0.09012875536
B15: 5 < 6 | C15: ='BF computation'!B10 -> 0.7011070111 | D15: 17 < 18 | E15: ='BF computation'!B22 -> 0.4253731343 | F15: 29 < 30 | G15: ='BF computation'!B34 -> 0.0787037037
B16: 6 < 7 | C16: ='BF computation'!B11 -> 0.7018867925 | D16: 18 < 19 | E16: ='BF computation'!B23 -> 0.3295454545 | F16: 30 < 31 | G16: ='BF computation'!B35 -> 0.09756097561
B17: 7 < 8 | C17: ='BF computation'!B12 -> 0.656 | D17: 19 < 20 | E17: ='BF computation'!B24 -> 0.358974359 | F17: 31 < 32 | G17: ='BF computation'!B36 -> 0.09638554217
B18: 8 < 9 | C18: ='BF computation'!B13 -> 0.6518218623 | D18: 20 < 21 | E18: ='BF computation'!B25 -> 0.3402489627 | F18: 32 < 33 | G18: ='BF computation'!B37 -> 0.06569343066
B19: 9 < 10 | C19: ='BF computation'!B14 -> 0.5860805861 | D19: 21 < 22 | E19: ='BF computation'!B26 -> 0.3277310924 | F19: 33 < 34 | G19: ='BF computation'!B38 -> 0.07983193277
B20: 10 < 11 | C20: ='BF computation'!B15 -> 0.631840796 | D20: 22 < 23 | E20: ='BF computation'!B27 -> 0.2882882883 | F20: 34 < 35 | G20: ='BF computation'!B39 -> 0.07589285714
B21: 11 < 12 | C21: ='BF computation'!B16 -> 0.6866359447 | D21: 23 < 124 | E21: ='BF computation'!B28 -> 0.2435233161 | F21: 35 < 36 | G21: ='BF computation'!B40 -> 

Sheet Result-Lost Milk Estimate (hidden)
C1: Mothers' Milk Tool
C2: Country production and value
B6: *The calculation in the tables shows the totals based on the data entries for breastfeeding
C9: =Country2 -> Iraq
C11: Total for 3 years | D11: Volume | E11: Value | F11: Value
C12: =CONCATENATE("(Estimate for ",'BF computation'!C5," data entries)") -> (Estimate for 35 data entries) | D12: in million liters | E12: in million USD | F12: =CONCATENATE("in million ",Currency) -> in million Iraqi Dinar
C13: 1. Actual annual production of breastmilk | D13: ='Calibration Matrix '!R45 -> 228.1458907 | E13: ='Calibration Matrix '!X45 -> 22814.58907 | F13: ='Calibration Matrix '!AA45 -> 33081154.15
C14: 2. Potential production of breastmilk | D14: ='Calibration Matrix '!T45 -> 430.7975771 | E14: ='Calibration Matrix '!Y45 -> 43079.75771 | F14: ='Calibration Matrix '!AB45 -> 62465648.68
C15: 3. Lost breastmilk | D15: ='Calibration Matrix '!U45 -> 202.6516864 | E15: ='Calibration Matrix '!Z45 -> 20265.16864 | F15: ='Calibration Matrix '!AC45 -> 29384494.53
C16: 4. Percent lost | D16: =D15/D14 -> 0.47041046
C18: ='Country Data'!F20 -> Exchange rate US$ 1: | D18: ='Country Data'!$G$20 & " " & Currency -> 1450 Iraqi Dinar
C19: ='Country Data'!F14 -> Data source: | D19: ='Country Data'!Source -> Full data, Source: MICS
C22: =Country2 -> Iraq
C24: Total for 0 to <6 months | D24: Volume | E24: Value | F24: Value
C25: =CONCATENATE("(Estimate for ",'BF computation'!C9," data entries)") -> (Estimate for 6 data entries) | D25: in million liters | E25: in million USD | F25: =CONCATENATE("in million ",Currency) -> in million Iraqi Dinar
C26: 1. Actual annual production of breastmilk | D26: ='Calibration Matrix '!R56 -> 101.7708198 | E26: ='Calibration Matrix '!X56 -> 10177.08198 | F26: ='Calibration Matrix '!AA56 -> 14756768.87
C27: 2. Potential production of breastmilk | D27: ='Calibration Matrix '!T56 -> 120.0604837 | E27: ='Calibration Matrix '!Y56 -> 12006.04837 | F27: ='Calibration Matrix '!AB56 -> 17408770.14
C28: 3. Lost breastmilk | D28: ='Calibration Matrix '!U56 -> 18.28966395 | E28: ='Calibration Matrix '!Z56 -> 1828.966395 | F28: ='Calibration Matrix '!AC56 -> 2652001.272
C29: 4. Percent lost | D29: =D28/D27 -> 0.1523370836
C31: ='Country Data'!F20 -> Exchange rate US$ 1: | D31: ='Country Data'!$G$20 & " " & Currency -> 1450 Iraqi Dinar
C32: ='Country Data'!F14 -> Data source: | D32: ='Country Data'!Source -> Full data, Source: MICS
C35: =Country2 -> Iraq
G36: 0
C37: Total for 6 to <24 months | D37: Volume | E37: Value | F37: Value | G37: 0
C38: =CONCATENATE("(Estimate for ",'BF computation'!C10," data entries)") -> (Estimate for 18 data entries) | D38: in million liters | E38: in million USD | F38: =CONCATENATE("in million ",Currency) -> in million Iraqi Dinar
C39: 1. Actual annual production of breastmilk | D39: ='Calibration Matrix '!R57 -> 118.4514108 | E39: ='Calibration Matrix '!X57 -> 11845.14108 | F39: ='Calibration Matrix '!AA57 -> 17175454.56
C40: 2. Potential production of breastmilk | D40: ='Calibration Matrix '!T57 -> 230.2493014 | E40: ='Calibration Matrix '!Y57 -> 23024.93014 | F40: ='Calibration Matrix '!AB57 -> 33386148.7
C41: 3. Lost breastmilk | D41: ='Calibration Matrix '!U57 -> 111.7978906 | E41: ='Calibration Matrix '!Z57 -> 11179.78906 | F41: ='Calibration Matrix '!AC57 -> 16210694.14
C42: 4. Percent lost | D42: =D41/D40 -> 0.4855514868
C44: ='Country Data'!F20 -> Exchange rate US$ 1: | D44: ='Country Data'!$G$20 & " " & Currency -> 1450 Iraqi Dinar
C45: ='Country Data'!F14 -> Data source: | D45: ='Country Data'!Source -> Full data, Source: MICS
C48: =Country2 -> Iraq
C50: Total for 1st year | D50: Volume | E50: Value | F50: Value
C51: =CONCATENATE("(Estimate for ",'BF computation'!C6," data entries)") -> (Estimate for 12 data entries) | D51: in million liters | E51: in million USD | F51: =CONCATENATE("in million ",Currency) -> in million Iraqi Dinar
C52: 1. Actual annual production of breastmilk | D52: ='Calibration Matrix '!R51 -> 164.1460879 | E52: ='Calibration Matrix '!X51 -> 16414.60879 | F52: ='Calibration Matrix '!AA51 -> 23801182.75
C53: 2. Potential production of breastmilk | D53: ='Calibration Matrix '!T51 -> 214.2122459 | E53: ='Calibration Matrix '!Y51 -> 21421.22459 | F53: ='Calibration Matrix '!AB51 -> 31060775.66
C54: 3. Lost breastmilk | D54: ='Calibration Matrix '!U51 -> 50.06615799 | E54: ='Calibration Matrix '!Z51 -> 5006.615799 | F54: ='Calibration Matrix '!AC51 -> 7259592.909
C55: 4. Percent lost | D55: =D54/D53 -> 0.2337222028
C57: ='Country Data'!F20 -> Exchange rate US$ 1: | D57: ='Country Data'!$G$20 & " " & Currency -> 1450 Iraqi Dinar
C58: ='Country Data'!F14 -> Data source: | D58: ='Country Data'!Source -> Full data, Source: MICS
C61: =Country2 -> Iraq
C63: Total for 2nd year | D63: Volume | E63: Value | F63: Value
C64: =CONCATENATE("(Estimate for ",'BF computation'!C7," data entries)") -> (Estimate for 12 data entries) | D64: in million liters | E64: in million USD | F64: =CONCATENATE("in million ",Currency) -> in million Iraqi Dinar
C65: 1. Actual annual production of breastmilk | D65: ='Calibration Matrix '!R52 -> 56.07614261 | E65: ='Calibration Matrix '!X52 -> 5607.614261 | F65: ='Calibration Matrix '!AA52 -> 8131040.678
C66: 2. Potential production of breastmilk | D66: ='Calibration Matrix '!T52 -> 136.0975392 | E66: ='Calibration Matrix '!Y52 -> 13609.75392 | F66: ='Calibration Matrix '!AB52 -> 19734143.18
C67: 3. Lost breastmilk | D67: ='Calibration Matrix '!U52 -> 80.02139659 | E67: ='Calibration Matrix '!Z52 -> 8002.139659 | F67: ='Calibration Matrix '!AC52 -> 11603102.51
C68: 4. Percent lost | D68: =D67/D66 -> 0.5879709293
C70: ='Country Data'!F20 -> Exchange rate US$ 1: | D70: ='Country Data'!$G$20 & " " & Currency -> 1450 Iraqi Dinar
C71: ='Country Data'!F14 -> Data source: | D71: ='Country Data'!Source -> Full data, Source: MICS
C74: =Country2 -> Iraq
C76: Total for 3rd year | D76: Volume | E76: Value | F76: Value
C77: =CONCATENATE("(Estimate for ",'BF computation'!C8," data entries)") -> (Estimate for 11 data entries) | D77: in million Liters | E77: in million USD | F77: =CONCATENATE("in million ",Currency) -> in million Iraqi Dinar
C78: 1. Actual annual production of breastmilk | D78: ='Calibration Matrix '!R53 -> 7.923660144 | E78: ='Calibration Matrix '!X53 -> 792.3660144 | F78: ='Calibration Matrix '!AA53 -> 1148930.721
C79: 2. Potential production of breastmilk | D79: ='Calibration Matrix '!T53 -> 80.487792 | E79: ='Calibration Matrix '!Y53 -> 8048.7792 | F79: ='Calibration Matrix '!AB53 -> 11670729.84
C80: 3. Lost breastmilk | D80: ='Calibration Matrix '!U53 -> 72.56413186 | E80: ='Calibration Matrix '!Z53 -> 7256.413186 | F80: ='Calibration Matrix '!AC53 -> 10521799.12
C81: 4. Percent lost | D81: =D80/D79 -> 0.9015545097
C83: ='Country Data'!F20 -> Exchange rate US$ 1: | D83: ='Country Data'!$G$20 & " " & Currency -> 1450 Iraqi Dinar
C84: ='Country Data'!F14 -> Data source: | D84: ='Country Data'!Source -> Full data, Source: MICS

Sheet Results Compare (hidden)
B1: Mother's Milk Tool
B2: Milk production and value estimates
B6: *The calculation in the tables shows the totals based on the data entries for breastfeeding
B8: Calculation using Estimator/own BF data | I8: Calculation using available BF data only
B9: =Country2 -> Iraq | I9: Iraq
C11: TOTAL for 3 years* | D11: Volume | E11: Value | F11: Value | J11: TOTAL for 3 years* | K11: Volume | L11: Value | M11: Value
C12: =CONCATENATE("(Estimate for ",'BF computation'!C5," Data Entries)") -> (Estimate for 35 Data Entries) | D12: in million Liters | E12: in million USD | F12: =CONCATENATE("in million ",Currency) -> in million Iraqi Dinar | J12: (Estimate for 35 Data Entries) | K12: in million Liters | L12: in million USD | M12: in million Iraqi Dinar
C13: 1. Actual production of Breastmilk | D13: ='Calibration Matrix '!R45 -> 228.1458907 | E13: ='Calibration Matrix '!X45 -> 22814.58907 | F13: ='Calibration Matrix '!AA45 -> 33081154.15 | J13: 1. Actual production of Breastmilk | K13: 228.1458907 | L13: 22814.58907 | M13: 33081154.15
C14: 2. Biologically feasible potential production of Breastmilk | D14: ='Calibration Matrix '!T45 -> 430.7975771 | E14: ='Calibration Matrix '!Y45 -> 43079.75771 | F14: ='Calibration Matrix '!AB45 -> 62465648.68 | J14: 2. Biologically feasible potential production of Breastmilk | K14: 430.7975771 | L14: 43079.75771 | M14: 62465648.68
C15: 3. Lost Breastmilk | D15: ='Calibration Matrix '!U45 -> 202.6516864 | E15: ='Calibration Matrix '!Z45 -> 20265.16864 | F15: ='Calibration Matrix '!AC45 -> 29384494.53 | J15: 3. Lost Breastmilk | K15: 202.6516864 | L15: 20265.16864 | M15: 29384494.53
C16: Per Cent % lost | D16: =D15/D14 -> 0.47041046 | J16: Per Cent % lost | K16: 0.47041046
C18: ='Country Data'!F20 -> Exchange rate US$ 1: | D18: ='Country Data'!$G$20 & " " & Currency -> 1450 Iraqi Dinar | J18: Exchange rate US$ 1: | K18: 1450 Iraqi Dinar
C19: ='Country Data'!F14 -> Data source: | D19: ='Country Data'!Source -> Full data, Source: MICS | J19: Data source: | K19: Full data, Source: MICS
B22: =Country2 -> Iraq | I22: Iraq
C24: TOTAL for 0 to <6 months* | D24: Volume | E24: Value | F24: Value | J24: TOTAL for 0 to <6 months* | K24: Volume | L24: Value | M24: Value
C25: =CONCATENATE("(Estimate for ",'BF computation'!C9," Data Entries)") -> (Estimate for 6 Data Entries) | D25: in million Liters | E25: in million USD | F25: =CONCATENATE("in million ",Currency) -> in million Iraqi Dinar | J25: (Estimate for 6 Data Entries) | K25: in million Liters | L25: in million USD | M25: in million Iraqi Dinar
C26: 1. Actual production of Breastmilk | D26: ='Calibration Matrix '!R56 -> 101.7708198 | E26: ='Calibration Matrix '!X56 -> 10177.08198 | F26: ='Calibration Matrix '!AA56 -> 14756768.87 | J26: 1. Actual production of Breastmilk | K26: 101.7708198 | L26: 10177.08198 | M26: 14756768.87
C27: 2. Biologically feasible potential production of Breastmilk | D27: ='Calibration Matrix '!T56 -> 120.0604837 | E27: ='Calibration Matrix '!Y56 -> 12006.04837 | F27: ='Calibration Matrix '!AB56 -> 17408770.14 | J27: 2. Biologically feasible potential production of Breastmilk | K27: 120.0604837 | L27: 12006.04837 | M27: 17408770.14
C28: 3. Lost Breastmilk | D28: ='Calibration Matrix '!U56 -> 18.28966395 | E28: ='Calibration Matrix '!Z56 -> 1828.966395 | F28: ='Calibration Matrix '!AC56 -> 2652001.272 | J28: 3. Lost Breastmilk | K28: 18.28966395 | L28: 1828.966395 | M28: 2652001.272
C29: Per Cent % lost | D29: =D28/D27 -> 0.1523370836 | J29: Per Cent % lost | K29: 0.1523370836
C31: ='Country Data'!F20 -> Exchange rate US$ 1: | D31: ='Country Data'!$G$20 & " " & Currency -> 1450 Iraqi Dinar | J31: Exchange rate US$ 1: | K31: 1450 Iraqi Dinar
C32: ='Country Data'!F14 -> Data source: | D32: ='Country Data'!Source -> Full data, Source: MICS | J32: Data source: | K32: Full data, Source: MICS
B35: =Country2 -> Iraq | I35: Iraq
C37: TOTAL for 6 to <24 months* | D37: Volume | E37: Value | F37: Value | J37: TOTAL for 6 to <24 months* | K37: Volume | L37: Value | M37: Value
C38: =CONCATENATE("(Estimate for ",'BF computation'!C10," Data Entries)") -> (Estimate for 18 Data Entries) | D38: in million Liters | E38: in million USD | F38: =CONCATENATE("in million ",Currency) -> in million Iraqi Dinar | J38: (Estimate for 18 Data Entries) | K38: in million Liters | L38: in million USD | M38: in million Iraqi Dinar
C39: 1. Actual production of Breastmilk | D39: ='Calibration Matrix '!R57 -> 118.4514108 | E39: ='Calibration Matrix '!X57 -> 11845.14108 | F39: ='Calibration Matrix '!AA57 -> 17175454.56 | J39: 1. Actual production of Breastmilk | K39: 118.4514108 | L39: 11845.14108 | M39: 17175454.56
C40: 2. Biologically feasible potential production of Breastmilk | D40: ='Calibration Matrix '!T57 -> 230.2493014 | E40: ='Calibration Matrix '!Y57 -> 23024.93014 | F40: ='Calibration Matrix '!AB57 -> 33386148.7 | J40: 2. Biologically feasible potential production of Breastmilk | K40: 230.2493014 | L40: 23024.93014 | M40: 33386148.7
C41: 3. Lost Breastmilk | D41: ='Calibration Matrix '!U57 -> 111.7978906 | E41: ='Calibration Matrix '!Z57 -> 11179.78906 | F41: ='Calibration Matrix '!AC57 -> 16210694.14 | J41: 3. Lost Breastmilk | K41: 111.7978906 | L41: 11179.78906 | M41: 16210694.14
C42: Per Cent % lost | D42: =D41/D40 -> 0.4855514868 | J42: Per Cent % lost | K42: 0.4855514868
C44: ='Country Data'!F20 -> Exchange rate US$ 1: | D44: ='Country Data'!$G$20 & " " & Currency -> 1450 Iraqi Dinar | J44: Exchange rate US$ 1: | K44: 1450 Iraqi Dinar
C45: ='Country Data'!F14 -> Data source: | D45: ='Country Data'!Source -> Full data, Source: MICS | J45: Data source: | K45: Full data, Source: MICS
B48: =Country2 -> Iraq | I48: Iraq
C50: TOTAL for 1st year* | D50: Volume | E50: Value | F50: Value | J50: TOTAL for 1st year* | K50: Volume | L50: Value | M50: Value
C51: =CONCATENATE("(Estimate for ",'BF computation'!C6," Data Entries)") -> (Estimate for 12 Data Entries) | D51: in million Liters | E51: in million USD | F51: =CONCATENATE("in million ",Currency) -> in million Iraqi Dinar | J51: (Estimate for 12 Data Entries) | K51: in million Liters | L51: in million USD | M51: in million Iraqi Dinar
C52: 1. Actual production of Breastmilk | D52: ='Calibration Matrix '!R51 -> 164.1460879 | E52: ='Calibration Matrix '!X51 -> 16414.60879 | F52: ='Calibration Matrix '!AA51 -> 23801182.75 | J52: 1. Actual production of Breastmilk | K52: 164.1460879 | L52: 16414.60879 | M52: 23801182.75
C53: 2. Biologically feasible potential production of Breastmilk | D53: ='Calibration Matrix '!T51 -> 214.2122459 | E53: ='Calibration Matrix '!Y51 -> 21421.22459 | F53: ='Calibration Matrix '!AB51 -> 31060775.66 | J53: 2. Biologically feasible potential production of Breastmilk | K53: 214.2122459 | L53: 21421.22459 | M53: 31060775.66
C54: 3. Lost Breastmilk | D54: ='Calibration Matrix '!U51 -> 50.06615799 | E54: ='Calibration Matrix '!Z51 -> 5006.615799 | F54: ='Calibration Matrix '!AC51 -> 7259592.909 | J54: 3. Lost Breastmilk | K54: 50.06615799 | L54: 5006.615799 | M54: 7259592.909
C55: Per Cent % lost | D55: =D54/D53 -> 0.2337222028 | J55: Per Cent % lost | K55: 0.2337222028
C57: ='Country Data'!F20 -> Exchange rate US$ 1: | D57: ='Country Data'!$G$20 & " " & Currency -> 1450 Iraqi Dinar | J57: Exchange rate US$ 1: | K57: 1450 Iraqi Dinar
C58: ='Country Data'!F14 -> Data source: | D58: ='Country Data'!Source -> Full data, Source: MICS | J58: Data source: | K58: Full data, Source: MICS
B61: =Country2 -> Iraq | I61: Iraq
C63: TOTAL for 2nd year* | D63: Volume | E63: Value | F63: Value | J63: TOTAL for 2nd year* | K63: Volume | L63: Value | M63: Value
C64: =CONCATENATE("(Estimate for ",'BF computation'!C7," Data Entries)") -> (Estimate for 12 Data Entries) | D64: in million Liters | E64: in million USD | F64: =CONCATENATE("in million ",Currency) -> in million Iraqi Dinar | J64: (Estimate for 12 Data Entries) | K64: in million Liters | L64: in million USD | M64: in million Iraqi Dinar
C65: 1. Actual production of Breastmilk | D65: ='Calibration Matrix '!R52 -> 56.07614261 | E65: ='Calibration Matrix '!X52 -> 5607.614261 | F65: ='Calibration Matrix '!AA52 -> 8131040.678 | J65: 1. Actual production of Breastmilk | K65: 56.07614261 | L65: 5607.614261 | M65: 8131040.678
C66: 2. Biologically feasible potential production of Breastmilk | D66: ='Calibration Matrix '!T52 -> 136.0975392 | E66: ='Calibration Matrix '!Y52 -> 13609.75392 | F66: ='Calibration Matrix '!AB52 -> 19734143.18 | J66: 2. Biologically feasible potential production of Breastmilk | K66: 136.0975392 | L66: 13609.75392 | M66: 19734143.18
C67: 3. Lost Breastmilk | D67: ='Calibration Matrix '!U52 -> 80.02139659 | E67: ='Calibration Matrix '!Z52 -> 8002.139659 | F67: ='Calibration Matrix '!AC52 -> 11603102.51 | J67: 3. Lost Breastmilk | K67: 80.02139659 | L67: 8002.139659 | M67: 11603102.51
C68: Per Cent % lost | D68: =D67/D66 -> 0.5879709293 | J68: Per Cent % lost | K68: 0.5879709293
C70: ='Country Data'!F20 -> Exchange rate US$ 1: | D70: ='Country Data'!$G$20 & " " & Currency -> 1450 Iraqi Dinar | J70: Exchange rate US$ 1: | K70: 1450 Iraqi Dinar
C71: ='Country Data'!F14 -> Data source: | D71: ='Country Data'!Source -> Full data, Source: MICS | J71: Data source: | K71: Full data, Source: MICS
B74: =Country2 -> Iraq | I74: Iraq
C76: TOTAL for 3rd year* | D76: Volume | E76: Value | F76: Value | J76: TOTAL for 3rd year* | K76: Volume | L76: Value | M76: Value
C77: =CONCATENATE("(Estimate for ",'BF computation'!C8," Data Entries)") -> (Estimate for 11 Data Entries) | D77: in million Liters | E77: in million USD | F77: =CONCATENATE("in million ",Currency) -> in million Iraqi Dinar | J77: (Estimate for 11 Data Entries) | K77: in million Liters | L77: in million USD | M77: in million Iraqi Dinar
C78: 1. Actual production of Breastmilk | D78: ='Calibration Matrix '!R53 -> 7.923660144 | E78: ='Calibration Matrix '!X53 -> 792.3660144 | F78: ='Calibration Matrix '!AA53 -> 1148930.721 | J78: 1. Actual production of Breastmilk | K78: 7.923660144 | L78: 792.3660144 | M78: 1148930.721
C79: 2. Biologically feasible potential production of Breastmilk | D79: ='Calibration Matrix '!T53 -> 80.487792 | E79: ='Calibration Matrix '!Y53 -> 8048.7792 | F79: ='Calibration Matrix '!AB53 -> 11670729.84 | J79: 2. Biologically feasible potential production of Breastmilk | K79: 80.487792 | L79: 8048.7792 | M79: 11670729.84
C80: 3. Lost Breastmilk | D80: ='Calibration Matrix '!U53 -> 72.56413186 | E80: ='Calibration Matrix '!Z53 -> 7256.413186 | F80: ='Calibration Matrix '!AC53 -> 10521799.12 | J80: 3. Lost Breastmilk | K80: 72.56413186 | L80: 7256.413186 | M80: 10521799.12
C81: Per Cent % lost | D81: =D80/D79 -> 0.9015545097 | J81: Per Cent % lost | K81: 0.9015545097
C83: ='Country Data'!F20 -> Exchange rate US$ 1: | D83: ='Country Data'!$G$20 & " " & Currency -> 1450 Iraqi Dinar | J83: Exchange rate US$ 1: | K83: 1450 Iraqi Dinar
C84: ='Country Data'!F14 -> Data source: | D84: ='Country Data'!Source -> Full data, Source: MICS | J84: Data source: | K84: Full data, Source: MICS

Sheet References & Literature (hidden)
B1: Lost Milk Tool
B2: References and Literature

Sheet Definition of Terms (hidden)
B1: Lost Milk Tool
B2: Definition of terms

Sheet BF computation (hidden)
B1: 0 | C1: 1 | D1: 2 | E1: 3 | F1: 4 | G1: 5 | H1: 6 | I1: 7 | J1: 8 | K1: 9 | L1: 10 | M1: 11 | N1: 12 | O1: 13 | P1: 14 | Q1: 15 | R1: 16 | S1: 17 | T1: 18 | U1: 19 | V1: 20 | W1: 21 | X1: 22 | Y1: 23 | Z1: 24 | AA1: 25 | AB1: 26 | AC1: 27 | AD1: 28 | AE1: 29 | AF1: 30 | AG1: 31 | AH1: 32 | AI1: 33 | AJ1: 34 | AK1: 35 | AL1: 36
A2: ='Country Data'!F7 -> Iraq | B2: =IF(IFERROR(VLOOKUP($A$2, 'Database 2'!$M$3:$AY$233,COLUMN(),0),"")="","",IFERROR(VLOOKUP($A$2, 'Database 2'!$M$3:$AY$233,COLUMN(),0),"")) -> 0.962962963 | C2: =IF(IFERROR(VLOOKUP($A$2, 'Database 2'!$M$3:$AY$233,COLUMN(),0),"")="","",IFERROR(VLOOKUP($A$2, 'Database 2'!$M$3:$AY$233,COLUMN(),0),"")) -> 0.9047619048 | D2: =IF(IFERROR(VLOOKUP($A$2, 'Database 2'!$M$3:$AY$233,COLUMN(),0),"")="","",IFERROR(VLOOKUP($A$2, 'Database 2'!$M$3:$AY$233,COLUMN(),0),"")) -> 0.8823529412 | E2: =IF(IFERROR(VLOOKUP($A$2, 'Database 2'!$M$3:$AY$233,COLUMN(),0),"")="","",IFERROR(VLOOKUP($A$2, 'Database 2'!$M$3:$AY$233,COLUMN(),0),"")) -> 0.8295454545 | F2: =IF(IFERROR(VLOOKUP($A$2, 'Database 2'!$M$3:$AY$233,COLUMN(),0),"")="","",IFERROR(VLOOKUP($A$2, 'Database 2'!$M$3:$AY$233,COLUMN(),0),"")) -> 0.7039711191 | G2: =IF(IFERROR(VLOOKUP($A$2, 'Database 2'!$M$3:$AY$233,COLUMN(),0),"")="","",IFERROR(VLOOKUP($A$2, 'Database 2'!$M$3:$AY$233,COLUMN(),0),"")) -> 0.7011070111 | H2: =IF(IFERROR(VLOOKUP($A$2, 'Database 2'!$M$3:$AY$233,COLUMN(),0),"")="","",IFERROR(VLOOKUP($A$2, 'Database 2'!$M$3:$AY$233,COLUMN(),0),"")) -> 0.7018867925 | I2: =IF(IFERROR(VLOOKUP($A$2, 'Database 2'!$M$3:$AY$233,COLUMN(),0),"")="","",IFERROR(VLOOKUP($A$2, 'Database 2'!$M$3:$AY$233,COLUMN(),0),"")) -> 0.656 | J2: =IF(IFERROR(VLOOKUP($A$2, 'Database 2'!$M$3:$AY$233,COLUMN(),0),"")="","",IFERROR(VLOOKUP($A$2, 'Database 2'!$M$3:$AY$233,COLUMN(),0),"")) -> 0.6518218623 | K2: =IF(IFERROR(VLOOKUP($A$2, 'Database 2'!$M$3:$AY$233,COLUMN(),0),"")="","",IFERROR(VLOOKUP($A$2, 'Database 2'!$M$3:$AY$233,COLUMN(),0),"")) -> 0.5860805861 | L2: =IF(IFERROR(VLOOKUP($A$2, 'Database 2'!$M$3:$AY$233,COLUMN(),0),"")="","",IFERROR(VLOOKUP($A$2, 'Database 2'!$M$3:$AY$233,COLUMN(),0),"")) -> 0.631840796 | M2: =IF(IFERROR(VLOOKUP($A$2, 'Database 2'!$M$3:$AY$233,COLUMN(),0),"")="","",IFERROR(VLOOKUP($A$2, 'Database 2'!$M$3:$AY$233,COLUMN(),0),"")) -> 0.6866359447 | N2: =IF(IFERROR(VLOOKUP($A$2, 'Database 2'!$M$3:$AY$233,COLUMN(),0),"")="","",IFERROR(VLOOKUP($A$2, 'Database 2'!$M$3:$AY$233,COLUMN(),0),"")) -> 0.5927419355 | O2: =IF(IFERROR(VLOOKUP($A$2, 'Database 2'!$M$3:$AY$233,COLUMN(),0),"")="","",IFERROR(VLOOKUP($A$2, 'Database 2'!$M$3:$AY$233,COLUMN(),0),"")) -> 0.5081300813 | P2: =IF(IFERROR(VLOOKUP($A$2, 'Database 2'!$M$3:$AY$233,COLUMN(),0),"")="","",IFERROR(VLOOKUP($A$2, 'Database 2'!$M$3:$AY$233,COLUMN(),0),"")) -> 0.4837545126 | Q2: =IF(IFERROR(VLOOKUP($A$2, 'Database 2'!$M$3:$AY$233,COLUMN(),0),"")="","",IFERROR(VLOOKUP($A$2, 'Database 2'!$M$3:$AY$233,COLUMN(),0),"")) -> 0.4705882353 | R2: =IF(IFERROR(VLOOKUP($A$2, 'Database 2'!$M$3:$AY$233,COLUMN(),0),"")="","",IFERROR(VLOOKUP($A$2, 'Database 2'!$M$3:$AY$233,COLUMN(),0),"")) -> 0.4765625 | S2: =IF(IFERROR(VLOOKUP($A$2, 'Database 2'!$M$3:$AY$233,COLUMN(),0),"")="","",IFERROR(VLOOKUP($A$2, 'Database 2'!$M$3:$AY$233,COLUMN(),0),"")) -> 0.4253731343 | T2: =IF(IFERROR(VLOOKUP($A$2, 'Database 2'!$M$3:$AY$233,COLUMN(),0),"")="","",IFERROR(VLOOKUP($A$2, 'Database 2'!$M$3:$AY$233,COLUMN(),0),"")) -> 0.3295454545 | U2: =IF(IFERROR(VLOOKUP($A$2, 'Database 2'!$M$3:$AY$233,COLUMN(),0),"")="","",IFERROR(VLOOKUP($A$2, 'Database 2'!$M$3:$AY$233,COLUMN(),0),"")) -> 0.358974359 | V2: =IF(IFERROR(VLOOKUP($A$2, 'Database 2'!$M$3:$AY$233,COLUMN(),0),"")="","",IFERROR(VLOOKUP($A$2, 'Database 2'!$M$3:$AY$233,COLUMN(),0),"")) -> 0.3402489627 | W2: =IF(IFERROR(VLOOKUP($A$2, 'Database 2'!$M$3:$AY$233,COLUMN(),0),"")="","",IFERROR(VLOOKUP($A$2, 'Database 2'!$M$3:$AY$233,COLUMN(),0),"")) -> 0.3277310924 | X2: =IF(IFERROR(VLOOKUP($A$2, 'Database 2'!$M$3:$AY$233,COLUMN(),0),"")="","",IFERROR(VLOOKUP($A$2, 'Database 2'!$M$3:$AY$233,COLUMN(),0),"")) -> 0.2882882883 | Y2: =IF(IFERROR(VLOOKUP($A$2, 'Database 2'!$M$3:$AY$233,COLUMN(),0),"")="","",IFERROR(VLOOKUP($A$2, 'Database 2'!$M$3:$AY$233,COLUMN(),0),"")) -> 0.2435233161 | Z2: =IF(IFERROR(VLOOKUP($A$2, 'Database 2'!$M$3:$AY$233,COLUMN(),0),"")="","",IFERROR(VLOOKUP($A$2, 'Database 2'!$M$3:$AY$233,COLUMN(),0),"")) -> 0.1324786325 | AA2: =IF(IFERROR(VLOOKUP($A$2, 'Database 2'!$M$3:$AY$233,COLUMN(),0),"")="","",IFERROR(VLOOKUP($A$2, 'Database 2'!$M$3:$AY$233,COLUMN(),0),"")) -> 0.1082089552 | AB2: =IF(IFERROR(VLOOKUP($A$2, 'Database 2'!$M$3:$AY$233,COLUMN(),0),"")="","",IFERROR(VLOOKUP($A$2, 'Database 2'!$M$3:$AY$233,COLUMN(),0),"")) -> 0.1287878788 | AC2: =IF(IFERROR(VLOOKUP($A$2, 'Database 2'!$M$3:$AY$233,COLUMN(),0),"")="","",IFERROR(VLOOKUP($A$2, 'Database 2'!$M$3:$AY$233,COLUMN(),0),"")) -> 0.1075697211 | AD2: =IF(IFERROR(VLOOKUP($A$2, 'Database 2'!$M$3:$AY$233,COLUMN(),0),"")="","",IFERROR(VLOOKUP($A$2, 'Database 2'!$M$3:$AY$233,COLUMN(),0),"")) -> 0.09012875536 | AE2: =IF(IFERROR(VLOOKUP($A$2, 'Database 2'!$M$3:$AY$233,COLUMN(),0),"")="","",IFERROR(VLOOKUP($A$2, 'Database 2'!$M$3:$AY$233,COLUMN(),0),"")) -> 0.0787037037 | AF2: =IF(IFERROR(VLOOKUP($A$2, 'Database 2'!$M$3:$AY$233,COLUMN(),0),"")="","",IFERROR(VLOOKUP($A$2, 'Database 2'!$M$3:$AY$233,COLUMN(),0),"")) -> 0.09756097561 | AG2: =IF(IFERROR(VLOOKUP($A$2, 'Database 2'!$M$3:$AY$233,COLUMN(),0),"")="","",IFERROR(VLOOKUP($A$2, 'Database 2'!$M$3:$AY$233,COLUMN(),0),"")) -> 0.09638554217 | AH2: =IF(IFERROR(VLOOKUP($A$2, 'Database 2'!$M$3:$AY$233,COLUMN(),0),"")="","",IFERROR(VLOOKUP($A$2, 'Database 2'!$M$3:$AY$233,COLUMN(),0),"")) -> 0.06569343066 | AI2: =IF(IFERROR(VLOOKUP($A$2, 'Database 2'!$M$3:$AY$233,COLUMN(),0),"")="","",IFERROR(VLOOKUP($A$2, 'Database 2'!$M$3:$AY$233,COLUMN(),0),"")) -> 0.07983193277 | AJ2: =IF(IFERROR(VLOOKUP($A$2, 'Database 2'!$M$3:$AY$233,COLUMN(),0),"")="","",IFERROR(VLOOKUP($A$2, 'Database 2'!$M$3:$AY$233,COLUMN(),0),"")) -> 0.07589285714 | AK2: =IF(IFERROR(VLOOKUP($A$2, 'Database 2'!$M$3:$AY$233,COLUMN(),0),"")="","",IFERROR(VLOOKUP($A$2, 'Database 2'!$M$3:$AY$233,COLUMN(),0),"")) ->  | AL2: =IF(IFERROR(VLOOKUP($A$2, 'Database 2'!$M$3:$AY$233,COLUMN(),0),"")="","",IFERROR(VLOOKUP($A$2, 'Database 2'!$M$3:$AY$233,COLUMN(),0),"")) -> 0.06802721088
A3: Iraq | B3: 0.962962963 | C3: 0.9047619048 | D3: 0.8823529412 | E3: 0.8295454545 | F3: 0.7039711191 | G3: 0.7011070111 | H3: 0.7018867925 | I3: 0.656 | J3: 0.6518218623 | K3: 0.5860805861 | L3: 0.631840796 | M3: 0.6866359447 | N3: 0.5927419355 | O3: 0.5081300813 | P3: 0.4837545126 | Q3: 0.4705882353 | R3: 0.4765625 | S3: 0.4253731343 | T3: 0.3295454545 | U3: 0.358974359 | V3: 0.3402489627 | W3: 0.3277310924 | X3: 0.2882882883 | Y3: 0.2435233161 | Z3: 0.1324786325 | AA3: 0.1082089552 | AB3: 0.1287878788 | AC3: 0.1075697211 | AD3: 0.09012875536 | AE3: 0.0787037037 | AF3: 0.09756097561 | AG3: 0.09638554217 | AH3: 0.06569343066 | AI3: 0.07983193277 | AJ3: 0.07589285714 | AL3: 0.06802721088
A4: Months | B4: =A2 -> Iraq
A5: 0 | B5: 0.962962963 | C5: =COUNT(B5:B40) -> 35 | N5: P to AY
A6: 1 | B6: 0.9047619048 | C6: =COUNT(B5:B16) -> 12 | D6: 1st | E6: =IF(IFERROR(VLOOKUP($A$2, 'Database 2'!$M$2:$AY$233,COLUMN(),0),"")="","",IFERROR(VLOOKUP($A$2, 'Database 2'!$M$2:$AY$233,COLUMN(),0),"")) | N6: 2 to 233
A7: 2 | B7: 0.8823529412 | C7: =COUNT(B17:B28) -> 12 | D7: 2nd
A8: 3 | B8: 0.8295454545 | C8: =COUNT(B29:B40) -> 11 | D8: 3nd
A9: 4 | B9: 0.7039711191 | C9: =D9 -> 6 | D9: =COUNT(B5:B10) -> 6 | E9: 0-5
A10: 5 | B10: 0.7011070111 | C10: =D10+C7 -> 18 | D10: =COUNT(B11:B16) -> 6 | E10: 6-23
A11: 6 | B11: 0.7018867925 | N11: =IFERROR(VLOOKUP(Country2, 'Database 2'! $B$1:$W$37,ROW(),0),"")
A12: 7 | B12: 0.656
A13: 8 | B13: 0.6518218623
A14: 9 | B14: 0.5860805861
A15: 10 | B15: 0.631840796
A16: 11 | B16: 0.6866359447
A17: 12 | B17: 0.5927419355
A18: 13 | B18: 0.5081300813
A19: 14 | B19: 0.4837545126
A20: 15 | B20: 0.4705882353
A21: 16 | B21: 0.4765625
A22: 17 | B22: 0.4253731343
A23: 18 | B23: 0.3295454545
A24: 19 | B24: 0.358974359
A25: 20 | B25: 0.3402489627
A26: 21 | B26: 0.3277310924
A27: 22 | B27: 0.2882882883
A28: 23 | B28: 0.2435233161
A29: 24 | B29: 0.1324786325
A30: 25 | B30: 0.1082089552
A31: 26 | B31: 0.1287878788
A32: 27 | B32: 0.1075697211
A33: 28 | B33: 0.09012875536
A34: 29 | B34: 0.0787037037
A35: 30 | B35: 0.09756097561
A36: 31 | B36: 0.09638554217
A37: 32 | B37: 0.06569343066
A38: 33 | B38: 0.07983193277
A39: 34 | B39: 0.07589285714
A40: 35
B41: 0.06802721088

Sheet BF Entry Compute (hidden)
B1: 0 | C1: 1 | D1: 2 | E1: 3 | F1: 4 | G1: 5 | H1: 6 | I1: 7 | J1: 8 | K1: 9 | L1: 10 | M1: 11 | N1: 12 | O1: 13 | P1: 14 | Q1: 15 | R1: 16 | S1: 17 | T1: 18 | U1: 19 | V1: 20 | W1: 21 | X1: 22 | Y1: 23 | Z1: 24 | AA1: 25 | AB1: 26 | AC1: 27 | AD1: 28 | AE1: 29 | AF1: 30 | AG1: 31 | AH1: 32 | AI1: 33 | AJ1: 34 | AK1: 35 | AL1: 36
A2: ='Country Data'!F7 -> Iraq | B2: =IFERROR(VLOOKUP($A$2, 'Database 2'!$H$3:$AS$233,COLUMN(),0),"") ->  | C2: =IFERROR(VLOOKUP($A$2, 'Database 2'!$H$3:$AS$233,COLUMN(),0),"") ->  | D2: =IFERROR(VLOOKUP($A$2, 'Database 2'!$H$3:$AS$233,COLUMN(),0),"") ->  | J2: 6 | L2: 18 | N2: 30 | Q2: =IFERROR(VLOOKUP($A$2, 'Database 2'!$H$3:$AS$233,COLUMN(),0),"") ->  | R2: =IFERROR(VLOOKUP($A$2, 'Database 2'!$H$3:$AS$233,COLUMN(),0),"") ->  | S2: =IFERROR(VLOOKUP($A$2, 'Database 2'!$H$3:$AS$233,COLUMN(),0),"") ->  | T2: =IFERROR(VLOOKUP($A$2, 'Database 2'!$H$3:$AS$233,COLUMN(),0),"") ->  | U2: =IFERROR(VLOOKUP($A$2, 'Database 2'!$H$3:$AS$233,COLUMN(),0),"") ->  | V2: =IFERROR(VLOOKUP($A$2, 'Database 2'!$H$3:$AS$233,COLUMN(),0),"") ->  | W2: =IFERROR(VLOOKUP($A$2, 'Database 2'!$H$3:$AS$233,COLUMN(),0),"") ->  | X2: =IFERROR(VLOOKUP($A$2, 'Database 2'!$H$3:$AS$233,COLUMN(),0),"") ->  | Y2: =IFERROR(VLOOKUP($A$2, 'Database 2'!$H$3:$AS$233,COLUMN(),0),"") ->  | Z2: =IFERROR(VLOOKUP($A$2, 'Database 2'!$H$3:$AS$233,COLUMN(),0),"") ->  | AA2: =IFERROR(VLOOKUP($A$2, 'Database 2'!$H$3:$AS$233,COLUMN(),0),"") ->  | AB2: =IFERROR(VLOOKUP($A$2, 'Database 2'!$H$3:$AS$233,COLUMN(),0),"") ->  | AC2: =IFERROR(VLOOKUP($A$2, 'Database 2'!$H$3:$AS$233,COLUMN(),0),"") ->  | AD2: =IFERROR(VLOOKUP($A$2, 'Database 2'!$H$3:$AS$233,COLUMN(),0),"") ->  | AE2: =IFERROR(VLOOKUP($A$2, 'Database 2'!$H$3:$AS$233,COLUMN(),0),"") ->  | AF2: =IFERROR(VLOOKUP($A$2, 'Database 2'!$H$3:$AS$233,COLUMN(),0),"") ->  | AG2: =IFERROR(VLOOKUP($A$2, 'Database 2'!$H$3:$AS$233,COLUMN(),0),"") ->  | AH2: =IFERROR(VLOOKUP($A$2, 'Database 2'!$H$3:$AS$233,COLUMN(),0),"") ->  | AI2: =IFERROR(VLOOKUP($A$2, 'Database 2'!$H$3:$AS$233,COLUMN(),0),"") ->  | AJ2: =IFERROR(VLOOKUP($A$2, 'Database 2'!$H$3:$AS$233,COLUMN(),0),"") ->  | AK2: =IFERROR(VLOOKUP($A$2, 'Database 2'!$H$3:$AS$233,COLUMN(),0),"") ->  | AL2: =IFERROR(VLOOKUP($A$2, 'Database 2'!$H$3:$AS$233,COLUMN(),0),"") -> 
A3: Bangladesh | B3: 0.9825174825 | C3: 0.9932885906 | D3: 0.9886363636 | E3: 0.9851632047 | F3: 0.991643454 | G3: 0.9778481013 | H3: 0.9783950617 | I3: 0.9742857143 | J3: 0.9785276074 | K3: 0.9676375405 | L3: 0.9712460064 | M3: 0.9477124183 | N3: 0.9642857143 | O3: 0.9553349876 | P3: 0.9543010753 | Q3: 0.9731903485 | R3: 0.9543010753 | S3: 0.9569230769 | T3: 0.9316770186 | U3: 0.9140127389 | V3: 0.9182156134 | W3: 0.902173913 | X3: 0.8817567568 | Y3: 0.8345323741 | Z3: 0.7686170213 | AA3: 0.7306666667 | AB3: 0.6837837838 | AC3: 0.66 | AD3: 0.6583850932 | AE3: 0.6546546547 | AF3: 0.5043731778 | AG3: 0.5653495441 | AH3: 0.5769230769 | AI3: 0.5327102804 | AJ3: 0.4802431611 | AK3: 0.4249291785 | AL3: 0.312849162
A4: Months | B4: =A2 -> Iraq | G4: Months | H4: Final | I4: Semi-Final | K4: Linest Computation
A5: 0 | B5: 0.366 | D5: 0 | E5: 0.366 | F5: Row No | G5: 0 | H5: 0.366 | I5: =$K$5*(G5^3)+$L$5*(G5^2)+($M$5*G5)+$N$5 -> 0.330574493 | K5: =LINEST(E5:E19,D5:D19^{1,2,3}) -> 7.945745468e-06 | L5: -0.001168688182 | M5: 0.02161140054 | N5: 0.330574493
A6: 1 | B6: 0.366 | D6: 1 | E6: 0.366 | F6: Last Entry = | G6: 1 | H6: 0.366 | I6: =$K$5*(G6^3)+$L$5*(G6^2)+($M$5*G6)+$N$5 -> 0.3510251511
A7: 2 | B7: 0.366 | D7: 2 | E7: 0.366 | F7: =LOOKUP(2,1/(D:D<>""),ROW(D:D)) -> 19 | G7: 2 | H7: 0.366 | I7: 0.3691861073
A8: 3 | B8: 0.366 | D8: 3 | E8: 0.366 | F8: No w Values | G8: 3 | H8: 0.366 | I8: 0.3851050361
A9: 4 | B9: 0.366 | D9: 4 | E9: 0.366 | F9: =F7-5 +1 -> 15 | G9: 4 | H9: 0.366 | I9: 0.398829612
A10: 5 | B10: 0.366 | D10: 5 | E10: 0.366 | G10: 5 | H10: 0.366 | I10: 0.4104075093
A11: 6 | D11: 12 | E11: 0.454 | G11: 6 | H11: 0.4198864027 | I11: 0.4198864027
A12: 7 | D12: 13 | E12: 0.454 | G12: 7 | H12: 0.4273139665 | I12: 0.4273139665
A13: 8 | D13: 14 | E13: 0.454 | G13: 8 | H13: 0.4327378753 | I13: 0.4327378753
A14: 9 | D14: 15 | E14: 0.454 | G14: 9 | H14: 0.4362058035 | I14: 0.4362058035
A15: 10 | D15: 20 | E15: 0.318 | G15: 10 | H15: 0.4377654256 | I15: 0.4377654256
A16: 11 | D16: 21 | E16: 0.318 | G16: 11 | H16: 0.4374644161 | I16: 0.4374644161
A17: 12 | B17: 0.454 | D17: 22 | E17: 0.318 | G17: 12 | H17: 0.454 | I17: 0.4353504494
A18: 13 | B18: 0.454 | D18: 23 | E18: 0.318 | G18: 13 | H18: 0.454 | I18: 0.4314712
A19: 14 | B19: 0.454 | D19: 35 | E19: 0.001 | G19: 14 | H19: 0.454 | I19: 0.4258743423
A20: 15 | B20: 0.454 | G20: 15 | H20: 0.454 | I20: 0.418607551
A21: 16 | G21: 16 | H21: 0.4097185003 | I21: 0.4097185003 | J21: "=LINEST("E5:E" & Lastrow & ",D5:D" & Lastrow & "^{1,2,3}")"
A22: 17 | G22: 17 | H22: 0.3992548649 | I22: 0.3992548649
A23: 18 | G23: 18 | H23: 0.3872643191 | I23: 0.3872643191
A24: 19 | G24: 19 | H24: 0.3737945375 | I24: 0.3737945375
A25: 20 | B25: 0.318 | G25: 20 | H25: 0.318 | I25: 0.3588931945
A26: 21 | B26: 0.318 | G26: 21 | H26: 0.318 | I26: 0.3426079646
A27: 22 | B27: 0.318 | G27: 22 | H27: 0.318 | I27: 0.3249865222
A28: 23 | B28: 0.318 | G28: 23 | H28: 0.318 | I28: 0.3060765419
A29: 24 | G29: 24 | H29: 0.2859256981 | I29: 0.2859256981
A30: 25 | G30: 25 | H30: 0.2645816653 | I30: 0.2645816653
A31: 26 | G31: 26 | H31: 0.242092118 | I31: 0.242092118
A32: 27 | G32: 27 | H32: 0.2185047305 | I32: 0.2185047305
A33: 28 | G33: 28 | H33: 0.1938671775 | I33: 0.1938671775
A34: 29 | G34: 29 | H34: 0.1682271333 | I34: 0.1682271333
A35: 30 | G35: 30 | H35: 0.1416322725 | I35: 0.1416322725
A36: 31 | G36: 31 | H36: 0.1141302695 | I36: 0.1141302695
A37: 32 | G37: 32 | H37: 0.08576879882 | I37: 0.08576879882
A38: 33 | G38: 33 | H38: 0.05659553488 | I38: 0.05659553488
A39: 34 | G39: 34 | H39: 0.02665815218 | I39: 0.02665815218
A40: 35 | B40: 0.001 | G40: 35 | H40: 0.001 | I40: -0.003995674806

Sheet Calibration Matrix (hidden)
B2: Country Name: | D2: ='Country Data'!F7 -> Iraq | F2: National Currency: | H2: =_xlfn.CONCAT(Currency) -> Iraqi Dinar | J2: Year: | K2: ='Country Data'!G17 -> 2020
G3: Rate to US$ | H3: =CRate -> 1450 | J3: Liverbirths: | K3: ='Country Data'!LiveBirth -> 1037000
B4: INPUT VALUES | P4: CALCULATED VALUES (Year, census) | AG4: OPTIONAL
B5: Age | C5: Percent of | D5: Percent of | E5: Percent of | F5: Potential | G5: Average no. of | H5: No. of infants | I5: No. of infants | J5: No. of infants | K5: No. of infants | L5: Liters of | M5: Liters of | N5: Estimated liters | O5: Estimated liters | P5: Annual production of | Q5: Annual production of | R5: Total Actual Annual production of | S5: Average annual production | T5: Biologically feasible potential production of | U5: Lost BM [actual-biologically feasible] | V5: Lost production value | W5: Price per liter of breastmilk | X5: Value actual production of breastmilk | Y5: Value Biologically feasible breastmilk | Z5: Loss value of breastmilk | AA5: Value actual production of breastmilk | AB5: Value Biologically feasible breastmilk | AC5: Loss value of breastmilk | AD5: TOTAL 0-11 MONTHS | AG5: Cost of additional diet for actual breastfeeding mother | AH5: Total actual annual cost | AI5: Cost of additional diet for actual breastfeeding mother | AJ5: Total actual annual cost
B6: <months> | C6: infants | D6: infants | E6: infants | F6: infants | G6: infants living | H6: breastfed fully/exclusively | I6: =_xlfn.CONCAT("breastfed (partially/any breastfeeding) ") -> breastfed (partially/any breastfeeding) | J6: not breastfeeding | K6: breastfed | L6: breastmilk | M6: breastmilk | N6: fully pr. month pr. | O6: partially pr. month pr. | P6: breastmilk (fully) | Q6: breastmilk (partial) | R6: breastmilk | S6: of breastmilk per child | T6: breastmilk | U6: breastmilk | V6: % of potential breastmilk production | W6: ($US) | X6: in million $US | Y6: in million $US | Z6: in million $US (2018) | AA6: =_xlfn.CONCAT("in million) ",'Country Data'!Currency,"") -> in million) Iraqi Dinar | AB6: =_xlfn.CONCAT("in million) ",'Country Data'!Currency,"") -> in million) Iraqi Dinar | AC6: =_xlfn.CONCAT("in million) ",'Country Data'!Currency,"") -> in million) Iraqi Dinar | AG6: in $USD | AH6: in million $USD | AI6: =_xlfn.CONCAT("in million) ",'Country Data'!Currency,"") -> in million) Iraqi Dinar | AJ6: =_xlfn.CONCAT("in million) ",'Country Data'!Currency,"") -> in million) Iraqi Dinar
C7: breastfed (fully/exclusive)-YEAR | D7: =_xlfn.CONCAT("breastfed (partially/any breastfeeding) ",Source," ", 'Country Data'!BFYear) -> breastfed (partially/any breastfeeding) MICS 2018 | E7: =_xlfn.CONCAT("Not breastfeeding ",Source," ", 'Country Data'!BFYear) -> Not breastfeeding MICS 2018 | F7: breastfeeding (optimal) | G7: each month a) | H7: each month a) | I7: each month a) | J7: each month a) | K7: potentially each month | L7: fully per infant pr. day b) | M7: partially per infant pr. day b) | N7: infant c) [actual] | O7: infant c) [actual] | P7: Volume (million liters) | Q7: Volume (million liters) | R7: Volume (million liters) | S7: litres/child 0-35 months | T7: Volume (million liters) | U7: Volume (million liters)
B8: 0 | D8: =IF('BF computation'!B5="",0, 'BF computation'!B5) -> 0.962962963 | E8: =1-D8 -> 0.03703703704 | F8: 0.98 | G8: =live -> 1037000 | H8: =G8*C8 -> 0 | I8: =G8*D8 -> 998592.5926 | J8: =I8*E8 -> 36984.91084 | K8: =G8*F8 -> 1016260 | L8: 0.6773255814 | M8: 0.5920542636 | N8: =L8*30 -> 20.31976744 | O8: =M8*30 -> 17.76162791 | P8: =N8*H8/1000000 -> 0 | Q8: =O8*I8/1000000 -> 17.73663006 | R8: =SUM(P8:Q8) -> 17.73663006 | S8: =R8/(G8*3)*1000000 -> 5.701263279 | T8: =IF('BF computation'!B5="", 0, K8*O8/1000000) -> 18.05043198 | U8: =MAX(0,T8-R8) -> 0.3138019165 | V8: =U8/T8 -> 0.01738473167 | W8: =BMPrice -> 100 | X8: =W8*R8 -> 1773.663006 | Y8: =W8*T8 -> 1805.043198 | Z8: =MAX(0,Y8-X8) -> 31.38019165 | AA8: =X8*CRate -> 2571811.359 | AB8: =Y8*CRate -> 2617312.637 | AC8: =MAX(0,AB8-AA8) -> 45501.27789 | AG8: =(450/2250)*4.57*30 -> 27.42 | AH8: =((H8+I8)*AG8)/1000000 -> 27.38140889 | AI8: =AH8*CRate -> 39703.04289 | AJ8: =AI8*(H8+I8)/1000000 -> 39647.16453
B9: =B8+1 -> 1 | D9: =IF('BF computation'!B6="",0, 'BF computation'!B6) -> 0.9047619048 | E9: =1-D9 -> 0.09523809524 | F9: 0.98 | G9: 1037000 | H9: =G9*C9 -> 0 | I9: =G9*D9 -> 938238.0952 | J9: 89356.00907 | K9: 1016260 | L9: 0.7083333333 | M9: 0.6753875969 | N9: 21.25 | O9: 20.26162791 | P9: =N9*H9/1000000 -> 0 | Q9: 19.01023117 | R9: =SUM(P9:Q9) -> 19.01023117 | S9: =R9/(G9*3)*1000000 -> 6.110649686 | T9: =IF('BF computation'!B6="", 0, K9*O9/1000000) -> 20.59108198 | U9: =MAX(0,T9-R9) -> 1.580850803 | V9: =U9/T9 -> 0.07677356657 | W9: 100 | X9: =W9*R9 -> 1901.023117 | Y9: =W9*T9 -> 2059.108198 | Z9: =MAX(0,Y9-X9) -> 158.0850803 | AA9: =X9*CRate -> 2756483.52 | AB9: =Y9*CRate -> 2985706.887 | AC9: =MAX(0,AB9-AA9) -> 229223.3664 | AG9: 27.42 | AH9: =((H9+I9)*AG9)/1000000 -> 25.72648857 | AI9: =AH9*CRate -> 37303.40843 | AJ9: =AI9*(H9+I9)/1000000 -> 34999.47887
B10: =B9+1 -> 2 | D10: =IF('BF computation'!B7="",0, 'BF computation'!B7) -> 0.8823529412 | E10: 0.1176470588 | F10: 0.98 | G10: 1037000 | H10: 0 | I10: 915000 | J10: 107647.0588 | K10: 1016260 | L10: 0.7277131783 | M10: 0.7073643411 | N10: 21.83139535 | O10: 21.22093023 | P10: 0 | Q10: 19.41715116 | R10: 19.41715116 | S10: =R10/(G10*3)*1000000 -> 6.241450068 | T10: =IF('BF computation'!B7="", 0, K10*O10/1000000) -> 21.56598256 | U10: 2.148831395 | V10: 0.09963985594 | W10: 100 | X10: 1941.715116 | Y10: 2156.598256 | Z10: 214.8831395 | AA10: 2815486.919 | AB10: 3127067.471 | AC10: 311580.5523 | AG10: 27.42 | AH10: =(H10+I10)*AG10/1000000 -> 25.0893 | AI10: 36379.485 | AJ10: =AI10*(H10+I10)/1000000 -> 33287.22878
B11: 3 | D11: =IF('BF computation'!B8="",0, 'BF computation'!B8) -> 0.8295454545 | E11: 0.1704545455 | F11: 0.98 | G11: 1037000 | H11: 0 | I11: 860238.6364 | J11: 146631.5857 | K11: 1016260 | L11: 0.7558139535 | M11: 0.6821705426 | N11: 22.6744186 | O11: 20.46511628 | P11: 0 | Q11: 17.60488372 | R11: 17.60488372 | S11: 5.658914729 | T11: =IF('BF computation'!B8="", 0, K11*O11/1000000) -> 20.79787907 | U11: 3.192995349 | V11: 0.1535250464 | W11: 100 | X11: 1760.488372 | Y11: 2079.787907 | Z11: 319.2995349 | AA11: 2552708.14 | AB11: 3015692.465 | AC11: 462984.3256 | AG11: 27.42 | AH11: 23.58774341 | AI11: 34202.22794 | AJ11: =AI11*(H11+I11)/1000000 -> 29422.07793
B12: 4 | D12: =IF('BF computation'!B9="",0, 'BF computation'!B9) -> 0.7039711191 | E12: 0.2960288809 | F12: 0.98 | G12: 1037000 | H12: 0 | I12: 730018.0505 | J12: 216106.4265 | K12: 1016260 | L12: 0.7713178295 | M12: 0.6879844961 | N12: 23.13953488 | O12: 20.63953488 | P12: 0 | Q12: 15.06723302 | R12: 15.06723302 | S12: 4.843212157 | T12: =IF('BF computation'!B9="", 0, K12*O12/1000000) -> 20.97513372 | U12: 5.907900701 | V12: 0.2816621233 | W12: 100 | X12: 1506.723302 | Y12: 2097.513372 | Z12: 590.7900701 | AA12: 2184748.788 | AB12: 3041394.39 | AC12: 856645.6016 | AG12: 27.42 | AH12: 20.01709495 | AI12: 29024.78767 | AJ12: 21188.61891
B13: 5 | D13: =IF('BF computation'!B10="",0, 'BF computation'!B10) -> 0.7011070111 | E13: 0.2988929889 | F13: 0.98 | G13: 1037000 | H13: 0 | I13: 727047.9705 | J13: 217309.541 | K13: 1016260 | L13: 0.8275193798 | M13: 0.5930232558 | N13: 24.8255814 | O13: 17.79069767 | P13: 0 | Q13: 12.93469064 | R13: 12.93469064 | S13: 4.157727624 | T13: =IF('BF computation'!B10="", 0, K13*O13/1000000) -> 18.07997442 | U13: 5.145283781 | V13: 0.2845846826 | W13: 100 | X13: 1293.469064 | Y13: 1807.997442 | Z13: 514.5283781 | AA13: 1875530.142 | AB13: 2621596.291 | AC13: 746066.1482 | AG13: 27.42 | AH13: 19.93565535 | AI13: 28906.70026 | AJ13: 21016.55776
B14: 6 | D14: =IF('BF computation'!B11="",0, 'BF computation'!B11) -> 0.7018867925 | E14: 0.2981132075 | F14: 0.98 | G14: 1037000 | H14: 0 | I14: 727856.6038 | J14: 216983.6668 | K14: 1016260 | L14: 0.8401162791 | M14: 0.5513565891 | N14: 25.20348837 | O14: 16.54069767 | P14: 0 | Q14: 12.03925603 | R14: 12.03925603 | S14: 3.869899079 | T14: =IF('BF computation'!B11="", 0, K14*O14/1000000) -> 16.80964942 | U14: 4.770393385 | V14: 0.2837889873 | W14: 100 | X14: 1203.925603 | Y14: 1680.964942 | Z14: 477.0393385 | AA14: 1745692.125 | AB14: 2437399.166 | AC14: 691707.0409 | AG14: 27.42 | AH14: 19.95782808 | AI14: 28938.85071 | AJ14: 21063.33359
B15: 7 | D15: =IF('BF computation'!B12="",0, 'BF computation'!B12) -> 0.656 | E15: 0.344 | F15: 0.98 | G15: 1037000 | H15: 0 | I15: 680272 | J15: 234013.568 | K15: 1016260 | L15: 0.7897286822 | M15: 0.4040697674 | N15: 23.69186047 | O15: 12.12209302 | P15: 0 | Q15: 8.246320465 | R15: 8.246320465 | S15: 2.650697674 | T15: =IF('BF computation'!B12="", 0, K15*O15/1000000) -> 12.31919826 | U15: 4.072877791 | V15: 0.3306122449 | W15: 100 | X15: 824.6320465 | Y15: 1231.919826 | Z15: 407.2877791 | AA15: 1195716.467 | AB15: 1786283.747 | AC15: 590567.2797 | AG15: 27.42 | AH15: 18.65305824 | AI15: 27046.93445 | AJ15: 18399.27219
B16: 8 | D16: =IF('BF computation'!B13="",0, 'BF computation'!B13) -> 0.6518218623 | E16: 0.3481781377 | F16: 0.98 | G16: 1037000 | H16: 0 | I16: 675939.2713 | J16: 235347.2766 | K16: 1016260 | L16: 0.8624031008 | M16: 0.4815891473 | N16: 25.87209302 | O16: 14.44767442 | P16: 0 | Q16: 9.765750518 | R16: 9.765750518 | S16: 3.139103349 | T16: =IF('BF computation'!B13="", 0, K16*O16/1000000) -> 14.6825936 | U16: 4.916843087 | V16: 0.3348756507 | W16: 100 | X16: 976.5750518 | Y16: 1468.25936 | Z16: 491.6843087 | AA16: 1416033.825 | AB16: 2128976.073 | AC16: 712942.2476 | AG16: 27.42 | AH16: 18.53425482 | AI16: 26874.66949 | AJ16: 18165.64451
B17: 9 | D17: =IF('BF computation'!B14="",0, 'BF computation'!B14) -> 0.5860805861 | E17: 0.4139194139 | F17: 0.98 | G17: 1037000 | H17: 0 | I17: 607765.5678 | J17: 251565.9676 | K17: 1016260 | M17: 0.6695736434 | N17: 0 | O17: 20.0872093 | P17: 0 | Q17: 12.20831417 | R17: 12.20831417 | S17: 3.924241134 | T17: =IF('BF computation'!B14="", 0, K17*O17/1000000) -> 20.41382733 | U17: 8.205513159 | V17: 0.4019585856 | W17: 100 | X17: 1220.831417 | Y17: 2041.382733 | Z17: 820.5513159 | AA17: 1770205.554 | AB17: 2960004.962 | AC17: 1189799.408 | AG17: 27.42 | AH17: 16.66493187 | AI17: 24164.15121 | AJ17: 14686.13908
B18: 10 | D18: =IF('BF computation'!B15="",0, 'BF computation'!B15) -> 0.631840796 | E18: 0.368159204 | F18: 0.98 | G18: 1037000 | H18: 0 | I18: 655218.9055 | J18: 241224.8707 | K18: 1016260 | L18: 0.8817829457 | M18: 0.5 | N18: 26.45348837 | O18: 15 | P18: 0 | Q18: 9.828283582 | R18: 9.828283582 | S18: 3.15920398 | T18: =IF('BF computation'!B15="", 0, K18*O18/1000000) -> 15.2439 | U18: 5.415616418 | V18: 0.3552644939 | W18: 100 | X18: 982.8283582 | Y18: 1524.39 | Z18: 541.5616418 | AA18: 1425101.119 | AB18: 2210365.5 | AC18: 785264.3806 | AG18: 27.42 | AH18: 17.96610239 | AI18: 26050.84846 | AJ18: 17069.00842
B19: 11 | D19: =IF('BF computation'!B16="",0, 'BF computation'!B16) -> 0.6866359447 | E19: 0.3133640553 | F19: 0.98 | G19: 1037000 | H19: 0 | I19: 712041.4747 | J19: 223128.204 | K19: 1016260 | M19: 0.4815891473 | N19: 0 | O19: 14.44767442 | P19: 0 | Q19: 10.2873434 | R19: 10.2873434 | S19: 3.306764191 | T19: =IF('BF computation'!B16="", 0, K19*O19/1000000) -> 14.6825936 | U19: 4.395250206 | V19: 0.2993510768 | W19: 100 | X19: 1028.73434 | Y19: 1468.25936 | Z19: 439.5250206 | AA19: 1491664.793 | AB19: 2128976.073 | AC19: 637311.2799 | AG19: 27.42 | AH19: 19.52417724 | AI19: 28310.05699 | AJ19: 20157.93473
B20: 12 | D20: =IF('BF computation'!B17="",0, 'BF computation'!B17) -> 0.5927419355 | E20: 0.4072580645 | F20: 0.98 | G20: 1037000 | H20: 0 | I20: 614673.3871 | J20: 250330.6939 | K20: 1016260 | M20: 0.372 | N20: 0 | O20: 11.16 | P20: 0 | Q20: 6.859755 | R20: =SUM(P20:Q20) -> 6.859755 | S20: 2.205 | T20: =IF('BF computation'!B17="", 0, K20*O20/1000000) -> 11.3414616 | U20: 4.4817066 | V20: 0.3951612903 | W20: 100 | X20: 685.9755 | Y20: 1134.14616 | Z20: 448.17066 | AA20: 994664.475 | AB20: 1644511.932 | AC20: 649847.457 | AG20: 27.42 | AH20: 16.85434427 | AI20: 24438.7992 | AJ20: 15021.87948
B21: 13 | D21: =IF('BF computation'!B18="",0, 'BF computation'!B18) -> 0.5081300813 | E21: 0.4918699187 | F21: 0.98 | G21: 1037000 | H21: 0 | I21: 526930.8943 | J21: 259181.4561 | K21: 1016260 | M21: 0.372 | N21: 0 | O21: 11.16 | P21: 0 | Q21: 5.88054878 | R21: =SUM(P21:Q21) -> 5.88054878 | S21: 1.890243902 | T21: =IF('BF computation'!B18="", 0, K21*O21/1000000) -> 11.3414616 | U21: 5.46091282 | V21: 0.481499917 | W21: 100 | X21: 588.054878 | Y21: 1134.14616 | Z21: 546.091282 | AA21: 852679.5732 | AB21: 1644511.932 | AC21: 791832.3588 | AG21: 27.42 | AH21: 14.44844512 | AI21: 20950.24543 | AJ21: 11039.33156
B22: 14 | D22: =IF('BF computation'!B19="",0, 'BF computation'!B19) -> 0.4837545126 | E22: 0.5162454874 | F22: 0.98 | G22: 1037000 | H22: 0 | I22: 501653.4296 | J22: 258976.3193 | K22: 1016260 | M22: 0.372 | N22: 0 | O22: 11.16 | P22: 0 | Q22: 5.598452274 | R22: 5.598452274 | S22: 1.799566787 | T22: =IF('BF computation'!B19="", 0, K22*O22/1000000) -> 11.3414616 | U22: 5.743009326 | V22: 0.5063729463 | W22: 100 | X22: 559.8452274 | Y22: 1134.14616 | Z22: 574.3009326 | AA22: 811775.5798 | AB22: 1644511.932 | AC22: 832736.3522 | AG22: 27.42 | AH22: 13.75533704 | AI22: 19945.23871 | AJ22: 10005.5974
B23: 15 | D23: =IF('BF computation'!B20="",0, 'BF computation'!B20) -> 0.4705882353 | E23: 0.5294117647 | F23: 0.98 | G23: 1037000 | H23: 0 | I23: 488000 | J23: 258352.9412 | K23: 1016260 | M23: 0.372 | N23: 0 | O23: 11.16 | P23: 0 | Q23: 5.44608 | R23: 5.44608 | S23: 1.750588235 | T23: =IF('BF computation'!B20="", 0, K23*O23/1000000) -> 11.3414616 | U23: 5.8953816 | V23: 0.5198079232 | W23: 100 | X23: 544.608 | Y23: 1134.14616 | Z23: 589.53816 | AA23: 789681.6 | AB23: 1644511.932 | AC23: 854830.332 | AG23: 27.42 | AH23: 13.38096 | AI23: 19402.392 | AJ23: 9468.367296
B24: 16 | D24: =IF('BF computation'!B21="",0, 'BF computation'!B21) -> 0.4765625 | E24: 0.5234375 | F24: 0.98 | G24: 1037000 | H24: 0 | I24: 494195.3125 | J24: 258680.3589 | K24: 1016260 | M24: 0.372 | N24: 0 | O24: 11.16 | P24: 0 | Q24: 5.515219688 | R24: 5.515219688 | S24: 1.7728125 | T24: =IF('BF computation'!B21="", 0, K24*O24/1000000) -> 11.3414616 | U24: 5.826241912 | V24: 0.5137117347 | W24: 100 | X24: 551.5219688 | Y24: 1134.14616 | Z24: 582.6241912 | AA24: 799706.8547 | AB24: 1644511.932 | AC24: 844805.0773 | AG24: 27.42 | AH24: 13.55083547 | AI24: 19648.71143 | AJ24: 9710.301085
B25: 17 | D25: =IF('BF computation'!B22="",0, 'BF computation'!B22) -> 0.4253731343 | E25: 0.5746268657 | F25: 0.98 | G25: 1037000 | H25: 0 | I25: 441111.9403 | J25: 253474.7717 | K25: 1016260 | M25: 0.372 | N25: 0 | O25: 11.16 | P25: 0 | Q25: 4.922809254 | R25: 4.922809254 | S25: 1.58238806 | T25: =IF('BF computation'!B22="", 0, K25*O25/1000000) -> 11.3414616 | U25: 6.418652346 | V25: 0.5659457813 | W25: 100 | X25: 492.2809254 | Y25: 1134.14616 | Z25: 641.8652346 | AA25: 713807.3418 | AB25: 1644511.932 | AC25: 930704.5902 | AG25: 27.42 | AH25: 12.0952894 | AI25: 17538.16963 | AJ25: 7736.296037
B26: 18 | D26: =IF('BF computation'!B23="",0, 'BF computation'!B23) -> 0.3295454545 | E26: 0.6704545455 | F26: 0.98 | G26: 1037000 | H26: 0 | I26: 341738.6364 | J26: 229120.2221 | K26: 1016260 | M26: 0.372 | N26: 0 | O26: 11.16 | P26: 0 | Q26: 3.813803182 | R26: 3.813803182 | S26: 1.225909091 | T26: =IF('BF computation'!B23="", 0, K26*O26/1000000) -> 11.3414616 | U26: 7.527658418 | V26: 0.663729128 | W26: 100 | X26: 381.3803182 | Y26: 1134.14616 | Z26: 752.7658418 | AA26: 553001.4614 | AB26: 1644511.932 | AC26: 1091510.471 | AG26: 27.42 | AH26: 9.370473409 | AI26: 13587.18644 | AJ26: 4643.266567
B27: 19 | D27: =IF('BF computation'!B24="",0, 'BF computation'!B24) -> 0.358974359 | E27: 0.641025641 | F27: 0.98 | G27: 1037000 | H27: 0 | I27: 372256.4103 | J27: 238625.904 | K27: 1016260 | M27: 0.372 | N27: 0 | O27: 11.16 | P27: 0 | Q27: 4.154381538 | R27: 4.154381538 | S27: 1.335384615 | T27: =IF('BF computation'!B24="", 0, K27*O27/1000000) -> 11.3414616 | U27: 7.187080062 | V27: 0.6336996337 | W27: 100 | X27: 415.4381538 | Y27: 1134.14616 | Z27: 718.7080062 | AA27: 602385.3231 | AB27: 1644511.932 | AC27: 1042126.609 | AG27: 27.42 | AH27: 10.20727077 | AI27: 14800.54262 | AJ27: 5509.596864
B28: 20 | D28: =IF('BF computation'!B25="",0, 'BF computation'!B25) -> 0.3402489627 | E28: 0.6597510373 | F28: 0.98 | G28: 1037000 | H28: 0 | I28: 352838.1743 | J28: 232785.3515 | K28: 1016260 | M28: 0.372 | N28: 0 | O28: 11.16 | P28: 0 | Q28: 3.937674025 | R28: 3.937674025 | S28: 1.265726141 | T28: =IF('BF computation'!B25="", 0, K28*O28/1000000) -> 11.3414616 | U28: 7.403787575 | V28: 0.652807181 | W28: 100 | X28: 393.7674025 | Y28: 1134.14616 | Z28: 740.3787575 | AA28: 570962.7336 | AB28: 1644511.932 | AC28: 1073549.198 | AG28: 27.42 | AH28: 9.674822739 | AI28: 14028.49297 | AJ28: 4949.787848
B29: 21 | D29: =IF('BF computation'!B26="",0, 'BF computation'!B26) -> 0.3277310924 | E29: 0.6722689076 | F29: 0.98 | G29: 1037000 | H29: 0 | I29: 339857.1429 | J29: 228475.3902 | K29: 1016260 | M29: 0.372 | N29: 0 | O29: 11.16 | P29: 0 | Q29: 3.792805714 | R29: 3.792805714 | S29: 1.219159664 | T29: =IF('BF computation'!B26="", 0, K29*O29/1000000) -> 11.3414616 | U29: 7.548655886 | V29: 0.6655805179 | W29: 100 | X29: 379.2805714 | Y29: 1134.14616 | Z29: 754.8655886 | AA29: 549956.8286 | AB29: 1644511.932 | AC29: 1094555.103 | AG29: 27.42 | AH29: 9.318882857 | AI29: 13512.38014 | AJ29: 4592.278909
B30: 22 | D30: =IF('BF computation'!B27="",0, 'BF computation'!B27) -> 0.2882882883 | E30: 0.7117117117 | F30: 0.98 | G30: 1037000 | H30: 0 | I30: 298954.955 | J30: 212769.7427 | K30: 1016260 | M30: 0.372 | N30: 0 | O30: 11.16 | P30: 0 | Q30: 3.336337297 | R30: 3.336337297 | S30: 1.072432432 | T30: =IF('BF computation'!B27="", 0, K30*O30/1000000) -> 11.3414616 | U30: 8.005124303 | V30: 0.7058282773 | W30: 100 | X30: 333.6337297 | Y30: 1134.14616 | Z30: 800.5124303 | AA30: 483768.9081 | AB30: 1644511.932 | AC30: 1160743.024 | AG30: 27.42 | AH30: 8.197344865 | AI30: 11886.15005 | AJ30: 3553.423454
B31: 23 | D31: =IF('BF computation'!B28="",0, 'BF computation'!B28) -> 0.2435233161 | E31: 0.7564766839 | F31: 0.98 | G31: 1037000 | H31: 0 | I31: =G31*D31 -> 252533.6788 | J31: 191035.8399 | K31: 1016260 | M31: 0.372 | N31: 0 | O31: 11.16 | P31: 0 | Q31: 2.818275855 | R31: 2.818275855 | S31: 0.9059067358 | T31: =IF('BF computation'!B28="", 0, K31*O31/1000000) -> 11.3414616 | U31: 8.523185745 | V31: 0.7515068203 | W31: 100 | X31: 281.8275855 | Y31: 1134.14616 | Z31: 852.3185745 | AA31: 408649.999 | AB31: 1644511.932 | AC31: 1235861.933 | AG31: 27.42 | AH31: 6.924473472 | AI31: 10040.48653 | AJ31: 2535.561001
B32: 24 | D32: =IF('BF computation'!B29="",0, 'BF computation'!B29) -> 0.1324786325 | E32: 0.8675213675 | F32: 0.98 | G32: 1037000 | H32: 0 | I32: 137380.3419 | J32: 119180.3821 | K32: 1016260 | M32: 0.24 | N32: 0 | O32: 7.2 | P32: 0 | Q32: 0.9891384615 | R32: 0.9891384615 | S32: 0.3179487179 | T32: =IF('BF computation'!B29="", 0, K32*O32/1000000) -> 7.317072 | U32: 6.327933538 | V32: 0.864817722 | W32: 100 | X32: 98.91384615 | Y32: 731.7072 | Z32: 632.7933538 | AA32: 143425.0769 | AB32: 1060975.44 | AC32: 917550.3631 | AG32: 27.42 | AH32: 3.766968974 | AI32: 5462.105013 | AJ32: 750.385854
B33: 25 | D33: =IF('BF computation'!B30="",0, 'BF computation'!B30) -> 0.1082089552 | E33: 0.8917910448 | F33: 0.98 | G33: 1037000 | H33: =G33*C33 -> 0 | I33: 112212.6866 | J33: 100070.269 | K33: 1016260 | M33: 0.24 | N33: 0 | O33: 7.2 | P33: 0 | Q33: 0.8079313433 | R33: 0.8079313433 | S33: 0.2597014925 | T33: =IF('BF computation'!B30="", 0, K33*O33/1000000) -> 7.317072 | U33: 6.509140657 | V33: 0.8895826988 | W33: 100 | X33: 80.79313433 | Y33: 731.7072 | Z33: 650.9140657 | AA33: 117150.0448 | AB33: 1060975.44 | AC33: 943825.3952 | AG33: 27.42 | AH33: 3.076871866 | AI33: 4461.464205 | AJ33: 500.6328845
B34: 26 | D34: =IF('BF computation'!B31="",0, 'BF computation'!B31) -> 0.1287878788 | E34: 0.8712121212 | F34: 0.98 | G34: 1037000 | H34: 0 | I34: 133553.0303 | J34: 116353.0188 | K34: 1016260 | M34: 0.24 | N34: 0 | O34: 7.2 | P34: 0 | Q34: 0.9615818182 | R34: 0.9615818182 | S34: 0.3090909091 | T34: =IF('BF computation'!B31="", 0, K34*O34/1000000) -> 7.317072 | U34: 6.355490182 | V34: 0.8685837972 | W34: 100 | X34: 96.15818182 | Y34: 731.7072 | Z34: 635.5490182 | AA34: 139429.3636 | AB34: 1060975.44 | AC34: 921546.0764 | AG34: 27.42 | AH34: 3.662024091 | AI34: 5309.934932 | AJ34: 709.1579009
B35: 27 | D35: =IF('BF computation'!B32="",0, 'BF computation'!B32) -> 0.1075697211 | E35: 0.8924302789 | F35: 0.98 | G35: 1037000 | H35: 0 | I35: 111549.8008 | J35: 99550.41983 | K35: 1016260 | M35: 0.24 | N35: 0 | O35: 7.2 | P35: 0 | Q35: 0.8031585657 | R35: 0.8031585657 | S35: 0.2581673307 | T35: =IF('BF computation'!B32="", 0, K35*O35/1000000) -> 7.317072 | U35: 6.513913434 | V35: 0.8902349785 | W35: 100 | X35: 80.31585657 | Y35: 731.7072 | Z35: 651.3913434 | AA35: 116457.992 | AB35: 1060975.44 | AC35: 944517.448 | AG35: 27.42 | AH35: 3.058695538 | AI35: 4435.10853 | AJ35: 494.735473
B36: 28 | D36: =IF('BF computation'!B33="",0, 'BF computation'!B33) -> 0.09012875536 | E36: 0.9098712446 | F36: 0.98 | G36: 1037000 | H36: 0 | I36: 93463.51931 | J36: 85039.76865 | K36: 1016260 | M36: 0.24 | N36: 0 | O36: 7.2 | P36: 0 | Q36: 0.6729373391 | R36: 0.6729373391 | S36: 0.2163090129 | T36: =IF('BF computation'!B33="", 0, K36*O36/1000000) -> 7.317072 | U36: 6.644134661 | V36: 0.9080318823 | W36: 100 | X36: 67.29373391 | Y36: 731.7072 | Z36: 664.4134661 | AA36: 97575.91416 | AB36: 1060975.44 | AC36: 963399.5258 | AG36: 27.42 | AH36: 2.5627697 | AI36: 3716.016064 | AJ36: 347.3119392
B37: 29 | D37: =IF('BF computation'!B34="",0, 'BF computation'!B34) -> 0.0787037037 | E37: 0.9212962963 | F37: 0.98 | G37: 1037000 | H37: 0 | I37: 81615.74074 | J37: 75192.27966 | K37: 1016260 | M37: 0.24 | N37: 0 | O37: 7.2 | P37: 0 | Q37: 0.5876333333 | R37: 0.5876333333 | S37: 0.1888888889 | T37: =IF('BF computation'!B34="", 0, K37*O37/1000000) -> 7.317072 | U37: 6.729438667 | V37: 0.9196900983 | W37: 100 | X37: 58.76333333 | Y37: 731.7072 | Z37: 672.9438667 | AA37: 85206.83333 | AB37: 1060975.44 | AC37: 975768.6067 | AG37: 27.42 | AH37: 2.237903611 | AI37: 3244.960236 | AJ37: 264.8398333
B38: 30 | D38: =IF('BF computation'!B35="",0, 'BF computation'!B35) -> 0.09756097561 | E38: 0.9024390244 | F38: 0.98 | G38: 1037000 | H38: 0 | I38: 101170.7317 | J38: 91300.41642 | K38: 1016260 | M38: 0.24 | N38: 0 | O38: 7.2 | P38: 0 | Q38: 0.7284292683 | R38: 0.7284292683 | S38: 0.2341463415 | T38: =IF('BF computation'!B35="", 0, K38*O38/1000000) -> 7.317072 | U38: 6.588642732 | V38: 0.9004479841 | W38: 100 | X38: 72.84292683 | Y38: 731.7072 | Z38: 658.8642732 | AA38: 105622.2439 | AB38: 1060975.44 | AC38: 955353.1961 | AG38: 27.42 | AH38: 2.774101463 | AI38: 4022.447122 | AJ38: 406.9539186
B39: 31 | D39: =IF('BF computation'!B36="",0, 'BF computation'!B36) -> 0.09638554217 | E39: 0.9036144578 | F39: 0.98 | G39: 1037000 | H39: 0 | I39: 99951.80723 | J39: 90317.8981 | K39: 1016260 | M39: 0.24 | N39: 0 | O39: 7.2 | P39: 0 | Q39: 0.719653012 | R39: 0.719653012 | S39: 0.2313253012 | T39: =IF('BF computation'!B36="", 0, K39*O39/1000000) -> 7.317072 | U39: 6.597418988 | V39: 0.901647406 | W39: 100 | X39: 71.9653012 | Y39: 731.7072 | Z39: 659.7418988 | AA39: 104349.6867 | AB39: 1060975.44 | AC39: 956625.7533 | AG39: 27.42 | AH39: 2.740678554 | AI39: 3973.983904 | AJ39: 397.2068731
B40: 32 | D40: =IF('BF computation'!B37="",0, 'BF computation'!B37) -> 0.06569343066 | E40: 0.9343065693 | F40: 0.98 | G40: 1037000 | H40: 0 | I40: 68124.08759 | J40: =I40*E40 -> 63648.78257 | K40: 1016260 | M40: 0.24 | N40: 0 | O40: 7.2 | P40: 0 | Q40: 0.4904934307 | R40: 0.4904934307 | S40: 0.1576642336 | T40: =IF('BF computation'!B37="", 0, K40*O40/1000000) -> 7.317072 | U40: 6.826578569 | V40: 0.9329658871 | W40: 100 | X40: 49.04934307 | Y40: 731.7072 | Z40: 682.6578569 | AA40: 71121.54745 | AB40: 1060975.44 | AC40: 989853.8926 | AG40: 27.42 | AH40: 1.867962482 | AI40: 2708.545599 | AJ40: 184.5171976
B41: 33 | D41: =IF('BF computation'!B38="",0, 'BF computation'!B38) -> 0.07983193277 | E41: 0.9201680672 | F41: 0.98 | G41: 1037000 | H41: 0 | I41: 82785.71429 | J41: 76176.77071 | K41: 1016260 | M41: 0.24 | N41: 0 | O41: 7.2 | P41: 0 | Q41: 0.5960571429 | R41: 0.5960571429 | S41: 0.1915966387 | T41: =IF('BF computation'!B38="", 0, K41*O41/1000000) -> 7.317072 | U41: 6.721014857 | V41: 0.9185388441 | W41: 100 | X41: 59.60571429 | Y41: 731.7072 | Z41: 672.1014857 | AA41: 86428.28571 | AB41: 1060975.44 | AC41: 974547.1543 | AG41: 27.42 | AH41: 2.269984286 | AI41: 3291.477214 | AJ41: 272.4872922
B42: 34 | D42: =IF('BF computation'!B39="",0, 'BF computation'!B39) -> 0.07589285714 | E42: 0.9241071429 | F42: 0.98 | G42: 1037000 | H42: 0 | I42: 78700.89286 | J42: 72728.05724 | K42: 1016260 | M42: 0.24 | N42: 0 | O42: 7.2 | P42: 0 | Q42: 0.5666464286 | R42: 0.5666464286 | S42: 0.1821428571 | T42: =IF('BF computation'!B39="", 0, K42*O42/1000000) -> 7.317072 | U42: 6.750425571 | V42: 0.922558309 | W42: 100 | X42: 56.66464286 | Y42: 731.7072 | Z42: 675.0425571 | AA42: 82163.73214 | AB42: 1060975.44 | AC42: 978811.7079 | AG42: 27.42 | AH42: 2.157978482 | AI42: 3129.068799 | AJ42: 246.2605083
B43: 35 | D43: =IF('BF computation'!B40="",0, 'BF computation'!B40) -> 0 | E43: 1 | F43: 0.98 | G43: 1037000 | H43: 0 | I43: 0 | J43: 0 | K43: 1016260 | M43: 0.24 | N43: 0 | O43: 7.2 | P43: 0 | Q43: 0 | R43: 0 | S43: 0 | T43: =IF('BF computation'!B40="", 0, K43*O43/1000000) -> 0 | U43: 0 | W43: 100 | X43: 0 | Y43: 0 | Z43: 0 | AA43: 0 | AB43: 0 | AC43: 0 | AG43: 27.42 | AH43: 0 | AI43: 0 | AJ43: 0
R45: =SUM(R8:R43) -> 228.1458907 | S45: =R45/(G9*3)*1000000 -> 73.33522684 | T45: =SUM(T8:T43) -> 430.7975771 | U45: =MAX(0,T45-R45) -> 202.6516864 | V45: =U45/T45 -> 0.47041046 | X45: =SUM(X8:X43) -> 22814.58907 | Y45: 43079.75771 | Z45: 20265.16864 | AA45: 33081154.15 | AB45: 62465648.68 | AC45: 29384494.53 | AH45: =SUM(AH9:AH43) -> 393.6110534 | AI45: =SUM(AI9:AI43) -> 570736.0274 | AJ45: =SUM(AJ9:AJ43) -> 342795.4719
X47: 0-11 | Y47: 0-12 | Z47: 0-13 | AA47: 0-14 | AB47: 0-15 | AC47: 0-16
X48: 12-23 | Y48: 12-24 | Z48: 12-25 | AA48: 12-26 | AB48: 12-27 | AC48: 12-28
X49: 24-35 | Y49: 24-36 | Z49: 24-37 | AA49: 24-38 | AB49: 24-39 | AC49: 24-40
Q51: 0-11 | R51: =SUM(R8:R19) -> 164.1460879 | S51: =SUM(S8:S19) -> 52.76312695 | T51: =SUM(T8:T19) -> 214.2122459 | U51: =SUM(U8:U19) -> 50.06615799 | V51: =U51/T51 -> 0.2337222028 | X51: =SUM(X8:X19) -> 16414.60879 | Y51: 21421.22459 | Z51: 5006.615799 | AA51: 23801182.75 | AB51: 31060775.66 | AC51: 7259592.909
Q52: 12-23 | R52: =SUM(R20:R31) -> 56.07614261 | S52: =SUM(S20:S31) -> 18.02511816 | T52: =SUM(T20:T31) -> 136.0975392 | U52: =SUM(U20:U31) -> 80.02139659 | V52: =U52/T52 -> 0.5879709293 | X52: =SUM(X20:X31) -> 5607.614261 | Y52: 13609.75392 | Z52: 8002.139659 | AA52: 8131040.678 | AB52: 19734143.18 | AC52: 11603102.51
Q53: 24-35 | R53: =SUM(R32:R43) -> 7.923660144 | S53: =SUM(S32:S43) -> 2.546981724 | T53: =SUM(T32:T43) -> 80.487792 | U53: =SUM(U32:U43) -> 72.56413186 | V53: 0.9015545097 | X53: =SUM(X32:X43) -> 792.3660144 | Y53: 8048.7792 | Z53: 7256.413186 | AA53: 1148930.721 | AB53: 11670729.84 | AC53: 10521799.12
R54: =SUM(R51:R53) -> 228.1458907 | S54: =SUM(S51:S53) -> 73.33522684 | T54: 430.7975771 | U54: 202.6516864 | V54: 0.47041046 | X54: =SUM(X51:X53) -> 22814.58907 | Y54: =SUM(Y51:Y53) -> 43079.75771 | Z54: 20265.16864 | AA54: 33081154.15 | AB54: 62465648.68 | AC54: =SUM(AC51:AC53) -> 29384494.53
Q56: 0-5 | R56: =SUM(R8:R13) -> 101.7708198 | S56: =SUM(S8:S13) -> 32.71321754 | T56: =SUM(T8:T13) -> 120.0604837 | U56: =SUM(U8:U13) -> 18.28966395 | V56: =U56/T56 -> 0.1523370836 | X56: =SUM(X8:X13) -> 10177.08198 | Y56: 12006.04837 | Z56: 1828.966395 | AA56: 14756768.87 | AB56: 17408770.14 | AC56: 2652001.272
Q57: 6-23 | R57: =SUM(R14:R31) -> 118.4514108 | S57: =SUM(S14:S31) -> 38.07502757 | T57: =SUM(T14:T31) -> 230.2493014 | U57: =SUM(U14:U31) -> 111.7978906 | V57: 0.4855514868 | X57: =SUM(X14:X31) -> 11845.14108 | Y57: 23024.93014 | Z57: 11179.78906 | AA57: 17175454.56 | AB57: 33386148.7 | AC57: 16210694.14
R58: =SUM(R56:R57) -> 220.2222305 | S58: =SUM(S56:S57) -> 70.78824511 | T58: 350.3097851 | U58: 130.0875546 | V58: 0.3713500453 | X58: =SUM(X56:X57) -> 22022.22305 | Y58: =SUM(Y56:Y57) -> 35030.97851 | Z58: 13008.75546 | AA58: 31932223.43 | AB58: 50794918.84 | AC58: 18862695.41
Q59: *RTU, XYZ, AA, AAB , AAC

Sheet Database (hidden)
B1: Country | C1: Currency | D1: Code | E1: Date | F1: Exchange Rate | G1: currency control | H1: ISO | I1: Country ( to delete) | J1: Country | K1: UNICEF REGIONS 1 | L1: UN REGIONS | M1: SDG regions | N1: World Bank Income groups | O1: Short Source | Q1: YEAR | R1: Country | S1: Country code | T1: Parent code | U1: Reference date (as of 1 July) | V1: 2000 | W1: 2001 | X1: 2002 | Y1: 2003 | Z1: 2004 | AA1: 2005 | AB1: 2006 | AC1: 2007 | AD1: 2008 | AE1: 2009 | AF1: 2010 | AG1: 2011 | AH1: 2012 | AI1: 2013 | AJ1: 2014 | AK1: 2015 | AL1: 2016 | AM1: 2017 | AN1: 2018 | AO1: 2019 | AP1: 2020 | AR1: 2020-2025 | AS1: 2025-2030 | AT1: 2030-2035 | AU1: 2035-2040 | AV1: 2040-2045 | AW1: 2045-2050 | AY1: Countries | AZ1: HDI Rank | BA1: 2000 | BB1: 2001 | BC1: 2002 | BD1: 2003 | BE1: 2004 | BF1: 2005 | BG1: 2006 | BH1: 2007 | BI1: 2008 | BJ1: 2009 | BK1: 2010 | BL1: 2011 | BM1: 2012 | BN1: 2013 | BO1: 2014 | BP1: 2015 | BQ1: 2016 | BR1: 2017 | BS1: 2018 | BT1: 2019 | BV1: Countries | BW1: 2000 | BX1: 2001 | BY1: 2002 | BZ1: 2003 | CA1: 2004 | CB1: 2005 | CC1: 2006 | CD1: 2007 | CE1: 2008 | CF1: 2009 | CG1: 2010 | CH1: 2011 | CI1: 2012 | CJ1: 2013 | CK1: 2014 | CL1: 2015 | CM1: 2016 | CN1: 2017 | CO1: 2018 | CP1: 2019 | CQ1: 2020 | CS1: Countries | CT1: Classification by Income (UN)
A2: 1 | G2: =VLOOKUP('Country Data'!AD20,Database!B2:P232,15,TRUE) -> 101 | P2: 1
A3: 2 | B3: Afghanistan | C3: Afghanistan Afghani | D3: AFN | E3: 2021-10-01 | F3: 87.88 | H3: AFG | I3: Afghanistan | J3: Afghan 2010_11 | K3: South Asia | L3: Southern Asia | M3: Central Asia and Southern Asia | N3: Low-Income | O3: Full data, Source: MICS | P3: 2 | Q3: 2010-11 | R3: Afghanistan | S3: 4 | T3: 5501 | U3: 0 | V3: 923 | W3: 943 | X3: 970 | Y3: 997 | Z3: 1021 | AA3: 1037 | AB3: 1059 | AC3: 1074 | AD3: 1085 | AE3: 1094 | AF3: 1105 | AG3: 1103 | AH3: 1102 | AI3: 1102 | AJ3: 1104 | AK3: 1107 | AL3: 1118 | AM3: 1132 | AN3: 1146 | AO3: 1159 | AP3: 1169 | AR3: 6118.618 | AS3: 6156.694 | AT3: 6148.908 | AU3: 6086.715 | AV3: 5965.37 | AW3: 5791.247 | AY3: Afghanistan | AZ3: 169 | BA3: 0.35 | BB3: 0.353 | BC3: 0.384 | BD3: 0.393 | BE3: 0.409 | BF3: 0.418 | BG3: 0.429 | BH3: 0.447 | BI3: 0.447 | BJ3: 0.46 | BK3: 0.472 | BL3: 0.477 | BM3: 0.489 | BN3: 0.496 | BO3: 0.5 | BP3: 0.5 | BQ3: 0.502 | BR3: 0.506 | BS3: 0.509 | BT3: 0.511 | BV3: Afghanistan | BW3: .. | BX3: .. | BY3: .. | BZ3: .. | CA3: .. | CB3: .. | CC3: .. | CD3: .. | CE3: .. | CF3: .. | CG3: .. | CH3: .. | CI3: .. | CJ3: .. | CK3: .. | CL3: .. | CM3: .. | CN3: .. | CO3: .. | CP3: .. | CQ3: .. | CS3: Afghanistan | CT3: Low Income
A4: 3 | B4: Albania | C4: Albania Lek(e) | D4: ALL | E4: 2021-10-01 | F4: 101.15 | H4: ALB | I4: Albania | J4: Full data, Source: Full data, Source: DHS-Albania 2017-2018 | K4: Eastern Europe and Central Asia | L4: Southern Europe | M4: Northern America and Europe | N4: Upper-Middle-Income | O4: Full data, Source: DHS | P4: 3 | Q4: 2017-18 | R4: Albania | S4: 8 | T4: 925 | U4: 0 | V4: 51 | W4: 49 | X4: 46 | Y4: 44 | Z4: 41 | AA4: 39 | AB4: 38 | AC4: 36 | AD4: 35 | AE4: 35 | AF4: 35 | AG4: 35 | AH4: 36 | AI4: 38 | AJ4: 39 | AK4: 39 | AL4: 38 | AM4: 36 | AN4: 34 | AO4: 33 | AP4: 31 | AR4: 157.078 | AS4: 135.125 | AT4: 115.896 | AU4: 105.552 | AV4: 100.733 | AW4: 96.298 | AY4: Albania | AZ4: 69 | BA4: 0.671 | BB4: 0.678 | BC4: 0.684 | BD4: 0.691 | BE4: 0.696 | BF4: 0.706 | BG4: 0.713 | BH4: 0.722 | BI4: 0.728 | BJ4: 0.733 | BK4: 0.745 | BL4: 0.764 | BM4: 0.775 | BN4: 0.782 | BO4: 0.787 | BP4: 0.788 | BQ4: 0.788 | BR4: 0.79 | BS4: 0.792 | BT4: 0.795 | BV4: Albania | BW4: .. | BX4: .. | BY4: 14.1 | BZ4: .. | CA4: .. | CB4: 8.7 | CC4: .. | CD4: .. | CE4: 5.3 | CF4: .. | CG4: .. | CH4: .. | CI4: 6.2 | CJ4: .. | CK4: 11.6 | CL4: 8.2 | CM4: 9.4 | CN4: 8.2 | CO4: .. | CP4: .. | CQ4: .. | CS4: Albania | CT4: Upper Middle Income
A5: 4 | B5: Algeria | C5: Algerian Dinar | D5: DZD | E5: 2021-10-01 | F5: 136.378 | H5: DZA | I5: Algeria | J5: Algeria 2018-2019 | K5: Middle East and North Africa | L5: Northern Africa | M5: Western Asia and Northern Africa | N5: Lower-Middle Income | O5: Full data, Source: MICS | P5: 4 | Q5: 2018-19 | R5: Algeria | S5: 12 | T5: 912 | U5: 0 | V5: 548 | W5: 543 | X5: 551 | Y5: 571 | Z5: 602 | AA5: 642 | AB5: 692 | AC5: 752 | AD5: 813 | AE5: 868 | AF5: 911 | AG5: 934 | AH5: 945 | AI5: 948 | AJ5: 949 | AK5: 956 | AL5: 971 | AM5: 991 | AN5: 1009 | AO5: 1018 | AP5: 1011 | AR5: 4666.982 | AS5: 4215.817 | AT5: 4041.613 | AU5: 4188.847 | AV5: 4452.358 | AW5: 4576.446 | AY5: Algeria | AZ5: 91 | BA5: 0.637 | BB5: 0.647 | BC5: 0.657 | BD5: 0.667 | BE5: 0.677 | BF5: 0.685 | BG5: 0.69 | BH5: 0.7 | BI5: 0.702 | BJ5: 0.711 | BK5: 0.721 | BL5: 0.728 | BM5: 0.728 | BN5: 0.729 | BO5: 0.736 | BP5: 0.74 | BQ5: 0.743 | BR5: 0.745 | BS5: 0.746 | BT5: 0.748 | BV5: Algeria | BW5: .. | BX5: .. | BY5: .. | BZ5: .. | CA5: .. | CB5: .. | CC5: .. | CD5: .. | CE5: .. | CF5: .. | CG5: .. | CH5: 3.7 | CI5: .. | CJ5: .. | CK5: .. | CL5: .. | CM5: .. | CN5: .. | CO5: .. | CP5: .. | CQ5: .. | CS5: Algeria | CT5: Upper Middle Income
A6: 5 | B6: American samoa | C6: US Dollar | D6: USD | E6: 2021-10-01 | F6: 1 | H6: ASM | K6: Oceania | N6: Upper-Middle-Income | O6: No data, regional estimates only | P6: 5 | R6: American samoa | AP6: 1.442 | AY6: American samoa | BV6: American samoa | CS6: American samoa
A7: 6 | B7: Andorra | C7: Euro | D7: EUR | E7: 2021-10-01 | F7: 0.86 | H7: AND | K7: Western Europe | N7: High-Income | O7: No data | P7: 6 | R7: Andorra | AY7: Andorra | BV7: Andorra | CS7: Andorra
A8: 7 | B8: Angola | C8: Angolan Kwanza | D8: AOA | E8: 2021-10-01 | F8: 603.33 | H8: AGO | I8: Angola | J8: Full data, Source: Full data, Source: DHS-Angola 2015-2016 | K8: Eastern and Southern Africa | L8: Middle Africa | M8: Sub-Saharan Africa | N8: Lower-Middle Income | O8: Full data, Source: DHS | P8: 7 | Q8: 2015-16 | R8: Angola | S8: 24 | T8: 911 | U8: 0 | V8: 677 | W8: 701 | X8: 726 | Y8: 753 | Z8: 783 | AA8: 815 | AB8: 847 | AC8: 881 | AD8: 915 | AE8: 949 | AF8: 979 | AG8: 1006 | AH8: 1031 | AI8: 1054 | AJ8: 1076 | AK8: 1097 | AL8: 1118 | AM8: 1138 | AN8: 1160 | AO8: 1184 | AP8: 1211 | AR8: 6940.19 | AS8: 7769.262 | AT8: 8636.127 | AU8: 9475.25 | AV8: 10320.659 | AW8: 11118.279 | AY8: Angola | AZ8: 148 | BA8: 0.4 | BB8: 0.41 | BC8: 0.426 | BD8: 0.435 | BE8: 0.446 | BF8: 0.46 | BG8: 0.473 | BH8: 0.489 | BI8: 0.501 | BJ8: 0.515 | BK8: 0.517 | BL8: 0.533 | BM8: 0.544 | BN8: 0.555 | BO8: 0.565 | BP8: 0.572 | BQ8: 0.578 | BR8: 0.582 | BS8: 0.582 | BT8: 0.581 | BV8: Angola | BW8: 59.7 | BX8: .. | BY8: .. | BZ8: .. | CA8: .. | CB8: .. | CC8: .. | CD8: .. | CE8: 60.6 | CF8: .. | CG8: .. | CH8: .. | CI8: .. | CJ8: .. | CK8: .. | CL8: .. | CM8: .. | CN8: .. | CO8: 71.5 | CP8: .. | CQ8: .. | CS8: Angola | CT8: Lower Middle Income
A9: 8 | B9: Anguilla | C9: E.C. Dollar | D9: XCD | E9: 2021-10-01 | F9: 2.7 | H9: AIA | K9: Latin America and Caribbean | O9: No data | P9: 8 | R9: Anguilla | AY9: Anguilla | BV9: Anguilla | CS9: Anguilla
A10: 9 | B10: Antigua and Barbuda | C10: E.C. Dollar | D10: XCD | E10: 2021-10-01 | F10: 2.7 | H10: ATG | K10: Latin America and Caribbean | N10: High-Income | O10: No data, regional estimates only | P10: 9 | R10: Antigua and Barbuda | S10: 28 | T10: 915 | U10: 0 | V10: 1 | W10: 1 | X10: 1 | Y10: 1 | Z10: 1 | AA10: 1 | AB10: 1 | AC10: 1 | AD10: 2 | AE10: 2 | AF10: 2 | AG10: 2 | AH10: 2 | AI10: 2 | AJ10: 2 | AK10: 2 | AL10: 2 | AM10: 1 | AN10: 1 | AO10: 1 | AP10: 1 | AR10: 7.119 | AS10: 6.841 | AT10: 6.577 | AU10: 6.449 | AV10: 6.373 | AW10: 6.29 | AY10: Antigua and Barbuda | AZ10: 78 | BA10: .. | BB10: .. | BC10: .. | BD10: .. | BE10: .. | BF10: 0.764 | BG10: 0.771 | BH10: 0.776 | BI10: 0.774 | BJ10: 0.767 | BK10: 0.763 | BL10: 0.755 | BM10: 0.759 | BN10: 0.76 | BO10: 0.76 | BP10: 0.762 | BQ10: 0.765 | BR10: 0.768 | BS10: 0.772 | BT10: 0.778 | BV10: Antigua and Barbuda | BW10: .. | BX10: .. | BY10: .. | BZ10: .. | CA10: .. | CB10: .. | CC10: .. | CD10: .. | CE10: .. | CF10: .. | CG10: .. | CH10: .. | CI10: .. | CJ10: .. | CK10: .. | CL10: .. | CM10: .. | CN10: .. | CO10: .. | CP10: .. | CQ10: .. | CS10: Antigua and Barbuda
A11: 10 | B11: Argentina | C11: Argentine Peso | D11: ARS | E11: 2021-10-01 | F11: 98.7 | H11: ARG | I11: Argentina | J11: Full data, Source: MICS-Argentina 2019-2020 | K11: Latin America and Caribbean | L11: South America | M11: Latin America and the Caribbean | N11: Upper-Middle-Income | O11: Full data, Source: MICS | P11: 10 | Q11: 2019-20 | R11: Argentina | S11: 32 | T11: 931 | U11: 0 | V11: 684 | W11: 690 | X11: 701 | Y11: 714 | Z11: 726 | AA11: 733 | AB11: 735 | AC11: 732 | AD11: 726 | AE11: 723 | AF11: 723 | AG11: 727 | AH11: 735 | AI11: 744 | AJ11: 752 | AK11: 757 | AL11: 757 | AM11: 755 | AN11: 750 | AO11: 745 | AP11: 741 | AR11: 3735.244 | AS11: 3694.839 | AT11: 3637.199 | AU11: 3585.287 | AV11: 3526.017 | AW11: 3469.026 | AY11: Argentina | AZ11: 46 | BA11: 0.781 | BB11: 0.786 | BC11: 0.781 | BD11: 0.786 | BE11: 0.787 | BF11: 0.788 | BG11: 0.812 | BH11: 0.817 | BI11: 0.821 | BJ11: 0.821 | BK11: 0.829 | BL11: 0.835 | BM11: 0.834 | BN11: 0.835 | BO11: 0.836 | BP11: 0.84 | BQ11: 0.839 | BR11: 0.843 | BS11: 0.842 | BT11: 0.845 | BV11: Argentina | BW11: 15.1 | BX11: 19.2 | BY11: 30.3 | BZ11: 17.3 | CA11: 13.9 | CB11: 11.2 | CC11: 8.8 | CD11: 7.2 | CE11: 7 | CF11: 6.1 | CG11: 4.9 | CH11: 3.3 | CI11: 3.5 | CJ11: 3.2 | CK11: 3.6 | CL11: .. | CM11: 3.6 | CN11: 3.2 | CO11: 4 | CP11: 4.9 | CQ11: .. | CS11: Argentina | CT11: Upper Middle Income
A12: 11 | B12: Armenia | C12: Armenian Dram | D12: AMD | E12: 2021-10-01 | F12: 482.25 | H12: ARM | I12: Armenia | J12: Full data, Source: Full data, Source: DHS-Armenia 2015-2016 | K12: Eastern Europe and Central Asia | L12: Western Asia | M12: Western Asia and Northern Africa | N12: Upper-Middle-Income | O12: Full data, Source: DHS | P12: 11 | Q12: 2015-2016 | R12: Armenia | S12: 51 | T12: 922 | U12: 0 | V12: 34 | W12: 34 | X12: 36 | Y12: 39 | Z12: 41 | AA12: 43 | AB12: 44 | AC12: 44 | AD12: 44 | AE12: 44 | AF12: 43 | AG12: 43 | AH12: 43 | AI12: 43 | AJ12: 43 | AK12: 42 | AL12: 42 | AM12: 41 | AN12: 40 | AO12: 40 | AP12: 39 | AR12: 182.909 | AS12: 160.677 | AT12: 151.723 | AU12: 154.259 | AV12: 158.246 | AW12: 154.108 | AY12: Armenia | AZ12: 81 | BA12: 0.669 | BB12: 0.673 | BC12: 0.682 | BD12: 0.691 | BE12: 0.7 | BF12: 0.712 | BG12: 0.726 | BH12: 0.741 | BI12: 0.745 | BJ12: 0.742 | BK12: 0.747 | BL12: 0.751 | BM12: 0.756 | BN12: 0.762 | BO12: 0.764 | BP12: 0.768 | BQ12: 0.766 | BR12: 0.769 | BS12: 0.771 | BT12: 0.776 | BV12: Armenia | BW12: .. | BX12: 47.4 | BY12: 43.8 | BZ12: 39.7 | CA12: 29 | CB12: 19.5 | CC12: 15.5 | CD12: 13.8 | CE12: 9.3 | CF12: 13.9 | CG12: 14.1 | CH12: 13.1 | CI12: 11.3 | CJ12: 11.4 | CK12: 11.4 | CL12: 9.5 | CM12: 9.6 | CN12: 8.1 | CO12: 9.4 | CP12: 9.8 | CQ12: .. | CS12: Armenia | CT12: Upper Middle Income
A13: 12 | B13: Aruba | C13: Aruban Guilder | D13: AWG | E13: 2021-10-01 | F13: 1.79 | H13: ABW | K13: Latin America and Caribbean | N13: High-Income | O13: No data, regional estimates only | P13: 12 | R13: Aruba | S13: 533 | T13: 915 | U13: 0 | V13: 1 | W13: 1 | X13: 1 | Y13: 1 | Z13: 1 | AA13: 1 | AB13: 1 | AC13: 1 | AD13: 1 | AE13: 1 | AF13: 1 | AG13: 1 | AH13: 1 | AI13: 1 | AJ13: 1 | AK13: 1 | AL13: 1 | AM13: 1 | AN13: 1 | AO13: 1 | AP13: 1 | AR13: 6.451 | AS13: 6.678 | AT13: 6.677 | AU13: 6.323 | AV13: 5.94 | AW13: 5.763 | AY13: Aruba | BV13: Aruba | BW13: .. | BX13: .. | BY13: .. | BZ13: .. | CA13: .. | CB13: .. | CC13: .. | CD13: .. | CE13: .. | CF13: .. | CG13: .. | CH13: .. | CI13: .. | CJ13: .. | CK13: .. | CL13: .. | CM13: .. | CN13: .. | CO13: .. | CP13: .. | CQ13: .. | CS13: Aruba
A14: 13 | B14: Australia | C14: Australian Dollar | D14: AUD | E14: 2021-10-01 | F14: 1.39 | H14: AUS | K14: Oceania | N14: High-Income | O14: Partial data, Source: National survey | P14: 13 | Q14: 2010 | R14: Australia | S14: 36 | T14: 927 | U14: 0 | V14: 242 | W14: 240 | X14: 239 | Y14: 241 | Z14: 246 | AA14: 253 | AB14: 264 | AC14: 277 | AD14: 291 | AE14: 303 | AF14: 310 | AG14: 313 | AH14: 311 | AI14: 307 | AJ14: 304 | AK14: 304 | AL14: 310 | AM14: 318 | AN14: 328 | AO14: 335 | AP14: 339 | AR14: 1582.468 | AS14: 1562.717 | AT14: 1569.916 | AU14: 1615.631 | AV14: 1690.084 | AW14: 1758.542 | AY14: Australia | AZ14: 8 | BA14: 0.903 | BB14: 0.905 | BC14: 0.907 | BD14: 0.909 | BE14: 0.911 | BF14: 0.906 | BG14: 0.909 | BH14: 0.912 | BI14: 0.926 | BJ14: 0.928 | BK14: 0.93 | BL14: 0.932 | BM14: 0.937 | BN14: 0.931 | BO14: 0.933 | BP14: 0.938 | BQ14: 0.939 | BR14: 0.941 | BS14: 0.943 | BT14: 0.944 | BV14: Australia | BW14: .. | BX14: 1 | BY14: .. | BZ14: 1.2 | CA14: 0.7 | CB14: .. | CC14: .. | CD14: .. | CE14: 0.7 | CF14: .. | CG14: 0.7 | CH14: .. | CI14: .. | CJ14: .. | CK14: 0.7 | CL14: .. | CM14: .. | CN14: .. | CO14: .. | CP14: .. | CQ14: .. | CS14: Australia | CT14: High Income
A15: 14 | B15: Austria | C15: Euro | D15: EUR | E15: 2021-10-01 | F15: 0.86 | H15: AUT | K15: Western Europe | N15: High-Income | O15: Partial data, Source: National survey | P15: 14 | Q15: 2006 | R15: Austria | S15: 40 | T15: 926 | U15: 0 | V15: 72 | W15: 72 | X15: 73 | Y15: 76 | Z15: 79 | AA15: 81 | AB15: 81 | AC15: 80 | AD15: 79 | AE15: 78 | AF15: 77 | AG15: 77 | AH15: 78 | AI15: 79 | AJ15: 81 | AK15: 83 | AL15: 85 | AM15: 87 | AN15: 89 | AO15: 91 | AP15: 92 | AR15: 450.243 | AS15: 436.983 | AT15: 416.806 | AU15: 401.477 | AV15: 398.937 | AW15: 406.33 | AY15: Austria | AZ15: 18 | BA15: 0.847 | BB15: 0.857 | BC15: 0.847 | BD15: 0.851 | BE15: 0.858 | BF15: 0.863 | BG15: 0.87 | BH15: 0.89 | BI15: 0.893 | BJ15: 0.895 | BK15: 0.904 | BL15: 0.906 | BM15: 0.908 | BN15: 0.905 | BO15: 0.913 | BP15: 0.915 | BQ15: 0.917 | BR15: 0.919 | BS15: 0.921 | BT15: 0.922 | BV15: Austria | BW15: 0.2 | BX15: .. | BY15: .. | BZ15: 0.4 | CA15: 0.1 | CB15: 0.2 | CC15: 0.2 | CD15: 0.6 | CE15: 0.6 | CF15: 0.7 | CG15: 0.6 | CH15: 0.6 | CI15: 0.7 | CJ15: 0.4 | CK15: 0.3 | CL15: 0.7 | CM15: 0.9 | CN15: 0.4 | CO15: 0.7 | CP15: .. | CQ15: .. | CS15: Austria | CT15: High Income
A16: 15 | B16: Azerbaijan | C16: Azerbaijan Manat | D16: AZN | E16: 2021-10-01 | F16: 1.695 | H16: AZE | I16: Azerbaijan | J16: Full data, Source: Full data, Source: DHS-Azerbajian 2006 | K16: Eastern Europe and Central Asia | L16: Western Asia | M16: Western Asia and Northern Africa | N16: Upper-Middle-Income | O16: Full data, Source: DHS | P16: 15 | Q16: 2006 | R16: Azerbaijan | S16: 31 | T16: 922 | U16: 0 | V16: 123 | W16: 122 | X16: 125 | Y16: 129 | Z16: 134 | AA16: 138 | AB16: 141 | AC16: 143 | AD16: 146 | AE16: 149 | AF16: 154 | AG16: 162 | AH16: 172 | AI16: 182 | AJ16: 188 | AK16: 189 | AL16: 185 | AM16: 176 | AN16: 164 | AO16: 152 | AP16: 143 | AR16: 719.372 | AS16: 649.351 | AT16: 651.11 | AU16: 661.54 | AV16: 639.017 | AW16: 598.962 | AY16: Azerbaijan | AZ16: 88 | BA16: 0.635 | BB16: 0.643 | BC16: 0.651 | BD16: 0.659 | BE16: 0.667 | BF16: 0.674 | BG16: 0.701 | BH16: 0.706 | BI16: 0.716 | BJ16: 0.727 | BK16: 0.726 | BL16: 0.727 | BM16: 0.73 | BN16: 0.735 | BO16: 0.74 | BP16: 0.744 | BQ16: 0.751 | BR16: 0.754 | BS16: 0.754 | BT16: 0.756 | BV16: Azerbaijan | BW16: .. | BX16: 16.7 | BY16: 0.6 | BZ16: 0.9 | CA16: 0.2 | CB16: .. | CC16: .. | CD16: .. | CE16: .. | CF16: .. | CG16: .. | CH16: .. | CI16: .. | CJ16: .. | CK16: .. | CL16: .. | CM16: .. | CN16: .. | CO16: .. | CP16: .. | CQ16: .. | CS16: Azerbaijan | CT16: Upper Middle Income
A17: 16 | B17: Bahamas | C17: Bahamian Dollar | D17: BSD | E17: 2021-10-01 | F17: 1 | H17: BHS | K17: Latin America and Caribbean | N17: High-Income | O17: No data, regional estimates only | P17: 16 | R17: Bahamas | S17: 44 | T17: 915 | U17: 0 | V17: 5 | W17: 5 | X17: 5 | Y17: 5 | Z17: 5 | AA17: 6 | AB17: 6 | AC17: 6 | AD17: 6 | AE17: 6 | AF17: 6 | AG17: 6 | AH17: 6 | AI17: 5 | AJ17: 5 | AK17: 5 | AL17: 5 | AM17: 5 | AN17: 5 | AO17: 6 | AP17: 6 | AR17: 27.222 | AS17: 27.272 | AT17: 26.691 | AU17: 25.951 | AV17: 25.485 | AW17: 24.982 | AY17: Bahamas | AZ17: 58 | BA17: 0.797 | BB17: 0.798 | BC17: 0.8 | BD17: 0.799 | BE17: 0.8 | BF17: 0.801 | BG17: 0.804 | BH17: 0.804 | BI17: 0.804 | BJ17: 0.803 | BK17: 0.805 | BL17: 0.805 | BM17: 0.807 | BN17: 0.806 | BO17: 0.805 | BP17: 0.808 | BQ17: 0.81 | BR17: 0.812 | BS17: 0.812 | BT17: 0.814 | BV17: Bahamas | BW17: .. | BX17: .. | BY17: .. | BZ17: .. | CA17: .. | CB17: .. | CC17: .. | CD17: .. | CE17: .. | CF17: .. | CG17: .. | CH17: .. | CI17: .. | CJ17: .. | CK17: .. | CL17: .. | CM17: .. | CN17: .. | CO17: .. | CP17: .. | CQ17: .. | CS17: Bahamas | CT17: High Income
A18: 17 | B18: Bahrain | C18: Bahraini Dinar | D18: BHD | E18: 2021-10-01 | F18: 0.377 | H18: BHR | K18: Middle East and North Africa | N18: High-Income | O18: No data, regional estimates only | P18: 17 | R18: Bahrain | S18: 48 | T18: 922 | U18: 0 | V18: 14 | W18: 14 | X18: 14 | Y18: 14 | Z18: 15 | AA18: 15 | AB18: 16 | AC18: 17 | AD18: 18 | AE18: 19 | AF18: 19 | AG18: 20 | AH18: 21 | AI18: 21 | AJ18: 22 | AK18: 22 | AL18: 21 | AM18: 21 | AN18: 20 | AO18: 20 | AP18: 19 | AR18: 111.265 | AS18: 112.039 | AT18: 112.097 | AU18: 106.662 | AV18: 100.914 | AW18: 97.717 | AY18: Bahrain | AZ18: 42 | BA18: 0.795 | BB18: 0.796 | BC18: 0.795 | BD18: 0.797 | BE18: 0.796 | BF18: 0.795 | BG18: 0.797 | BH18: 0.799 | BI18: 0.8 | BJ18: 0.798 | BK18: 0.8 | BL18: 0.801 | BM18: 0.808 | BN18: 0.815 | BO18: 0.82 | BP18: 0.848 | BQ18: 0.853 | BR18: 0.854 | BS18: 0.852 | BT18: 0.852 | BV18: Bahrain | BW18: .. | BX18: .. | BY18: .. | BZ18: .. | CA18: .. | CB18: .. | CC18: .. | CD18: .. | CE18: .. | CF18: .. | CG18: .. | CH18: .. | CI18: .. | CJ18: .. | CK18: .. | CL18: .. | CM18: .. | CN18: .. | CO18: .. | CP18: .. | CQ18: .. | CS18: Bahrain | CT18: High Income
A19: 18 | B19: Bangladesh | C19: Bangladesh Taka | D19: BDT | E19: 2021-10-01 | F19: 85.3594 | H19: BGD | I19: Bangladesh | J19: Bangla 2019 | K19: South Asia | L19: Southern Asia | M19: Central Asia and Southern Asia | N19: Lower-Middle Income | O19: Full data, Source: MICS | P19: 18 | Q19: 2019 | R19: Bangladesh | S19: 50 | T19: 5501 | U19: 0 | V19: 3327 | W19: 3326 | X19: 3317 | Y19: 3299 | Z19: 3269 | AA19: 3227 | AB19: 3179 | AC19: 3119 | AD19: 3057 | AE19: 3003 | AF19: 2966 | AG19: 2945 | AH19: 2941 | AI19: 2946 | AJ19: 2952 | AK19: 2951 | AL19: 2940 | AM19: 2922 | AN19: 2900 | AO19: 2875 | AP19: 2849 | AR19: 14110.907 | AS19: 13219.463 | AT19: 12346.04 | AU19: 11560.358 | AV19: 10912.846 | AW19: 10381.16 | AY19: Bangladesh | AZ19: 133 | BA19: 0.478 | BB19: 0.486 | BC19: 0.492 | BD19: 0.499 | BE19: 0.506 | BF19: 0.514 | BG19: 0.521 | BH19: 0.528 | BI19: 0.531 | BJ19: 0.543 | BK19: 0.557 | BL19: 0.566 | BM19: 0.575 | BN19: 0.579 | BO19: 0.579 | BP19: 0.595 | BQ19: 0.606 | BR19: 0.616 | BS19: 0.625 | BT19: 0.632 | BV19: Bangladesh | BW19: 72.3 | BX19: .. | BY19: .. | BZ19: .. | CA19: .. | CB19: 65.8 | CC19: .. | CD19: .. | CE19: .. | CF19: .. | CG19: 60 | CH19: .. | CI19: .. | CJ19: .. | CK19: .. | CL19: .. | CM19: 52.3 | CN19: .. | CO19: .. | CP19: .. | CQ19: .. | CS19: Bangladesh | CT19: Lower Middle Income
A20: 19 | B20: Barbados | C20: Barbados Dollar | D20: BBD | E20: 2021-10-01 | F20: 2 | H20: BRB | I20: Barbados | J20: Barbados 2012 | K20: Latin America and Caribbean | L20: Caribbean | M20: Latin America and the Caribbean | N20: High-Income | O20: Full data, Source: MICS | P20: 19 | Q20: 2012 | R20: Barbados | S20: 52 | T20: 915 | U20: 0 | V20: 3 | W20: 3 | X20: 3 | Y20: 4 | Z20: 4 | AA20: 4 | AB20: 4 | AC20: 4 | AD20: 3 | AE20: 3 | AF20: 3 | AG20: 3 | AH20: 3 | AI20: 3 | AJ20: 3 | AK20: 3 | AL20: 3 | AM20: 3 | AN20: 3 | AO20: 3 | AP20: 3 | AR20: 15.208 | AS20: 15.132 | AT20: 14.811 | AU20: 14.142 | AV20: 13.322 | AW20: 12.688 | AY20: Barbados | AZ20: 58 | BA20: 0.771 | BB20: 0.77 | BC20: 0.774 | BD20: 0.778 | BE20: 0.782 | BF20: 0.787 | BG20: 0.791 | BH20: 0.796 | BI20: 0.8 | BJ20: 0.8 | BK20: 0.797 | BL20: 0.799 | BM20: 0.808 | BN20: 0.807 | BO20: 0.808 | BP20: 0.809 | BQ20: 0.811 | BR20: 0.81 | BS20: 0.81 | BT20: 0.814 | BV20: Barbados | BW20: .. | BX20: .. | BY20: .. | BZ20: .. | CA20: .. | CB20: .. | CC20: .. | CD20: .. | CE20: .. | CF20: .. | CG20: .. | CH20: .. | CI20: .. | CJ20: .. | CK20: .. | CL20: .. | CM20: .. | CN20: .. | CO20: .. | CP20: .. | CQ20: .. | CS20: Barbados | CT20: High Income
A21: 20 | B21: Belarus | C21: Belarusian Ruble | D21: BYN | E21: 2021-10-01 | F21: 2.503 | H21: BLR | I21: Belarus | J21: Belarus 2019 | K21: Eastern Europe and Central Asia | L21: Eastern Europe | M21: Northern America and Europe | N21: Upper-Middle-Income | O21: Full data, Source: MICS | P21: 20 | Q21: 2019 | R21: Belarus | AP21: 107.93 | AR21: 512.922 | AS21: 454.944 | AT21: 424.484 | AU21: 434.642 | AV21: 463.159 | AW21: 474.842 | AY21: Belarus | AZ21: 53 | BA21: 0.686 | BB21: 0.692 | BC21: 0.699 | BD21: 0.707 | BE21: 0.717 | BF21: 0.727 | BG21: 0.744 | BH21: 0.76 | BI21: 0.777 | BJ21: 0.787 | BK21: 0.795 | BL21: 0.801 | BM21: 0.806 | BN21: 0.811 | BO21: 0.814 | BP21: 0.814 | BQ21: 0.815 | BR21: 0.819 | BS21: 0.823 | BT21: 0.823 | BV21: Belarus | BW21: 27.8 | BX21: 15.6 | BY21: 11.4 | BZ21: 9.4 | CA21: 4.7 | CB21: 2.7 | CC21: 1.2 | CD21: 1.1 | CE21: 0.5 | CF21: 0.6 | CG21: 0.2 | CH21: 0.1 | CI21: 0.1 | CJ21: .. | CK21: .. | CL21: .. | CM21: .. | CN21: .. | CO21: .. | CP21: .. | CQ21: .. | CS21: Belarus | CT21: Upper Middle Income
A22: 21 | B22: Belgium | C22: Euro | D22: EUR | E22: 2021-10-01 | F22: 0.86 | H22: BEL | K22: Western Europe | N22: High-Income | O22: No data | P22: 21 | R22: Belgium | S22: 56 | T22: 926 | U22: 0 | V22: 108 | W22: 108 | X22: 110 | Y22: 113 | Z22: 116 | AA22: 120 | AB22: 123 | AC22: 126 | AD22: 128 | AE22: 130 | AF22: 131 | AG22: 131 | AH22: 129 | AI22: 128 | AJ22: 126 | AK22: 124 | AL22: 123 | AM22: 122 | AN22: 122 | AO22: 122 | AP22: 122 | AR22: 618.15 | AS22: 604.237 | AT22: 598.83 | AU22: 605.118 | AV22: 614.139 | AW22: 612.388 | AY22: Belgium | AZ22: 14 | BA22: 0.88 | BB22: 0.883 | BC22: 0.886 | BD22: 0.889 | BE22: 0.893 | BF22: 0.897 | BG22: 0.904 | BH22: 0.907 | BI22: 0.906 | BJ22: 0.907 | BK22: 0.91 | BL22: 0.911 | BM22: 0.913 | BN22: 0.916 | BO22: 0.918 | BP22: 0.922 | BQ22: 0.924 | BR22: 0.929 | BS22: 0.93 | BT22: 0.931 | BV22: Belgium | BW22: 0.7 | BX22: .. | BY22: .. | BZ22: 0.5 | CA22: 0.1 | CB22: 0.3 | CC22: 0.2 | CD22: 0.2 | CE22: 0.1 | CF22: 0.2 | CG22: 0.2 | CH22: 0.3 | CI22: 0.2 | CJ22: 0.2 | CK22: 0.1 | CL22: 0.2 | CM22: 0.1 | CN22: 0.2 | CO22: 0.1 | CP22: .. | CQ22: .. | CS22: Belgium | CT22: High Income
A23: 22 | B23: Belize | C23: Belize Dollar | D23: BZD | E23: 2021-10-01 | F23: 2 | H23: BLZ | I23: Belize | J23: Belize 2011 | K23: Latin America and Caribbean | L23: Central America | M23: Latin America and the Caribbean | N23: Lower-Middle Income | O23: Full data, Source: MICS | P23: 22 | Q23: 2011 | R23: Belize | S23: 84 | T23: 916 | U23: 0 | V23: 8 | W23: 8 | X23: 8 | Y23: 7 | Z23: 7 | AA23: 7 | AB23: 7 | AC23: 7 | AD23: 7 | AE23: 7 | AF23: 7 | AG23: 7 | AH23: 8 | AI23: 8 | AJ23: 8 | AK23: 8 | AL23: 8 | AM23: 8 | AN23: 8 | AO23: 8 | AP23: 8 | AR23: 40.787 | AS23: 40.465 | AT23: 39.441 | AU23: 38.334 | AV23: 37.373 | AW23: 36.535 | AY23: Belize | AZ23: 110 | BA23: 0.64 | BB23: 0.644 | BC23: 0.651 | BD23: 0.659 | BE23: 0.665 | BF23: 0.662 | BG23: 0.672 | BH23: 0.674 | BI23: 0.679 | BJ23: 0.684 | BK23: 0.695 | BL23: 0.694 | BM23: 0.701 | BN23: 0.702 | BO23: 0.705 | BP23: 0.71 | BQ23: 0.717 | BR23: 0.714 | BS23: 0.714 | BT23: 0.716 | BV23: Belize | BW23: .. | BX23: .. | BY23: .. | BZ23: .. | CA23: .. | CB23: .. | CC23: .. | CD23: .. | CE23: .. | CF23: .. | CG23: .. | CH23: .. | CI23: .. | CJ23: .. | CK23: .. | CL23: .. | CM23: .. | CN23: .. | CO23: .. | CP23: .. | CQ23: .. | CS23: Belize | CT23: Upper Middle Income
A24: 23 | B24: Benin | C24: CFA Franc | D24: XOF | E24: 2021-10-01 | F24: 563.973 | H24: BEN | I24: Benin | J24: Full data, Source: Full data, Source: DHS-Benin 2017-2018 | K24: West and Central Africa | L24: Western Africa | M24: Sub-Saharan Africa | N24: Lower-Middle Income | O24: Full data, Source: DHS | P24: 23 | Q24: 2017-2018 | R24: Benin | S24: 204 | T24: 914 | U24: 0 | V24: 263 | W24: 268 | X24: 274 | Y24: 281 | Z24: 288 | AA24: 295 | AB24: 303 | AC24: 311 | AD24: 319 | AE24: 327 | AF24: 335 | AG24: 342 | AH24: 348 | AI24: 355 | AJ24: 361 | AK24: 368 | AL24: 374 | AM24: 380 | AN24: 387 | AO24: 394 | AP24: 401 | AR24: 2241.275 | AS24: 2424.222 | AT24: 2604.124 | AU24: 2774.413 | AV24: 2931.317 | AW24: 3079.737 | AY24: Benin | AZ24: 158 | BA24: 0.416 | BB24: 0.428 | BC24: 0.438 | BD24: 0.445 | BE24: 0.453 | BF24: 0.459 | BG24: 0.467 | BH24: 0.475 | BI24: 0.482 | BJ24: 0.488 | BK24: 0.494 | BL24: 0.5 | BM24: 0.51 | BN24: 0.522 | BO24: 0.527 | BP24: 0.532 | BQ24: 0.533 | BR24: 0.536 | BS24: 0.541 | BT24: 0.545 | BV24: Benin | BW24: .. | BX24: .. | BY24: .. | BZ24: 79.8 | CA24: .. | CB24: .. | CC24: .. | CD24: .. | CE24: .. | CF24: .. | CG24: .. | CH24: 76.8 | CI24: .. | CJ24: .. | CK24: .. | CL24: 76.2 | CM24: .. | CN24: .. | CO24: .. | CP24: .. | CQ24: .. | CS24: Benin | CT24: Low income
A25: 24 | B25: Bermuda | C25: Bermuda Dollar | D25: BMD | E25: 2021-10-01 | F25: 1 | H25: BMU | K25: North America | N25: High-Income | O25: No data | P25: 24 | R25: Bermuda | AY25: Bermuda | BV25: Bermuda | CS25: Bermuda
A26: 25 | B26: Bhutan | C26: Bhutan Ngultrum | D26: BTN | E26: 2021-10-01 | F26: 74.15 | H26: BTN | I26: Bhutan | J26: Bhutan 2010 | K26: South Asia | L26: Southern Asia | M26: Central Asia and Southern Asia | N26: Lower-Middle Income | O26: Full data, Source: MICS | P26: 25 | Q26: 2010 | R26: Bhutan | S26: 64 | T26: 5501 | U26: 0 | V26: 15 | W26: 15 | X26: 15 | Y26: 14 | Z26: 14 | AA26: 14 | AB26: 14 | AC26: 14 | AD26: 14 | AE26: 13 | AF26: 13 | AG26: 13 | AH26: 13 | AI26: 12 | AJ26: 12 | AK26: 12 | AL26: 12 | AM26: 13 | AN26: 13 | AO26: 13 | AP26: 13 | AR26: 62.394 | AS26: 57.467 | AT26: 52.218 | AU26: 47.795 | AV26: 45.144 | AW26: 43.482 | AY26: Bhutan | AZ26: 129 | BA26: .. | BB26: .. | BC26: .. | BD26: .. | BE26: .. | BF26: 0.52 | BG26: 0.526 | BH26: 0.542 | BI26: 0.551 | BJ26: 0.561 | BK26: 0.574 | BL26: 0.585 | BM26: 0.597 | BN26: 0.61 | BO26: 0.618 | BP26: 0.628 | BQ26: 0.637 | BR26: 0.646 | BS26: 0.649 | BT26: 0.654 | BV26: Bhutan | BW26: .. | BX26: .. | BY26: .. | BZ26: 45.3 | CA26: .. | CB26: .. | CC26: .. | CD26: 30.6 | CE26: .. | CF26: .. | CG26: .. | CH26: .. | CI26: 14.7 | CJ26: .. | CK26: .. | CL26: .. | CM26: .. | CN26: 12.2 | CO26: .. | CP26: .. | CQ26: .. | CS26: Bhutan | CT26: Lower Middle Income
A27: 26 | B27: Bolivia (Plurinational State of) | C27: Bolivia Boliviano | D27: BOB | E27: 2021-10-01 | F27: 6.835 | H27: BOL | I27: Bolivia (Plurinational State of) | J27: Full data, Source: Full data, Source: DHS-Bolivia 2008 | K27: Latin America and Caribbean | L27: South America | M27: Latin America and the Caribbean | N27: Lower-Middle Income | O27: Full data, Source: DHS | P27: 26 | Q27: 2008 | R27: Bolivia (Plurinational State of) | S27: 68 | T27: 931 | U27: 0 | V27: 239 | W27: 241 | X27: 242 | Y27: 243 | Z27: 244 | AA27: 244 | AB27: 243 | AC27: 242 | AD27: 240 | AE27: 239 | AF27: 238 | AG27: 239 | AH27: 240 | AI27: 241 | AJ27: 243 | AK27: 243 | AL27: 242 | AM27: 241 | AN27: 239 | AO27: 237 | AP27: 237 | AR27: 1244.076 | AS27: 1244.704 | AT27: 1229.882 | AU27: 1210.461 | AV27: 1183.123 | AW27: 1156.191 | AY27: Bolivia (Plurinational State of) | AZ27: 107 | BA27: 0.627 | BB27: 0.63 | BC27: 0.637 | BD27: 0.64 | BE27: 0.641 | BF27: 0.643 | BG27: 0.649 | BH27: 0.649 | BI27: 0.658 | BJ27: 0.663 | BK27: 0.667 | BL27: 0.671 | BM27: 0.675 | BN27: 0.684 | BO27: 0.69 | BP27: 0.697 | BQ27: 0.702 | BR27: 0.71 | BS27: 0.714 | BT27: 0.718 | BV27: Bolivia (Plurinational State of) | BW27: 41.3 | BX27: 36.1 | BY27: 38.2 | BZ27: .. | CA27: 28.9 | CB27: 32 | CC27: 28.5 | CD27: 26.3 | CE27: 20 | CF27: 18.3 | CG27: .. | CH27: 14 | CI27: 14.6 | CJ27: 12.2 | CK27: 12.1 | CL27: 11.6 | CM27: 13.1 | CN27: 12.4 | CO27: 11 | CP27: 7.8 | CQ27: .. | CS27: Bolivia (Plurinational State of) | CT27: Lower Middle Income
A28: 27 | B28: Bosnia and Herzegovina | C28: Bosnia and Herzegovina Convertible Mark | D28: BAM | E28: 2021-10-01 | F28: 1.682 | H28: BIH | I28: Bosnia and Herzegovina | J28: Bosnia 2012 | K28: Eastern Europe and Central Asia | L28: Southern Europe | M28: Northern America and Europe | N28: Upper-Middle-Income | O28: Full data, Source: MICS | P28: 27 | Q28: 2012 | R28: Bosnia and Herzegovina | S28: 70 | T28: 925 | U28: 0 | V28: 47 | W28: 44 | X28: 39 | Y28: 34 | Z28: 30 | AA28: 28 | AB28: 29 | AC28: 32 | AD28: 36 | AE28: 39 | AF28: 40 | AG28: 39 | AH28: 37 | AI28: 33 | AJ28: 30 | AK28: 27 | AL28: 26 | AM28: 25 | AN28: 25 | AO28: 25 | AP28: 25 | AR28: 121.063 | AS28: 114.533 | AT28: 112.322 | AU28: 110.361 | AV28: 106.282 | AW28: 98.616 | AY28: Bosnia and Herzegovina | AZ28: 73 | BA28: 0.679 | BB28: 0.684 | BC28: 0.689 | BD28: 0.695 | BE28: 0.701 | BF28: 0.706 | BG28: 0.712 | BH28: 0.719 | BI28: 0.726 | BJ28: 0.727 | BK28: 0.721 | BL28: 0.729 | BM28: 0.748 | BN28: 0.755 | BO28: 0.758 | BP28: 0.761 | BQ28: 0.772 | BR28: 0.774 | BS28: 0.777 | BT28: 0.78 | BV28: Bosnia and Herzegovina | BW28: .. | BX28: 0.9 | BY28: .. | BZ28: .. | CA28: 0.6 | CB28: .. | CC28: .. | CD28: 0.4 | CE28: .. | CF28: .. | CG28: .. | CH28: 0.7 | CI28: .. | CJ28: .. | CK28: .. | CL28: .. | CM28: .. | CN28: .. | CO28: .. | CP28: .. | CQ28: .. | CS28: Bosnia and Herzegovina | CT28: Upper Middle Income
A29: 28 | B29: Botswana | C29: Botswana Pula | D29: BWP | E29: 2021-10-01 | F29: 11.299 | H29: BWA | I29: Botswana | J29: Botswana 2000 | K29: Eastern and Southern Africa | L29: Southern Africa | M29: Sub-Saharan Africa | N29: Upper-Middle-Income | O29: Full data, Source: MICS | P29: 28 | Q29: 2000 | R29: Botswana | S29: 72 | T29: 913 | U29: 0 | V29: 43 | W29: 44 | X29: 46 | Y29: 47 | Z29: 49 | AA29: 50 | AB29: 51 | AC29: 51 | AD29: 52 | AE29: 52 | AF29: 52 | AG29: 53 | AH29: 54 | AI29: 54 | AJ29: 55 | AK29: 55 | AL29: 55 | AM29: 55 | AN29: 54 | AO29: 54 | AP29: 53 | AR29: 273.934 | AS29: 273.691 | AT29: 277.906 | AU29: 281.84 | AV29: 280.743 | AW29: 275.34 | AY29: Botswana | AZ29: 100 | BA29: 0.581 | BB29: 0.582 | BC29: 0.579 | BD29: 0.586 | BE29: 0.592 | BF29: 0.601 | BG29: 0.615 | BH29: 0.628 | BI29: 0.641 | BJ29: 0.65 | BK29: 0.663 | BL29: 0.677 | BM29: 0.689 | BN29: 0.701 | BO29: 0.711 | BP29: 0.717 | BQ29: 0.72 | BR29: 0.726 | BS29: 0.73 | BT29: 0.735 | BV29: Botswana | BW29: .. | BX29: .. | BY29: 48.7 | BZ29: .. | CA29: .. | CB29: .. | CC29: .. | CD29: .. | CE29: .. | CF29: 35.5 | CG29: .. | CH29: .. | CI29: .. | CJ29: .. | CK29: .. | CL29: 36.5 | CM29: .. | CN29: .. | CO29: .. | CP29: .. | CQ29: .. | CS29: Botswana | CT29: Upper Middle Income
A30: 29 | B30: Brazil | C30: Brazilian Real | D30: BRL | E30: 2021-10-01 | F30: 5.429 | H30: BRA | K30: Latin America and Caribbean | N30: Upper-Middle-Income | O30: Progress in breastfeeding… | P30: 29 | Q30: 2019 | R30: Brazil | S30: 76 | T30: 931 | U30: 0 | V30: 3533 | W30: 3466 | X30: 3375 | Y30: 3271 | Z30: 3170 | AA30: 3085 | AB30: 3021 | AC30: 2973 | AD30: 2940 | AE30: 2921 | AF30: 2913 | AG30: 2920 | AH30: 2938 | AI30: 2960 | AJ30: 2979 | AK30: 2988 | AL30: 2984 | AM30: 2971 | AN30: 2946 | AO30: 2913 | AP30: 2871 | AR30: 13816.602 | AS30: 12926.031 | AT30: 12225.188 | AU30: 11590.865 | AV30: 11092.003 | AW30: 10717.106 | AY30: Brazil | AZ30: 84 | BA30: 0.685 | BB30: 0.691 | BC30: 0.699 | BD30: 0.695 | BE30: 0.698 | BF30: 0.7 | BG30: 0.702 | BH30: 0.706 | BI30: 0.717 | BJ30: 0.719 | BK30: 0.727 | BL30: 0.731 | BM30: 0.735 | BN30: 0.753 | BO30: 0.756 | BP30: 0.756 | BQ30: 0.758 | BR30: 0.761 | BS30: 0.762 | BT30: 0.765 | BV30: Brazil | BW30: .. | BX30: 23.3 | BY30: 22.3 | BZ30: 23.3 | CA30: 21.4 | CB30: 19.6 | CC30: 17 | CD30: 15.6 | CE30: 13.4 | CF30: 12.4 | CG30: .. | CH30: 10.2 | CI30: 9 | CJ30: 7.9 | CK30: 7 | CL30: 7.7 | CM30: 8.8 | CN30: 9.1 | CO30: 9.1 | CP30: 9.1 | CQ30: .. | CS30: Brazil | CT30: Upper Middle Income
A31: 30 | B31: British Virgin Island | C31: US Dollar | D31: USD | E31: 2021-10-01 | F31: 1 | H31: VGB | K31: Latin America and Caribbean | N31: High-Income | O31: No data, regional estimates only | P31: 30 | R31: British Virgin Island | AP31: 0.437 | AY31: British Virgin Island | BV31: British Virgin Island | CS31: British Virgin Island
A32: 31 | B32: Brunei Darussalam | C32: Brunei Dollar | D32: BND | E32: 2021-10-01 | F32: 1.359 | H32: BRN | K32: Southeastern Asia | N32: High-Income | O32: No data, regional estimates only | P32: 31 | R32: Brunei Darussalam | S32: 96 | T32: 920 | U32: 0 | V32: 7 | W32: 7 | X32: 7 | Y32: 7 | Z32: 6 | AA32: 6 | AB32: 6 | AC32: 6 | AD32: 6 | AE32: 6 | AF32: 6 | AG32: 6 | AH32: 7 | AI32: 7 | AJ32: 8 | AK32: 8 | AL32: 7 | AM32: 7 | AN32: 6 | AO32: 6 | AP32: 5 | AR32: 29.772 | AS32: 27.909 | AT32: 26.383 | AU32: 25.479 | AV32: 25.034 | AW32: 24.373 | AY32: Brunei Darussalam | AZ32: 47 | BA32: 0.802 | BB32: 0.803 | BC32: 0.807 | BD32: 0.813 | BE32: 0.818 | BF32: 0.822 | BG32: 0.825 | BH32: 0.825 | BI32: 0.825 | BJ32: 0.827 | BK32: 0.827 | BL32: 0.831 | BM32: 0.839 | BN32: 0.839 | BO32: 0.838 | BP32: 0.838 | BQ32: 0.839 | BR32: 0.838 | BS32: 0.836 | BT32: 0.838 | BV32: Brunei Darussalam | BW32: .. | BX32: .. | BY32: .. | BZ32: .. | CA32: .. | CB32: .. | CC32: .. | CD32: .. | CE32: .. | CF32: .. | CG32: .. | CH32: .. | CI32: .. | CJ32: .. | CK32: .. | CL32: .. | CM32: .. | CN32: .. | CO32: .. | CP32: .. | CQ32: .. | CS32: Brunei Darussalam | CT32: High Income
A33: 32 | B33: Bulgaria | C33: Bulgarian Lev | D33: BGN | E33: 2021-10-01 | F33: 1.682 | H33: BGR | K33: Eastern Europe and Central Asia | N33: Upper-Middle-Income | O33: No data, regional estimates only | P33: 32 | R33: Bulgaria | S33: 100 | T33: 923 | U33: 0 | V33: 61 | W33: 63 | X33: 67 | Y33: 70 | Z33: 74 | AA33: 77 | AB33: 80 | AC33: 81 | AD33: 82 | AE33: 81 | AF33: 79 | AG33: 75 | AH33: 70 | AI33: 64 | AJ33: 59 | AK33: 56 | AL33: 56 | AM33: 58 | AN33: 61 | AO33: 63 | AP33: 64 | AR33: 294.975 | AS33: 277.638 | AT33: 266.489 | AU33: 262.118 | AV33: 258.337 | AW33: 249.747 | AY33: Bulgaria | AZ33: 56 | BA33: 0.72 | BB33: 0.73 | BC33: 0.736 | BD33: 0.745 | BE33: 0.752 | BF33: 0.758 | BG33: 0.765 | BH33: 0.773 | BI33: 0.78 | BJ33: 0.782 | BK33: 0.788 | BL33: 0.791 | BM33: 0.795 | BN33: 0.801 | BO33: 0.806 | BP33: 0.809 | BQ33: 0.811 | BR33: 0.811 | BS33: 0.813 | BT33: 0.816 | BV33: Bulgaria | BW33: .. | BX33: .. | BY33: .. | BZ33: .. | CA33: .. | CB33: .. | CC33: 11 | CD33: 4.8 | CE33: 3.4 | CF33: 2.9 | CG33: 4.4 | CH33: 5 | CI33: 5.4 | CJ33: 5 | CK33: 3.9 | CL33: 6 | CM33: 4.6 | CN33: 3.3 | CO33: 2.2 | CP33: .. | CQ33: .. | CS33: Bulgaria | CT33: Upper Middle Income
A34: 33 | B34: Burkina Faso | C34: CFA Franc | D34: XOF | E34: 2021-10-01 | F34: 563.973 | H34: BFA | I34: Burkina Faso | J34: Burkina Faso 2006 | K34: West and Central Africa | L34: Western Africa | M34: Sub-Saharan Africa | N34: Low-Income | O34: Full data, Source: MICS | P34: 33 | Q34: 2006 | R34: Burkina Faso | S34: 854 | T34: 914 | U34: 0 | V34: 479 | W34: 491 | X34: 503 | Y34: 516 | Z34: 529 | AA34: 543 | AB34: 557 | AC34: 571 | AD34: 585 | AE34: 600 | AF34: 613 | AG34: 623 | AH34: 632 | AI34: 642 | AJ34: 651 | AK34: 662 | AL34: 674 | AM34: 688 | AN34: 702 | AO34: 717 | AP34: 731 | AR34: 4029.135 | AS34: 4364.798 | AT34: 4694.265 | AU34: 4992.217 | AV34: 5247.757 | AW34: 5478.143 | AY34: Burkina Faso | AZ34: 182 | BA34: 0.293 | BB34: 0.298 | BC34: 0.303 | BD34: 0.31 | BE34: 0.32 | BF34: 0.332 | BG34: 0.341 | BH34: 0.352 | BI34: 0.364 | BJ34: 0.373 | BK34: 0.384 | BL34: 0.394 | BM34: 0.403 | BN34: 0.41 | BO34: 0.413 | BP34: 0.422 | BQ34: 0.428 | BR34: 0.439 | BS34: 0.443 | BT34: 0.452 | BV34: Burkina Faso | BW34: .. | BX34: .. | BY34: .. | BZ34: 80.5 | CA34: .. | CB34: .. | CC34: .. | CD34: .. | CE34: .. | CF34: 81.8 | CG34: .. | CH34: .. | CI34: .. | CJ34: .. | CK34: 76.7 | CL34: .. | CM34: .. | CN34: .. | CO34: .. | CP34: .. | CQ34: .. | CS34: Burkina Faso | CT34: Low income
A35: 34 | B35: Burundi | C35: Burundi Franc | D35: BIF | E35: 2021-10-01 | F35: 1974.298 | H35: BDI | I35: Burundi | J35: Full data, Source: Full data, Source: DHS-Burundi 2016-2017 | K35: Eastern and Southern Africa | L35: Eastern Africa | M35: Sub-Saharan Africa | N35: Low-Income | O35: Full data, Source: DHS | P35: 34 | Q35: 2016-17 | R35: Burundi | S35: 108 | T35: 910 | U35: 0 | V35: 240 | W35: 245 | X35: 254 | Y35: 266 | Z35: 279 | AA35: 292 | AB35: 304 | AC35: 315 | AD35: 327 | AE35: 338 | AF35: 349 | AG35: 359 | AH35: 369 | AI35: 379 | AJ35: 388 | AK35: 396 | AL35: 402 | AM35: 407 | AN35: 412 | AO35: 417 | AP35: 423 | AR35: 2329.38 | AS35: 2491.513 | AT35: 2674.056 | AU35: 2874.457 | AV35: 3073.47 | AW35: 3251.889 | AY35: Burundi | AZ35: 185 | BA35: 0.3 | BB35: 0.301 | BC35: 0.311 | BD35: 0.319 | BE35: 0.33 | BF35: 0.337 | BG35: 0.359 | BH35: 0.371 | BI35: 0.384 | BJ35: 0.401 | BK35: 0.411 | BL35: 0.419 | BM35: 0.426 | BN35: 0.432 | BO35: 0.438 | BP35: 0.437 | BQ35: 0.438 | BR35: 0.434 | BS35: 0.431 | BT35: 0.433 | BV35: Burundi | BW35: .. | BX35: .. | BY35: .. | BZ35: .. | CA35: .. | CB35: .. | CC35: 93.1 | CD35: .. | CE35: .. | CF35: .. | CG35: .. | CH35: .. | CI35: .. | CJ35: 89.6 | CK35: .. | CL35: .. | CM35: .. | CN35: .. | CO35: .. | CP35: .. | CQ35: .. | CS35: Burundi | CT35: Low income
A36: 35 | B36: Cabo Verde | C36: Cape Verde Escudo | D36: CVE | E36: 2021-10-01 | F36: 94.803 | H36: CPV | K36: West and Central Africa | N36: Lower-Middle Income | O36: No data, regional estimates only | P36: 35 | R36: Cabo Verde | S36: 132 | T36: 914 | U36: 0 | V36: 11 | W36: 11 | X36: 11 | Y36: 11 | Z36: 12 | AA36: 12 | AB36: 12 | AC36: 11 | AD36: 11 | AE36: 11 | AF36: 10 | AG36: 10 | AH36: 11 | AI36: 11 | AJ36: 11 | AK36: 11 | AL36: 11 | AM36: 11 | AN36: 11 | AO36: 10 | AP36: 10 | AR36: 50.19 | AS36: 46.95 | AT36: 44.734 | AU36: 43.201 | AV36: 41.84 | AW36: 40.287 | AY36: Cabo Verde | AZ36: 126 | BA36: 0.569 | BB36: 0.573 | BC36: 0.583 | BD36: 0.588 | BE36: 0.59 | BF36: 0.596 | BG36: 0.611 | BH36: 0.617 | BI36: 0.625 | BJ36: 0.63 | BK36: 0.632 | BL36: 0.639 | BM36: 0.644 | BN36: 0.647 | BO36: 0.654 | BP36: 0.656 | BQ36: 0.657 | BR36: 0.66 | BS36: 0.663 | BT36: 0.665 | BV36: Cabo Verde | BW36: .. | BX36: 38.1 | BY36: .. | BZ36: .. | CA36: .. | CB36: .. | CC36: .. | CD36: 26.9 | CE36: .. | CF36: .. | CG36: .. | CH36: .. | CI36: .. | CJ36: .. | CK36: .. | CL36: 15.4 | CM36: .. | CN36: .. | CO36: .. | CP36: .. | CQ36: .. | CS36: Cabo Verde | CT36: Lower Middle Income
A37: 36 | B37: Cambodia | C37: Cambodian Riel | D37: KHR | E37: 2021-10-01 | F37: 4112 | H37: KHM | I37: Cambodia | J37: Full data, Source: Full data, Source: DHS-Cambodia 2014 | K37: Southeastern Asia | L37: South-Eastern Asia | M37: Eastern Asia and South-eastern Asia | N37: Lower-Middle Income | O37: Full data, Source: DHS | P37: 36 | Q37: 2014 | R37: Cambodia | S37: 116 | T37: 920 | U37: 0 | V37: 292 | W37: 292 | X37: 297 | Y37: 306 | Z37: 316 | AA37: 327 | AB37: 337 | AC37: 348 | AD37: 358 | AE37: 366 | AF37: 370 | AG37: 369 | AH37: 365 | AI37: 358 | AJ37: 353 | AK37: 349 | AL37: 348 | AM37: 349 | AN37: 351 | AO37: 353 | AP37: 353 | AR37: 1760.78 | AS37: 1700.202 | AT37: 1688.418 | AU37: 1688.5 | AV37: 1652.071 | AW37: 1589.484 | AY37: Cambodia | AZ37: 144 | BA37: 0.424 | BB37: 0.438 | BC37: 0.457 | BD37: 0.47 | BE37: 0.482 | BF37: 0.494 | BG37: 0.506 | BH37: 0.52 | BI37: 0.525 | BJ37: 0.528 | BK37: 0.539 | BL37: 0.546 | BM37: 0.552 | BN37: 0.559 | BO37: 0.565 | BP37: 0.57 | BQ37: 0.576 | BR37: 0.582 | BS37: 0.585 | BT37: 0.594 | BV37: Cambodia | BW37: .. | BX37: .. | BY37: .. | BZ37: .. | CA37: .. | CB37: .. | CC37: .. | CD37: .. | CE37: .. | CF37: .. | CG37: .. | CH37: .. | CI37: .. | CJ37: .. | CK37: .. | CL37: .. | CM37: .. | CN37: .. | CO37: .. | CP37: .. | CQ37: .. | CS37: Cambodia | CT37: Lower Middle Income
A38: 37 | B38: Cameroon | C38: CFA Franc | D38: XAF | E38: 2021-10-01 | F38: 563.973 | H38: CMR | I38: Cameroon | J38: Cameron 2016 | K38: West and Central Africa | L38: Middle Africa | M38: Sub-Saharan Africa | N38: Lower-Middle Income | O38: Full data, Source: MICS | P38: 37 | Q38: 2016 | R38: Cameroon | S38: 120 | T38: 911 | U38: 0 | V38: 567 | W38: 584 | X38: 604 | Y38: 625 | Z38: 646 | AA38: 665 | AB38: 682 | AC38: 697 | AD38: 711 | AE38: 724 | AF38: 738 | AG38: 750 | AH38: 763 | AI38: 776 | AJ38: 788 | AK38: 800 | AL38: 810 | AM38: 821 | AN38: 831 | AO38: 842 | AP38: 854 | AR38: 4717.374 | AS38: 5021.613 | AT38: 5316.235 | AU38: 5602.334 | AV38: 5866.456 | AW38: 6109.791 | AY38: Cameroon | AZ38: 153 | BA38: 0.44 | BB38: 0.456 | BC38: 0.458 | BD38: 0.464 | BE38: 0.469 | BF38: 0.47 | BG38: 0.471 | BH38: 0.482 | BI38: 0.49 | BJ38: 0.498 | BK38: 0.505 | BL38: 0.514 | BM38: 0.525 | BN38: 0.534 | BO38: 0.54 | BP38: 0.549 | BQ38: 0.553 | BR38: 0.557 | BS38: 0.56 | BT38: 0.563 | BV38: Cameroon | BW38: .. | BX38: 55.8 | BY38: .. | BZ38: .. | CA38: .. | CB38: .. | CC38: .. | CD38: 58.4 | CE38: .. | CF38: .. | CG38: .. | CH38: .. | CI38: .. | CJ38: .. | CK38: 47 | CL38: .. | CM38: .. | CN38: .. | CO38: .. | CP38: .. | CQ38: .. | CS38: Cameroon | CT38: Lower Middle Income
A39: 38 | B39: Canada | C39: Canadian Dollar | D39: CAD | E39: 2021-10-01 | F39: 1.272 | H39: CAN | K39: North America | N39: High-Income | O39: Partial data, Source: National survey | P39: 38 | Q39: 2011-12 | R39: Canada | S39: 124 | T39: 918 | U39: 0 | V39: 319 | W39: 315 | X39: 318 | Y39: 325 | Z39: 335 | AA39: 345 | AB39: 357 | AC39: 370 | AD39: 382 | AE39: 391 | AF39: 395 | AG39: 394 | AH39: 387 | AI39: 378 | AJ39: 370 | AK39: 366 | AL39: 370 | AM39: 377 | AN39: 387 | AO39: 396 | AP39: 402 | AR39: 1940.62 | AS39: 1952.198 | AT39: 1967.902 | AU39: 2011.586 | AV39: 2077.55 | AW39: 2150.982 | AY39: Canada | AZ39: 16 | BA39: 0.867 | BB39: 0.871 | BC39: 0.877 | BD39: 0.882 | BE39: 0.888 | BF39: 0.894 | BG39: 0.898 | BH39: 0.896 | BI39: 0.898 | BJ39: 0.898 | BK39: 0.901 | BL39: 0.903 | BM39: 0.906 | BN39: 0.913 | BO39: 0.918 | BP39: 0.921 | BQ39: 0.923 | BR39: 0.926 | BS39: 0.928 | BT39: 0.929 | BV39: Canada | BW39: 0.5 | BX39: .. | BY39: .. | BZ39: .. | CA39: 0.2 | CB39: .. | CC39: .. | CD39: 0.2 | CE39: .. | CF39: .. | CG39: 0.2 | CH39: .. | CI39: 0.2 | CJ39: 0.5 | CK39: 0.5 | CL39: 0.5 | CM39: 0.5 | CN39: 0.5 | CO39: .. | CP39: .. | CQ39: .. | CS39: Canada | CT39: High Income
A40: 39 | B40: Cayman Island | C40: Cayman Is. Dollar | D40: KYD | E40: 2021-10-01 | F40: 0.82 | H40: CYM | K40: Latin America and Caribbean | N40: High-Income | O40: No data, regional estimates only | P40: 39 | R40: Cayman Island | AP40: 0.8 | AY40: Cayman Island | BV40: Cayman Island | CS40: Cayman Island
A41: 40 | B41: Central African Republic | C41: CFA Franc | D41: XAF | E41: 2021-10-01 | F41: 563.973 | H41: CAF | I41: Central African Republic | J41: CAR2018_19 | K41: West and Central Africa | L41: Middle Africa | M41: Sub-Saharan Africa | N41: Low-Income | O41: Full data, Source: MICS | P41: 40 | Q41: 2018-19 | R41: Central African Republic | S41: 140 | T41: 911 | U41: 0 | V41: 135 | W41: 138 | X41: 140 | Y41: 143 | Z41: 145 | AA41: 147 | AB41: 149 | AC41: 151 | AD41: 153 | AE41: 155 | AF41: 154 | AG41: 154 | AH41: 153 | AI41: 152 | AJ41: 151 | AK41: 150 | AL41: 149 | AM41: 148 | AN41: 149 | AO41: 151 | AP41: 153 | AR41: 876.763 | AS41: 935.676 | AT41: 967.907 | AU41: 972.393 | AV41: 966.423 | AW41: 963.322 | AY41: Central African Republic | AZ41: 188 | BA41: 0.325 | BB41: 0.327 | BC41: 0.328 | BD41: 0.328 | BE41: 0.331 | BF41: 0.336 | BG41: 0.342 | BH41: 0.347 | BI41: 0.352 | BJ41: 0.356 | BK41: 0.365 | BL41: 0.374 | BM41: 0.381 | BN41: 0.363 | BO41: 0.368 | BP41: 0.375 | BQ41: 0.382 | BR41: 0.391 | BS41: 0.395 | BT41: 0.397 | BV41: Central African Republic | BW41: .. | BX41: .. | BY41: .. | BZ41: .. | CA41: .. | CB41: .. | CC41: .. | CD41: .. | CE41: 82.9 | CF41: .. | CG41: .. | CH41: .. | CI41: .. | CJ41: .. | CK41: .. | CL41: .. | CM41: .. | CN41: .. | CO41: .. | CP41: .. | CQ41: .. | CS41: Central African Republic | CT41: Low income
A42: 41 | B42: Chad | C42: CFA Franc | D42: XAF | E42: 2021-10-01 | F42: 563.973 | H42: TCD | I42: Chad | J42: Chad 2019 | K42: West and Central Africa | L42: Middle Africa | M42: Sub-Saharan Africa | N42: Low-Income | O42: Full data, Source: MICS | P42: 41 | Q42: 2019 | R42: Chad | S42: 148 | T42: 911 | U42: 0 | V42: 373 | W42: 387 | X42: 401 | Y42: 416 | Z42: 430 | AA42: 443 | AB42: 456 | AC42: 468 | AD42: 479 | AE42: 490 | AF42: 502 | AG42: 514 | AH42: 526 | AI42: 538 | AJ42: 551 | AK42: 563 | AL42: 575 | AM42: 587 | AN42: 600 | AO42: 612 | AP42: 624 | AR42: 3530.96 | AS42: 3800.625 | AT42: 4043.337 | AU42: 4252.255 | AV42: 4441.424 | AW42: 4594.552 | AY42: Chad | AZ42: 187 | BA42: 0.293 | BB42: 0.301 | BC42: 0.307 | BD42: 0.305 | BE42: 0.324 | BF42: 0.327 | BG42: 0.33 | BH42: 0.34 | BI42: 0.346 | BJ42: 0.361 | BK42: 0.369 | BL42: 0.38 | BM42: 0.388 | BN42: 0.394 | BO42: 0.401 | BP42: 0.398 | BQ42: 0.393 | BR42: 0.396 | BS42: 0.397 | BT42: 0.398 | BV42: Chad | BW42: .. | BX42: .. | BY42: .. | BZ42: 83.7 | CA42: .. | CB42: .. | CC42: .. | CD42: .. | CE42: .. | CF42: .. | CG42: .. | CH42: 66.3 | CI42: .. | CJ42: .. | CK42: .. | CL42: .. | CM42: .. | CN42: .. | CO42: .. | CP42: .. | CQ42: .. | CS42: Chad | CT42: Low income
A43: 42 | B43: Channel Islands | C43: Jersey Pound | D43: JEP | E43: 2021-10-01 | F43: 1.34686 | H43: GB | K43: Western Europe | N43: High-Income | O43: No data | P43: 42 | R43: Channel Islands | S43: 830 | T43: 924 | U43: 0 | V43: 2 | W43: 2 | X43: 2 | Y43: 2 | Z43: 2 | AA43: 2 | AB43: 2 | AC43: 2 | AD43: 2 | AE43: 2 | AF43: 2 | AG43: 2 | AH43: 2 | AI43: 2 | AJ43: 2 | AK43: 2 | AL43: 2 | AM43: 2 | AN43: 2 | AO43: 2 | AP43: 2 | AR43: 8.666 | AS43: 8.73 | AT43: 8.717 | AU43: 8.755 | AV43: 8.901 | AW43: 9.058 | AY43: Channel Islands | BV43: Channel Islands | BW43: .. | BX43: .. | BY43: .. | BZ43: .. | CA43: .. | CB43: .. | CC43: .. | CD43: .. | CE43: .. | CF43: .. | CG43: .. | CH43: .. | CI43: .. | CJ43: .. | CK43: .. | CL43: .. | CM43: .. | CN43: .. | CO43: .. | CP43: .. | CQ43: .. | CS43: Channel Islands
A44: 43 | B44: Chile | C44: Chilean Peso | D44: CLP | E44: 2021-10-01 | F44: 803 | H44: CHL | K44: Latin America and Caribbean | N44: High-Income | O44: Partial data: Source: Health records | P44: 43 | Q44: 2011-12 | R44: Chile | S44: 152 | T44: 931 | U44: 0 | V44: 242 | W44: 238 | X44: 236 | Y44: 237 | Z44: 239 | AA44: 241 | AB44: 244 | AC44: 247 | AD44: 250 | AE44: 253 | AF44: 255 | AG44: 255 | AH44: 254 | AI44: 252 | AJ44: 249 | AK44: 245 | AL44: 239 | AM44: 232 | AN44: 224 | AO44: 218 | AP44: 214 | AR44: 1117.419 | AS44: 1047.254 | AT44: 1002.55 | AU44: 976.321 | AV44: 962.994 | AW44: 947.248 | AY44: Chile | AZ44: 43 | BA44: 0.756 | BB44: 0.767 | BC44: 0.769 | BD44: 0.776 | BE44: 0.785 | BF44: 0.791 | BG44: 0.791 | BH44: 0.804 | BI44: 0.814 | BJ44: 0.822 | BK44: 0.803 | BL44: 0.815 | BM44: 0.821 | BN44: 0.826 | BO44: 0.837 | BP44: 0.842 | BQ44: 0.845 | BR44: 0.847 | BS44: 0.849 | BT44: 0.851 | BV44: Chile | BW44: 12.1 | BX44: .. | BY44: .. | BZ44: 11.2 | CA44: .. | CB44: .. | CC44: 5.4 | CD44: .. | CE44: .. | CF44: 4 | CG44: .. | CH44: 2.6 | CI44: .. | CJ44: 1.3 | CK44: .. | CL44: 1 | CM44: .. | CN44: 0.7 | CO44: .. | CP44: .. | CQ44: .. | CS44: Chile | CT44: High Income
A45: 44 | B45: China | C45: Chinese Renminbi | D45: CNY | E45: 2021-10-01 | F45: 6.466 | H45: CHN | K45: Northeast Asia | N45: Upper-Middle-Income | O45: No data | P45: 44 | R45: China | S45: 156 | T45: 906 | U45: 0 | V45: 20546 | W45: 20657 | X45: 19790 | Y45: 18345 | Z45: 16945 | AA45: 16057 | AB45: 15823 | AC45: 16036 | AD45: 16535 | AE45: 17067 | AF45: 17447 | AG45: 17638 | AH45: 17707 | AI45: 17670 | AJ45: 17565 | AK45: 17422 | AL45: 17247 | AM45: 17022 | AN45: 16753 | AO45: 16447 | AP45: 16113 | AR45: 77100.153 | AS45: 71651.553 | AT45: 69185.537 | AU45: 67936.661 | AV45: 66990.303 | AW45: 64979.986 | AY45: China | AZ45: 85 | BA45: 0.588 | BB45: 0.596 | BC45: 0.606 | BD45: 0.618 | BE45: 0.628 | BF45: 0.64 | BG45: 0.653 | BH45: 0.667 | BI45: 0.678 | BJ45: 0.687 | BK45: 0.699 | BL45: 0.707 | BM45: 0.716 | BN45: 0.724 | BO45: 0.731 | BP45: 0.739 | BQ45: 0.746 | BR45: 0.75 | BS45: 0.755 | BT45: 0.761 | BV45: China | BW45: .. | BX45: .. | BY45: 57.7 | BZ45: .. | CA45: .. | CB45: 43.2 | CC45: .. | CD45: .. | CE45: 34.7 | CF45: .. | CG45: 28.6 | CH45: 23.5 | CI45: 20.2 | CJ45: 12.1 | CK45: 9.5 | CL45: 7 | CM45: 5.4 | CN45: .. | CO45: .. | CP45: .. | CQ45: .. | CS45: China | CT45: Upper Middle Income
A46: 45 | B46: China, Hong Kong SAR | C46: HongKong Dollar | D46: HKD | E46: 2021-10-01 | F46: 7.784 | H46: HKG | K46: Northeast Asia | N46: High-Income | O46: No data, regional estimates only | P46: 45 | R46: China, Hong Kong SAR | S46: 344 | T46: 906 | U46: 0 | V46: 43 | W46: 40 | X46: 37 | Y46: 36 | Z46: 35 | AA46: 36 | AB46: 39 | AC46: 42 | AD46: 46 | AE46: 50 | AF46: 52 | AG46: 52 | AH46: 50 | AI46: 48 | AJ46: 47 | AK46: 49 | AL46: 54 | AM46: 62 | AN46: 70 | AO46: 77 | AP46: 81 | AR46: 411.66 | AS46: 385.423 | AT46: 340.133 | AU46: 303.813 | AV46: 296.176 | AW46: 313.575 | AY46: China, Hong Kong SAR | AZ46: 4 | BA46: 0.83 | BB46: 0.838 | BC46: 0.845 | BD46: 0.854 | BE46: 0.865 | BF46: 0.874 | BG46: 0.886 | BH46: 0.89 | BI46: 0.899 | BJ46: 0.901 | BK46: 0.904 | BL46: 0.907 | BM46: 0.914 | BN46: 0.918 | BO46: 0.926 | BP46: 0.93 | BQ46: 0.936 | BR46: 0.941 | BS46: 0.946 | BT46: 0.949 | BV46: China, Hong Kong SAR | BW46: .. | BX46: .. | BY46: .. | BZ46: .. | CA46: .. | CB46: .. | CC46: .. | CD46: .. | CE46: .. | CF46: .. | CG46: .. | CH46: .. | CI46: .. | CJ46: .. | CK46: .. | CL46: .. | CM46: .. | CN46: .. | CO46: .. | CP46: .. | CQ46: .. | CS46: China, Hong Kong SAR | CT46: High Income
A47: 46 | B47: China, Macao SAR | C47: Macao Pataca | D47: MOP | E47: 2021-10-01 | F47: 8.004 | H47: MAC | K47: Northeast Asia | N47: High-Income | O47: No data, regional estimates only | P47: 46 | R47: China, Macao SAR | S47: 446 | T47: 906 | U47: 0 | V47: 4 | W47: 4 | X47: 3 | Y47: 3 | Z47: 3 | AA47: 3 | AB47: 4 | AC47: 4 | AD47: 5 | AE47: 5 | AF47: 6 | AG47: 6 | AH47: 6 | AI47: 7 | AJ47: 7 | AK47: 7 | AL47: 7 | AM47: 7 | AN47: 7 | AO47: 7 | AP47: 7 | AR47: 34.142 | AS47: 30.631 | AT47: 28.362 | AU47: 29.703 | AV47: 33.345 | AW47: 36.698 | AY47: China, Macao SAR | BV47: China, Macao SAR | BW47: .. | BX47: .. | BY47: .. | BZ47: .. | CA47: .. | CB47: .. | CC47: .. | CD47: .. | CE47: .. | CF47: .. | CG47: .. | CH47: .. | CI47: .. | CJ47: .. | CK47: .. | CL47: .. | CM47: .. | CN47: .. | CO47: .. | CP47: .. | CQ47: .. | CS47: China, Macao SAR
A48: 47 | B48: China, Taiwan Province of China | C48: New Taiwan Dollar | D48: TWD | E48: 2021-10-01 | F48: 0.03607 | H48: TWN | K48: Northeast Asia | N48: High-Income | O48: No data, regional estimates only | P48: 47 | R48: China, Taiwan Province of China | S48: 158 | T48: 906 | U48: 0 | V48: 269 | W48: 253 | X48: 238 | Y48: 227 | Z48: 216 | AA48: 207 | AB48: 198 | AC48: 190 | AD48: 185 | AE48: 182 | AF48: 185 | AG48: 193 | AH48: 205 | AI48: 218 | AJ48: 228 | AK48: 232 | AL48: 227 | AM48: 216 | AN48: 202 | AO48: 189 | AP48: 182 | AR48: 1001.741 | AS48: 990.352 | AT48: 947.99 | AU48: 864.499 | AV48: 794.71 | AW48: 783.746 | AY48: China, Taiwan Province of China | BV48: China, Taiwan Province of China | CS48: China, Taiwan Province of China | CT48: High Income
A49: 48 | B49: Colombia | C49: Colombian Peso | D49: COP | E49: 2021-10-01 | F49: 3834 | H49: COL | K49: Latin America and Caribbean | N49: Upper-Middle-Income | O49: No data, regional estimates only | P49: 48 | R49: Colombia | S49: 170 | T49: 931 | U49: 0 | V49: 837 | W49: 833 | X49: 837 | Y49: 843 | Z49: 845 | AA49: 838 | AB49: 820 | AC49: 794 | AD49: 764 | AE49: 739 | AF49: 722 | AG49: 716 | AH49: 718 | AI49: 726 | AJ49: 737 | AK49: 747 | AL49: 753 | AM49: 759 | AN49: 762 | AO49: 760 | AP49: 750 | AR49: 3542.571 | AS49: 3292.574 | AT49: 3112.746 | AU49: 2961.467 | AV49: 2839.505 | AW49: 2740.547 | AY49: Colombia | AZ49: 83 | BA49: 0.666 | BB49: 0.668 | BC49: 0.671 | BD49: 0.67 | BE49: 0.684 | BF49: 0.689 | BG49: 0.698 | BH49: 0.711 | BI49: 0.718 | BJ49: 0.72 | BK49: 0.729 | BL49: 0.734 | BM49: 0.739 | BN49: 0.742 | BO49: 0.753 | BP49: 0.756 | BQ49: 0.76 | BR49: 0.763 | BS49: 0.764 | BT49: 0.767 | BV49: Colombia | BW49: 31.4 | BX49: 37.7 | BY49: 28.5 | BZ49: 27.7 | CA49: 26.9 | CB49: 23.9 | CC49: .. | CD49: .. | CE49: 22.6 | CF49: 20.7 | CG49: 18.5 | CH49: 16.5 | CI49: 15.6 | CJ49: 14.2 | CK49: 13.2 | CL49: 11.9 | CM49: 11.8 | CN49: 11.1 | CO49: 11.1 | CP49: 12.7 | CQ49: .. | CS49: Colombia | CT49: Upper Middle Income
A50: 49 | B50: Comoros | C50: Comoros Franc | D50: KMF | E50: 2021-10-01 | F50: 422.98 | H50: COM | I50: Comoros | J50: Comoros 2000 | K50: Eastern and Southern Africa | L50: Eastern Africa | M50: Sub-Saharan Africa | N50: Lower-Middle Income | O50: Full data, Source: MICS | P50: 49 | Q50: 2000 | R50: Comoros | S50: 174 | T50: 910 | U50: 0 | V50: 19 | W50: 19 | X50: 19 | Y50: 20 | Z50: 20 | AA50: 21 | AB50: 21 | AC50: 21 | AD50: 22 | AE50: 22 | AF50: 23 | AG50: 23 | AH50: 24 | AI50: 24 | AJ50: 24 | AK50: 25 | AL50: 25 | AM50: 25 | AN50: 25 | AO50: 25 | AP50: 25 | AR50: 137.061 | AS50: 142.088 | AT50: 147.671 | AU50: 153.054 | AV50: 157.79 | AW50: 161.079 | AY50: Comoros | AZ50: 156 | BA50: 0.465 | BB50: 0.47 | BC50: 0.475 | BD50: 0.481 | BE50: 0.483 | BF50: 0.489 | BG50: 0.495 | BH50: 0.501 | BI50: 0.508 | BJ50: 0.514 | BK50: 0.521 | BL50: 0.533 | BM50: 0.538 | BN50: 0.542 | BO50: 0.543 | BP50: 0.545 | BQ50: 0.547 | BR50: 0.55 | BS50: 0.552 | BT50: 0.554 | BV50: Comoros | BW50: .. | BX50: .. | BY50: .. | BZ50: .. | CA50: 37.4 | CB50: .. | CC50: .. | CD50: .. | CE50: .. | CF50: .. | CG50: .. | CH50: .. | CI50: .. | CJ50: .. | CK50: 39.7 | CL50: .. | CM50: .. | CN50: .. | CO50: .. | CP50: .. | CQ50: .. | CS50: Comoros | CT50: Lower Middle Income
A51: 50 | B51: Congo | C51: CFA Franc | D51: XAF | E51: 2021-10-01 | F51: 563.973 | H51: COG | I51: Congo | J51: Congo 2014-2015 | K51: West and Central Africa | L51: Middle Africa | M51: Sub-Saharan Africa | N51: Lower-Middle Income | O51: Full data, Source: MICS | P51: 50 | Q51: 2014-2015 | R51: Congo | S51: 178 | T51: 911 | U51: 0 | V51: 111 | W51: 114 | X51: 117 | Y51: 120 | Z51: 124 | AA51: 128 | AB51: 133 | AC51: 138 | AD51: 143 | AE51: 148 | AF51: 151 | AG51: 155 | AH51: 157 | AI51: 159 | AJ51: 160 | AK51: 161 | AL51: 162 | AM51: 162 | AN51: 163 | AO51: 165 | AP51: 167 | AR51: 917.255 | AS51: 1000.534 | AT51: 1091.308 | AU51: 1173.642 | AV51: 1247.378 | AW51: 1312.347 | AY51: Congo | AZ51: 149 | BA51: 0.461 | BB51: 0.468 | BC51: 0.471 | BD51: 0.471 | BE51: 0.473 | BF51: 0.469 | BG51: 0.47 | BH51: 0.486 | BI51: 0.501 | BJ51: 0.514 | BK51: 0.52 | BL51: 0.522 | BM51: 0.535 | BN51: 0.545 | BO51: 0.56 | BP51: 0.58 | BQ51: 0.578 | BR51: 0.574 | BS51: 0.573 | BT51: 0.574 | BV51: Congo | BW51: .. | BX51: .. | BY51: .. | BZ51: .. | CA51: .. | CB51: 76.2 | CC51: .. | CD51: .. | CE51: .. | CF51: .. | CG51: .. | CH51: 64.1 | CI51: .. | CJ51: .. | CK51: .. | CL51: .. | CM51: .. | CN51: .. | CO51: .. | CP51: .. | CQ51: .. | CS51: Congo
A52: 51 | B52: Cook Island | C52: New Zealand Dollar | D52: NZD | E52: 2021-10-01 | F52: 1.452 | H52: COK | K52: Oceania | O52: No data | P52: 51 | R52: Cook Island | AY52: Cook Island | BV52: Cook Island | CS52: Cook Island
A53: 52 | B53: Costa Rica | C53: Costa Rica Colon | D53: CRC | E53: 2021-10-01 | F53: 622.02 | H53: CRI | I53: Costa Rica | J53: CostaRica2018 | K53: Latin America and Caribbean | L53: Central America | M53: Latin America and the Caribbean | N53: Upper-Middle-Income | O53: Full data, Source: MICS | P53: 52 | Q53: 2018 | R53: Costa Rica | S53: 188 | T53: 916 | U53: 0 | V53: 77 | W53: 76 | X53: 74 | Y53: 72 | Z53: 70 | AA53: 69 | AB53: 69 | AC53: 70 | AD53: 71 | AE53: 72 | AF53: 73 | AG53: 74 | AH53: 73 | AI53: 73 | AJ53: 72 | AK53: 72 | AL53: 71 | AM53: 70 | AN53: 69 | AO53: 68 | AP53: 68 | AR53: 329.978 | AS53: 308.588 | AT53: 295.473 | AU53: 285.162 | AV53: 276.991 | AW53: 269.414 | AY53: Costa Rica | AZ53: 62 | BA53: 0.721 | BB53: 0.725 | BC53: 0.728 | BD53: 0.731 | BE53: 0.735 | BF53: 0.738 | BG53: 0.745 | BH53: 0.753 | BI53: 0.761 | BJ53: 0.762 | BK53: 0.765 | BL53: 0.778 | BM53: 0.783 | BN53: 0.788 | BO53: 0.796 | BP53: 0.797 | BQ53: 0.801 | BR53: 0.804 | BS53: 0.808 | BT53: 0.81 | BV53: Costa Rica | BW53: 13.9 | BX53: 10.9 | BY53: 9.9 | BZ53: 9.9 | CA53: 9.3 | CB53: 8 | CC53: 7.8 | CD53: 5.4 | CE53: 5.3 | CF53: 5.7 | CG53: 4.2 | CH53: 4.4 | CI53: 4.3 | CJ53: 4.2 | CK53: 4 | CL53: 4.1 | CM53: 3.8 | CN53: 2.8 | CO53: 3.7 | CP53: 3.2 | CQ53: .. | CS53: Costa Rica | CT53: Upper Middle Income
A54: 53 | B54: Côte d'Ivoire | C54: CFA Franc | D54: XOF | E54: 2021-10-01 | F54: 563.973 | H54: CIV | I54: Côte d'Ivoire | J54: Cote d'Ivoire 2006 | K54: West and Central Africa | L54: Western Africa | M54: Sub-Saharan Africa | N54: Lower-Middle Income | O54: Full data, Source: MICS | P54: 53 | Q54: 2006 | R54: Côte d'Ivoire | S54: 384 | T54: 914 | U54: 0 | V54: 609 | W54: 622 | X54: 633 | Y54: 642 | Z54: 650 | AA54: 657 | AB54: 663 | AC54: 668 | AD54: 674 | AE54: 683 | AF54: 696 | AG54: 712 | AH54: 731 | AI54: 753 | AJ54: 775 | AK54: 795 | AL54: 812 | AM54: 828 | AN54: 842 | AO54: 856 | AP54: 870 | AR54: 4831.462 | AS54: 5199.252 | AT54: 5546.113 | AU54: 5897.074 | AV54: 6242.332 | AW54: 6573.366 | AY54: Côte d'Ivoire | AZ54: 162 | BA54: 0.421 | BB54: 0.424 | BC54: 0.426 | BD54: 0.429 | BE54: 0.433 | BF54: 0.438 | BG54: 0.443 | BH54: 0.449 | BI54: 0.455 | BJ54: 0.462 | BK54: 0.468 | BL54: 0.472 | BM54: 0.482 | BN54: 0.49 | BO54: 0.492 | BP54: 0.503 | BQ54: 0.513 | BR54: 0.525 | BS54: 0.534 | BT54: 0.538 | BV54: Côte d'Ivoire | BW54: .. | BX54: .. | BY54: 58.1 | BZ54: .. | CA54: .. | CB54: .. | CC54: .. | CD54: .. | CE54: 59.1 | CF54: .. | CG54: .. | CH54: .. | CI54: .. | CJ54: .. | CK54: .. | CL54: 59.1 | CM54: .. | CN54: .. | CO54: .. | CP54: .. | CQ54: .. | CS54: Côte d'Ivoire | CT54: Lower Middle Income
A55: 54 | B55: Croatia | C55: Croatia Kuna | D55: HRK | E55: 2021-10-01 | F55: 6.439 | H55: HRV | K55: Eastern Europe and Central Asia | N55: High-Income | O55: No data, regional estimates only | P55: 54 | R55: Croatia | S55: 191 | T55: 925 | U55: 0 | V55: 53 | W55: 50 | X55: 45 | Y55: 40 | Z55: 36 | AA55: 34 | AB55: 35 | AC55: 39 | AD55: 44 | AE55: 48 | AF55: 50 | AG55: 49 | AH55: 46 | AI55: 43 | AJ55: 39 | AK55: 36 | AL55: 35 | AM55: 35 | AN55: 35 | AO55: 36 | AP55: 36 | AR55: 168.399 | AS55: 157.35 | AT55: 150.22 | AU55: 145.37 | AV55: 142.529 | AW55: 137.818 | AY55: Croatia | AZ55: 43 | BA55: 0.757 | BB55: 0.768 | BC55: 0.774 | BD55: 0.78 | BE55: 0.786 | BF55: 0.792 | BG55: 0.798 | BH55: 0.808 | BI55: 0.813 | BJ55: 0.812 | BK55: 0.815 | BL55: 0.823 | BM55: 0.825 | BN55: 0.83 | BO55: 0.835 | BP55: 0.84 | BQ55: 0.841 | BR55: 0.845 | BS55: 0.848 | BT55: 0.851 | BV55: Croatia | BW55: .. | BX55: .. | BY55: .. | BZ55: .. | CA55: .. | CB55: .. | CC55: .. | CD55: .. | CE55: .. | CF55: 1.7 | CG55: 2.3 | CH55: 1.9 | CI55: 2.2 | CJ55: 2 | CK55: 1.8 | CL55: 1.3 | CM55: 1.3 | CN55: 1.1 | CO55: 0.7 | CP55: .. | CQ55: .. | CS55: Croatia | CT55: High Income
A56: 55 | B56: Cuba | C56: Cuban Peso | D56: CUP | E56: 2021-10-01 | F56: 24 | H56: CUB | I56: Cuba | J56: Cuba 2019 | K56: Latin America and Caribbean | L56: Caribbean | M56: Latin America and the Caribbean | N56: Upper-Middle-Income | O56: Full data, Source: MICS | P56: 55 | Q56: 2019 | R56: Cuba | S56: 192 | T56: 915 | U56: 0 | V56: 163 | W56: 160 | X56: 151 | Y56: 140 | Z56: 129 | AA56: 121 | AB56: 117 | AC56: 115 | AD56: 116 | AE56: 118 | AF56: 121 | AG56: 124 | AH56: 128 | AI56: 132 | AJ56: 134 | AK56: 133 | AL56: 129 | AM56: 122 | AN56: 113 | AO56: 106 | AP56: 101 | AR56: 531.205 | AS56: 494.605 | AT56: 470.954 | AU56: 452.734 | AV56: 433.288 | AW56: 412.746 | AY56: Cuba | AZ56: 70 | BA56: 0.691 | BB56: 0.696 | BC56: 0.698 | BD56: 0.708 | BE56: 0.722 | BF56: 0.734 | BG56: 0.756 | BH56: 0.772 | BI56: 0.783 | BJ56: 0.785 | BK56: 0.781 | BL56: 0.78 | BM56: 0.769 | BN56: 0.766 | BO56: 0.767 | BP56: 0.772 | BQ56: 0.773 | BR56: 0.777 | BS56: 0.781 | BT56: 0.783 | BV56: Cuba | BW56: .. | BX56: .. | BY56: .. | BZ56: .. | CA56: .. | CB56: .. | CC56: .. | CD56: .. | CE56: .. | CF56: .. | CG56: .. | CH56: .. | CI56: .. | CJ56: .. | CK56: .. | CL56: .. | CM56: .. | CN56: .. | CO56: .. | CP56: .. | CQ56: .. | CS56: Cuba | CT56: Upper Middle Income
A57: 56 | B57: Curaçao | C57: Antillean Guilder | D57: ANG | E57: 2021-10-01 | F57: 0.5587 | H57: CUW | N57: High-Income | O57: No data | P57: 56 | R57: Curaçao | S57: 531 | T57: 915 | U57: 0 | V57: 1 | W57: 2 | X57: 2 | Y57: 2 | Z57: 2 | AA57: 2 | AB57: 2 | AC57: 2 | AD57: 2 | AE57: 2 | AF57: 2 | AG57: 2 | AH57: 2 | AI57: 2 | AJ57: 2 | AK57: 2 | AL57: 2 | AM57: 2 | AN57: 2 | AO57: 2 | AP57: 2 | AR57: 8.814 | AS57: 8.951 | AT57: 8.986 | AU57: 8.825 | AV57: 8.56 | AW57: 8.287 | AY57: Curaçao | BV57: Curaçao | BW57: .. | BX57: .. | BY57: .. | BZ57: .. | CA57: .. | CB57: .. | CC57: .. | CD57: .. | CE57: .. | CF57: .. | CG57: .. | CH57: .. | CI57: .. | CJ57: .. | CK57: .. | CL57: .. | CM57: .. | CN57: .. | CO57: .. | CP57: .. | CQ57: .. | CS57: Curaçao | CT57: High Income
A58: 57 | B58: Cyprus | C58: Euro | D58: EUR | E58: 2021-10-01 | F58: 0.86 | H58: CYP | K58: Western Europe | N58: High-Income | O58: No data | P58: 57 | R58: Cyprus | S58: 196 | T58: 922 | U58: 0 | V58: 12 | W58: 12 | X58: 12 | Y58: 11 | Z58: 11 | AA58: 11 | AB58: 12 | AC58: 12 | AD58: 12 | AE58: 13 | AF58: 13 | AG58: 13 | AH58: 13 | AI58: 13 | AJ58: 13 | AK58: 13 | AL58: 13 | AM58: 13 | AN58: 13 | AO58: 13 | AP58: 12 | AR58: 57.752 | AS58: 54.977 | AT58: 55.094 | AU58: 56.212 | AV58: 56.56 | AW58: 55.729 | AY58: Cyprus | AZ58: 33 | BA58: 0.804 | BB58: 0.81 | BC58: 0.819 | BD58: 0.828 | BE58: 0.831 | BF58: 0.836 | BG58: 0.842 | BH58: 0.849 | BI58: 0.858 | BJ58: 0.862 | BK58: 0.856 | BL58: 0.86 | BM58: 0.859 | BN58: 0.86 | BO58: 0.862 | BP58: 0.865 | BQ58: 0.873 | BR58: 0.878 | BS58: 0.885 | BT58: 0.887 | BV58: Cyprus | BW58: .. | BX58: .. | BY58: .. | BZ58: .. | CA58: 0.1 | CB58: 0.1 | CC58: .. | CD58: .. | CE58: .. | CF58: 0.1 | CG58: 0.1 | CH58: .. | CI58: .. | CJ58: 0.2 | CK58: 0.2 | CL58: 0.1 | CM58: 0.1 | CN58: 0.1 | CO58: 0.1 | CP58: .. | CQ58: .. | CS58: Cyprus
A59: 58 | B59: Czechia | C59: Czech Koruna | D59: CZK | E59: 2021-10-01 | F59: 21.93 | H59: CZE | K59: Western Europe | N59: High-Income | O59: Partial data: Source: Health records | P59: 58 | Q59: 2005 | R59: Czechia | S59: 203 | T59: 923 | U59: 0 | V59: 71 | W59: 74 | X59: 82 | Y59: 93 | Z59: 103 | AA59: 112 | AB59: 117 | AC59: 121 | AD59: 122 | AE59: 122 | AF59: 120 | AG59: 116 | AH59: 110 | AI59: 104 | AJ59: 99 | AK59: 97 | AL59: 99 | AM59: 104 | AN59: 110 | AO59: 115 | AP59: 117 | AR59: 520.836 | AS59: 490.164 | AT59: 480.011 | AU59: 496.715 | AV59: 518.292 | AW59: 524.757 | AY59: Czechia | AZ59: 27 | BA59: 0.804 | BB59: 0.814 | BC59: 0.821 | BD59: 0.83 | BE59: 0.834 | BF59: 0.843 | BG59: 0.852 | BH59: 0.858 | BI59: 0.863 | BJ59: 0.866 | BK59: 0.87 | BL59: 0.874 | BM59: 0.874 | BN59: 0.882 | BO59: 0.888 | BP59: 0.891 | BQ59: 0.893 | BR59: 0.896 | BS59: 0.898 | BT59: 0.9 | BV59: Czechia | BW59: .. | BX59: .. | BY59: .. | BZ59: .. | CA59: .. | CB59: 0.1 | CC59: 0.1 | CD59: 0.2 | CE59: 0.1 | CF59: 0.1 | CG59: 0.1 | CH59: 0.1 | CI59: 0.3 | CJ59: 0.1 | CK59: 0.1 | CL59: .. | CM59: 0.1 | CN59: 0.1 | CO59: .. | CP59: .. | CQ59: .. | CS59: Czechia | CT59: High Income
A60: 59 | B60: Dem. People's Republic of Korea | C60: Korean Won, North Korea | D60: KPW | E60: 2021-10-01 | F60: 106 | H60: PRK | K60: Northeast Asia | N60: Low-Income | O60: No data | P60: 59 | R60: Dem. People's Republic of Korea | S60: 408 | T60: 906 | U60: 0 | V60: 377 | W60: 373 | X60: 376 | Y60: 381 | Z60: 384 | AA60: 381 | AB60: 371 | AC60: 355 | AD60: 337 | AE60: 323 | AF60: 315 | AG60: 317 | AH60: 326 | AI60: 338 | AJ60: 350 | AK60: 359 | AL60: 362 | AM60: 362 | AN60: 360 | AO60: 356 | AP60: 353 | AR60: 1760.143 | AS60: 1701.64 | AT60: 1591.274 | AU60: 1488.858 | AV60: 1444.485 | AW60: 1450.485 | AY60: Dem. People's Republic of Korea | BV60: Dem. People's Republic of Korea | BW60: .. | BX60: .. | BY60: .. | BZ60: .. | CA60: .. | CB60: .. | CC60: .. | CD60: .. | CE60: .. | CF60: .. | CG60: .. | CH60: .. | CI60: .. | CJ60: .. | CK60: .. | CL60: .. | CM60: .. | CN60: .. | CO60: .. | CP60: .. | CQ60: .. | CS60: Dem. People's Republic of Korea | CT60: Low income
A61: 60 | B61: Democratic Republic of the Congo | C61: Congo Franc, Dem. Rep.of | D61: CDF | E61: 2021-10-01 | F61: 1969.274 | H61: COD | I61: Democratic Republic of the Congo | J61: DRC2017_18 | K61: West and Central Africa | L61: Middle Africa | M61: Sub-Saharan Africa | N61: Low-Income | O61: Full data, Source: MICS | P61: 60 | Q61: 2017-18 | R61: Democratic Republic of the Congo | S61: 180 | T61: 911 | U61: 0 | V61: 1906 | W61: 1960 | X61: 2027 | Y61: 2104 | Z61: 2185 | AA61: 2268 | AB61: 2343 | AC61: 2419 | AD61: 2498 | AE61: 2577 | AF61: 2658 | AG61: 2734 | AH61: 2811 | AI61: 2888 | AJ61: 2963 | AK61: 3034 | AL61: 3097 | AM61: 3157 | AN61: 3216 | AO61: 3276 | AP61: 3339 | AR61: 18810.591 | AS61: 20514.035 | AT61: 22209.154 | AU61: 23662.943 | AV61: 24841.648 | AW61: 25717.652 | AY61: Democratic Republic of the Congo | AZ61: 175 | BA61: 0.349 | BB61: 0.35 | BC61: 0.358 | BD61: 0.366 | BE61: 0.374 | BF61: 0.381 | BG61: 0.389 | BH61: 0.4 | BI61: 0.412 | BJ61: 0.419 | BK61: 0.435 | BL61: 0.438 | BM61: 0.442 | BN61: 0.448 | BO61: 0.46 | BP61: 0.464 | BQ61: 0.471 | BR61: 0.475 | BS61: 0.478 | BT61: 0.48 | BV61: Democratic Republic of the Congo | BW61: .. | BX61: .. | BY61: .. | BZ61: .. | CA61: 98.5 | CB61: .. | CC61: .. | CD61: .. | CE61: .. | CF61: .. | CG61: .. | CH61: .. | CI61: 91.4 | CJ61: .. | CK61: .. | CL61: .. | CM61: .. | CN61: .. | CO61: .. | CP61: .. | CQ61: .. | CS61: Democratic Republic of the Congo | CT61: Low income
A62: 61 | B62: Denmark | C62: Danish Krone | D62: DKK | E62: 2021-10-01 | F62: 6.393 | H62: DNK | K62: Western Europe | N62: High-Income | O62: Partial data: Source: Health records | P62: 61 | Q62: 2013 | R62: Denmark | S62: 208 | T62: 924 | U62: 0 | V62: 63 | W62: 62 | X62: 63 | Y62: 63 | Z62: 64 | AA62: 65 | AB62: 66 | AC62: 67 | AD62: 67 | AE62: 67 | AF62: 66 | AG62: 63 | AH62: 60 | AI62: 56 | AJ62: 53 | AK62: 52 | AL62: 53 | AM62: 57 | AN62: 61 | AO62: 65 | AP62: 68 | AR62: 325.914 | AS62: 336.773 | AT62: 334.442 | AU62: 327.072 | AV62: 320.724 | AW62: 320.869 | AY62: Denmark | AZ62: 10 | BA62: 0.87 | BB62: 0.883 | BC62: 0.89 | BD62: 0.901 | BE62: 0.905 | BF62: 0.91 | BG62: 0.912 | BH62: 0.911 | BI62: 0.917 | BJ62: 0.914 | BK62: 0.917 | BL62: 0.93 | BM62: 0.931 | BN62: 0.933 | BO62: 0.935 | BP62: 0.933 | BQ62: 0.935 | BR62: 0.936 | BS62: 0.939 | BT62: 0.94 | BV62: Denmark | BW62: .. | BX62: .. | BY62: .. | BZ62: 0.4 | CA62: 0.3 | CB62: 0.3 | CC62: 0.2 | CD62: 0.3 | CE62: 0.4 | CF62: 0.6 | CG62: 0.1 | CH62: .. | CI62: .. | CJ62: 0.3 | CK62: 0.2 | CL62: 0.2 | CM62: 0.3 | CN62: 0.2 | CO62: 0.2 | CP62: .. | CQ62: .. | CS62: Denmark | CT62: High Income
A63: 62 | B63: Djibouti | C63: Djibouti Francs | D63: DJF | E63: 2021-10-01 | F63: 177 | H63: DJI | I63: Djibouti | J63: Djibouti 2006 | K63: Eastern and Southern Africa | L63: Eastern Africa | M63: Sub-Saharan Africa | N63: Lower-Middle Income | O63: Full data, Source: MICS | P63: 62 | Q63: 2006 | R63: Djibouti | S63: 262 | T63: 910 | U63: 0 | V63: 22 | W63: 22 | X63: 22 | Y63: 22 | Z63: 21 | AA63: 21 | AB63: 20 | AC63: 19 | AD63: 19 | AE63: 18 | AF63: 18 | AG63: 19 | AH63: 19 | AI63: 20 | AJ63: 21 | AK63: 22 | AL63: 22 | AM63: 21 | AN63: 20 | AO63: 19 | AP63: 19 | AR63: 99.469 | AS63: 94.882 | AT63: 90.973 | AU63: 88.888 | AV63: 88.587 | AW63: 88.881 | AY63: Djibouti | AZ63: 166 | BA63: 0.36 | BB63: 0.369 | BC63: 0.375 | BD63: 0.385 | BE63: 0.393 | BF63: 0.402 | BG63: 0.413 | BH63: 0.423 | BI63: 0.432 | BJ63: 0.442 | BK63: 0.454 | BL63: 0.463 | BM63: 0.474 | BN63: 0.484 | BO63: 0.492 | BP63: 0.499 | BQ63: 0.505 | BR63: 0.51 | BS63: 0.518 | BT63: 0.524 | BV63: Djibouti | BW63: .. | BX63: .. | BY63: 47.3 | BZ63: .. | CA63: .. | CB63: .. | CC63: .. | CD63: .. | CE63: .. | CF63: .. | CG63: .. | CH63: .. | CI63: 38 | CJ63: 44.2 | CK63: .. | CL63: .. | CM63: .. | CN63: 39.8 | CO63: .. | CP63: .. | CQ63: .. | CS63: Djibouti | CT63: Lower Middle Income
A64: 63 | B64: Dominica | C64: E.C. Dollar | D64: XCD | E64: 2021-10-01 | F64: 2.7 | H64: DMA | K64: Latin America and Caribbean | N64: Upper-Middle-Income | O64: No data, regional estimates only | P64: 63 | R64: Dominica | AP64: 1.123 | AY64: Dominica | AZ64: 94 | BA64: 0.703 | BB64: 0.707 | BC64: 0.707 | BD64: 0.712 | BE64: 0.714 | BF64: 0.715 | BG64: 0.721 | BH64: 0.725 | BI64: 0.73 | BJ64: 0.731 | BK64: 0.74 | BL64: 0.741 | BM64: 0.739 | BN64: 0.739 | BO64: 0.741 | BP64: 0.739 | BQ64: 0.74 | BR64: 0.736 | BS64: 0.738 | BT64: 0.742 | BV64: Dominica | BW64: .. | BX64: .. | BY64: .. | BZ64: .. | CA64: .. | CB64: .. | CC64: .. | CD64: .. | CE64: .. | CF64: .. | CG64: .. | CH64: .. | CI64: .. | CJ64: .. | CK64: .. | CL64: .. | CM64: .. | CN64: .. | CO64: .. | CP64: .. | CQ64: .. | CS64: Dominica
A65: 64 | B65: Dominican Republic | C65: Dominican Peso | D65: DOP | E65: 2021-10-01 | F65: 55.976 | H65: DOM | I65: Dominican Republic | J65: Full data, Source: MICS-DomRep 2019 | K65: Latin America and Caribbean | L65: Caribbean | M65: Latin America and the Caribbean | N65: Upper-Middle-Income | O65: Full data, Source: MICS | P65: 64 | Q65: 2019 | R65: Dominican Republic | S65: 214 | T65: 915 | U65: 0 | V65: 198 | W65: 197 | X65: 198 | Y65: 198 | Z65: 199 | AA65: 200 | AB65: 200 | AC65: 200 | AD65: 200 | AE65: 200 | AF65: 200 | AG65: 201 | AH65: 202 | AI65: 203 | AJ65: 203 | AK65: 204 | AL65: 204 | AM65: 203 | AN65: 203 | AO65: 202 | AP65: 200 | AR65: 998.101 | AS65: 950.717 | AT65: 909.419 | AU65: 873.672 | AV65: 839.434 | AW65: 800.221 | AY65: Dominican Republic | AZ65: 88 | BA65: 0.659 | BB65: 0.663 | BC65: 0.668 | BD65: 0.669 | BE65: 0.672 | BF65: 0.681 | BG65: 0.688 | BH65: 0.694 | BI65: 0.698 | BJ65: 0.7 | BK65: 0.706 | BL65: 0.71 | BM65: 0.714 | BN65: 0.718 | BO65: 0.73 | BP65: 0.738 | BQ65: 0.743 | BR65: 0.746 | BS65: 0.751 | BT65: 0.756 | BV65: Dominican Republic | BW65: 12.9 | BX65: 12.3 | BY65: 14 | BZ65: 17.1 | CA65: 22.5 | CB65: 16.4 | CC65: 13.8 | CD65: 13.3 | CE65: 13.7 | CF65: 12.3 | CG65: 12 | CH65: 10.4 | CI65: 11.1 | CJ65: 10.1 | CK65: 7.8 | CL65: 6.4 | CM65: 5.9 | CN65: 3.8 | CO65: 2.6 | CP65: 2.7 | CQ65: .. | CS65: Dominican Republic | CT65: Upper Middle Income
A66: 65 | B66: Ecuador | C66: US Dollar | D66: USD | E66: 2021-10-01 | F66: 1 | H66: ECU | K66: Latin America and Caribbean | N66: Upper-Middle-Income | O66: No data, regional estimates only | P66: 65 | R66: Ecuador | S66: 218 | T66: 931 | U66: 0 | V66: 321 | W66: 319 | X66: 316 | Y66: 312 | Z66: 308 | AA66: 306 | AB66: 306 | AC66: 307 | AD66: 310 | AE66: 313 | AF66: 316 | AG66: 319 | AH66: 322 | AI66: 325 | AJ66: 327 | AK66: 330 | AL66: 332 | AM66: 334 | AN66: 336 | AO66: 337 | AP66: 336 | AR66: 1680.404 | AS66: 1641.498 | AT66: 1608.549 | AU66: 1579.147 | AV66: 1547.229 | AW66: 1508.939 | AY66: Ecuador | AZ66: 86 | BA66: 0.675 | BB66: 0.68 | BC66: 0.684 | BD66: 0.687 | BE66: 0.693 | BF66: 0.698 | BG66: 0.701 | BH66: 0.71 | BI66: 0.717 | BJ66: 0.719 | BK66: 0.726 | BL66: 0.732 | BM66: 0.751 | BN66: 0.754 | BO66: 0.756 | BP66: 0.764 | BQ66: 0.758 | BR66: 0.76 | BS66: 0.762 | BT66: 0.759 | BV66: Ecuador | BW66: 50 | BX66: .. | BY66: .. | BZ66: 30.5 | CA66: 31.9 | CB66: 25.3 | CC66: 19.9 | CD66: 19.4 | CE66: 18.3 | CF66: 17.3 | CG66: 14.9 | CH66: 12.2 | CI66: 11.5 | CJ66: 10.1 | CK66: 8.6 | CL66: 9.4 | CM66: 9.4 | CN66: 8.7 | CO66: 9.7 | CP66: 9.8 | CQ66: .. | CS66: Ecuador | CT66: Upper Middle Income
A67: 66 | B67: Egypt | C67: Egyptian Pound | D67: EGP | E67: 2021-10-01 | F67: 15.664 | H67: EGY | J67: Egypt (subnational) 2013-2014 | K67: Middle East and North Africa | L67: Western Asia | M67: Western Asia and Northern Africa | N67: Lower-Middle Income | O67: Full data, Source: MICS | P67: 66 | Q67: 2013-14 | R67: Egypt | S67: 818 | T67: 912 | U67: 0 | V67: 1807 | W67: 1813 | X67: 1803 | Y67: 1784 | Z67: 1772 | AA67: 1777 | AB67: 1800 | AC67: 1836 | AD67: 1892 | AE67: 1975 | AF67: 2087 | AG67: 2241 | AH67: 2423 | AI67: 2603 | AJ67: 2739 | AK67: 2803 | AL67: 2771 | AM67: 2671 | AN67: 2535 | AO67: 2408 | AP67: 2327 | AR67: 12648.393 | AS67: 12633.69 | AT67: 13328.865 | AU67: 14210.745 | AV67: 14610.466 | AW67: 14639.565 | AY67: Egypt | AZ67: 116 | BA67: 0.613 | BB67: 0.618 | BC67: 0.622 | BD67: 0.625 | BE67: 0.631 | BF67: 0.637 | BG67: 0.645 | BH67: 0.653 | BI67: 0.66 | BJ67: 0.662 | BK67: 0.668 | BL67: 0.671 | BM67: 0.677 | BN67: 0.683 | BO67: 0.685 | BP67: 0.691 | BQ67: 0.696 | BR67: 0.698 | BS67: 0.701 | BT67: 0.707 | BV67: Egypt | BW67: .. | BX67: .. | BY67: .. | BZ67: .. | CA67: 35.4 | CB67: .. | CC67: .. | CD67: .. | CE67: 33.5 | CF67: .. | CG67: 23.7 | CH67: .. | CI67: 19 | CJ67: .. | CK67: .. | CL67: 18.2 | CM67: .. | CN67: 28.9 | CO67: .. | CP67: .. | CQ67: .. | CS67: Egypt | CT67: Lower Middle Income
A68: 67 | B68: El Salvador | C68: US Dollar | D68: USD | E68: 2021-10-01 | F68: 1 | H68: SLV | I68: El Salvador | J68: El Salvador 2014 | K68: Latin America and Caribbean | L68: Central America | M68: Latin America and the Caribbean | N68: Lower-Middle Income | O68: Full data, Source: MICS | P68: 67 | Q68: 2014 | R68: El Salvador | S68: 222 | T68: 916 | U68: 0 | V68: 144 | W68: 139 | X68: 133 | Y68: 127 | Z68: 122 | AA68: 120 | AB68: 119 | AC68: 121 | AD68: 123 | AE68: 126 | AF68: 127 | AG68: 126 | AH68: 123 | AI68: 120 | AJ68: 118 | AK68: 116 | AL68: 115 | AM68: 116 | AN68: 116 | AO68: 117 | AP68: 117 | AR68: 562.966 | AS68: 523.911 | AT68: 483.3 | AU68: 448.906 | AV68: 422.152 | AW68: 398.505 | AY68: El Salvador | AZ68: 124 | BA68: 0.615 | BB68: 0.62 | BC68: 0.627 | BD68: 0.633 | BE68: 0.639 | BF68: 0.646 | BG68: 0.653 | BH68: 0.652 | BI68: 0.655 | BJ68: 0.656 | BK68: 0.668 | BL68: 0.664 | BM68: 0.669 | BN68: 0.67 | BO68: 0.668 | BP68: 0.668 | BQ68: 0.671 | BR68: 0.671 | BS68: 0.67 | BT68: 0.673 | BV68: El Salvador | BW68: 24.3 | BX68: 25.9 | BY68: 26.2 | BZ68: 27.2 | CA68: 22.9 | CB68: 23.1 | CC68: 19.2 | CD68: 15.3 | CE68: 19.8 | CF68: 19.4 | CG68: 18.3 | CH68: 16.7 | CI68: 14.7 | CJ68: 12.7 | CK68: 12.4 | CL68: 10.2 | CM68: 10.7 | CN68: 8.7 | CO68: 8 | CP68: 5.7 | CQ68: .. | CS68: El Salvador | CT68: Lower Middle Income
A69: 68 | B69: Equatorial Guinea | C69: CFA Franc | D69: XAF | E69: 2021-10-01 | F69: 563.973 | H69: GNQ | K69: West and Central Africa | N69: Upper-Middle-Income | O69: Full data, Source: MICS | P69: 68 | Q69: 2000 | R69: Equatorial Guinea | S69: 226 | T69: 911 | U69: 0 | V69: 22 | W69: 23 | X69: 24 | Y69: 25 | Z69: 26 | AA69: 27 | AB69: 28 | AC69: 29 | AD69: 30 | AE69: 31 | AF69: 33 | AG69: 34 | AH69: 35 | AI69: 36 | AJ69: 37 | AK69: 37 | AL69: 38 | AM69: 39 | AN69: 40 | AO69: 41 | AP69: 42 | AR69: 238.356 | AS69: 258.061 | AT69: 272.718 | AU69: 284.872 | AV69: 296.286 | AW69: 305.36 | AY69: Equatorial Guinea | AZ69: 145 | BA69: 0.525 | BB69: 0.534 | BC69: 0.546 | BD69: 0.547 | BE69: 0.554 | BF69: 0.565 | BG69: 0.576 | BH69: 0.582 | BI69: 0.583 | BJ69: 0.585 | BK69: 0.576 | BL69: 0.58 | BM69: 0.584 | BN69: 0.585 | BO69: 0.586 | BP69: 0.589 | BQ69: 0.588 | BR69: 0.584 | BS69: 0.582 | BT69: 0.592 | BV69: Equatorial Guinea | BW69: .. | BX69: .. | BY69: .. | BZ69: .. | CA69: .. | CB69: .. | CC69: .. | CD69: .. | CE69: .. | CF69: .. | CG69: .. | CH69: .. | CI69: .. | CJ69: .. | CK69: .. | CL69: .. | CM69: .. | CN69: .. | CO69: .. | CP69: .. | CQ69: .. | CS69: Equatorial Guinea | CT69: Upper Middle Income
A70: 69 | B70: Eritrea | C70: Eritrea Nakfa | D70: ERN | E70: 2021-10-01 | F70: 15 | H70: ERI | K70: Eastern and Southern Africa | N70: Low-Income | O70: No data, regional estimates only | P70: 69 | R70: Eritrea | S70: 232 | T70: 910 | U70: 0 | V70: 64 | W70: 69 | X70: 76 | Y70: 86 | Z70: 95 | AA70: 102 | AB70: 108 | AC70: 112 | AD70: 115 | AE70: 115 | AF70: 113 | AG70: 109 | AH70: 103 | AI70: 97 | AJ70: 92 | AK70: 90 | AL70: 91 | AM70: 94 | AN70: 99 | AO70: 104 | AP70: 107 | AR70: 521.189 | AS70: 546.484 | AT70: 584.517 | AU70: 615.584 | AV70: 628.659 | AW70: 626.747 | AY70: Eritrea | AZ70: 180 | BA70: .. | BB70: .. | BC70: .. | BD70: .. | BE70: .. | BF70: 0.427 | BG70: 0.428 | BH70: 0.43 | BI70: 0.426 | BJ70: 0.436 | BK70: 0.436 | BL70: 0.436 | BM70: 0.441 | BN70: 0.446 | BO70: 0.457 | BP70: 0.454 | BQ70: 0.456 | BR70: 0.454 | BS70: 0.456 | BT70: 0.459 | BV70: Eritrea | BW70: .. | BX70: .. | BY70: .. | BZ70: .. | CA70: .. | CB70: .. | CC70: .. | CD70: .. | CE70: .. | CF70: .. | CG70: .. | CH70: .. | CI70: .. | CJ70: .. | CK70: .. | CL70: .. | CM70: .. | CN70: .. | CO70: .. | CP70: .. | CQ70: .. | CS70: Eritrea | CT70: Low income
A71: 70 | B71: Estonia | C71: Euro | D71: EUR | E71: 2021-10-01 | F71: 0.86 | H71: EST | K71: Western Europe | N71: High-Income | O71: No data | P71: 70 | R71: Estonia | S71: 233 | T71: 924 | U71: 0 | V71: 12 | W71: 13 | X71: 14 | Y71: 14 | Z71: 15 | AA71: 16 | AB71: 16 | AC71: 16 | AD71: 17 | AE71: 17 | AF71: 16 | AG71: 16 | AH71: 15 | AI71: 13 | AJ71: 13 | AK71: 12 | AL71: 12 | AM71: 12 | AN71: 13 | AO71: 13 | AP71: 13 | AR71: 65.161 | AS71: 59.043 | AT71: 54.907 | AU71: 54.889 | AV71: 56.477 | AW71: 56.259 | AY71: Estonia | AZ71: 29 | BA71: 0.787 | BB71: 0.797 | BC71: 0.805 | BD71: 0.813 | BE71: 0.821 | BF71: 0.832 | BG71: 0.839 | BH71: 0.846 | BI71: 0.848 | BJ71: 0.846 | BK71: 0.852 | BL71: 0.86 | BM71: 0.865 | BN71: 0.869 | BO71: 0.871 | BP71: 0.877 | BQ71: 0.881 | BR71: 0.885 | BS71: 0.889 | BT71: 0.892 | BV71: Estonia | BW71: .. | BX71: .. | BY71: .. | BZ71: 4.9 | CA71: 2.7 | CB71: 1.6 | CC71: 1.3 | CD71: 0.8 | CE71: 0.7 | CF71: 1.1 | CG71: 1.6 | CH71: 1.6 | CI71: 1.3 | CJ71: 1.5 | CK71: 1.2 | CL71: 0.9 | CM71: 0.7 | CN71: 0.5 | CO71: 0.5 | CP71: .. | CQ71: .. | CS71: Estonia | CT71: High Income
A72: 71 | B72: Ethiopia | C72: Ethiopian Birr | D72: ETB | E72: 2021-10-01 | F72: 45.982 | H72: ETH | I72: Ethiopia | J72: Full data, Source: Full data, Source: DHS-Ethiopia 2019 | K72: Eastern and Southern Africa | L72: Eastern Africa | M72: Sub-Saharan Africa | N72: Low-Income | O72: Full data, Source: DHS | P72: 71 | Q72: 2019 | R72: Ethiopia | S72: 231 | T72: 910 | U72: 0 | V72: 2708 | W72: 2739 | X72: 2755 | Y72: 2761 | Z72: 2766 | AA72: 2777 | AB72: 2792 | AC72: 2814 | AD72: 2845 | AE72: 2886 | AF72: 2939 | AG72: 2997 | AH72: 3067 | AI72: 3142 | AJ72: 3214 | AK72: 3278 | AL72: 3329 | AM72: 3371 | AN72: 3408 | AO72: 3442 | AP72: 3477 | AR72: 18513.46 | AS72: 19049.721 | AT72: 19345.586 | AU72: 19584.969 | AV72: 19884.879 | AW72: 20024.64 | AY72: Ethiopia | AZ72: 173 | BA72: 0.292 | BB72: 0.306 | BC72: 0.315 | BD72: 0.319 | BE72: 0.334 | BF72: 0.355 | BG72: 0.371 | BH72: 0.386 | BI72: 0.403 | BJ72: 0.411 | BK72: 0.421 | BL72: 0.432 | BM72: 0.438 | BN72: 0.447 | BO72: 0.455 | BP72: 0.462 | BQ72: 0.467 | BR72: 0.474 | BS72: 0.478 | BT72: 0.485 | BV72: Ethiopia | BW72: .. | BX72: .. | BY72: .. | BZ72: .. | CA72: 79.8 | CB72: .. | CC72: .. | CD72: .. | CE72: .. | CF72: .. | CG72: 74.6 | CH72: .. | CI72: .. | CJ72: .. | CK72: .. | CL72: 68.9 | CM72: .. | CN72: .. | CO72: .. | CP72: .. | CQ72: .. | CS72: Ethiopia | CT72: Low income
A73: 72 | B73: Falkand Island | C73: Falkand Islands Pound | D73: FKP | E73: 2021-10-01 | F73: 1.3611 | H73: FLK | K73: Latin America and Caribbean | N73: High-Income | O73: No data, regional estimates only | P73: 72 | R73: Falkand Island | AY73: Falkand Island | BV73: Falkand Island | CS73: Falkand Island
A74: 73 | B74: Fiji | C74: Fiji Dollar | D74: FJD | E74: 2021-10-01 | F74: 2.09 | H74: FJI | K74: Oceania | N74: Upper-Middle-Income | O74: No data, regional estimates only | P74: 73 | R74: Fiji | S74: 242 | T74: 928 | U74: 0 | V74: 19 | W74: 19 | X74: 19 | Y74: 19 | Z74: 19 | AA74: 19 | AB74: 19 | AC74: 19 | AD74: 19 | AE74: 19 | AF74: 19 | AG74: 19 | AH74: 19 | AI74: 19 | AJ74: 18 | AK74: 18 | AL74: 18 | AM74: 18 | AN74: 18 | AO74: 18 | AP74: 18 | AR74: 89.757 | AS74: 87.056 | AT74: 86.718 | AU74: 86.308 | AV74: 84.963 | AW74: 83.214 | AY74: Fiji | AZ74: 93 | BA74: 0.695 | BB74: 0.698 | BC74: 0.7 | BD74: 0.702 | BE74: 0.709 | BF74: 0.705 | BG74: 0.708 | BH74: 0.711 | BI74: 0.712 | BJ74: 0.715 | BK74: 0.715 | BL74: 0.719 | BM74: 0.722 | BN74: 0.728 | BO74: 0.733 | BP74: 0.737 | BQ74: 0.738 | BR74: 0.74 | BS74: 0.742 | BT74: 0.743 | BV74: Fiji | BW74: .. | BX74: .. | BY74: 14.2 | BZ74: .. | CA74: .. | CB74: .. | CC74: .. | CD74: .. | CE74: 10.9 | CF74: .. | CG74: .. | CH74: .. | CI74: .. | CJ74: 7.5 | CK74: .. | CL74: .. | CM74: .. | CN74: .. | CO74: .. | CP74: .. | CQ74: .. | CS74: Fiji | CT74: Upper Middle Income
A75: 74 | B75: Finland | C75: Euro | D75: EUR | E75: 2021-10-01 | F75: 0.86 | H75: FIN | K75: Western Europe | N75: High-Income | O75: Partial data, Source: National survey | P75: 74 | Q75: 2010 | R75: Finland | S75: 246 | T75: 924 | U75: 0 | V75: 52 | W75: 51 | X75: 53 | Y75: 55 | Z75: 57 | AA75: 59 | AB75: 61 | AC75: 62 | AD75: 62 | AE75: 63 | AF75: 63 | AG75: 62 | AH75: 61 | AI75: 60 | AJ75: 59 | AK75: 57 | AL75: 55 | AM75: 53 | AN75: 50 | AO75: 49 | AP75: 47 | AR75: 238.361 | AS75: 236.41 | AT75: 241.438 | AU75: 246.526 | AV75: 247.805 | AW75: 241.035 | AY75: Finland | AZ75: 11 | BA75: 0.864 | BB75: 0.871 | BC75: 0.874 | BD75: 0.877 | BE75: 0.904 | BF75: 0.908 | BG75: 0.912 | BH75: 0.915 | BI75: 0.917 | BJ75: 0.912 | BK75: 0.916 | BL75: 0.92 | BM75: 0.921 | BN75: 0.928 | BO75: 0.928 | BP75: 0.93 | BQ75: 0.932 | BR75: 0.935 | BS75: 0.937 | BT75: 0.938 | BV75: Finland | BW75: .. | BX75: .. | BY75: .. | BZ75: 0.1 | CA75: 0.1 | CB75: 0.1 | CC75: 0.1 | CD75: 0.1 | CE75: 0.1 | CF75: 0.1 | CG75: 0.1 | CH75: 0.1 | CI75: 0.1 | CJ75: 0.1 | CK75: 0.1 | CL75: 0.1 | CM75: 0.1 | CN75: 0.1 | CO75: 0.1 | CP75: .. | CQ75: .. | CS75: Finland | CT75: High Income
A76: 75 | B76: France | C76: Euro | D76: EUR | E76: 2021-10-01 | F76: 0.86 | H76: FRA | K76: Western Europe | N76: High-Income | O76: Partial data, Source: National survey | P76: 75 | Q76: 2012-13 | R76: France | S76: 250 | T76: 926 | U76: 0 | V76: 765 | W76: 771 | X76: 775 | Y76: 778 | Z76: 780 | AA76: 783 | AB76: 787 | AC76: 791 | AD76: 794 | AE76: 796 | AF76: 796 | AG76: 795 | AH76: 793 | AI76: 788 | AJ76: 780 | AK76: 768 | AL76: 753 | AM76: 733 | AN76: 714 | AO76: 699 | AP76: 691 | AR76: 3583.225 | AS76: 3535.079 | AT76: 3542.144 | AU76: 3571.256 | AV76: 3549.703 | AW76: 3469.727 | AY76: France | AZ76: 26 | BA76: 0.849 | BB76: 0.851 | BC76: 0.852 | BD76: 0.855 | BE76: 0.858 | BF76: 0.867 | BG76: 0.871 | BH76: 0.874 | BI76: 0.875 | BJ76: 0.876 | BK76: 0.879 | BL76: 0.882 | BM76: 0.885 | BN76: 0.889 | BO76: 0.893 | BP76: 0.895 | BQ76: 0.894 | BR76: 0.897 | BS76: 0.898 | BT76: 0.901 | BV76: France | BW76: 0.2 | BX76: .. | BY76: .. | BZ76: 0.2 | CA76: 0.1 | CB76: 0.1 | CC76: .. | CD76: .. | CE76: .. | CF76: 0.1 | CG76: 0.1 | CH76: 0.1 | CI76: 0.1 | CJ76: 0.1 | CK76: .. | CL76: 0.2 | CM76: 0.1 | CN76: .. | CO76: 0.1 | CP76: .. | CQ76: .. | CS76: France | CT76: High Income
A77: 76 | B77: French Guiana | C77: Euro | D77: EUR | E77: 2021-10-01 | F77: 0.86 | H77: GUF | O77: No data | P77: 76 | R77: French Guiana | S77: 254 | T77: 931 | U77: 0 | V77: 4 | W77: 5 | X77: 5 | Y77: 5 | Z77: 5 | AA77: 6 | AB77: 6 | AC77: 6 | AD77: 6 | AE77: 6 | AF77: 6 | AG77: 6 | AH77: 6 | AI77: 6 | AJ77: 6 | AK77: 6 | AL77: 7 | AM77: 7 | AN77: 7 | AO77: 8 | AP77: 8 | AR77: 37.705 | AS77: 40.042 | AT77: 42.48 | AU77: 44.428 | AV77: 46.041 | AW77: 48.055 | AY77: French Guiana | BV77: French Guiana | BW77: .. | BX77: .. | BY77: .. | BZ77: .. | CA77: .. | CB77: .. | CC77: .. | CD77: .. | CE77: .. | CF77: .. | CG77: .. | CH77: .. | CI77: .. | CJ77: .. | CK77: .. | CL77: .. | CM77: .. | CN77: .. | CO77: .. | CP77: .. | CQ77: .. | CS77: French Guiana
A78: 77 | B78: French Polynesia | C78: CFP Franc | D78: XPF | E78: 2021-10-01 | F78: 102.598 | H78: PYF | K78: Oceania | N78: High-Income | O78: No data, regional estimates only | P78: 77 | R78: French Polynesia | S78: 258 | T78: 957 | U78: 0 | V78: 5 | W78: 5 | X78: 5 | Y78: 5 | Z78: 5 | AA78: 5 | AB78: 4 | AC78: 4 | AD78: 4 | AE78: 4 | AF78: 4 | AG78: 4 | AH78: 4 | AI78: 4 | AJ78: 3 | AK78: 3 | AL78: 3 | AM78: 4 | AN78: 4 | AO78: 4 | AP78: 5 | AR78: 19.352 | AS78: 18.474 | AT78: 17.789 | AU78: 17.254 | AV78: 16.594 | AW78: 15.935 | AY78: French Polynesia | BV78: French Polynesia | BW78: .. | BX78: .. | BY78: .. | BZ78: .. | CA78: .. | CB78: .. | CC78: .. | CD78: .. | CE78: .. | CF78: .. | CG78: .. | CH78: .. | CI78: .. | CJ78: .. | CK78: .. | CL78: .. | CM78: .. | CN78: .. | CO78: .. | CP78: .. | CQ78: .. | CS78: French Polynesia
A79: 78 | B79: Gabon | C79: CFA Franc | D79: XAF | E79: 2021-10-01 | F79: 563.973 | H79: GAB | I79: Gabon | J79: Full data, Source: Full data, Source: DHS-Gabon 2012 | K79: West and Central Africa | L79: Middle Africa | M79: Sub-Saharan Africa | N79: Upper-Middle-Income | O79: Full data, Source: DHS | P79: 78 | Q79: 2012 | R79: Gabon | S79: 266 | T79: 911 | U79: 0 | V79: 38 | W79: 38 | X79: 39 | Y79: 40 | Z79: 41 | AA79: 42 | AB79: 43 | AC79: 45 | AD79: 47 | AE79: 49 | AF79: 51 | AG79: 53 | AH79: 56 | AI79: 58 | AJ79: 60 | AK79: 61 | AL79: 63 | AM79: 64 | AN79: 65 | AO79: 66 | AP79: 66 | AR79: 333.249 | AS79: 333.56 | AT79: 342.035 | AU79: 359.039 | AV79: 379.802 | AW79: 396.254 | AY79: Gabon | AZ79: 119 | BA79: 0.621 | BB79: 0.624 | BC79: 0.626 | BD79: 0.627 | BE79: 0.626 | BF79: 0.632 | BG79: 0.632 | BH79: 0.637 | BI79: 0.639 | BJ79: 0.646 | BK79: 0.652 | BL79: 0.657 | BM79: 0.666 | BN79: 0.673 | BO79: 0.682 | BP79: 0.685 | BQ79: 0.69 | BR79: 0.694 | BS79: 0.697 | BT79: 0.703 | BV79: Gabon | BW79: .. | BX79: .. | BY79: .. | BZ79: .. | CA79: .. | CB79: 25.8 | CC79: .. | CD79: .. | CE79: .. | CF79: .. | CG79: .. | CH79: .. | CI79: .. | CJ79: .. | CK79: .. | CL79: .. | CM79: .. | CN79: 11.2 | CO79: .. | CP79: .. | CQ79: .. | CS79: Gabon | CT79: Upper Middle Income
A80: 79 | B80: Gambia | C80: Gambian Dalasi | D80: GMD | E80: 2021-10-01 | F80: 51.84 | H80: GMB | I80: Gambia | J80: Full data, Source: Full data, Source: DHS-Gambia 2019-2020 | K80: West and Central Africa | L80: Western Africa | M80: Sub-Saharan Africa | N80: Low-Income | O80: Full data, Source: DHS | P80: 79 | Q80: 2019-20 | R80: Gambia | S80: 270 | T80: 914 | U80: 0 | V80: 51 | W80: 52 | X80: 54 | Y80: 56 | Z80: 58 | AA80: 60 | AB80: 62 | AC80: 64 | AD80: 65 | AE80: 67 | AF80: 69 | AG80: 71 | AH80: 73 | AI80: 75 | AJ80: 77 | AK80: 78 | AL80: 80 | AM80: 82 | AN80: 83 | AO80: 85 | AP80: 86 | AR80: 471.407 | AS80: 502.056 | AT80: 528.171 | AU80: 551.924 | AV80: 571.569 | AW80: 586.795 | AY80: Gambia | AZ80: 172 | BA80: 0.403 | BB80: 0.411 | BC80: 0.415 | BD80: 0.422 | BE80: 0.431 | BF80: 0.435 | BG80: 0.44 | BH80: 0.446 | BI80: 0.453 | BJ80: 0.456 | BK80: 0.459 | BL80: 0.455 | BM80: 0.461 | BN80: 0.467 | BO80: 0.468 | BP80: 0.471 | BQ80: 0.475 | BR80: 0.48 | BS80: 0.487 | BT80: 0.496 | BV80: Gambia | BW80: .. | BX80: .. | BY80: .. | BZ80: 69.8 | CA80: .. | CB80: .. | CC80: .. | CD80: .. | CE80: .. | CF80: .. | CG80: 53.5 | CH80: .. | CI80: .. | CJ80: .. | CK80: .. | CL80: 38.4 | CM80: .. | CN80: .. | CO80: .. | CP80: .. | CQ80: .. | CS80: Gambia | CT80: Low income
A81: 80 | B81: Georgia | C81: Georgian Lari | D81: GEL | E81: 2021-10-01 | F81: 3.118 | H81: GEO | I81: Georgia | J81: Georgia 2018 | K81: Eastern Europe and Central Asia | L81: Western Asia | M81: Western Asia and Northern Africa | N81: Upper-Middle-Income | O81: Full data, Source: MICS | P81: 80 | Q81: 2018 | R81: Georgia | S81: 268 | T81: 922 | U81: 0 | V81: 53 | W81: 51 | X81: 49 | Y81: 48 | Z81: 48 | AA81: 49 | AB81: 50 | AC81: 52 | AD81: 55 | AE81: 58 | AF81: 59 | AG81: 60 | AH81: 61 | AI81: 60 | AJ81: 59 | AK81: 58 | AL81: 56 | AM81: 54 | AN81: 52 | AO81: 50 | AP81: 49 | AR81: 241.333 | AS81: 220.536 | AT81: 214.188 | AU81: 215.352 | AV81: 214.731 | AW81: 206.338 | AY81: Georgia | AZ81: 61 | BA81: 0.69 | BB81: 0.694 | BC81: 0.699 | BD81: 0.708 | BE81: 0.715 | BF81: 0.725 | BG81: 0.731 | BH81: 0.743 | BI81: 0.742 | BJ81: 0.746 | BK81: 0.751 | BL81: 0.757 | BM81: 0.767 | BN81: 0.775 | BO81: 0.783 | BP81: 0.79 | BQ81: 0.792 | BR81: 0.799 | BS81: 0.805 | BT81: 0.812 | BV81: Georgia | BW81: 44.2 | BX81: 46.4 | BY81: 29.9 | BZ81: 30.1 | CA81: 27.8 | CB81: 30.1 | CC81: 30.1 | CD81: 32.5 | CE81: 28.9 | CF81: 28.9 | CG81: 30.6 | CH81: 28.3 | CI81: 25.4 | CJ81: 20.8 | CK81: 17.8 | CL81: 15.7 | CM81: 16.1 | CN81: 16.1 | CO81: 15.5 | CP81: 14.9 | CQ81: .. | CS81: Georgia | CT81: Upper Middle Income
A82: 81 | B82: Germany | C82: Euro | D82: EUR | E82: 2021-10-01 | F82: 0.86 | H82: DEU | K82: Western Europe | N82: High-Income | O82: Partial data, Source: National survey | P82: 81 | Q82: 2009-12 | R82: Germany | S82: 276 | T82: 926 | U82: 0 | V82: 806 | W82: 792 | X82: 764 | Y82: 728 | Z82: 694 | AA82: 669 | AB82: 657 | AC82: 655 | AD82: 659 | AE82: 667 | AF82: 674 | AG82: 678 | AH82: 682 | AI82: 688 | AJ82: 699 | AK82: 717 | AL82: 743 | AM82: 776 | AN82: 808 | AO82: 831 | AP82: 838 | AR82: 3920.263 | AS82: 3798.188 | AT82: 3674.781 | AU82: 3582.076 | AV82: 3546.808 | AW82: 3591.276 | AY82: Germany | AZ82: 6 | BA82: 0.876 | BB82: 0.884 | BC82: 0.89 | BD82: 0.896 | BE82: 0.907 | BF82: 0.908 | BG82: 0.918 | BH82: 0.921 | BI82: 0.924 | BJ82: 0.924 | BK82: 0.927 | BL82: 0.933 | BM82: 0.934 | BN82: 0.935 | BO82: 0.937 | BP82: 0.938 | BQ82: 0.941 | BR82: 0.943 | BS82: 0.946 | BT82: 0.947 | BV82: Germany | BW82: 0.2 | BX82: .. | BY82: .. | BZ82: 0.2 | CA82: 0.2 | CB82: .. | CC82: .. | CD82: .. | CE82: 0.2 | CF82: .. | CG82: 0.2 | CH82: .. | CI82: .. | CJ82: .. | CK82: 0.2 | CL82: .. | CM82: 0.2 | CN82: .. | CO82: .. | CP82: .. | CQ82: .. | CS82: Germany | CT82: High Income
A83: 82 | B83: Ghana | C83: Ghana Cedi | D83: GHS | E83: 2021-10-01 | F83: 5.955 | H83: GHA | I83: Ghana | J83: Ghana2017_18 | K83: West and Central Africa | L83: Western Africa | M83: Sub-Saharan Africa | N83: Lower-Middle Income | O83: Full data, Source: MICS | P83: 82 | Q83: 2017-18 | R83: Ghana | S83: 288 | T83: 914 | U83: 0 | V83: 651 | W83: 657 | X83: 661 | Y83: 665 | Z83: 670 | AA83: 679 | AB83: 691 | AC83: 706 | AD83: 723 | AE83: 741 | AF83: 759 | AG83: 776 | AH83: 793 | AI83: 808 | AJ83: 820 | AK83: 830 | AL83: 835 | AM83: 837 | AN83: 838 | AO83: 839 | AP83: 844 | AR83: 4535.311 | AS83: 4712.081 | AT83: 4901.033 | AU83: 5093.54 | AV83: 5274.158 | AW83: 5415.666 | AY83: Ghana | AZ83: 138 | BA83: 0.494 | BB83: 0.493 | BC83: 0.499 | BD83: 0.5 | BE83: 0.509 | BF83: 0.52 | BG83: 0.529 | BH83: 0.541 | BI83: 0.553 | BJ83: 0.558 | BK83: 0.565 | BL83: 0.574 | BM83: 0.577 | BN83: 0.586 | BO83: 0.59 | BP83: 0.59 | BQ83: 0.598 | BR83: 0.602 | BS83: 0.606 | BT83: 0.611 | BV83: Ghana | BW83: .. | BX83: .. | BY83: .. | BZ83: .. | CA83: .. | CB83: 48 | CC83: .. | CD83: .. | CE83: .. | CF83: .. | CG83: .. | CH83: .. | CI83: 30.9 | CJ83: .. | CK83: .. | CL83: .. | CM83: 29.3 | CN83: .. | CO83: .. | CP83: .. | CQ83: .. | CS83: Ghana | CT83: Lower Middle Income
A84: 83 | B84: Gibraltar | C84: Gibraltar Pound | D84: GIP | E84: 2021-10-01 | F84: 0.744 | H84: GIB | K84: Western Europe | N84: High-Income | O84: No data | P84: 83 | R84: Gibraltar | AY84: Gibraltar | BV84: Gibraltar | CS84: Gibraltar
A85: 84 | B85: GLOBAL | C85: US Dollar | E85: 2021-10-01 | F85: 1 | I85: GLOBAL | J85: GLOBAL | K85: GLOBAL | O85: Global Average | P85: 84 | R85: GLOBAL | V85: 128307.598 | W85: 129119.497 | X85: 129050.719 | Y85: 128482.335 | Z85: 128016.282 | AA85: 128101.659 | AB85: 128837.577 | AC85: 130064.697 | AD85: 131553.983 | AE85: 132969.457 | AF85: 134067.312 | AG85: 134726.68 | AH85: 135110.373 | AI85: 135288.351 | AJ85: 135385.662 | AK85: 135498.587 | AL85: 135654.148 | AM85: 135825.963 | AN85: 135980.987 | AO85: 136073.533 | AP85: 136077.713 | CS85: GLOBAL
A86: 85 | B86: Greece | C86: Euro | D86: EUR | E86: 2021-10-01 | F86: 0.86 | H86: GRC | K86: Western Europe | N86: High-Income | O86: Partial data, Source: National survey | P86: 85 | Q86: 2007-08 | R86: Greece | S86: 300 | T86: 925 | U86: 0 | V86: 105 | W86: 104 | X86: 104 | Y86: 105 | Z86: 107 | AA86: 108 | AB86: 110 | AC86: 113 | AD86: 115 | AE86: 116 | AF86: 114 | AG86: 109 | AH86: 102 | AI86: 94 | AJ86: 87 | AK86: 82 | AL86: 80 | AM86: 79 | AN86: 80 | AO86: 81 | AP86: 80 | AR86: 356.534 | AS86: 332.706 | AT86: 339.663 | AU86: 351.605 | AV86: 352.424 | AW86: 337.186 | AY86: Greece | AZ86: 32 | BA86: 0.804 | BB86: 0.814 | BC86: 0.826 | BD86: 0.833 | BE86: 0.843 | BF86: 0.853 | BG86: 0.859 | BH86: 0.857 | BI86: 0.865 | BJ86: 0.867 | BK86: 0.865 | BL86: 0.862 | BM86: 0.865 | BN86: 0.867 | BO86: 0.875 | BP86: 0.877 | BQ86: 0.874 | BR86: 0.879 | BS86: 0.881 | BT86: 0.888 | BV86: Greece | BW86: 1 | BX86: .. | BY86: .. | BZ86: 0.7 | CA86: 1 | CB86: 0.5 | CC86: 0.9 | CD86: 0.8 | CE86: 0.5 | CF86: 0.7 | CG86: 1.3 | CH86: 2 | CI86: 2.9 | CJ86: 2.7 | CK86: 3 | CL86: 2.9 | CM86: 2.1 | CN86: 1.6 | CO86: 0.3 | CP86: .. | CQ86: .. | CS86: Greece | CT86: High Income
A87: 86 | B87: Greenland | C87: Danish Krone | D87: DKK | E87: 2021-10-01 | F87: 6.393 | H87: GRD | K87: Western Europe | N87: High-Income | O87: No data | P87: 86 | R87: Greenland | AR87: 8.553 | AS87: 7.689 | AT87: 7.167 | AU87: 7.076 | AV87: 7.03 | AW87: 6.758 | AY87: Greenland | BV87: Greenland | CS87: Greenland
A88: 87 | B88: Grenada | C88: E.C. Dollar | D88: XCD | E88: 2021-10-01 | F88: 2.7 | H88: GRL | K88: Latin America and Caribbean | N88: Upper-Middle-Income | O88: No data | P88: 87 | R88: Grenada | S88: 308 | T88: 915 | U88: 0 | V88: 2 | W88: 2 | X88: 2 | Y88: 2 | Z88: 2 | AA88: 2 | AB88: 2 | AC88: 2 | AD88: 2 | AE88: 2 | AF88: 2 | AG88: 2 | AH88: 2 | AI88: 2 | AJ88: 2 | AK88: 2 | AL88: 2 | AM88: 2 | AN88: 2 | AO88: 2 | AP88: 2 | AY88: Grenada | AZ88: 74 | BA88: .. | BB88: .. | BC88: 0.721 | BD88: 0.729 | BE88: 0.731 | BF88: 0.744 | BG88: 0.745 | BH88: 0.75 | BI88: 0.753 | BJ88: 0.75 | BK88: 0.754 | BL88: 0.756 | BM88: 0.757 | BN88: 0.76 | BO88: 0.766 | BP88: 0.77 | BQ88: 0.771 | BR88: 0.77 | BS88: 0.773 | BT88: 0.779 | BV88: Grenada | BW88: .. | BX88: .. | BY88: .. | BZ88: .. | CA88: .. | CB88: .. | CC88: .. | CD88: .. | CE88: .. | CF88: .. | CG88: .. | CH88: .. | CI88: .. | CJ88: .. | CK88: .. | CL88: .. | CM88: .. | CN88: .. | CO88: .. | CP88: .. | CQ88: .. | CS88: Grenada
A89: 88 | B89: Guadeloupe | C89: Euro | D89: EUR | E89: 2021-10-01 | F89: 0.86 | H89: GLP | O89: No data | P89: 88 | R89: Guadeloupe | S89: 312 | T89: 915 | U89: 0 | V89: 6 | W89: 6 | X89: 6 | Y89: 6 | Z89: 6 | AA89: 6 | AB89: 5 | AC89: 5 | AD89: 6 | AE89: 5 | AF89: 5 | AG89: 5 | AH89: 5 | AI89: 4 | AJ89: 4 | AK89: 4 | AL89: 4 | AM89: 4 | AN89: 5 | AO89: 5 | AP89: 5 | AR89: 22.693 | AS89: 24 | AT89: 24.88 | AU89: 23.59 | AV89: 21.264 | AW89: 19.791 | AY89: Guadeloupe | BV89: Guadeloupe | BW89: .. | BX89: .. | BY89: .. | BZ89: .. | CA89: .. | CB89: .. | CC89: .. | CD89: .. | CE89: .. | CF89: .. | CG89: .. | CH89: .. | CI89: .. | CJ89: .. | CK89: .. | CL89: .. | CM89: .. | CN89: .. | CO89: .. | CP89: .. | CQ89: .. | CS89: Guadeloupe
A90: 89 | B90: Guam | C90: US Dollar | D90: USD | E90: 2021-10-01 | F90: 1 | H90: GUM | K90: Oceania | N90: High-Income | O90: No data, regional estimates only | P90: 89 | R90: Guam | S90: 316 | T90: 954 | U90: 0 | V90: 3 | W90: 3 | X90: 3 | Y90: 3 | Z90: 3 | AA90: 3 | AB90: 3 | AC90: 3 | AD90: 3 | AE90: 3 | AF90: 3 | AG90: 3 | AH90: 3 | AI90: 3 | AJ90: 3 | AK90: 3 | AL90: 3 | AM90: 3 | AN90: 3 | AO90: 3 | AP90: 3 | AR90: 13.838 | AS90: 13.634 | AT90: 13.186 | AU90: 12.576 | AV90: 12.03 | AW90: 11.636 | AY90: Guam | BV90: Guam | BW90: .. | BX90: .. | BY90: .. | BZ90: .. | CA90: .. | CB90: .. | CC90: .. | CD90: .. | CE90: .. | CF90: .. | CG90: .. | CH90: .. | CI90: .. | CJ90: .. | CK90: .. | CL90: .. | CM90: .. | CN90: .. | CO90: .. | CP90: .. | CQ90: .. | CS90: Guam
A91: 90 | B91: Guatemala | C91: Guatemala Quetzal(es) | D91: GTQ | E91: 2021-10-01 | F91: 7.726 | H91: GTM | I91: Guatemala | J91: Full data, Source: Full data, Source: DHS-Guatemala 2014-2015 | K91: Latin America and Caribbean | L91: Central America | M91: Latin America and the Caribbean | N91: Upper-Middle-Income | O91: Full data, Source: DHS | P91: 90 | Q91: 2014-2015 | R91: Guatemala | AP91: 427.6 | AR91: 2151.785 | AS91: 2152.899 | AT91: 2135.022 | AU91: 2096.078 | AV91: 2059.307 | AW91: 2017.924 | AY91: Guatemala | AZ91: 127 | BA91: 0.549 | BB91: 0.557 | BC91: 0.563 | BD91: 0.567 | BE91: 0.571 | BF91: 0.574 | BG91: 0.583 | BH91: 0.592 | BI91: 0.597 | BJ91: 0.601 | BK91: 0.606 | BL91: 0.612 | BM91: 0.618 | BN91: 0.621 | BO91: 0.648 | BP91: 0.652 | BQ91: 0.653 | BR91: 0.655 | BS91: 0.657 | BT91: 0.663 | BV91: Guatemala | BW91: 22.4 | BX91: .. | BY91: .. | BZ91: .. | CA91: .. | CB91: .. | CC91: 24.3 | CD91: .. | CE91: .. | CF91: .. | CG91: .. | CH91: .. | CI91: .. | CJ91: .. | CK91: 24.4 | CL91: .. | CM91: .. | CN91: .. | CO91: .. | CP91: .. | CQ91: .. | CS91: Guatemala | CT91: Upper Middle Income
A92: 91 | B92: Guinea | C92: Guinean Franc | D92: GNF | E92: 2021-10-01 | F92: 9701.9 | H92: GIN | I92: Guinea | J92: Equatorial Guinea 2000 | K92: West and Central Africa | L92: Western Africa | M92: Sub-Saharan Africa | N92: Low-Income | O92: Full data, Source: MICS | P92: 91 | Q92: 2000 | R92: Guinea | S92: 324 | T92: 914 | U92: 0 | V92: 324 | W92: 329 | X92: 334 | Y92: 338 | Z92: 343 | AA92: 348 | AB92: 352 | AC92: 358 | AD92: 363 | AE92: 369 | AF92: 375 | AG92: 379 | AH92: 384 | AI92: 389 | AJ92: 394 | AK92: 402 | AL92: 408 | AM92: 417 | AN92: 426 | AO92: 435 | AP92: 443 | AR92: 2431.992 | AS92: 2598.962 | AT92: 2738.471 | AU92: 2859.802 | AV92: 2971.764 | AW92: 3081.659 | AY92: Guinea | AZ92: 178 | BA92: 0.34 | BB92: 0.347 | BC92: 0.356 | BD92: 0.347 | BE92: 0.372 | BF92: 0.383 | BG92: 0.392 | BH92: 0.4 | BI92: 0.408 | BJ92: 0.408 | BK92: 0.416 | BL92: 0.429 | BM92: 0.439 | BN92: 0.445 | BO92: 0.452 | BP92: 0.457 | BQ92: 0.465 | BR92: 0.471 | BS92: 0.473 | BT92: 0.477 | BV92: Guinea | BW92: .. | BX92: .. | BY92: 84.5 | BZ92: .. | CA92: .. | CB92: .. | CC92: .. | CD92: 81.4 | CE92: .. | CF92: .. | CG92: .. | CH92: .. | CI92: 70.9 | CJ92: .. | CK92: .. | CL92: .. | CM92: .. | CN92: .. | CO92: .. | CP92: .. | CQ92: .. | CS92: Guinea | CT92: Low income
A93: 92 | B93: Guinea-Bissau | C93: CFA Franc | D93: XOF | E93: 2021-10-01 | F93: 563.973 | H93: GNB | I93: Guinea-Bissau | J93: Guinea Bissau 2018-2019 | K93: West and Central Africa | L93: Western Africa | M93: Sub-Saharan Africa | N93: Low-Income | O93: Full data, Source: MICS | P93: 92 | Q93: 2018-19 | R93: Guinea-Bissau | S93: 624 | T93: 914 | U93: 0 | V93: 44 | W93: 45 | X93: 45 | Y93: 46 | Z93: 48 | AA93: 49 | AB93: 50 | AC93: 51 | AD93: 53 | AE93: 54 | AF93: 55 | AG93: 56 | AH93: 57 | AI93: 58 | AJ93: 59 | AK93: 60 | AL93: 60 | AM93: 61 | AN93: 62 | AO93: 62 | AP93: 63 | AR93: 341.46 | AS93: 355.864 | AT93: 371.714 | AU93: 387.016 | AV93: 402.489 | AW93: 413.409 | AY93: Guinea-Bissau | AZ93: 175 | BA93: .. | BB93: .. | BC93: .. | BD93: .. | BE93: .. | BF93: 0.403 | BG93: 0.411 | BH93: 0.417 | BI93: 0.424 | BJ93: 0.43 | BK93: 0.436 | BL93: 0.445 | BM93: 0.448 | BN93: 0.452 | BO93: 0.459 | BP93: 0.464 | BQ93: 0.468 | BR93: 0.47 | BS93: 0.472 | BT93: 0.48 | BV93: Guinea-Bissau | BW93: .. | BX93: .. | BY93: 84.5 | BZ93: .. | CA93: .. | CB93: .. | CC93: .. | CD93: .. | CE93: .. | CF93: .. | CG93: 85.4 | CH93: .. | CI93: .. | CJ93: .. | CK93: .. | CL93: .. | CM93: .. | CN93: .. | CO93: .. | CP93: .. | CQ93: .. | CS93: Guinea-Bissau | CT93: Low income
A94: 93 | B94: Guyana | C94: Guyana Dollar | D94: GYD | E94: 2021-10-01 | F94: 208 | H94: GUY | I94: Guyana | J94: Full data, Source: MICS-Guyana 2019-2020 | K94: Latin America and Caribbean | L94: South America | M94: Latin America and the Caribbean | N94: Upper-Middle-Income | O94: Full data, Source: MICS | P94: 93 | Q94: 2019-20 | R94: Guyana | S94: 328 | T94: 931 | U94: 0 | V94: 17 | W94: 17 | X94: 16 | Y94: 16 | Z94: 16 | AA94: 16 | AB94: 16 | AC94: 15 | AD94: 15 | AE94: 15 | AF94: 15 | AG94: 15 | AH94: 15 | AI94: 16 | AJ94: 16 | AK94: 16 | AL94: 16 | AM94: 16 | AN94: 15 | AO94: 15 | AP94: 14 | AR94: 74.876 | AS94: 70.881 | AT94: 67.049 | AU94: 63.008 | AV94: 59.539 | AW94: 56.379 | AY94: Guyana | AZ94: 122 | BA94: 0.616 | BB94: 0.619 | BC94: 0.622 | BD94: 0.618 | BE94: 0.625 | BF94: 0.629 | BG94: 0.63 | BH94: 0.634 | BI94: 0.638 | BJ94: 0.641 | BK94: 0.649 | BL94: 0.658 | BM94: 0.662 | BN94: 0.666 | BO94: 0.671 | BP94: 0.674 | BQ94: 0.676 | BR94: 0.677 | BS94: 0.68 | BT94: 0.682 | BV94: Guyana | BW94: .. | BX94: .. | BY94: .. | BZ94: .. | CA94: .. | CB94: .. | CC94: .. | CD94: .. | CE94: .. | CF94: .. | CG94: .. | CH94: .. | CI94: .. | CJ94: .. | CK94: .. | CL94: .. | CM94: .. | CN94: .. | CO94: .. | CP94: .. | CQ94: .. | CS94: Guyana | CT94: Upper Middle Income
A95: 94 | B95: Haiti | C95: Haiti Gourde | D95: HTG | E95: 2021-10-01 | F95: 97.61 | H95: HTI | I95: Haiti | J95: Full data, Source: Full data, Source: DHS-Haiti 2016-2017 | K95: Latin America and Caribbean | L95: Caribbean | M95: Latin America and the Caribbean | N95: Lower-Middle Income | O95: Full data, Source: DHS | P95: 94 | Q95: 2016-17 | R95: Haiti | S95: 332 | T95: 915 | U95: 0 | V95: 250 | W95: 251 | X95: 251 | Y95: 252 | Z95: 253 | AA95: 254 | AB95: 255 | AC95: 256 | AD95: 257 | AE95: 257 | AF95: 258 | AG95: 258 | AH95: 259 | AI95: 259 | AJ95: 259 | AK95: 258 | AL95: 258 | AM95: 257 | AN95: 256 | AO95: 255 | AP95: 254 | AR95: 1332.078 | AS95: 1298.05 | AT95: 1264.584 | AU95: 1233.115 | AV95: 1201.539 | AW95: 1166.538 | AY95: Haiti | AZ95: 170 | BA95: 0.442 | BB95: 0.444 | BC95: 0.446 | BD95: 0.449 | BE95: 0.45 | BF95: 0.453 | BG95: 0.458 | BH95: 0.463 | BI95: 0.466 | BJ95: 0.47 | BK95: 0.471 | BL95: 0.478 | BM95: 0.482 | BN95: 0.487 | BO95: 0.492 | BP95: 0.496 | BQ95: 0.5 | BR95: 0.505 | BS95: 0.508 | BT95: 0.51 | BV95: Haiti | BW95: .. | BX95: .. | BY95: .. | BZ95: .. | CA95: .. | CB95: .. | CC95: .. | CD95: .. | CE95: .. | CF95: .. | CG95: .. | CH95: .. | CI95: 50.3 | CJ95: .. | CK95: .. | CL95: .. | CM95: .. | CN95: .. | CO95: .. | CP95: .. | CQ95: .. | CS95: Haiti | CT95: Low income
A96: 95 | B96: Honduras | C96: Honduras Lempira | D96: HNL | E96: 2021-10-01 | F96: 23.994 | H96: HND | I96: Honduras | J96: Full data, Source: MICS-Honduras 2019 | K96: Latin America and Caribbean | L96: Central America | M96: Latin America and the Caribbean | N96: Lower-Middle Income | O96: Full data, Source: MICS | P96: 95 | Q96: 2019 | R96: Honduras | S96: 340 | T96: 916 | U96: 0 | V96: 222 | W96: 221 | X96: 218 | Y96: 213 | Z96: 209 | AA96: 206 | AB96: 205 | AC96: 205 | AD96: 206 | AE96: 207 | AF96: 206 | AG96: 204 | AH96: 202 | AI96: 199 | AJ96: 197 | AK96: 197 | AL96: 199 | AM96: 202 | AN96: 206 | AO96: 209 | AP96: 211 | AR96: 1046.238 | AS96: 1032.336 | AT96: 1000.536 | AU96: 964.735 | AV96: 929.416 | AW96: 901.508 | AY96: Honduras | AZ96: 132 | BA96: 0.566 | BB96: 0.57 | BC96: 0.575 | BD96: 0.58 | BE96: 0.586 | BF96: 0.593 | BG96: 0.599 | BH96: 0.607 | BI96: 0.603 | BJ96: 0.605 | BK96: 0.61 | BL96: 0.613 | BM96: 0.612 | BN96: 0.613 | BO96: 0.616 | BP96: 0.618 | BQ96: 0.626 | BR96: 0.63 | BS96: 0.633 | BT96: 0.634 | BV96: Honduras | BW96: .. | BX96: 36 | BY96: 40.8 | BZ96: 45.6 | CA96: 44.6 | CB96: 42 | CC96: 37.3 | CD96: 32.6 | CE96: 30.9 | CF96: 27.8 | CG96: 29.9 | CH96: 30 | CI96: 35.7 | CJ96: 31.6 | CK96: 31.8 | CL96: 30.9 | CM96: 30.4 | CN96: 29.3 | CO96: 29.6 | CP96: 29 | CQ96: .. | CS96: Honduras | CT96: Lower Middle Income
A97: 96 | B97: Hungary | C97: Hungary Forint | D97: HUF | E97: 2021-10-01 | F97: 309.61 | H97: HUN | K97: Western Europe | N97: High-Income | O97: No data | P97: 96 | R97: Hungary | S97: 348 | T97: 923 | U97: 0 | V97: 85 | W97: 86 | X97: 90 | Y97: 95 | Z97: 100 | AA97: 103 | AB97: 104 | AC97: 103 | AD97: 101 | AE97: 99 | AF97: 96 | AG97: 92 | AH97: 89 | AI97: 85 | AJ97: 83 | AK97: 83 | AL97: 85 | AM97: 88 | AN97: 93 | AO97: 97 | AP97: 99 | AR97: 444.827 | AS97: 428.131 | AT97: 409.647 | AU97: 396.297 | AV97: 389.136 | AW97: 384.307 | AY97: Hungary | AZ97: 40 | BA97: 0.772 | BB97: 0.781 | BC97: 0.788 | BD97: 0.797 | BE97: 0.799 | BF97: 0.805 | BG97: 0.815 | BH97: 0.818 | BI97: 0.822 | BJ97: 0.828 | BK97: 0.831 | BL97: 0.828 | BM97: 0.831 | BN97: 0.839 | BO97: 0.838 | BP97: 0.842 | BQ97: 0.844 | BR97: 0.846 | BS97: 0.85 | BT97: 0.854 | BV97: Hungary | BW97: .. | BX97: .. | BY97: .. | BZ97: .. | CA97: 0.3 | CB97: 1.2 | CC97: 0.3 | CD97: 0.3 | CE97: 0.2 | CF97: 0.1 | CG97: 0.3 | CH97: 0.3 | CI97: 0.6 | CJ97: 0.8 | CK97: 1 | CL97: 1.1 | CM97: 1.8 | CN97: 1.2 | CO97: 0.5 | CP97: .. | CQ97: .. | CS97: Hungary | CT97: High Income
A98: 97 | B98: Iceland | C98: Iceland Krona | D98: ISK | E98: 2021-10-01 | F98: 129.47 | H98: ISL | K98: Western Europe | N98: High-Income | O98: No data | P98: 97 | R98: Iceland | S98: 352 | T98: 924 | U98: 0 | V98: 4 | W98: 4 | X98: 4 | Y98: 4 | Z98: 4 | AA98: 4 | AB98: 5 | AC98: 5 | AD98: 5 | AE98: 5 | AF98: 5 | AG98: 5 | AH98: 5 | AI98: 5 | AJ98: 4 | AK98: 4 | AL98: 4 | AM98: 4 | AN98: 4 | AO98: 4 | AP98: 4 | AR98: 19.955 | AS98: 19.481 | AT98: 19.211 | AU98: 19.11 | AV98: 18.895 | AW98: 18.379 | AY98: Iceland | AZ98: 4 | BA98: 0.867 | BB98: 0.872 | BC98: 0.881 | BD98: 0.887 | BE98: 0.891 | BF98: 0.896 | BG98: 0.899 | BH98: 0.905 | BI98: 0.899 | BJ98: 0.898 | BK98: 0.898 | BL98: 0.907 | BM98: 0.915 | BN98: 0.927 | BO98: 0.931 | BP98: 0.934 | BQ98: 0.941 | BR98: 0.943 | BS98: 0.946 | BT98: 0.949 | BV98: Iceland | BW98: .. | BX98: .. | BY98: .. | BZ98: .. | CA98: 0.2 | CB98: 0.1 | CC98: 0.3 | CD98: 0.1 | CE98: 0.1 | CF98: 0.1 | CG98: 0.2 | CH98: 0.2 | CI98: 0.1 | CJ98: 0.1 | CK98: .. | CL98: .. | CM98: 0.1 | CN98: .. | CO98: .. | CP98: .. | CQ98: .. | CS98: Iceland | CT98: High Income
A99: 98 | B99: India | C99: Indian Rupee | D99: INR | E99: 2021-10-01 | F99: 74.15 | H99: IND | I99: India | J99: India 2017 | K99: South Asia | L99: Southern Asia | M99: Central Asia and Southern Asia | N99: Lower-Middle Income | O99: Full data, Source: MICS | P99: 98 | Q99: 2017 | R99: India | S99: 356 | T99: 5501 | U99: 0 | V99: 26286 | W99: 26336 | X99: 26339 | Y99: 26307 | Z99: 26259 | AA99: 26205 | AB99: 26169 | AC99: 26142 | AD99: 26068 | AE99: 25877 | AF99: 25526 | AG99: 24966 | AH99: 24256 | AI99: 23523 | AJ99: 22942 | AK99: 22635 | AL99: 22694 | AM99: 23019 | AN99: 23485 | AO99: 23905 | AP99: 24143 | AR99: 119706.518 | AS99: 117610.423 | AT99: 113920.458 | AU99: 108162.546 | AV99: 102533.214 | AW99: 98476.99 | AY99: India | AZ99: 131 | BA99: 0.495 | BB99: 0.499 | BC99: 0.506 | BD99: 0.518 | BE99: 0.527 | BF99: 0.536 | BG99: 0.546 | BH99: 0.555 | BI99: 0.563 | BJ99: 0.569 | BK99: 0.579 | BL99: 0.588 | BM99: 0.597 | BN99: 0.604 | BO99: 0.616 | BP99: 0.624 | BQ99: 0.63 | BR99: 0.64 | BS99: 0.642 | BT99: 0.645 | BV99: India | BW99: .. | BX99: .. | BY99: .. | BZ99: .. | CA99: 76.2 | CB99: .. | CC99: .. | CD99: .. | CE99: .. | CF99: 71 | CG99: .. | CH99: 61.7 | CI99: .. | CJ99: .. | CK99: .. | CL99: .. | CM99: .. | CN99: .. | CO99: .. | CP99: .. | CQ99: .. | CS99: India | CT99: Lower Middle Income
A100: 99 | B100: Indonesia | C100: Indonesia Rupiah | D100: IDR | E100: 2021-10-01 | F100: 14290 | H100: IDN | I100: Indonesia | J100: Full data, Source: Full data, Source: DHS-Indonesia 2017 | K100: Southeastern Asia | L100: South-Eastern Asia | M100: Eastern Asia and South-eastern Asia | N100: Lower-Middle Income | O100: Full data, Source: DHS | P100: 99 | Q100: 2017 | R100: Indonesia | S100: 360 | T100: 920 | U100: 0 | V100: 4211 | W100: 4219 | X100: 4251 | Y100: 4298 | Z100: 4346 | AA100: 4384 | AB100: 4415 | AC100: 4433 | AD100: 4453 | AE100: 4496 | AF100: 4574 | AG100: 4705 | AH100: 4868 | AI100: 5030 | AJ100: 5142 | AK100: 5174 | AL100: 5098 | AM100: 4943 | AN100: 4750 | AO100: 4576 | AP100: 4466 | AR100: 23569.127 | AS100: 23116.749 | AT100: 22719.28 | AU100: 22308.103 | AV100: 21790.268 | AW100: 21157.923 | AY100: Indonesia | AZ100: 107 | BA100: 0.603 | BB100: 0.609 | BC100: 0.615 | BD100: 0.622 | BE100: 0.628 | BF100: 0.632 | BG100: 0.642 | BH100: 0.643 | BI100: 0.647 | BJ100: 0.658 | BK100: 0.665 | BL100: 0.673 | BM100: 0.681 | BN100: 0.687 | BO100: 0.69 | BP100: 0.695 | BQ100: 0.703 | BR100: 0.707 | BS100: 0.712 | BT100: 0.718 | BV100: Indonesia | BW100: 77.2 | BX100: 74.6 | BY100: 61.3 | BZ100: 59.8 | CA100: 59.8 | CB100: 57.3 | CC100: 62.4 | CD100: 55.2 | CE100: 53.9 | CF100: 51.1 | CG100: 45 | CH100: 41.9 | CI100: 40.3 | CJ100: 37.6 | CK100: 34.8 | CL100: 30.5 | CM100: 28.6 | CN100: 24.6 | CO100: 21.5 | CP100: 19.9 | CQ100: .. | CS100: Indonesia | CT100: Lower Middle Income
A101: 100 | B101: Iran (Islamic Republic of) | C101: Iranian Rial | D101: IRR | E101: 2021-10-01 | F101: 268509 | H101: IRN | K101: Middle East and North Africa | N101: Lower-Middle Income | O101: No data, regional estimates only | P101: 100 | R101: Iran (Islamic Republic of) | S101: 364 | T101: 5501 | U101: 0 | V101: 1165 | W101: 1178 | X101: 1192 | Y101: 1205 | Z101: 1219 | AA101: 1234 | AB101: 1248 | AC101: 1263 | AD101: 1277 | AE101: 1292 | AF101: 1310 | AG101: 1328 | AH101: 1346 | AI101: 1367 | AJ101: 1394 | AK101: 1427 | AL101: 1471 | AM101: 1521 | AN101: 1566 | AO101: 1590 | AP101: 1583 | AR101: 7060.548 | AS101: 6375.503 | AT101: 5996.228 | AU101: 5984.844 | AV101: 6140.513 | AW101: 6262.165 | AY101: Iran (Islamic Republic of) | AZ101: 70 | BA101: 0.658 | BB101: 0.665 | BC101: 0.67 | BD101: 0.677 | BE101: 0.678 | BF101: 0.683 | BG101: 0.719 | BH101: 0.723 | BI101: 0.728 | BJ101: 0.734 | BK101: 0.742 | BL101: 0.753 | BM101: 0.768 | BN101: 0.771 | BO101: 0.774 | BP101: 0.774 | BQ101: 0.784 | BR101: 0.787 | BS101: 0.785 | BT101: 0.783 | BV101: Iran (Islamic Republic of) | BW101: .. | BX101: .. | BY101: .. | BZ101: .. | CA101: .. | CB101: 4 | CC101: 4.1 | CD101: .. | CE101: .. | CF101: 4.5 | CG101: .. | CH101: .. | CI101: .. | CJ101: 1.7 | CK101: 3.2 | CL101: 3.2 | CM101: 3.1 | CN101: 2.9 | CO101: 3.1 | CP101: .. | CQ101: .. | CS101: Iran (Islamic Republic of) | CT101: Upper Middle Income
A102: 101 | B102: Iraq | C102: Iraqi Dinar | D102: IQD | E102: 2021-10-01 | F102: 1450 | H102: IRQ | I102: Iraq | J102: Iraq 2018 | K102: Middle East and North Africa | L102: Western Asia | M102: Western Asia and Northern Africa | N102: Upper-Middle-Income | O102: Full data, Source: MICS | P102: 101 | Q102: 2018 | R102: Iraq | S102: 368 | T102: 922 | U102: 0 | V102: 818 | W102: 835 | X102: 848 | Y102: 858 | Z102: 866 | AA102: 871 | AB102: 880 | AC102: 886 | AD102: 895 | AE102: 913 | AF102: 944 | AG102: 977 | AH102: 1022 | AI102: 1071 | AJ102: 1108 | AK102: 1124 | AL102: 1121 | AM102: 1099 | AN102: 1067 | AO102: 1043 | AP102: 1037 | AR102: 5865.562 | AS102: 6182.442 | AT102: 6458.458 | AU102: 6710.929 | AV102: 6911.114 | AW102: 7065.255 | AY102: Iraq | AZ102: 123 | BA102: 0.595 | BB102: 0.601 | BC102: 0.603 | BD102: 0.589 | BE102: 0.615 | BF102: 0.617 | BG102: 0.62 | BH102: 0.623 | BI102: 0.63 | BJ102: 0.632 | BK102: 0.636 | BL102: 0.642 | BM102: 0.646 | BN102: 0.646 | BO102: 0.645 | BP102: 0.649 | BQ102: 0.656 | BR102: 0.667 | BS102: 0.671 | BT102: 0.674 | BV102: Iraq | BW102: .. | BX102: .. | BY102: .. | BZ102: .. | CA102: .. | CB102: .. | CC102: 15.7 | CD102: .. | CE102: .. | CF102: .. | CG102: .. | CH102: .. | CI102: 14.8 | CJ102: .. | CK102: .. | CL102: .. | CM102: .. | CN102: .. | CO102: .. | CP102: .. | CQ102: .. | CS102: Iraq | CT102: Upper Middle Income
A103: 102 | B103: Ireland | C103: Euro | D103: EUR | E103: 2021-10-01 | F103: 0.86 | H103: IRL | K103: Western Europe | N103: High-Income | O103: Partial data: Source: National cohort | P103: 102 | Q103: 2013 | R103: Ireland | S103: 372 | T103: 924 | U103: 0 | V103: 56 | W103: 57 | X103: 58 | Y103: 60 | Z103: 61 | AA103: 64 | AB103: 66 | AC103: 70 | AD103: 73 | AE103: 75 | AF103: 75 | AG103: 75 | AH103: 74 | AI103: 71 | AJ103: 69 | AK103: 67 | AL103: 64 | AM103: 62 | AN103: 60 | AO103: 58 | AP103: 57 | AR103: 284.768 | AS103: 269.718 | AT103: 275.856 | AU103: 290.849 | AV103: 300.599 | AW103: 295.562 | AY103: Ireland | AZ103: 2 | BA103: 0.867 | BB103: 0.873 | BC103: 0.881 | BD103: 0.889 | BE103: 0.898 | BF103: 0.904 | BG103: 0.906 | BH103: 0.909 | BI103: 0.911 | BJ103: 0.906 | BK103: 0.901 | BL103: 0.902 | BM103: 0.908 | BN103: 0.917 | BO103: 0.928 | BP103: 0.935 | BQ103: 0.943 | BR103: 0.947 | BS103: 0.951 | BT103: 0.955 | BV103: Ireland | BW103: 0.2 | BX103: .. | BY103: 0.2 | BZ103: 0.2 | CA103: 0.1 | CB103: 0.1 | CC103: 0.5 | CD103: 0.1 | CE103: 0.3 | CF103: 0.6 | CG103: 0.8 | CH103: 0.7 | CI103: 0.5 | CJ103: 0.8 | CK103: 0.5 | CL103: 0.4 | CM103: 0.4 | CN103: 0.3 | CO103: .. | CP103: .. | CQ103: .. | CS103: Ireland | CT103: High Income
A104: 103 | B104: Israel | C104: Israel Shekel | D104: ILS | E104: 2021-10-01 | F104: 3.217 | H104: ISR | K104: Middle East and North Africa | N104: High-Income | O104: No data, regional estimates only | P104: 103 | R104: Israel | S104: 376 | T104: 922 | U104: 0 | V104: 130 | W104: 131 | X104: 131 | Y104: 131 | Z104: 131 | AA104: 132 | AB104: 135 | AC104: 140 | AD104: 145 | AE104: 150 | AF104: 155 | AG104: 160 | AH104: 164 | AI104: 167 | AJ104: 170 | AK104: 171 | AL104: 171 | AM104: 170 | AN104: 169 | AO104: 167 | AP104: 166 | AR104: 851.84 | AS104: 869.004 | AT104: 906.062 | AU104: 951.498 | AV104: 994.026 | AW104: 1016.679 | AY104: Israel | AZ104: 19 | BA104: 0.861 | BB104: 0.865 | BC104: 0.873 | BD104: 0.874 | BE104: 0.876 | BF104: 0.88 | BG104: 0.88 | BH104: 0.889 | BI104: 0.889 | BJ104: 0.89 | BK104: 0.895 | BL104: 0.901 | BM104: 0.903 | BN104: 0.905 | BO104: 0.909 | BP104: 0.91 | BQ104: 0.913 | BR104: 0.913 | BS104: 0.916 | BT104: 0.919 | BV104: Israel | BW104: .. | BX104: 0.5 | BY104: .. | BZ104: .. | CA104: .. | CB104: 1.2 | CC104: .. | CD104: 1 | CE104: .. | CF104: .. | CG104: 1 | CH104: .. | CI104: 0.9 | CJ104: .. | CK104: 1 | CL104: .. | CM104: 0.7 | CN104: .. | CO104: .. | CP104: .. | CQ104: .. | CS104: Israel | CT104: High Income
A105: 104 | B105: Italy | C105: Euro | D105: EUR | E105: 2021-10-01 | F105: 0.86 | H105: ITA | K105: Western Europe | N105: High-Income | O105: Partial data, Source: National survey | P105: 104 | Q105: 2013 | R105: Italy | S105: 380 | T105: 925 | U105: 0 | V105: 514 | W105: 520 | X105: 533 | Y105: 549 | Z105: 564 | AA105: 575 | AB105: 582 | AC105: 585 | AD105: 583 | AE105: 578 | AF105: 571 | AG105: 559 | AH105: 545 | AI105: 529 | AJ105: 511 | AK105: 494 | AL105: 478 | AM105: 464 | AN105: 450 | AO105: 439 | AP105: 430 | AR105: 2116.837 | AS105: 2076.682 | AT105: 2103.789 | AU105: 2127.851 | AV105: 2109.2 | AW105: 2021.467 | AY105: Italy | AZ105: 29 | BA105: 0.838 | BB105: 0.845 | BC105: 0.85 | BD105: 0.855 | BE105: 0.86 | BF105: 0.865 | BG105: 0.87 | BH105: 0.874 | BI105: 0.876 | BJ105: 0.876 | BK105: 0.879 | BL105: 0.883 | BM105: 0.882 | BN105: 0.881 | BO105: 0.882 | BP105: 0.882 | BQ105: 0.884 | BR105: 0.886 | BS105: 0.89 | BT105: 0.892 | BV105: Italy | BW105: 1.7 | BX105: .. | BY105: .. | BZ105: 1.1 | CA105: 0.9 | CB105: 1 | CC105: 0.9 | CD105: 1.1 | CE105: 1 | CF105: 1.3 | CG105: 1.6 | CH105: 1.5 | CI105: 1.8 | CJ105: 2 | CK105: 1.7 | CL105: 2.5 | CM105: 2.2 | CN105: 1.8 | CO105: .. | CP105: .. | CQ105: .. | CS105: Italy | CT105: High Income
A106: 105 | B106: Jamaica | C106: Jamaican Dollar | D106: JMD | E106: 2021-10-01 | F106: 147.344 | H106: JAM | I106: Jamaica | J106: Jamaica 2011 | K106: Latin America and Caribbean | L106: Caribbean | M106: Latin America and the Caribbean | N106: Upper-Middle-Income | O106: Full data, Source: MICS | P106: 105 | Q106: 2011 | R106: Jamaica | S106: 388 | T106: 915 | U106: 0 | V106: 57 | W106: 55 | X106: 53 | Y106: 51 | Z106: 49 | AA106: 47 | AB106: 46 | AC106: 46 | AD106: 46 | AE106: 46 | AF106: 47 | AG106: 48 | AH106: 48 | AI106: 49 | AJ106: 50 | AK106: 50 | AL106: 49 | AM106: 48 | AN106: 47 | AO106: 45 | AP106: 44 | AR106: 225.713 | AS106: 210.201 | AT106: 195.366 | AU106: 182.88 | AV106: 172.906 | AW106: 164.54 | AY106: Jamaica | AZ106: 101 | BA106: 0.678 | BB106: 0.689 | BC106: 0.692 | BD106: 0.687 | BE106: 0.704 | BF106: 0.706 | BG106: 0.711 | BH106: 0.719 | BI106: 0.737 | BJ106: 0.733 | BK106: 0.732 | BL106: 0.731 | BM106: 0.731 | BN106: 0.729 | BO106: 0.729 | BP106: 0.731 | BQ106: 0.731 | BR106: 0.734 | BS106: 0.734 | BT106: 0.734 | BV106: Jamaica | BW106: .. | BX106: .. | BY106: 11.3 | BZ106: .. | CA106: 8.9 | CB106: .. | CC106: .. | CD106: .. | CE106: .. | CF106: .. | CG106: .. | CH106: .. | CI106: .. | CJ106: .. | CK106: .. | CL106: .. | CM106: .. | CN106: .. | CO106: .. | CP106: .. | CQ106: .. | CS106: Jamaica | CT106: Upper Middle Income
A107: 106 | B107: Japan | C107: Japanese Yen | D107: JPY | E107: 2021-10-01 | F107: 111.63 | H107: JPN | K107: Northeast Asia | N107: High-Income | O107: Partial data, Source: National survey | P107: 106 | Q107: 2009 | R107: Japan | S107: 392 | T107: 906 | U107: 0 | V107: 1207 | W107: 1190 | X107: 1163 | Y107: 1131 | Z107: 1104 | AA107: 1088 | AB107: 1085 | AC107: 1092 | AD107: 1104 | AE107: 1115 | AF107: 1119 | AG107: 1119 | AH107: 1113 | AI107: 1101 | AJ107: 1082 | AK107: 1055 | AL107: 1020 | AM107: 977 | AN107: 933 | AO107: 895 | AP107: 869 | AR107: 4391.359 | AS107: 4234.325 | AT107: 4195.927 | AU107: 4166.337 | AV107: 4101.332 | AW107: 3951.562 | AY107: Japan | AZ107: 19 | BA107: 0.858 | BB107: 0.861 | BC107: 0.864 | BD107: 0.867 | BE107: 0.871 | BF107: 0.875 | BG107: 0.879 | BH107: 0.882 | BI107: 0.883 | BJ107: 0.882 | BK107: 0.887 | BL107: 0.892 | BM107: 0.897 | BN107: 0.902 | BO107: 0.906 | BP107: 0.908 | BQ107: 0.912 | BR107: 0.915 | BS107: 0.917 | BT107: 0.919 | BV107: Japan | BW107: .. | BX107: .. | BY107: .. | BZ107: .. | CA107: .. | CB107: .. | CC107: .. | CD107: .. | CE107: 0.7 | CF107: .. | CG107: 0.2 | CH107: .. | CI107: .. | CJ107: 0.9 | CK107: .. | CL107: .. | CM107: .. | CN107: .. | CO107: .. | CP107: .. | CQ107: .. | CS107: Japan | CT107: High Income
A108: 107 | B108: Jordan | C108: Jordanian Dinar | D108: JOD | E108: 2021-10-01 | F108: 0.708 | H108: JOR | I108: Jordan | J108: Full data, Source: Full data, Source: DHS-Jordan 2017-2018 | K108: Middle East and North Africa | L108: Western Asia | M108: Western Asia and Northern Africa | N108: Upper-Middle-Income | O108: Full data, Source: DHS | P108: 107 | Q108: 2017-2018 | R108: Jordan | S108: 400 | T108: 922 | U108: 0 | V108: 156 | W108: 157 | X108: 158 | Y108: 161 | Z108: 165 | AA108: 171 | AB108: 176 | AC108: 183 | AD108: 191 | AE108: 199 | AF108: 208 | AG108: 214 | AH108: 221 | AI108: 226 | AJ108: 227 | AK108: 225 | AL108: 223 | AM108: 217 | AN108: 209 | AO108: 202 | AP108: 198 | AR108: 1062.117 | AS108: 1016.706 | AT108: 993.186 | AU108: 972.25 | AV108: 933.881 | AW108: 884.83 | AY108: Jordan | AZ108: 102 | BA108: 0.711 | BB108: 0.717 | BC108: 0.715 | BD108: 0.72 | BE108: 0.726 | BF108: 0.738 | BG108: 0.741 | BH108: 0.744 | BI108: 0.745 | BJ108: 0.743 | BK108: 0.737 | BL108: 0.734 | BM108: 0.735 | BN108: 0.729 | BO108: 0.729 | BP108: 0.73 | BQ108: 0.729 | BR108: 0.726 | BS108: 0.728 | BT108: 0.729 | BV108: Jordan | BW108: .. | BX108: .. | BY108: 8.6 | BZ108: .. | CA108: .. | CB108: .. | CC108: 3.9 | CD108: .. | CE108: 2.8 | CF108: .. | CG108: 2 | CH108: .. | CI108: .. | CJ108: .. | CK108: .. | CL108: .. | CM108: .. | CN108: .. | CO108: .. | CP108: .. | CQ108: .. | CS108: Jordan | CT108: Upper Middle Income
A109: 108 | B109: Kazakhstan | C109: Kazakhstan Tenge | D109: KZT | E109: 2021-10-01 | F109: 425.05 | H109: KAZ | I109: Kazakhstan | J109: Kazak 2015 | K109: Eastern Europe and Central Asia | L109: Central Asia | M109: Central Asia and Southern Asia | N109: Upper-Middle-Income | O109: Full data, Source: MICS | P109: 108 | Q109: 2015 | R109: Kazakhstan | S109: 398 | T109: 5500 | U109: 0 | V109: 203 | W109: 211 | X109: 225 | Y109: 243 | Z109: 263 | AA109: 283 | AB109: 302 | AC109: 321 | AD109: 338 | AE109: 354 | AF109: 367 | AG109: 378 | AH109: 386 | AI109: 391 | AJ109: 393 | AK109: 392 | AL109: 388 | AM109: 382 | AN109: 374 | AO109: 365 | AP109: 356 | AR109: 1719.224 | AS109: 1622.954 | AT109: 1684.501 | AU109: 1803.765 | AV109: 1866.049 | AW109: 1837.44 | AY109: Kazakhstan | AZ109: 51 | BA109: 0.685 | BB109: 0.7 | BC109: 0.714 | BD109: 0.726 | BE109: 0.737 | BF109: 0.747 | BG109: 0.754 | BH109: 0.758 | BI109: 0.758 | BJ109: 0.762 | BK109: 0.764 | BL109: 0.772 | BM109: 0.782 | BN109: 0.791 | BO109: 0.798 | BP109: 0.806 | BQ109: 0.808 | BR109: 0.815 | BS109: 0.819 | BT109: 0.825 | BV109: Kazakhstan | BW109: .. | BX109: 29.8 | BY109: 25.3 | BZ109: 20.2 | CA109: 14.3 | CB109: 21.9 | CC109: 4.9 | CD109: 2.3 | CE109: 1.7 | CF109: 2 | CG109: 1.5 | CH109: 0.6 | CI109: 0.4 | CJ109: 0.2 | CK109: 0.2 | CL109: 0.3 | CM109: 0.6 | CN109: 0.3 | CO109: 0.2 | CP109: .. | CQ109: .. | CS109: Kazakhstan | CT109: Upper Middle Income
A110: 109 | B110: Kenya | C110: Kenyan Shilling | D110: KES | E110: 2021-10-01 | F110: 110.4 | H110: KEN | I110: Kenya | J110: Full data, Source: Full data, Source: DHS-Kenya 2014 | K110: Eastern and Southern Africa | L110: Eastern Africa | M110: Sub-Saharan Africa | N110: Lower-Middle Income | O110: Full data, Source: DHS | P110: 109 | Q110: 2014 | R110: Kenya | S110: 404 | T110: 910 | U110: 0 | V110: 1245 | W110: 1266 | X110: 1273 | Y110: 1272 | Z110: 1274 | AA110: 1286 | AB110: 1311 | AC110: 1346 | AD110: 1384 | AE110: 1416 | AF110: 1437 | AG110: 1440 | AH110: 1432 | AI110: 1418 | AJ110: 1404 | AK110: 1393 | AL110: 1388 | AM110: 1385 | AN110: 1389 | AO110: 1400 | AP110: 1418 | AR110: 7779.775 | AS110: 8195.627 | AT110: 8500.876 | AU110: 8598.869 | AV110: 8619.546 | AW110: 8627.534 | AY110: Kenya | AZ110: 143 | BA110: 0.461 | BB110: 0.465 | BC110: 0.465 | BD110: 0.478 | BE110: 0.49 | BF110: 0.5 | BG110: 0.515 | BH110: 0.523 | BI110: 0.532 | BJ110: 0.541 | BK110: 0.551 | BL110: 0.559 | BM110: 0.566 | BN110: 0.573 | BO110: 0.58 | BP110: 0.587 | BQ110: 0.591 | BR110: 0.595 | BS110: 0.599 | BT110: 0.601 | BV110: Kenya | BW110: .. | BX110: .. | BY110: .. | BZ110: .. | CA110: .. | CB110: 69.6 | CC110: .. | CD110: .. | CE110: .. | CF110: .. | CG110: .. | CH110: .. | CI110: .. | CJ110: .. | CK110: .. | CL110: 66.5 | CM110: .. | CN110: .. | CO110: .. | CP110: .. | CQ110: .. | CS110: Kenya | CT110: Lower Middle Income
A111: 110 | B111: Kiribati | C111: Australian Dollar | D111: AUD | E111: 2021-10-01 | F111: 1.39 | H111: KIR | I111: Kiribati | J111: Kiri 2019 | K111: Oceania | L111: Oceania | M111: Oceania excluding Australia and New Zealand | N111: Lower-Middle Income | O111: Full data, Source: MICS | P111: 110 | Q111: 2019 | R111: Kiribati | S111: 296 | T111: 954 | U111: 0 | V111: 2 | W111: 2 | X111: 2 | Y111: 2 | Z111: 2 | AA111: 2 | AB111: 2 | AC111: 2 | AD111: 3 | AE111: 3 | AF111: 3 | AG111: 3 | AH111: 3 | AI111: 3 | AJ111: 3 | AK111: 3 | AL111: 3 | AM111: 3 | AN111: 3 | AO111: 3 | AP111: 3 | AR111: 16.063 | AS111: 15.82 | AT111: 15.784 | AU111: 16.366 | AV111: 17.247 | AW111: 17.705 | AY111: Kiribati | AZ111: 134 | BA111: 0.553 | BB111: 0.569 | BC111: 0.569 | BD111: 0.574 | BE111: 0.572 | BF111: 0.589 | BG111: 0.586 | BH111: 0.587 | BI111: 0.59 | BJ111: 0.588 | BK111: 0.593 | BL111: 0.591 | BM111: 0.6 | BN111: 0.608 | BO111: 0.617 | BP111: 0.625 | BQ111: 0.622 | BR111: 0.627 | BS111: 0.628 | BT111: 0.63 | BV111: Kiribati | BW111: .. | BX111: .. | BY111: .. | BZ111: .. | CA111: .. | CB111: .. | CC111: 34.6 | CD111: .. | CE111: .. | CF111: .. | CG111: .. | CH111: .. | CI111: .. | CJ111: .. | CK111: .. | CL111: .. | CM111: .. | CN111: .. | CO111: .. | CP111: .. | CQ111: .. | CS111: Kiribati | CT111: Lower Middle Income
A112: 111 | B112: Kuwait | C112: Kuwaiti Dinar | D112: KWD | E112: 2021-10-01 | F112: 0.301 | H112: KWT | K112: Middle East and North Africa | N112: High-Income | O112: No data, regional estimates only | P112: 111 | R112: Kuwait | S112: 414 | T112: 922 | U112: 0 | V112: 49 | W112: 49 | X112: 46 | Y112: 42 | Z112: 40 | AA112: 41 | AB112: 43 | AC112: 48 | AD112: 54 | AE112: 59 | AF112: 63 | AG112: 65 | AH112: 64 | AI112: 63 | AJ112: 61 | AK112: 59 | AL112: 59 | AM112: 58 | AN112: 57 | AO112: 56 | AP112: 55 | AR112: 249.187 | AS112: 256.574 | AT112: 284.368 | AU112: 309.316 | AV112: 318.455 | AW112: 309.764 | AY112: Kuwait | AZ112: 64 | BA112: 0.781 | BB112: 0.778 | BC112: 0.78 | BD112: 0.788 | BE112: 0.789 | BF112: 0.783 | BG112: 0.788 | BH112: 0.788 | BI112: 0.79 | BJ112: 0.789 | BK112: 0.788 | BL112: 0.792 | BM112: 0.796 | BN112: 0.793 | BO112: 0.796 | BP112: 0.801 | BQ112: 0.804 | BR112: 0.805 | BS112: 0.807 | BT112: 0.806 | BV112: Kuwait | BW112: .. | BX112: .. | BY112: .. | BZ112: .. | CA112: .. | CB112: .. | CC112: .. | CD112: .. | CE112: .. | CF112: .. | CG112: .. | CH112: .. | CI112: .. | CJ112: .. | CK112: .. | CL112: .. | CM112: .. | CN112: .. | CO112: .. | CP112: .. | CQ112: .. | CS112: Kuwait | CT112: High Income
A113: 112 | B113: Kyrgyzstan | C113: Kyrgyzstan Som | D113: KGS | E113: 2021-10-01 | F113: 84.5 | H113: KGZ | I113: Kyrgyzstan | J113: Kyrgyz 2018 | K113: Eastern Europe and Central Asia | L113: Central Asia | M113: Central Asia and Southern Asia | N113: Lower-Middle Income | O113: Full data, Source: MICS | P113: 112 | Q113: 2018 | R113: Kyrgyzstan | S113: 417 | T113: 5500 | U113: 0 | V113: 104 | W113: 102 | X113: 100 | Y113: 98 | Z113: 98 | AA113: 101 | AB113: 106 | AC113: 113 | AD113: 121 | AE113: 130 | AF113: 139 | AG113: 148 | AH113: 157 | AI113: 164 | AJ113: 169 | AK113: 170 | AL113: 166 | AM113: 158 | AN113: 149 | AO113: 140 | AP113: 135 | AR113: 731.774 | AS113: 704.204 | AT113: 725.877 | AU113: 765.715 | AV113: 784.571 | AW113: 775.984 | AY113: Kyrgyzstan | AZ113: 120 | BA113: 0.62 | BB113: 0.628 | BC113: 0.63 | BD113: 0.637 | BE113: 0.64 | BF113: 0.642 | BG113: 0.647 | BH113: 0.654 | BI113: 0.656 | BJ113: 0.661 | BK113: 0.662 | BL113: 0.664 | BM113: 0.674 | BN113: 0.68 | BO113: 0.686 | BP113: 0.69 | BQ113: 0.691 | BR113: 0.694 | BS113: 0.696 | BT113: 0.697 | BV113: Kyrgyzstan | BW113: 72.8 | BX113: 68.6 | BY113: 67 | BZ113: 64.1 | CA113: 41.2 | CB113: 46.5 | CC113: 34.2 | CD113: 30.9 | CE113: 20.1 | CF113: 16 | CG113: 19 | CH113: 16.5 | CI113: 17.1 | CJ113: 21.3 | CK113: 14.9 | CL113: 18.4 | CM113: 14.1 | CN113: 14.7 | CO113: 10.9 | CP113: 9.7 | CQ113: .. | CS113: Kyrgyzstan | CT113: Lower Middle Income
A114: 113 | B114: Lao People's Democratic Republic | C114: Laos Kip | D114: LAK | E114: 2021-10-01 | F114: 9590 | H114: LAO | I114: Lao People's Democratic Republic | J114: Lao 2017 | K114: Southeastern Asia | L114: South-Eastern Asia | M114: Eastern Asia and South-eastern Asia | N114: Lower-Middle Income | O114: Full data, Source: MICS | P114: 113 | Q114: 2017 | R114: Lao People's Democratic Republic | S114: 418 | T114: 920 | U114: 0 | V114: 151 | W114: 149 | X114: 149 | Y114: 150 | Z114: 152 | AA114: 155 | AB114: 157 | AC114: 161 | AD114: 164 | AE114: 166 | AF114: 167 | AG114: 165 | AH114: 162 | AI114: 159 | AJ114: 156 | AK114: 154 | AL114: 155 | AM114: 157 | AN114: 161 | AO114: 163 | AP114: 164 | AR114: 806.995 | AS114: 773.297 | AT114: 741.292 | AU114: 714.855 | AV114: 687.146 | AW114: 654.977 | AY114: Lao People's Democratic Republic | AZ114: 137 | BA114: 0.471 | BB114: 0.477 | BC114: 0.486 | BD114: 0.494 | BE114: 0.503 | BF114: 0.512 | BG114: 0.514 | BH114: 0.527 | BI114: 0.535 | BJ114: 0.545 | BK114: 0.552 | BL114: 0.565 | BM114: 0.575 | BN114: 0.582 | BO114: 0.589 | BP114: 0.598 | BQ114: 0.605 | BR114: 0.608 | BS114: 0.609 | BT114: 0.613 | BV114: Lao People's Democratic Republic | BW114: .. | BX114: .. | BY114: 70.9 | BZ114: .. | CA114: .. | CB114: .. | CC114: .. | CD114: 64.1 | CE114: .. | CF114: .. | CG114: .. | CH114: .. | CI114: 46.6 | CJ114: .. | CK114: .. | CL114: .. | CM114: .. | CN114: .. | CO114: 37.4 | CP114: .. | CQ114: .. | CS114: Lao People's Democratic Republic | CT114: Lower Middle Income
A115: 114 | B115: Latvia | C115: Euro | D115: EUR | E115: 2021-10-01 | F115: 0.86 | H115: LVA | K115: Western Europe | N115: High-Income | O115: No data | P115: 114 | R115: Latvia | S115: 428 | T115: 924 | U115: 0 | V115: 17 | W115: 19 | X115: 21 | Y115: 23 | Z115: 24 | AA115: 25 | AB115: 26 | AC115: 25 | AD115: 25 | AE115: 23 | AF115: 22 | AG115: 21 | AH115: 19 | AI115: 18 | AJ115: 18 | AK115: 18 | AL115: 20 | AM115: 22 | AN115: 25 | AO115: 27 | AP115: 28 | AR115: 90.187 | AS115: 76.969 | AT115: 69.72 | AU115: 71.101 | AV115: 76.015 | AW115: 78.48 | AY115: Latvia | AZ115: 37 | BA115: 0.735 | BB115: 0.753 | BC115: 0.767 | BD115: 0.781 | BE115: 0.795 | BF115: 0.809 | BG115: 0.816 | BH115: 0.825 | BI115: 0.828 | BJ115: 0.826 | BK115: 0.824 | BL115: 0.829 | BM115: 0.832 | BN115: 0.839 | BO115: 0.845 | BP115: 0.849 | BQ115: 0.854 | BR115: 0.859 | BS115: 0.863 | BT115: 0.866 | BV115: Latvia | BW115: .. | BX115: .. | BY115: .. | BZ115: .. | CA115: 5.4 | CB115: 4.8 | CC115: 2.6 | CD115: 1.6 | CE115: 2.4 | CF115: 3.6 | CG115: 3.6 | CH115: 2.9 | CI115: 2.6 | CJ115: 2.4 | CK115: 1.8 | CL115: 1.6 | CM115: 1.4 | CN115: 1.5 | CO115: 0.9 | CP115: .. | CQ115: .. | CS115: Latvia | CT115: High Income
A116: 115 | B116: Lebanon | C116: Lebanese Pound | D116: LBP | E116: 2021-10-01 | F116: 1507.5 | H116: LBN | K116: Middle East and North Africa | N116: Upper-Middle-Income | O116: No data, regional estimates only | P116: 115 | R116: Lebanon | S116: 422 | T116: 922 | U116: 0 | V116: 79 | W116: 78 | X116: 79 | Y116: 81 | Z116: 82 | AA116: 81 | AB116: 78 | AC116: 73 | AD116: 68 | AE116: 67 | AF116: 72 | AG116: 80 | AH116: 94 | AI116: 110 | AJ116: 123 | AK116: 129 | AL116: 132 | AM116: 129 | AN116: 121 | AO116: 113 | AP116: 106 | AR116: 544.751 | AS116: 463.981 | AT116: 400.416 | AU116: 363.945 | AV116: 349.854 | AW116: 347.923 | AY116: Lebanon | AZ116: 92 | BA116: .. | BB116: .. | BC116: .. | BD116: .. | BE116: .. | BF116: 0.74 | BG116: 0.739 | BH116: 0.751 | BI116: 0.757 | BJ116: 0.764 | BK116: 0.766 | BL116: 0.768 | BM116: 0.759 | BN116: 0.757 | BO116: 0.748 | BP116: 0.744 | BQ116: 0.741 | BR116: 0.748 | BS116: 0.747 | BT116: 0.744 | BV116: Lebanon | BW116: .. | BX116: .. | BY116: .. | BZ116: .. | CA116: .. | CB116: .. | CC116: .. | CD116: .. | CE116: .. | CF116: .. | CG116: .. | CH116: 0.1 | CI116: .. | CJ116: .. | CK116: .. | CL116: .. | CM116: .. | CN116: .. | CO116: .. | CP116: .. | CQ116: .. | CS116: Lebanon | CT116: Upper Middle Income
A117: 116 | B117: Lesotho | C117: Lesotho Loti | D117: LSL | E117: 2021-10-01 | F117: 15.146 | H117: LSO | I117: Lesotho | J117: Lesotho 2018 | K117: Eastern and Southern Africa | L117: Southern Africa | M117: Sub-Saharan Africa | N117: Lower-Middle Income | O117: Full data, Source: MICS | P117: 116 | Q117: 2018 | R117: Lesotho | S117: 426 | T117: 913 | U117: 0 | V117: 58 | W117: 58 | X117: 58 | Y117: 58 | Z117: 58 | AA117: 58 | AB117: 56 | AC117: 55 | AD117: 54 | AE117: 53 | AF117: 52 | AG117: 52 | AH117: 52 | AI117: 52 | AJ117: 53 | AK117: 53 | AL117: 54 | AM117: 54 | AN117: 54 | AO117: 54 | AP117: 54 | AR117: 271.813 | AS117: 261.226 | AT117: 255.379 | AU117: 252.287 | AV117: 249.094 | AW117: 243.487 | AY117: Lesotho | AZ117: 165 | BA117: 0.459 | BB117: 0.451 | BC117: 0.446 | BD117: 0.444 | BE117: 0.44 | BF117: 0.436 | BG117: 0.436 | BH117: 0.441 | BI117: 0.446 | BJ117: 0.455 | BK117: 0.46 | BL117: 0.469 | BM117: 0.48 | BN117: 0.489 | BO117: 0.498 | BP117: 0.503 | BQ117: 0.512 | BR117: 0.517 | BS117: 0.522 | BT117: 0.527 | BV117: Lesotho | BW117: .. | BX117: .. | BY117: 80.4 | BZ117: .. | CA117: .. | CB117: .. | CC117: .. | CD117: .. | CE117: .. | CF117: .. | CG117: .. | CH117: .. | CI117: .. | CJ117: .. | CK117: .. | CL117: .. | CM117: .. | CN117: 49.9 | CO117: .. | CP117: .. | CQ117: .. | CS117: Lesotho | CT117: Lower Middle Income
A118: 117 | B118: Liberia | C118: Liberian Dollar | D118: LRD | E118: 2021-10-01 | F118: 170.408 | H118: LBR | I118: Liberia | J118: Full data, Source: Full data, Source: DHS-Liberia 2019 | K118: West and Central Africa | L118: Western Africa | M118: Sub-Saharan Africa | N118: Low-Income | O118: Full data, Source: DHS | P118: 117 | Q118: 2019 | R118: Liberia | S118: 430 | T118: 914 | U118: 0 | V118: 109 | W118: 114 | X118: 116 | Y118: 116 | Z118: 116 | AA118: 118 | AB118: 120 | AC118: 123 | AD118: 127 | AE118: 131 | AF118: 134 | AG118: 137 | AH118: 139 | AI118: 140 | AJ118: 142 | AK118: 144 | AL118: 145 | AM118: 147 | AN118: 149 | AO118: 152 | AP118: 154 | AR118: 849.588 | AS118: 905.652 | AT118: 955.191 | AU118: 998.306 | AV118: 1035.925 | AW118: 1066.714 | AY118: Liberia | AZ118: 175 | BA118: 0.435 | BB118: 0.435 | BC118: 0.437 | BD118: 0.417 | BE118: 0.427 | BF118: 0.432 | BG118: 0.438 | BH118: 0.445 | BI118: 0.45 | BJ118: 0.452 | BK118: 0.455 | BL118: 0.472 | BM118: 0.469 | BN118: 0.477 | BO118: 0.478 | BP118: 0.477 | BQ118: 0.478 | BR118: 0.481 | BS118: 0.48 | BT118: 0.48 | BV118: Liberia | BW118: .. | BX118: .. | BY118: .. | BZ118: .. | CA118: .. | CB118: .. | CC118: .. | CD118: 91.3 | CE118: .. | CF118: .. | CG118: .. | CH118: .. | CI118: .. | CJ118: .. | CK118: 76.4 | CL118: .. | CM118: 75.6 | CN118: .. | CO118: .. | CP118: .. | CQ118: .. | CS118: Liberia | CT118: Low income
A119: 118 | B119: Libya | C119: Libyan Dinar | D119: LYD | E119: 2021-10-01 | F119: 4.534 | H119: LBY | K119: Middle East and North Africa | N119: Upper-Middle-Income | O119: No data, regional estimates only | P119: 118 | R119: Libya | S119: 434 | T119: 912 | U119: 0 | V119: 115 | W119: 115 | X119: 116 | Y119: 116 | Z119: 117 | AA119: 119 | AB119: 122 | AC119: 127 | AD119: 131 | AE119: 135 | AF119: 137 | AG119: 138 | AH119: 138 | AI119: 137 | AJ119: 135 | AK119: 132 | AL119: 129 | AM119: 125 | AN119: 122 | AO119: 119 | AP119: 116 | AR119: 590.945 | AS119: 554.974 | AT119: 535.634 | AU119: 536.847 | AV119: 541.268 | AW119: 534.351 | AY119: Libya | AZ119: 105 | BA119: 0.78 | BB119: 0.785 | BC119: 0.79 | BD119: 0.797 | BE119: 0.798 | BF119: 0.8 | BG119: 0.8 | BH119: 0.8 | BI119: 0.8 | BJ119: 0.799 | BK119: 0.798 | BL119: 0.764 | BM119: 0.789 | BN119: 0.761 | BO119: 0.728 | BP119: 0.697 | BQ119: 0.687 | BR119: 0.714 | BS119: 0.721 | BT119: 0.724 | BV119: Libya | BW119: .. | BX119: .. | BY119: .. | BZ119: .. | CA119: .. | CB119: .. | CC119: .. | CD119: .. | CE119: .. | CF119: .. | CG119: .. | CH119: .. | CI119: .. | CJ119: .. | CK119: .. | CL119: .. | CM119: .. | CN119: .. | CO119: .. | CP119: .. | CQ119: .. | CS119: Libya | CT119: Upper Middle Income
A120: 119 | B120: Liechtenstein | C120: Swiss Franc | D120: CHF | E120: 2021-10-01 | F120: 0.931 | H120: LIE | K120: Western Europe | N120: High-Income | O120: No data | P120: 119 | R120: Liechtenstein | AY120: Liechtenstein | AZ120: 19 | BA120: 0.862 | BB120: 0.868 | BC120: 0.873 | BD120: 0.878 | BE120: 0.883 | BF120: 0.886 | BG120: 0.89 | BH120: 0.893 | BI120: 0.899 | BJ120: 0.899 | BK120: 0.904 | BL120: 0.909 | BM120: 0.908 | BN120: 0.912 | BO120: 0.911 | BP120: 0.911 | BQ120: 0.915 | BR120: 0.916 | BS120: 0.919 | BT120: 0.919 | BV120: Liechtenstein | BW120: .. | BX120: .. | BY120: .. | BZ120: .. | CA120: .. | CB120: .. | CC120: .. | CD120: .. | CE120: .. | CF120: .. | CG120: .. | CH120: .. | CI120: .. | CJ120: .. | CK120: .. | CL120: .. | CM120: .. | CN120: .. | CO120: .. | CP120: .. | CQ120: .. | CS120: Liechtenstein
A121: 120 | B121: Lithuania | C121: Euro | D121: EUR | E121: 2021-10-01 | F121: 0.86 | H121: LTU | K121: Western Europe | N121: High-Income | O121: No data | P121: 120 | R121: Lithuania | S121: 440 | T121: 924 | U121: 0 | V121: 31 | W121: 31 | X121: 30 | Y121: 30 | Z121: 30 | AA121: 30 | AB121: 31 | AC121: 31 | AD121: 32 | AE121: 32 | AF121: 33 | AG121: 33 | AH121: 33 | AI121: 33 | AJ121: 32 | AK121: 31 | AL121: 30 | AM121: 28 | AN121: 26 | AO121: 24 | AP121: 23 | AR121: 130.668 | AS121: 113.548 | AT121: 98.734 | AU121: 95.822 | AV121: 104.034 | AW121: 110.382 | AY121: Lithuania | AZ121: 34 | BA121: 0.762 | BB121: 0.774 | BC121: 0.785 | BD121: 0.797 | BE121: 0.805 | BF121: 0.817 | BG121: 0.826 | BH121: 0.833 | BI121: 0.838 | BJ121: 0.828 | BK121: 0.831 | BL121: 0.838 | BM121: 0.841 | BN121: 0.847 | BO121: 0.859 | BP121: 0.862 | BQ121: 0.867 | BR121: 0.873 | BS121: 0.876 | BT121: 0.882 | BV121: Lithuania | BW121: .. | BX121: .. | BY121: .. | BZ121: .. | CA121: 7 | CB121: 4.3 | CC121: 2.8 | CD121: 1.9 | CE121: 2.3 | CF121: 4.3 | CG121: 3.1 | CH121: 1.5 | CI121: 2 | CJ121: 2 | CK121: 2.7 | CL121: 1.4 | CM121: 2.2 | CN121: 1.5 | CO121: 1.3 | CP121: .. | CQ121: .. | CS121: Lithuania | CT121: High Income
A122: 121 | B122: Luxembourg | C122: Euro | D122: EUR | E122: 2021-10-01 | F122: 0.86 | H122: LUX | K122: Western Europe | N122: High-Income | O122: No data | P122: 121 | R122: Luxembourg | S122: 442 | T122: 926 | U122: 0 | V122: 5 | W122: 5 | X122: 5 | Y122: 5 | Z122: 5 | AA122: 5 | AB122: 5 | AC122: 5 | AD122: 5 | AE122: 6 | AF122: 6 | AG122: 6 | AH122: 6 | AI122: 6 | AJ122: 6 | AK122: 7 | AL122: 7 | AM122: 7 | AN122: 7 | AO122: 7 | AP122: 7 | AR122: 32.927 | AS122: 33.312 | AT122: 33.833 | AU122: 34.521 | AV122: 35.675 | AW122: 37.118 | AY122: Luxembourg | AZ122: 23 | BA122: 0.86 | BB122: 0.865 | BC122: 0.869 | BD122: 0.873 | BE122: 0.876 | BF122: 0.88 | BG122: 0.884 | BH122: 0.888 | BI122: 0.89 | BJ122: 0.893 | BK122: 0.898 | BL122: 0.899 | BM122: 0.9 | BN122: 0.9 | BO122: 0.903 | BP122: 0.906 | BQ122: 0.91 | BR122: 0.913 | BS122: 0.913 | BT122: 0.916 | BV122: Luxembourg | BW122: .. | BX122: .. | BY122: .. | BZ122: 0.1 | CA122: .. | CB122: 0.1 | CC122: .. | CD122: .. | CE122: .. | CF122: 0.1 | CG122: .. | CH122: 0.1 | CI122: 0.1 | CJ122: 0.1 | CK122: 0.2 | CL122: 0.3 | CM122: 0.1 | CN122: 0.4 | CO122: 0.4 | CP122: .. | CQ122: .. | CS122: Luxembourg | CT122: High Income
A123: 122 | B123: Madagascar | C123: Malagasy Ariary, Madagascar | D123: MGA | E123: 2021-10-01 | F123: 3931.8 | H123: MDG | I123: Madagascar | J123: Madagascar 2018 | K123: Eastern and Southern Africa | L123: Eastern Africa | M123: Sub-Saharan Africa | N123: Low-Income | O123: Full data, Source: MICS | P123: 122 | Q123: 2018 | R123: Madagascar | S123: 450 | T123: 910 | U123: 0 | V123: 613 | W123: 621 | X123: 627 | Y123: 632 | Z123: 638 | AA123: 647 | AB123: 658 | AC123: 672 | AD123: 686 | AE123: 701 | AF123: 714 | AG123: 725 | AH123: 735 | AI123: 744 | AJ123: 756 | AK123: 770 | AL123: 787 | AM123: 808 | AN123: 829 | AO123: 850 | AP123: 869 | AR123: 4650.814 | AS123: 4992.18 | AT123: 5275.856 | AU123: 5564.949 | AV123: 5857.087 | AW123: 6156.714 | AY123: Madagascar | AZ123: 164 | BA123: 0.462 | BB123: 0.468 | BC123: 0.464 | BD123: 0.473 | BE123: 0.48 | BF123: 0.486 | BG123: 0.49 | BH123: 0.498 | BI123: 0.506 | BJ123: 0.51 | BK123: 0.511 | BL123: 0.512 | BM123: 0.514 | BN123: 0.517 | BO123: 0.52 | BP123: 0.522 | BQ123: 0.523 | BR123: 0.526 | BS123: 0.527 | BT123: 0.528 | BV123: Madagascar | BW123: .. | BX123: 84.6 | BY123: .. | BZ123: .. | CA123: .. | CB123: 89.2 | CC123: .. | CD123: .. | CE123: .. | CF123: .. | CG123: 91.2 | CH123: .. | CI123: 91.5 | CJ123: .. | CK123: .. | CL123: .. | CM123: .. | CN123: .. | CO123: .. | CP123: .. | CQ123: .. | CS123: Madagascar | CT123: Low income
A124: 123 | B124: Malawi | C124: Malawi Kwacha | D124: MWK | E124: 2021-10-01 | F124: 815 | H124: MWI | I124: Malawi | J124: Full data, Source: Full data, Source: DHS-Malawi 2015-2016 | K124: Eastern and Southern Africa | L124: Eastern Africa | M124: Sub-Saharan Africa | N124: Low-Income | O124: Full data, Source: DHS | P124: 123 | Q124: 2015-16 | R124: Malawi | S124: 454 | T124: 910 | U124: 0 | V124: 440 | W124: 452 | X124: 461 | Y124: 470 | Z124: 480 | AA124: 493 | AB124: 508 | AC124: 525 | AD124: 542 | AE124: 556 | AF124: 566 | AG124: 567 | AH124: 563 | AI124: 558 | AJ124: 554 | AK124: 554 | AL124: 558 | AM124: 567 | AN124: 578 | AO124: 592 | AP124: 607 | AR124: 3369.433 | AS124: 3648.501 | AT124: 3856.857 | AU124: 4024.294 | AV124: 4181.545 | AW124: 4319.075 | AY124: Malawi | AZ124: 174 | BA124: 0.388 | BB124: 0.388 | BC124: 0.357 | BD124: 0.361 | BE124: 0.363 | BF124: 0.367 | BG124: 0.377 | BH124: 0.388 | BI124: 0.405 | BJ124: 0.42 | BK124: 0.431 | BL124: 0.44 | BM124: 0.446 | BN124: 0.456 | BO124: 0.465 | BP124: 0.468 | BQ124: 0.472 | BR124: 0.473 | BS124: 0.478 | BT124: 0.483 | BV124: Malawi | BW124: .. | BX124: .. | BY124: .. | BZ124: .. | CA124: 90.2 | CB124: .. | CC124: .. | CD124: .. | CE124: .. | CF124: .. | CG124: 88.6 | CH124: .. | CI124: .. | CJ124: .. | CK124: .. | CL124: .. | CM124: 89 | CN124: .. | CO124: .. | CP124: .. | CQ124: .. | CS124: Malawi | CT124: Low income
A125: 124 | B125: Malaysia | C125: Malaysia Ringgit | D125: MYR | E125: 2021-10-01 | F125: 4.183 | H125: MYS | K125: Southeastern Asia | N125: Upper-Middle-Income | O125: No data, regional estimates only | P125: 124 | R125: Malaysia | S125: 458 | T125: 920 | U125: 0 | V125: 544 | W125: 533 | X125: 517 | Y125: 499 | Z125: 482 | AA125: 469 | AB125: 463 | AC125: 460 | AD125: 461 | AE125: 466 | AF125: 472 | AG125: 482 | AH125: 495 | AI125: 508 | AJ125: 519 | AK125: 528 | AL125: 534 | AM125: 536 | AN125: 536 | AO125: 535 | AP125: 533 | AR125: 2647.388 | AS125: 2556.695 | AT125: 2417.403 | AU125: 2287.349 | AV125: 2225.266 | AW125: 2219.415 | AY125: Malaysia | AZ125: 62 | BA125: 0.723 | BB125: 0.721 | BC125: 0.723 | BD125: 0.73 | BE125: 0.733 | BF125: 0.73 | BG125: 0.737 | BH125: 0.75 | BI125: 0.761 | BJ125: 0.765 | BK125: 0.772 | BL125: 0.778 | BM125: 0.781 | BN125: 0.785 | BO125: 0.791 | BP125: 0.796 | BQ125: 0.8 | BR125: 0.805 | BS125: 0.805 | BT125: 0.81 | BV125: Malaysia | BW125: .. | BX125: .. | BY125: .. | BZ125: 6.9 | CA125: .. | CB125: .. | CC125: 3.8 | CD125: .. | CE125: 4.3 | CF125: .. | CG125: .. | CH125: 1.2 | CI125: .. | CJ125: 0.4 | CK125: .. | CL125: 0.3 | CM125: .. | CN125: .. | CO125: .. | CP125: .. | CQ125: .. | CS125: Malaysia | CT125: Upper Middle Income
A126: 125 | B126: Maldives | C126: Maldives Rufiyaa | D126: MVR | E126: 2021-10-01 | F126: 15 | H126: MDV | I126: Maldives | J126: Full data, Source: Full data, Source: DHS-Maldives 2016-2017 | K126: South Asia | L126: Southern Asia | M126: Central Asia and Southern Asia | N126: Upper-Middle-Income | O126: Full data, Source: DHS | P126: 125 | Q126: 2016-17 | R126: Maldives | S126: 462 | T126: 5501 | U126: 0 | V126: 6 | W126: 5 | X126: 5 | Y126: 5 | Z126: 6 | AA126: 6 | AB126: 6 | AC126: 7 | AD126: 7 | AE126: 8 | AF126: 8 | AG126: 8 | AH126: 8 | AI126: 7 | AJ126: 7 | AK126: 7 | AL126: 7 | AM126: 7 | AN126: 7 | AO126: 7 | AP126: 7 | AR126: 32.116 | AS126: 27.804 | AT126: 26.273 | AU126: 27.284 | AV126: 28.383 | AW126: 27.651 | AY126: Maldives | AZ126: 95 | BA126: 0.622 | BB126: 0.626 | BC126: 0.63 | BD126: 0.644 | BE126: 0.649 | BF126: 0.645 | BG126: 0.659 | BH126: 0.664 | BI126: 0.673 | BJ126: 0.674 | BK126: 0.685 | BL126: 0.697 | BM126: 0.704 | BN126: 0.709 | BO126: 0.718 | BP126: 0.724 | BQ126: 0.728 | BR126: 0.731 | BS126: 0.734 | BT126: 0.74 | BV126: Maldives | BW126: .. | BX126: .. | BY126: 19.6 | BZ126: .. | CA126: .. | CB126: .. | CC126: .. | CD126: .. | CE126: .. | CF126: 16.6 | CG126: .. | CH126: .. | CI126: .. | CJ126: .. | CK126: .. | CL126: .. | CM126: 0.2 | CN126: .. | CO126: .. | CP126: .. | CQ126: .. | CS126: Maldives | CT126: Upper Middle Income
A127: 126 | B127: Mali | C127: CFA Franc | D127: XOF | E127: 2021-10-01 | F127: 563.973 | H127: MLI | I127: Mali | J127: Full data, Source: Full data, Source: DHS-Mali 2018 | K127: West and Central Africa | L127: Western Africa | M127: Sub-Saharan Africa | N127: Low-Income | O127: Full data, Source: DHS | P127: 126 | Q127: 2018 | R127: Mali | S127: 466 | T127: 914 | U127: 0 | V127: 460 | W127: 475 | X127: 492 | Y127: 512 | Z127: 532 | AA127: 553 | AB127: 572 | AC127: 591 | AD127: 609 | AE127: 626 | AF127: 640 | AG127: 651 | AH127: 659 | AI127: 667 | AJ127: 675 | AK127: 686 | AL127: 698 | AM127: 713 | AN127: 730 | AO127: 748 | AP127: 765 | AR127: 4309.099 | AS127: 4720.338 | AT127: 5092.393 | AU127: 5417.945 | AV127: 5660.521 | AW127: 5869.542 | AY127: Mali | AZ127: 184 | BA127: 0.312 | BB127: 0.325 | BC127: 0.334 | BD127: 0.347 | BE127: 0.356 | BF127: 0.367 | BG127: 0.376 | BH127: 0.371 | BI127: 0.394 | BJ127: 0.401 | BK127: 0.408 | BL127: 0.413 | BM127: 0.413 | BN127: 0.413 | BO127: 0.419 | BP127: 0.417 | BQ127: 0.422 | BR127: 0.427 | BS127: 0.431 | BT127: 0.434 | BV127: Mali | BW127: .. | BX127: 80.9 | BY127: .. | BZ127: .. | CA127: .. | CB127: .. | CC127: 78.1 | CD127: .. | CE127: .. | CF127: 79.8 | CG127: .. | CH127: .. | CI127: .. | CJ127: .. | CK127: .. | CL127: .. | CM127: .. | CN127: .. | CO127: .. | CP127: .. | CQ127: .. | CS127: Mali | CT127: Low income
A128: 127 | B128: Malta | C128: Euro | D128: EUR | E128: 2021-10-01 | F128: 0.86 | H128: MLT | K128: Western Europe | N128: High-Income | O128: No data | P128: 127 | R128: Malta | S128: 470 | T128: 925 | U128: 0 | V128: 5 | W128: 4 | X128: 4 | Y128: 4 | Z128: 4 | AA128: 4 | AB128: 4 | AC128: 4 | AD128: 4 | AE128: 4 | AF128: 4 | AG128: 4 | AH128: 4 | AI128: 4 | AJ128: 4 | AK128: 4 | AL128: 4 | AM128: 4 | AN128: 4 | AO128: 4 | AP128: 4 | AR128: 21.563 | AS128: 20.578 | AT128: 19.103 | AU128: 18.058 | AV128: 17.877 | AW128: 18.197 | AY128: Malta | AZ128: 28 | BA128: 0.795 | BB128: 0.801 | BC128: 0.804 | BD128: 0.81 | BE128: 0.819 | BF128: 0.834 | BG128: 0.832 | BH128: 0.837 | BI128: 0.839 | BJ128: 0.84 | BK128: 0.853 | BL128: 0.853 | BM128: 0.86 | BN128: 0.867 | BO128: 0.874 | BP128: 0.88 | BQ128: 0.885 | BR128: 0.888 | BS128: 0.894 | BT128: 0.895 | BV128: Malta | BW128: .. | BX128: .. | BY128: .. | BZ128: .. | CA128: .. | CB128: .. | CC128: 0.6 | CD128: 0.6 | CE128: 0.2 | CF128: 0.5 | CG128: 0.3 | CH128: 0.4 | CI128: 0.3 | CJ128: .. | CK128: .. | CL128: 0.1 | CM128: 0.2 | CN128: 0.2 | CO128: 0.2 | CP128: .. | CQ128: .. | CS128: Malta | CT128: High Income
A129: 128 | B129: Marshall Islands | C129: US Dollar | D129: USD | E129: 2021-10-01 | F129: 1 | H129: MHL | K129: Oceania | N129: Upper-Middle-Income | O129: No data, regional estimates only | P129: 128 | R129: Marshall Islands | AP129: 1.717 | AY129: Marshall Islands | BV129: Marshall Islands | CS129: Marshall Islands
A130: 129 | B130: Martinique | C130: Euro | D130: EUR | E130: 2021-10-01 | F130: 0.86 | H130: MTQ | O130: No data | P130: 129 | R130: Martinique | S130: 474 | T130: 915 | U130: 0 | V130: 6 | W130: 6 | X130: 5 | Y130: 5 | Z130: 5 | AA130: 5 | AB130: 5 | AC130: 5 | AD130: 5 | AE130: 4 | AF130: 4 | AG130: 4 | AH130: 4 | AI130: 3 | AJ130: 3 | AK130: 3 | AL130: 3 | AM130: 3 | AN130: 4 | AO130: 4 | AP130: 4 | AR130: 17.882 | AS130: 18.616 | AT130: 19.114 | AU130: 18.003 | AV130: 15.983 | AW130: 14.629 | AY130: Martinique | AZ130: 117 | BA130: .. | BB130: .. | BC130: .. | BD130: .. | BE130: .. | BF130: .. | BG130: .. | BH130: .. | BI130: .. | BJ130: .. | BK130: .. | BL130: .. | BM130: .. | BN130: .. | BO130: .. | BP130: .. | BQ130: .. | BR130: 0.699 | BS130: 0.702 | BT130: 0.704 | BV130: Martinique | BW130: .. | BX130: .. | BY130: .. | BZ130: .. | CA130: .. | CB130: .. | CC130: .. | CD130: .. | CE130: .. | CF130: .. | CG130: .. | CH130: .. | CI130: .. | CJ130: .. | CK130: .. | CL130: .. | CM130: .. | CN130: .. | CO130: .. | CP130: .. | CQ130: .. | CS130: Martinique
A131: 130 | B131: Mauritania | C131: Mauritania Ouguiya | D131: MRU | E131: 2021-10-01 | F131: 36.04 | H131: MRT | I131: Mauritania | J131: Mauritania 2011 | K131: West and Central Africa | L131: Western Africa | M131: Sub-Saharan Africa | N131: Lower-Middle Income | O131: Full data, Source: MICS | P131: 130 | Q131: 2011 | R131: Mauritania | S131: 478 | T131: 914 | U131: 0 | V131: 93 | W131: 95 | X131: 97 | Y131: 99 | Z131: 102 | AA131: 104 | AB131: 106 | AC131: 109 | AD131: 112 | AE131: 115 | AF131: 118 | AG131: 121 | AH131: 125 | AI131: 128 | AJ131: 131 | AK131: 134 | AL131: 136 | AM131: 138 | AN131: 139 | AO131: 141 | AP131: 143 | AR131: 791.675 | AS131: 846.999 | AT131: 903.655 | AU131: 964.447 | AV131: 1023.494 | AW131: 1079.734 | AY131: Mauritania | AZ131: 157 | BA131: 0.464 | BB131: 0.463 | BC131: 0.467 | BD131: 0.472 | BE131: 0.482 | BF131: 0.486 | BG131: 0.496 | BH131: 0.495 | BI131: 0.494 | BJ131: 0.502 | BK131: 0.505 | BL131: 0.509 | BM131: 0.517 | BN131: 0.525 | BO131: 0.531 | BP131: 0.536 | BQ131: 0.542 | BR131: 0.54 | BS131: 0.542 | BT131: 0.546 | BV131: Mauritania | BW131: 47.1 | BX131: .. | BY131: .. | BZ131: .. | CA131: 47 | CB131: .. | CC131: .. | CD131: .. | CE131: 34.6 | CF131: .. | CG131: .. | CH131: .. | CI131: .. | CJ131: .. | CK131: 24.1 | CL131: .. | CM131: .. | CN131: .. | CO131: .. | CP131: .. | CQ131: .. | CS131: Mauritania | CT131: Lower Middle Income
A132: 131 | B132: Mauritius | C132: Mauritius Rupee | D132: MUR | E132: 2021-10-01 | F132: 41.925 | H132: MUS | K132: Eastern and Southern Africa | N132: Upper-Middle-Income | O132: No data, regional estimates only | P132: 131 | R132: Mauritius | S132: 480 | T132: 910 | U132: 0 | V132: 17 | W132: 17 | X132: 18 | Y132: 19 | Z132: 20 | AA132: 20 | AB132: 19 | AC132: 18 | AD132: 17 | AE132: 15 | AF132: 14 | AG132: 13 | AH132: 13 | AI132: 13 | AJ132: 13 | AK132: 14 | AL132: 13 | AM132: 13 | AN132: 13 | AO132: 13 | AP132: 13 | AR132: 62.95 | AS132: 61.251 | AT132: 59.356 | AU132: 55.78 | AV132: 51.634 | AW132: 48.569 | AY132: Mauritius | AZ132: 66 | BA132: 0.678 | BB132: 0.687 | BC132: 0.692 | BD132: 0.701 | BE132: 0.708 | BF132: 0.717 | BG132: 0.724 | BH132: 0.731 | BI132: 0.738 | BJ132: 0.745 | BK132: 0.751 | BL132: 0.76 | BM132: 0.771 | BN132: 0.779 | BO132: 0.789 | BP132: 0.789 | BQ132: 0.794 | BR132: 0.797 | BS132: 0.801 | BT132: 0.804 | BV132: Mauritius | BW132: .. | BX132: .. | BY132: .. | BZ132: .. | CA132: .. | CB132: .. | CC132: 3.6 | CD132: .. | CE132: .. | CF132: .. | CG132: .. | CH132: .. | CI132: 3.2 | CJ132: .. | CK132: .. | CL132: .. | CM132: .. | CN132: 2.2 | CO132: .. | CP132: .. | CQ132: .. | CS132: Mauritius | CT132: Upper Middle Income
A133: 132 | B133: Mayotte | H133: MYT | O133: No data | P133: 132 | R133: Mayotte | S133: 175 | T133: 910 | U133: 0 | V133: 6 | W133: 6 | X133: 6 | Y133: 6 | Z133: 6 | AA133: 6 | AB133: 6 | AC133: 7 | AD133: 7 | AE133: 7 | AF133: 7 | AG133: 7 | AH133: 7 | AI133: 7 | AJ133: 7 | AK133: 7 | AL133: 7 | AM133: 7 | AN133: 7 | AO133: 7 | AP133: 7 | AR133: 38.146 | AS133: 40.636 | AT133: 42.969 | AU133: 44.519 | AV133: 45.203 | AW133: 45.239 | AY133: Mayotte | BV133: Mayotte | BW133: .. | BX133: .. | BY133: .. | BZ133: .. | CA133: .. | CB133: .. | CC133: .. | CD133: .. | CE133: .. | CF133: .. | CG133: .. | CH133: .. | CI133: .. | CJ133: .. | CK133: .. | CL133: .. | CM133: .. | CN133: .. | CO133: .. | CP133: .. | CQ133: .. | CS133: Mayotte
A134: 133 | B134: Mexico | C134: Mexican Peso | D134: MXN | E134: 2021-10-01 | F134: 20.44 | H134: MEX | I134: Mexico | J134: Mex2015 | K134: Latin America and Caribbean | L134: Central America | M134: Latin America and the Caribbean | N134: Upper-Middle-Income | O134: Full data, Source: MICS | P134: 133 | Q134: 2015 | R134: Mexico | S134: 484 | T134: 916 | U134: 0 | V134: 2276 | W134: 2285 | X134: 2297 | Y134: 2309 | Z134: 2316 | AA134: 2316 | AB134: 2298 | AC134: 2272 | AD134: 2244 | AE134: 2222 | AF134: 2211 | AG134: 2219 | AH134: 2237 | AI134: 2260 | AJ134: 2277 | AK134: 2279 | AL134: 2264 | AM134: 2236 | AN134: 2201 | AO134: 2167 | AP134: 2141 | AR134: 10785.969 | AS134: 10375.123 | AT134: 9966.543 | AU134: 9594.101 | AV134: 9254.549 | AW134: 8934.641 | AY134: Mexico | AZ134: 74 | BA134: 0.708 | BB134: 0.712 | BC134: 0.718 | BD134: 0.722 | BE134: 0.731 | BF134: 0.737 | BG134: 0.745 | BH134: 0.746 | BI134: 0.748 | BJ134: 0.748 | BK134: 0.748 | BL134: 0.755 | BM134: 0.759 | BN134: 0.756 | BO134: 0.761 | BP134: 0.766 | BQ134: 0.768 | BR134: 0.771 | BS134: 0.776 | BT134: 0.779 | BV134: Mexico | BW134: 21 | BX134: .. | BY134: 18.8 | BZ134: .. | CA134: 15.8 | CB134: 16 | CC134: 13 | CD134: .. | CE134: 14.4 | CF134: .. | CG134: 12.6 | CH134: .. | CI134: 12.1 | CJ134: .. | CK134: 11.8 | CL134: .. | CM134: 7.8 | CN134: .. | CO134: 6.5 | CP134: .. | CQ134: .. | CS134: Mexico | CT134: Upper Middle Income
A135: 134 | B135: Micronesia (Fed. States of) | C135: US Dollar | D135: USD | E135: 2021-10-01 | F135: 1 | H135: FSM | K135: Oceania | N135: Lower-Middle Income | O135: No data, regional estimates only | P135: 134 | R135: Micronesia (Fed. States of) | S135: 583 | T135: 954 | U135: 0 | V135: 3 | W135: 3 | X135: 3 | Y135: 3 | Z135: 3 | AA135: 3 | AB135: 3 | AC135: 3 | AD135: 3 | AE135: 3 | AF135: 3 | AG135: 2 | AH135: 2 | AI135: 2 | AJ135: 2 | AK135: 2 | AL135: 2 | AM135: 2 | AN135: 2 | AO135: 3 | AP135: 3 | AR135: 13.176 | AS135: 13.175 | AT135: 12.602 | AU135: 11.801 | AV135: 11.256 | AW135: 10.98 | AY135: Micronesia (Fed. States of) | AZ135: 136 | BA135: 0.546 | BB135: 0.553 | BC135: 0.559 | BD135: 0.565 | BE135: 0.57 | BF135: 0.577 | BG135: 0.583 | BH135: 0.589 | BI135: 0.593 | BJ135: 0.596 | BK135: 0.601 | BL135: 0.604 | BM135: 0.605 | BN135: 0.605 | BO135: 0.604 | BP135: 0.612 | BQ135: 0.614 | BR135: 0.616 | BS135: 0.618 | BT135: 0.62 | BV135: Micronesia (Fed. States of) | BW135: .. | BX135: .. | BY135: .. | BZ135: .. | CA135: .. | CB135: 24.6 | CC135: .. | CD135: .. | CE135: .. | CF135: .. | CG135: .. | CH135: .. | CI135: .. | CJ135: 38.7 | CK135: .. | CL135: .. | CM135: .. | CN135: .. | CO135: .. | CP135: .. | CQ135: .. | CS135: Micronesia (Fed. States of)
A136: 135 | B136: Monaco | C136: Euro | D136: EUR | E136: 2021-10-01 | F136: 0.86 | H136: MCO | K136: Western Europe | N136: High-Income | O136: No data | P136: 135 | R136: Monaco | AY136: Monaco | BV136: Monaco | BW136: .. | BX136: .. | BY136: .. | BZ136: .. | CA136: .. | CB136: .. | CC136: .. | CD136: .. | CE136: .. | CF136: .. | CG136: .. | CH136: .. | CI136: .. | CJ136: .. | CK136: .. | CL136: .. | CM136: .. | CN136: .. | CO136: .. | CP136: .. | CQ136: .. | CS136: Monaco
A137: 136 | B137: Mongolia | C137: Mongolia Tugrik | D137: MNT | E137: 2021-10-01 | F137: 2835.41 | H137: MNG | I137: Mongolia | J137: Mongol 2018 | K137: Northeast Asia | L137: Eastern Asia | M137: Eastern Asia and South-eastern Asia | N137: Lower-Middle Income | O137: Full data, Source: MICS | P137: 136 | Q137: 2018 | R137: Mongolia | S137: 496 | T137: 906 | U137: 0 | V137: 46 | W137: 46 | X137: 45 | Y137: 45 | Z137: 45 | AA137: 47 | AB137: 49 | AC137: 53 | AD137: 58 | AE137: 63 | AF137: 67 | AG137: 70 | AH137: 74 | AI137: 76 | AJ137: 78 | AK137: 78 | AL137: 78 | AM137: 76 | AN137: 74 | AO137: 72 | AP137: 70 | AR137: 348.831 | AS137: 327.236 | AT137: 327.33 | AU137: 340.793 | AV137: 355.549 | AW137: 363.652 | AY137: Mongolia | AZ137: 99 | BA137: 0.588 | BB137: 0.599 | BC137: 0.608 | BD137: 0.621 | BE137: 0.636 | BF137: 0.649 | BG137: 0.659 | BH137: 0.671 | BI137: 0.682 | BJ137: 0.687 | BK137: 0.696 | BL137: 0.71 | BM137: 0.718 | BN137: 0.727 | BO137: 0.732 | BP137: 0.735 | BQ137: 0.729 | BR137: 0.728 | BS137: 0.735 | BT137: 0.737 | BV137: Mongolia | BW137: .. | BX137: .. | BY137: 33.2 | BZ137: .. | CA137: .. | CB137: .. | CC137: .. | CD137: 11.4 | CE137: .. | CF137: .. | CG137: 9.6 | CH137: 6.6 | CI137: 4.1 | CJ137: .. | CK137: 3 | CL137: .. | CM137: 6.2 | CN137: .. | CO137: 5 | CP137: .. | CQ137: .. | CS137: Mongolia | CT137: Lower Middle Income
A138: 137 | B138: Montenegro | C138: Euro | D138: EUR | E138: 2021-10-01 | F138: 0.86 | H138: MNE | I138: Montenegro | J138: Monte 2018 | K138: Eastern Europe and Central Asia | L138: Southern Europe | M138: Northern America and Europe | N138: Upper-Middle-Income | O138: Full data, Source: MICS | P138: 137 | Q138: 2018 | R138: Montenegro | S138: 499 | T138: 925 | U138: 0 | V138: 8 | W138: 8 | X138: 8 | Y138: 8 | Z138: 8 | AA138: 8 | AB138: 8 | AC138: 8 | AD138: 8 | AE138: 8 | AF138: 8 | AG138: 8 | AH138: 8 | AI138: 7 | AJ138: 7 | AK138: 7 | AL138: 7 | AM138: 7 | AN138: 7 | AO138: 8 | AP138: 8 | AR138: 35.472 | AS138: 33.82 | AT138: 32.321 | AU138: 31.093 | AV138: 30.128 | AW138: 29.32 | AY138: Montenegro | AZ138: 48 | BA138: .. | BB138: .. | BC138: .. | BD138: .. | BE138: .. | BF138: .. | BG138: 0.773 | BH138: 0.784 | BI138: 0.794 | BJ138: 0.797 | BK138: 0.802 | BL138: 0.806 | BM138: 0.807 | BN138: 0.811 | BO138: 0.813 | BP138: 0.816 | BQ138: 0.818 | BR138: 0.822 | BS138: 0.826 | BT138: 0.829 | BV138: Montenegro | BW138: .. | BX138: .. | BY138: .. | BZ138: .. | CA138: .. | CB138: .. | CC138: .. | CD138: .. | CE138: .. | CF138: .. | CG138: .. | CH138: .. | CI138: 10.5 | CJ138: 8.3 | CK138: 8.6 | CL138: 8 | CM138: 6 | CN138: .. | CO138: .. | CP138: .. | CQ138: .. | CS138: Montenegro
A139: 138 | B139: Montserrat | C139: E.C. Dollar | D139: XCD | E139: 2021-10-01 | F139: 2.7 | H139: MSR | K139: Latin America and Caribbean | O139: No data | P139: 138 | R139: Montserrat | AY139: Montserrat | BV139: Montserrat | CS139: Montserrat
A140: 139 | B140: Morocco | C140: Morocco Dirham | D140: MAD | E140: 2021-10-01 | F140: 9.032 | H140: MAR | I140: Morocco | J140: Full data, Source: Full data, Source: DHS-Morocco 2003-2004 | K140: Middle East and North Africa | L140: Northern Africa | M140: Western Asia and Northern Africa | N140: Lower-Middle Income | O140: Full data, Source: DHS | P140: 139 | Q140: 2003-4 | R140: Morocco | S140: 504 | T140: 912 | U140: 0 | V140: 585 | W140: 588 | X140: 601 | Y140: 621 | Z140: 639 | AA140: 652 | AB140: 655 | AC140: 651 | AD140: 646 | AE140: 644 | AF140: 650 | AG140: 664 | AH140: 686 | AI140: 708 | AJ140: 724 | AK140: 728 | AL140: 715 | AM140: 691 | AN140: 662 | AO140: 636 | AP140: 619 | AR140: 3271.88 | AS140: 3143.381 | AT140: 3053.374 | AU140: 3006.546 | AV140: 2967.412 | AW140: 2897.882 | AY140: Morocco | AZ140: 121 | BA140: 0.529 | BB140: 0.541 | BC140: 0.551 | BD140: 0.562 | BE140: 0.572 | BF140: 0.58 | BG140: 0.586 | BH140: 0.594 | BI140: 0.602 | BJ140: 0.608 | BK140: 0.616 | BL140: 0.626 | BM140: 0.635 | BN140: 0.644 | BO140: 0.652 | BP140: 0.658 | BQ140: 0.667 | BR140: 0.673 | BS140: 0.68 | BT140: 0.686 | BV140: Morocco | BW140: 26.7 | BX140: .. | BY140: .. | BZ140: .. | CA140: .. | CB140: .. | CC140: 16.2 | CD140: .. | CE140: .. | CF140: .. | CG140: .. | CH140: .. | CI140: .. | CJ140: 7.3 | CK140: .. | CL140: .. | CM140: .. | CN140: .. | CO140: .. | CP140: .. | CQ140: .. | CS140: Morocco | CT140: Lower Middle Income
A141: 140 | B141: Mozambique | C141: Mozambique Metical | D141: MZN | E141: 2021-10-01 | F141: 63.2 | H141: MOZ | I141: Mozambique | J141: Full data, Source: Full data, Source: DHS-Mozambique 2011 | K141: Eastern and Southern Africa | L141: Eastern Africa | M141: Sub-Saharan Africa | N141: Low-Income | O141: Full data, Source: DHS | P141: 140 | Q141: 2011 | R141: Mozambique | S141: 508 | T141: 910 | U141: 0 | V141: 696 | W141: 718 | X141: 744 | Y141: 769 | Z141: 793 | AA141: 813 | AB141: 828 | AC141: 839 | AD141: 849 | AE141: 860 | AF141: 873 | AG141: 890 | AH141: 910 | AI141: 932 | AJ141: 955 | AK141: 978 | AL141: 999 | AM141: 1020 | AN141: 1042 | AO141: 1064 | AP141: 1086 | AR141: 6033.881 | AS141: 6536.696 | AT141: 6983.549 | AU141: 7393.921 | AV141: 7746.454 | AW141: 8061.268 | AY141: Mozambique | AZ141: 181 | BA141: 0.307 | BB141: 0.32 | BC141: 0.327 | BD141: 0.34 | BE141: 0.349 | BF141: 0.36 | BG141: 0.366 | BH141: 0.378 | BI141: 0.387 | BJ141: 0.394 | BK141: 0.401 | BL141: 0.397 | BM141: 0.403 | BN141: 0.417 | BO141: 0.425 | BP141: 0.433 | BQ141: 0.441 | BR141: 0.446 | BS141: 0.452 | BT141: 0.456 | BV141: Mozambique | BW141: .. | BX141: .. | BY141: 92.2 | BZ141: .. | CA141: .. | CB141: .. | CC141: .. | CD141: .. | CE141: 88.9 | CF141: .. | CG141: .. | CH141: .. | CI141: .. | CJ141: .. | CK141: 82.4 | CL141: .. | CM141: .. | CN141: .. | CO141: .. | CP141: .. | CQ141: .. | CS141: Mozambique | CT141: Low income
A142: 141 | B142: Myanmar | C142: Myanmar Kyat | D142: MMK | E142: 2021-10-01 | F142: 1815 | H142: MMR | I142: Myanmar | J142: Full data, Source: Full data, Source: DHS-Myanmar 2015-2016 | K142: Southeastern Asia | L142: South-Eastern Asia | M142: Eastern Asia and South-eastern Asia | N142: Lower-Middle Income | O142: Full data, Source: DHS | P142: 141 | Q142: 2015-2016 | R142: Myanmar | S142: 104 | T142: 920 | U142: 0 | V142: 1101 | W142: 1108 | X142: 1111 | Y142: 1107 | Z142: 1096 | AA142: 1078 | AB142: 1052 | AC142: 1020 | AD142: 985 | AE142: 955 | AF142: 931 | AG142: 915 | AH142: 906 | AI142: 903 | AJ142: 905 | AK142: 907 | AL142: 912 | AM142: 919 | AN142: 926 | AO142: 930 | AP142: 932 | AR142: 4658.915 | AS142: 4598.291 | AT142: 4477.195 | AU142: 4276.322 | AV142: 4078.973 | AW142: 3913.215 | AY142: Myanmar | AZ142: 147 | BA142: 0.414 | BB142: 0.423 | BC142: 0.432 | BD142: 0.442 | BE142: 0.452 | BF142: 0.461 | BG142: 0.471 | BH142: 0.482 | BI142: 0.493 | BJ142: 0.504 | BK142: 0.515 | BL142: 0.526 | BM142: 0.533 | BN142: 0.543 | BO142: 0.55 | BP142: 0.557 | BQ142: 0.563 | BR142: 0.572 | BS142: 0.579 | BT142: 0.583 | BV142: Myanmar | BW142: .. | BX142: .. | BY142: .. | BZ142: .. | CA142: .. | CB142: .. | CC142: .. | CD142: .. | CE142: .. | CF142: .. | CG142: .. | CH142: .. | CI142: .. | CJ142: .. | CK142: .. | CL142: 24.6 | CM142: .. | CN142: 15 | CO142: .. | CP142: .. | CQ142: .. | CS142: Myanmar | CT142: Lower Middle Income
A143: 142 | B143: Namibia | C143: Namibia Dollar | D143: NAD | E143: 2021-10-01 | F143: 15.146 | H143: NAM | I143: Namibia | J143: Full data, Source: Full data, Source: DHS-Namibia 2013 | K143: Eastern and Southern Africa | L143: Southern Africa | M143: Sub-Saharan Africa | N143: Upper-Middle-Income | O143: Full data, Source: DHS | P143: 142 | Q143: 2013 | R143: Namibia | S143: 516 | T143: 913 | U143: 0 | V143: 53 | W143: 52 | X143: 51 | Y143: 50 | Z143: 50 | AA143: 51 | AB143: 53 | AC143: 56 | AD143: 59 | AE143: 62 | AF143: 65 | AG143: 66 | AH143: 67 | AI143: 67 | AJ143: 67 | AK143: 67 | AL143: 67 | AM143: 67 | AN143: 67 | AO143: 67 | AP143: 67 | AR143: 351.049 | AS143: 352.642 | AT143: 359.719 | AU143: 368.957 | AV143: 377.429 | AW143: 382.195 | AY143: Namibia | AZ143: 130 | BA143: 0.544 | BB143: 0.543 | BC143: 0.541 | BD143: 0.543 | BE143: 0.545 | BF143: 0.545 | BG143: 0.551 | BH143: 0.559 | BI143: 0.567 | BJ143: 0.576 | BK143: 0.589 | BL143: 0.602 | BM143: 0.613 | BN143: 0.624 | BO143: 0.631 | BP143: 0.638 | BQ143: 0.639 | BR143: 0.644 | BS143: 0.645 | BT143: 0.646 | BV143: Namibia | BW143: .. | BX143: .. | BY143: .. | BZ143: 57.1 | CA143: .. | CB143: .. | CC143: .. | CD143: .. | CE143: .. | CF143: 48 | CG143: .. | CH143: .. | CI143: .. | CJ143: .. | CK143: .. | CL143: 30.3 | CM143: .. | CN143: .. | CO143: .. | CP143: .. | CQ143: .. | CS143: Namibia | CT143: Upper Middle Income
A144: 143 | B144: Nauru | C144: Australian Dollar | D144: AUD | E144: 2021-10-01 | F144: 1.39 | H144: NRU | K144: Oceania | N144: High-Income | O144: No data, regional estimates only | P144: 143 | R144: Nauru | AP144: 0.3 | AY144: Nauru | BV144: Nauru | BW144: .. | BX144: .. | BY144: .. | BZ144: .. | CA144: .. | CB144: .. | CC144: .. | CD144: .. | CE144: .. | CF144: .. | CG144: .. | CH144: .. | CI144: 13.2 | CJ144: .. | CK144: .. | CL144: .. | CM144: .. | CN144: .. | CO144: .. | CP144: .. | CQ144: .. | CS144: Nauru
A145: 144 | B145: Nepal | C145: Nepalese Rupee | D145: NPR | E145: 2021-10-01 | F145: 118.4014 | H145: NPL | I145: Nepal | J145: Full data, Source: Full data, Source: DHS-Nepal 2019 | K145: South Asia | L145: Southern Asia | M145: Central Asia and Southern Asia | N145: Lower-Middle Income | O145: Full data, Source: DHS | P145: 144 | Q145: 2019 | R145: Nepal | S145: 524 | T145: 5501 | U145: 0 | V145: 735 | W145: 718 | X145: 693 | Y145: 665 | Z145: 638 | AA145: 618 | AB145: 607 | AC145: 603 | AD145: 603 | AE145: 602 | AF145: 598 | AG145: 594 | AH145: 587 | AI145: 578 | AJ145: 571 | AK145: 568 | AL145: 557 | AM145: 550 | AN145: 545 | AO145: 544 | AP145: 545 | AR145: 2797.685 | AS145: 2578.231 | AT145: 2308.384 | AU145: 2068.998 | AV145: 1913.401 | AW145: 1804.647 | AY145: Nepal | AZ145: 142 | BA145: 0.453 | BB145: 0.454 | BC145: 0.464 | BD145: 0.47 | BE145: 0.476 | BF145: 0.482 | BG145: 0.493 | BH145: 0.498 | BI145: 0.509 | BJ145: 0.522 | BK145: 0.537 | BL145: 0.545 | BM145: 0.559 | BN145: 0.568 | BO145: 0.576 | BP145: 0.583 | BQ145: 0.586 | BR145: 0.588 | BS145: 0.596 | BT145: 0.602 | BV145: Nepal | BW145: .. | BX145: .. | BY145: .. | BZ145: 77.9 | CA145: .. | CB145: .. | CC145: .. | CD145: .. | CE145: .. | CF145: .. | CG145: 50.8 | CH145: .. | CI145: .. | CJ145: .. | CK145: .. | CL145: .. | CM145: .. | CN145: .. | CO145: .. | CP145: .. | CQ145: .. | CS145: Nepal | CT145: Low income
A146: 145 | B146: Netherlands | C146: Euro | D146: EUR | E146: 2021-10-01 | F146: 0.86 | H146: NLD | K146: Western Europe | N146: High-Income | O146: Partial data, Source: National survey | P146: 145 | Q146: 2006-08 | R146: Netherlands | S146: 528 | T146: 926 | U146: 0 | V146: 189 | W146: 192 | X146: 197 | Y146: 203 | Z146: 206 | AA146: 206 | AB146: 202 | AC146: 194 | AD146: 184 | AE146: 176 | AF146: 171 | AG146: 170 | AH146: 172 | AI146: 175 | AJ146: 178 | AK146: 180 | AL146: 179 | AM146: 176 | AN146: 172 | AO146: 170 | AP146: 169 | AR146: 877.016 | AS146: 879.062 | AT146: 866.239 | AU146: 841.647 | AV146: 813.813 | AW146: 795.835 | AY146: Netherlands | AZ146: 8 | BA146: 0.882 | BB146: 0.886 | BC146: 0.885 | BD146: 0.89 | BE146: 0.892 | BF146: 0.897 | BG146: 0.903 | BH146: 0.91 | BI146: 0.913 | BJ146: 0.912 | BK146: 0.917 | BL146: 0.928 | BM146: 0.928 | BN146: 0.93 | BO146: 0.932 | BP146: 0.934 | BQ146: 0.936 | BR146: 0.939 | BS146: 0.942 | BT146: 0.944 | BV146: Netherlands | BW146: .. | BX146: .. | BY146: .. | BZ146: .. | CA146: 0.4 | CB146: 0.2 | CC146: 0.1 | CD146: 0.1 | CE146: 0.2 | CF146: 0.2 | CG146: 0.1 | CH146: 0.2 | CI146: 0.1 | CJ146: 0.1 | CK146: 0.2 | CL146: 0.1 | CM146: 0.2 | CN146: 0.3 | CO146: 0.2 | CP146: .. | CQ146: .. | CS146: Netherlands
A147: 146 | B147: New Caledonia | C147: CFP Franc | D147: XPF | E147: 2021-10-01 | F147: 102.598 | H147: NCL | K147: Oceania | N147: High-Income | O147: No data, regional estimates only | P147: 146 | R147: New Caledonia | S147: 540 | T147: 928 | U147: 0 | V147: 4 | W147: 4 | X147: 4 | Y147: 4 | Z147: 4 | AA147: 4 | AB147: 4 | AC147: 4 | AD147: 4 | AE147: 5 | AF147: 5 | AG147: 5 | AH147: 5 | AI147: 4 | AJ147: 4 | AK147: 4 | AL147: 4 | AM147: 4 | AN147: 4 | AO147: 4 | AP147: 4 | AR147: 19.771 | AS147: 19.853 | AT147: 20.014 | AU147: 19.889 | AV147: 19.474 | AW147: 18.947 | AY147: New Caledonia | BV147: New Caledonia | BW147: .. | BX147: .. | BY147: .. | BZ147: .. | CA147: .. | CB147: .. | CC147: .. | CD147: .. | CE147: .. | CF147: .. | CG147: .. | CH147: .. | CI147: .. | CJ147: .. | CK147: .. | CL147: .. | CM147: .. | CN147: .. | CO147: .. | CP147: .. | CQ147: .. | CS147: New Caledonia
A148: 147 | B148: New Zealand | C148: New Zealand Dollar | D148: NZD | E148: 2021-10-01 | F148: 1.452 | H148: NZL | K148: Oceania | N148: High-Income | O148: Partial data, Source: National survey | P148: 147 | Q148: 2006 | R148: New Zealand | S148: 554 | T148: 927 | U148: 0 | V148: 53 | W148: 53 | X148: 54 | Y148: 55 | Z148: 57 | AA148: 58 | AB148: 61 | AC148: 63 | AD148: 65 | AE148: 66 | AF148: 67 | AG148: 66 | AH148: 64 | AI148: 62 | AJ148: 59 | AK148: 58 | AL148: 57 | AM148: 57 | AN148: 58 | AO148: 59 | AP148: 60 | AR148: 299.887 | AS148: 298.446 | AT148: 295.14 | AU148: 293.33 | AV148: 292.91 | AW148: 291.03 | AY148: New Zealand | AZ148: 14 | BA148: 0.876 | BB148: 0.88 | BC148: 0.888 | BD148: 0.891 | BE148: 0.894 | BF148: 0.896 | BG148: 0.898 | BH148: 0.901 | BI148: 0.902 | BJ148: 0.905 | BK148: 0.906 | BL148: 0.909 | BM148: 0.911 | BN148: 0.914 | BO148: 0.916 | BP148: 0.921 | BQ148: 0.924 | BR148: 0.926 | BS148: 0.928 | BT148: 0.931 | BV148: New Zealand | BW148: .. | BX148: .. | BY148: .. | BZ148: .. | CA148: .. | CB148: .. | CC148: .. | CD148: .. | CE148: .. | CF148: .. | CG148: .. | CH148: .. | CI148: .. | CJ148: .. | CK148: .. | CL148: .. | CM148: .. | CN148: .. | CO148: .. | CP148: .. | CQ148: .. | CS148: New Zealand | CT148: High Income
A149: 148 | B149: Nicaragua | C149: Nicaragua Cordoba Oro | D149: NIO | E149: 2021-10-01 | F149: 35.108 | H149: NIC | K149: Latin America and Caribbean | N149: Lower-Middle Income | O149: No data, regional estimates only | P149: 148 | R149: Nicaragua | S149: 558 | T149: 916 | U149: 0 | V149: 131 | W149: 130 | X149: 130 | Y149: 131 | Z149: 133 | AA149: 134 | AB149: 134 | AC149: 135 | AD149: 135 | AE149: 136 | AF149: 136 | AG149: 136 | AH149: 136 | AI149: 135 | AJ149: 135 | AK149: 134 | AL149: 134 | AM149: 133 | AN149: 132 | AO149: 131 | AP149: 129 | AR149: 638.886 | AS149: 614.896 | AT149: 598.465 | AU149: 583.475 | AV149: 566.936 | AW149: 545.807 | AY149: Nicaragua | AZ149: 128 | BA149: 0.577 | BB149: 0.583 | BC149: 0.589 | BD149: 0.592 | BE149: 0.597 | BF149: 0.601 | BG149: 0.605 | BH149: 0.611 | BI149: 0.616 | BJ149: 0.617 | BK149: 0.622 | BL149: 0.628 | BM149: 0.633 | BN149: 0.639 | BO149: 0.649 | BP149: 0.652 | BQ149: 0.657 | BR149: 0.661 | BS149: 0.659 | BT149: 0.66 | BV149: Nicaragua | BW149: .. | BX149: 38.2 | BY149: .. | BZ149: .. | CA149: .. | CB149: 27.4 | CC149: .. | CD149: .. | CE149: .. | CF149: 23 | CG149: .. | CH149: .. | CI149: .. | CJ149: .. | CK149: 13.1 | CL149: .. | CM149: .. | CN149: .. | CO149: .. | CP149: .. | CQ149: .. | CS149: Nicaragua | CT149: Lower Middle Income
A150: 149 | B150: Niger | C150: CFA Franc | D150: XOF | E150: 2021-10-01 | F150: 563.973 | H150: NER | I150: Niger | J150: Full data, Source: Full data, Source: DHS-Niger 2012 | K150: West and Central Africa | L150: Western Africa | M150: Sub-Saharan Africa | N150: Low-Income | O150: Full data, Source: DHS | P150: 149 | Q150: 2012 | R150: Niger | S150: 562 | T150: 914 | U150: 0 | V150: 539 | W150: 556 | X150: 575 | Y150: 594 | Z150: 614 | AA150: 636 | AB150: 657 | AC150: 680 | AD150: 704 | AE150: 730 | AF150: 756 | AG150: 781 | AH150: 807 | AI150: 834 | AJ150: 861 | AK150: 889 | AL150: 915 | AM150: 942 | AN150: 970 | AO150: 999 | AP150: 1030 | AR150: 5895.999 | AS150: 6753.934 | AT150: 7647.43 | AU150: 8522.492 | AV150: 9356.905 | AW150: 10136.24 | AY150: Niger | AZ150: 189 | BA150: 0.262 | BB150: 0.268 | BC150: 0.273 | BD150: 0.276 | BE150: 0.285 | BF150: 0.294 | BG150: 0.3 | BH150: 0.306 | BI150: 0.314 | BJ150: 0.321 | BK150: 0.331 | BL150: 0.338 | BM150: 0.35 | BN150: 0.357 | BO150: 0.365 | BP150: 0.372 | BQ150: 0.378 | BR150: 0.386 | BS150: 0.391 | BT150: 0.394 | BV150: Niger | BW150: .. | BX150: .. | BY150: .. | BZ150: .. | CA150: .. | CB150: 90.9 | CC150: .. | CD150: 90.6 | CE150: .. | CF150: .. | CG150: .. | CH150: 83.7 | CI150: .. | CJ150: .. | CK150: 77.2 | CL150: .. | CM150: .. | CN150: .. | CO150: .. | CP150: .. | CQ150: .. | CS150: Niger | CT150: Low income
A151: 150 | B151: Nigeria | C151: Nigeria Naira | D151: NGN | E151: 2021-10-01 | F151: 413.53 | H151: NGA | I151: Nigeria | J151: Full data, Source: Full data, Source: DHS-Nigeria 2018 | K151: West and Central Africa | L151: Western Africa | M151: Sub-Saharan Africa | N151: Lower-Middle Income | O151: Full data, Source: DHS | P151: 150 | Q151: 2018 | R151: Nigeria | S151: 566 | T151: 914 | U151: 0 | V151: 4647 | W151: 4775 | X151: 4911 | Y151: 5050 | Z151: 5190 | AA151: 5327 | AB151: 5446 | AC151: 5564 | AD151: 5683 | AE151: 5808 | AF151: 5943 | AG151: 6081 | AH151: 6230 | AI151: 6380 | AJ151: 6523 | AK151: 6650 | AL151: 6748 | AM151: 6832 | AN151: 6911 | AO151: 6996 | AP151: 7094 | AR151: 39582.464 | AS151: 42575.119 | AT151: 45606.484 | AU151: 48417.856 | AV151: 50829.294 | AW151: 52753.263 | AY151: Nigeria | AZ151: 161 | BA151: .. | BB151: .. | BC151: .. | BD151: 0.45 | BE151: 0.46 | BF151: 0.465 | BG151: 0.473 | BH151: 0.478 | BI151: 0.484 | BJ151: 0.49 | BK151: 0.482 | BL151: 0.492 | BM151: 0.5 | BN151: 0.519 | BO151: 0.523 | BP151: 0.526 | BQ151: 0.526 | BR151: 0.531 | BS151: 0.534 | BT151: 0.539 | BV151: Nigeria | BW151: .. | BX151: .. | BY151: .. | BZ151: 81.4 | CA151: .. | CB151: .. | CC151: .. | CD151: .. | CE151: .. | CF151: 79.5 | CG151: .. | CH151: .. | CI151: .. | CJ151: .. | CK151: .. | CL151: .. | CM151: .. | CN151: .. | CO151: 71 | CP151: .. | CQ151: .. | CS151: Nigeria
A152: 151 | B152: Niue | C152: New Zealand Dollar | D152: NZD | E152: 2021-10-01 | F152: 1.452 | H152: NIU | K152: Oceania | O152: No data | P152: 151 | R152: Niue | AY152: Niue | BV152: Niue | CS152: Niue
A153: 152 | B153: North Macedonia | C153: Denar | D153: MKD | E153: 2021-10-01 | F153: 52.775 | H153: MKD | I153: North Macedonia | J153: Nmace 2018_19 | K153: Eastern Europe and Central Asia | L153: Southern Europe | M153: Northern America and Europe | O153: Full data, Source: MICS | P153: 152 | Q153: 2018-19 | R153: North Macedonia | S153: 807 | T153: 925 | U153: 0 | V153: 25 | W153: 25 | X153: 25 | Y153: 25 | Z153: 25 | AA153: 25 | AB153: 25 | AC153: 24 | AD153: 23 | AE153: 22 | AF153: 21 | AG153: 22 | AH153: 22 | AI153: 23 | AJ153: 24 | AK153: 25 | AL153: 24 | AM153: 24 | AN153: 23 | AO153: 22 | AP153: 21 | AR153: 104.287 | AS153: 96.142 | AT153: 89.16 | AU153: 84.368 | AV153: 82.182 | AW153: 81.041 | AY153: North Macedonia | AZ153: 82 | BA153: 0.677 | BB153: 0.681 | BC153: 0.688 | BD153: 0.694 | BE153: 0.702 | BF153: 0.71 | BG153: 0.716 | BH153: 0.721 | BI153: 0.737 | BJ153: 0.739 | BK153: 0.743 | BL153: 0.747 | BM153: 0.748 | BN153: 0.751 | BO153: 0.755 | BP153: 0.761 | BQ153: 0.765 | BR153: 0.767 | BS153: 0.77 | BT153: 0.774 | BV153: North Macedonia | BW153: .. | BX153: .. | BY153: .. | BZ153: .. | CA153: .. | CB153: .. | CC153: .. | CD153: .. | CE153: .. | CF153: 18.6 | CG153: 17.9 | CH153: 15.5 | CI153: 14.1 | CJ153: 12 | CK153: 10.5 | CL153: 10.1 | CM153: 9.6 | CN153: 9 | CO153: 7.1 | CP153: .. | CQ153: .. | CS153: North Macedonia
A154: 153 | B154: Norfilk Island | C154: Australian Dollar | D154: AUD | E154: 2021-10-01 | F154: 0.7305 | H154: NFK | N154: Upper-Middle-Income | O154: No data | P154: 153 | R154: Norfilk Island | AY154: Norfilk Island | BV154: Norfilk Island | CS154: Norfilk Island
A155: 154 | B155: Northern Mariana Island | C155: US Dollar | D155: USD | E155: 2021-10-01 | F155: 1 | H155: MNP | K155: Oceania | N155: High-Income | O155: No data, regional estimates only | P155: 154 | R155: Northern mariana Island | AP155: 1.187 | AY155: Northern Mariana Island | BV155: Northern Mariana Island | CS155: Northern Mariana Island
A156: 155 | B156: Norway | C156: Norwegian Krone | D156: NOK | E156: 2021-10-01 | F156: 8.739 | H156: NOR | K156: Western Europe | N156: High-Income | O156: Partial data, Source: National survey | P156: 155 | Q156: 2018-2019 | R156: Norway | S156: 578 | T156: 924 | U156: 0 | V156: 58 | W156: 57 | X156: 56 | Y156: 56 | Z156: 56 | AA156: 56 | AB156: 57 | AC156: 59 | AD156: 62 | AE156: 63 | AF156: 64 | AG156: 64 | AH156: 63 | AI156: 61 | AJ156: 59 | AK156: 58 | AL156: 58 | AM156: 58 | AN156: 58 | AO156: 59 | AP156: 60 | AR156: 308.665 | AS156: 317.779 | AT156: 323.124 | AU156: 327.048 | AV156: 329.329 | AW156: 331.163 | AY156: Norway | AZ156: 1 | BA156: 0.915 | BB156: 0.914 | BC156: 0.917 | BD156: 0.923 | BE156: 0.932 | BF156: 0.931 | BG156: 0.934 | BH156: 0.936 | BI156: 0.937 | BJ156: 0.937 | BK156: 0.94 | BL156: 0.942 | BM156: 0.941 | BN156: 0.944 | BO156: 0.944 | BP156: 0.947 | BQ156: 0.95 | BR156: 0.954 | BS156: 0.956 | BT156: 0.957 | BV156: Norway | BW156: 0.2 | BX156: .. | BY156: .. | BZ156: 0.2 | CA156: 0.3 | CB156: 0.3 | CC156: 0.3 | CD156: 0.2 | CE156: 0.3 | CF156: 0.1 | CG156: 0.2 | CH156: 0.1 | CI156: 0.2 | CJ156: 0.2 | CK156: 0.1 | CL156: 0.2 | CM156: 0.4 | CN156: 0.3 | CO156: 0.3 | CP156: .. | CQ156: .. | CS156: Norway | CT156: High Income
A157: 156 | B157: Oman | C157: Oman Rial | D157: OMR | E157: 2021-10-01 | F157: 0.384 | H157: OMN | K157: Middle East and North Africa | N157: High-Income | O157: Partial data, Source: National survey | P157: 156 | Q157: 2007-11 | R157: Oman | S157: 512 | T157: 922 | U157: 0 | V157: 55 | W157: 53 | X157: 52 | Y157: 51 | Z157: 51 | AA157: 53 | AB157: 54 | AC157: 56 | AD157: 59 | AE157: 63 | AF157: 67 | AG157: 70 | AH157: 73 | AI157: 76 | AJ157: 80 | AK157: 83 | AL157: 89 | AM157: 94 | AN157: 98 | AO157: 100 | AP157: 99 | AR157: 422.269 | AS157: 379.638 | AT157: 351.294 | AU157: 349.615 | AV157: 365.158 | AW157: 379.868 | AY157: Oman | AZ157: 60 | BA157: 0.693 | BB157: 0.705 | BC157: 0.714 | BD157: 0.724 | BE157: 0.731 | BF157: 0.736 | BG157: 0.74 | BH157: 0.752 | BI157: 0.77 | BJ157: 0.777 | BK157: 0.782 | BL157: 0.782 | BM157: 0.791 | BN157: 0.799 | BO157: 0.802 | BP157: 0.814 | BQ157: 0.815 | BR157: 0.819 | BS157: 0.813 | BT157: 0.813 | BV157: Oman | BW157: .. | BX157: .. | BY157: .. | BZ157: .. | CA157: .. | CB157: .. | CC157: .. | CD157: .. | CE157: .. | CF157: .. | CG157: .. | CH157: .. | CI157: .. | CJ157: .. | CK157: .. | CL157: .. | CM157: .. | CN157: .. | CO157: .. | CP157: .. | CQ157: .. | CS157: Oman | CT157: High Income
A158: 157 | B158: Pakistan | C158: Pakistani Rupee | D158: PKR | E158: 2021-10-01 | F158: 170.243 | H158: PAK | I158: Pakistan | J158: Full data, Source: Full data, Source: DHS-Pakistan 2017-2018 | K158: South Asia | L158: Southern Asia | M158: Central Asia and Southern Asia | N158: Lower-Middle Income | O158: Full data, Source: DHS | P158: 157 | Q158: 2017-18 | R158: Pakistan | S158: 586 | T158: 5501 | U158: 0 | V158: 4506 | W158: 4538 | X158: 4565 | Y158: 4592 | Z158: 4625 | AA158: 4669 | AB158: 4721 | AC158: 4785 | AD158: 4856 | AE158: 4932 | AF158: 5010 | AG158: 5088 | AH158: 5168 | AI158: 5248 | AJ158: 5333 | AK158: 5422 | AL158: 5517 | AM158: 5616 | AN158: 5707 | AO158: 5773 | AP158: 5804 | AR158: 30151.909 | AS158: 29959.143 | AT158: 29785.973 | AU158: 30032.886 | AV158: 30413.945 | AW158: 30260.252 | AY158: Pakistan | AZ158: 154 | BA158: 0.447 | BB158: 0.454 | BC158: 0.462 | BD158: 0.471 | BE158: 0.473 | BF158: 0.486 | BG158: 0.492 | BH158: 0.496 | BI158: 0.503 | BJ158: 0.508 | BK158: 0.512 | BL158: 0.516 | BM158: 0.519 | BN158: 0.523 | BO158: 0.53 | BP158: 0.536 | BQ158: 0.542 | BR158: 0.55 | BS158: 0.552 | BT158: 0.557 | BV158: Pakistan | BW158: .. | BX158: 74 | BY158: .. | BZ158: .. | CA158: 62.3 | CB158: 61.5 | CC158: .. | CD158: 57.3 | CE158: .. | CF158: .. | CG158: 48 | CH158: 46.6 | CI158: .. | CJ158: 40 | CK158: .. | CL158: 35.5 | CM158: .. | CN158: .. | CO158: 35.7 | CP158: .. | CQ158: .. | CS158: Pakistan | CT158: Lower Middle Income
A159: 158 | B159: Palau | C159: US Dollar | D159: USD | E159: 2021-10-01 | F159: 1 | H159: PLW | K159: Oceania | N159: High-Income | O159: No data, regional estimates only | P159: 158 | R159: Palau | AP159: 0.212 | AY159: Palau | AZ159: 50 | BA159: 0.744 | BB159: 0.747 | BC159: 0.751 | BD159: 0.755 | BE159: 0.758 | BF159: 0.77 | BG159: 0.774 | BH159: 0.78 | BI159: 0.781 | BJ159: 0.782 | BK159: 0.786 | BL159: 0.793 | BM159: 0.795 | BN159: 0.821 | BO159: 0.825 | BP159: 0.82 | BQ159: 0.822 | BR159: 0.822 | BS159: 0.822 | BT159: 0.826 | BV159: Palau | BW159: .. | BX159: .. | BY159: .. | BZ159: .. | CA159: .. | CB159: .. | CC159: .. | CD159: .. | CE159: .. | CF159: .. | CG159: .. | CH159: .. | CI159: .. | CJ159: .. | CK159: .. | CL159: .. | CM159: .. | CN159: .. | CO159: .. | CP159: .. | CQ159: .. | CS159: Palau
